Workbook

Sheet Inputs
B2: Fase (C = Construção; O = Operação) | C2: =IF(C3<=Premissas!$C$60,"C",IF(C3="-","-","O")) -> C | D2: =IF(D3<=Premissas!$C$60,"C",IF(D3="-","-","O")) -> O | E2: =IF(E3<=Premissas!$C$60,"C",IF(E3="-","-","O")) -> O | F2: =IF(F3<=Premissas!$C$60,"C",IF(F3="-","-","O")) -> O | G2: =IF(G3<=Premissas!$C$60,"C",IF(G3="-","-","O")) -> O | H2: =IF(H3<=Premissas!$C$60,"C",IF(H3="-","-","O")) -> O | I2: =IF(I3<=Premissas!$C$60,"C",IF(I3="-","-","O")) -> O | J2: =IF(J3<=Premissas!$C$60,"C",IF(J3="-","-","O")) -> O | K2: =IF(K3<=Premissas!$C$60,"C",IF(K3="-","-","O")) -> O | L2: =IF(L3<=Premissas!$C$60,"C",IF(L3="-","-","O")) -> O | M2: =IF(M3<=Premissas!$C$60,"C",IF(M3="-","-","O")) -> O | N2: =IF(N3<=Premissas!$C$60,"C",IF(N3="-","-","O")) -> O | O2: =IF(O3<=Premissas!$C$60,"C",IF(O3="-","-","O")) -> O | P2: =IF(P3<=Premissas!$C$60,"C",IF(P3="-","-","O")) -> O | Q2: =IF(Q3<=Premissas!$C$60,"C",IF(Q3="-","-","O")) -> O | R2: =IF(R3<=Premissas!$C$60,"C",IF(R3="-","-","O")) -> O | S2: =IF(S3<=Premissas!$C$60,"C",IF(S3="-","-","O")) -> O | T2: =IF(T3<=Premissas!$C$60,"C",IF(T3="-","-","O")) -> O | U2: =IF(U3<=Premissas!$C$60,"C",IF(U3="-","-","O")) -> O | V2: =IF(V3<=Premissas!$C$60,"C",IF(V3="-","-","O")) -> O | W2: =IF(W3<=Premissas!$C$60,"C",IF(W3="-","-","O")) -> O | X2: =IF(X3<=Premissas!$C$60,"C",IF(X3="-","-","O")) -> O | Y2: =IF(Y3<=Premissas!$C$60,"C",IF(Y3="-","-","O")) -> O | Z2: =IF(Z3<=Premissas!$C$60,"C",IF(Z3="-","-","O")) -> O | AA2: =IF(AA3<=Premissas!$C$60,"C",IF(AA3="-","-","O")) -> O | AB2: =IF(AB3<=Premissas!$C$60,"C",IF(AB3="-","-","O")) -> O | AC2: =IF(AC3<=Premissas!$C$60,"C",IF(AC3="-","-","O")) -> O | AD2: =IF(AD3<=Premissas!$C$60,"C",IF(AD3="-","-","O")) -> O | AE2: =IF(AE3<=Premissas!$C$60,"C",IF(AE3="-","-","O")) -> O | AF2: =IF(AF3<=Premissas!$C$60,"C",IF(AF3="-","-","O")) -> O | AG2: =IF(AG3<=Premissas!$C$60,"C",IF(AG3="-","-","O")) -> O | AH2: =IF(AH3<=Premissas!$C$60,"C",IF(AH3="-","-","O")) -> - | AI2: =IF(AI3<=Premissas!$C$60,"C",IF(AI3="-","-","O")) -> - | AJ2: =IF(AJ3<=Premissas!$C$60,"C",IF(AJ3="-","-","O")) -> - | AK2: =IF(AK3<=Premissas!$C$60,"C",IF(AK3="-","-","O")) -> - | AL2: =IF(AL3<=Premissas!$C$60,"C",IF(AL3="-","-","O")) -> - | AM2: =IF(AM3<=Premissas!$C$60,"C",IF(AM3="-","-","O")) -> - | AN2: =IF(AN3<=Premissas!$C$60,"C",IF(AN3="-","-","O")) -> - | AO2: =IF(AO3<=Premissas!$C$60,"C",IF(AO3="-","-","O")) -> - | AP2: =IF(AP3<=Premissas!$C$60,"C",IF(AP3="-","-","O")) -> - | AQ2: =IF(AQ3<=Premissas!$C$60,"C",IF(AQ3="-","-","O")) -> - | AR2: =IF(AR3<=Premissas!$C$60,"C",IF(AR3="-","-","O")) -> - | AS2: =IF(AS3<=Premissas!$C$60,"C",IF(AS3="-","-","O")) -> - | AT2: =IF(AT3<=Premissas!$C$60,"C",IF(AT3="-","-","O")) -> - | AU2: =IF(AU3<=Premissas!$C$60,"C",IF(AU3="-","-","O")) -> - | AV2: =IF(AV3<=Premissas!$C$60,"C",IF(AV3="-","-","O")) -> - | AW2: =IF(AW3<=Premissas!$C$60,"C",IF(AW3="-","-","O")) -> - | AX2: =IF(AX3<=Premissas!$C$60,"C",IF(AX3="-","-","O")) -> - | AY2: =IF(AY3<=Premissas!$C$60,"C",IF(AY3="-","-","O")) -> - | AZ2: =IF(AZ3<=Premissas!$C$60,"C",IF(AZ3="-","-","O")) -> - | BA2: =IF(BA3<=Premissas!$C$60,"C",IF(BA3="-","-","O")) -> - | BB2: =IF(BB3<=Premissas!$C$60,"C",IF(BB3="-","-","O")) -> - | BC2: =IF(BC3<=Premissas!$C$60,"C",IF(BC3="-","-","O")) -> - | BD2: =IF(BD3<=Premissas!$C$60,"C",IF(BD3="-","-","O")) -> - | BE2: =IF(BE3<=Premissas!$C$60,"C",IF(BE3="-","-","O")) -> - | BF2: =IF(BF3<=Premissas!$C$60,"C",IF(BF3="-","-","O")) -> - | BG2: =IF(BG3<=Premissas!$C$60,"C",IF(BG3="-","-","O")) -> - | BH2: =IF(BH3<=Premissas!$C$60,"C",IF(BH3="-","-","O")) -> - | BI2: =IF(BI3<=Premissas!$C$60,"C",IF(BI3="-","-","O")) -> - | BJ2: =IF(BJ3<=Premissas!$C$60,"C",IF(BJ3="-","-","O")) -> - | BK2: =IF(BK3<=Premissas!$C$60,"C",IF(BK3="-","-","O")) -> - | BL2: =IF(BL3<=Premissas!$C$60,"C",IF(BL3="-","-","O")) -> - | BM2: =IF(BM3<=Premissas!$C$60,"C",IF(BM3="-","-","O")) -> - | BN2: =IF(BN3<=Premissas!$C$60,"C",IF(BN3="-","-","O")) -> - | BO2: =IF(BO3<=Premissas!$C$60,"C",IF(BO3="-","-","O")) -> - | BP2: =IF(BP3<=Premissas!$C$60,"C",IF(BP3="-","-","O")) -> - | BQ2: =IF(BQ3<=Premissas!$C$60,"C",IF(BQ3="-","-","O")) -> - | BR2: =IF(BR3<=Premissas!$C$60,"C",IF(BR3="-","-","O")) -> - | BS2: =IF(BS3<=Premissas!$C$60,"C",IF(BS3="-","-","O")) -> - | BT2: =IF(BT3<=Premissas!$C$60,"C",IF(BT3="-","-","O")) -> - | BU2: =IF(BU3<=Premissas!$C$60,"C",IF(BU3="-","-","O")) -> - | BV2: =IF(BV3<=Premissas!$C$60,"C",IF(BV3="-","-","O")) -> - | BW2: =IF(BW3<=Premissas!$C$60,"C",IF(BW3="-","-","O")) -> - | BX2: =IF(BX3<=Premissas!$C$60,"C",IF(BX3="-","-","O")) -> - | BY2: =IF(BY3<=Premissas!$C$60,"C",IF(BY3="-","-","O")) -> - | BZ2: =IF(BZ3<=Premissas!$C$60,"C",IF(BZ3="-","-","O")) -> - | CA2: =IF(CA3<=Premissas!$C$60,"C",IF(CA3="-","-","O")) -> - | CB2: =IF(CB3<=Premissas!$C$60,"C",IF(CB3="-","-","O")) -> - | CC2: =IF(CC3<=Premissas!$C$60,"C",IF(CC3="-","-","O")) -> - | CD2: =IF(CD3<=Premissas!$C$60,"C",IF(CD3="-","-","O")) -> - | CE2: =IF(CE3<=Premissas!$C$60,"C",IF(CE3="-","-","O")) -> - | CF2: =IF(CF3<=Premissas!$C$60,"C",IF(CF3="-","-","O")) -> - | CG2: =IF(CG3<=Premissas!$C$60,"C",IF(CG3="-","-","O")) -> - | CH2: =IF(CH3<=Premissas!$C$60,"C",IF(CH3="-","-","O")) -> - | CI2: =IF(CI3<=Premissas!$C$60,"C",IF(CI3="-","-","O")) -> - | CJ2: =IF(CJ3<=Premissas!$C$60,"C",IF(CJ3="-","-","O")) -> - | CK2: =IF(CK3<=Premissas!$C$60,"C",IF(CK3="-","-","O")) -> - | CL2: =IF(CL3<=Premissas!$C$60,"C",IF(CL3="-","-","O")) -> - | CM2: =IF(CM3<=Premissas!$C$60,"C",IF(CM3="-","-","O")) -> - | CN2: =IF(CN3<=Premissas!$C$60,"C",IF(CN3="-","-","O")) -> - | CO2: =IF(CO3<=Premissas!$C$60,"C",IF(CO3="-","-","O")) -> - | CP2: =IF(CP3<=Premissas!$C$60,"C",IF(CP3="-","-","O")) -> - | CQ2: =IF(CQ3<=Premissas!$C$60,"C",IF(CQ3="-","-","O")) -> - | CR2: =IF(CR3<=Premissas!$C$60,"C",IF(CR3="-","-","O")) -> - | CS2: =IF(CS3<=Premissas!$C$60,"C",IF(CS3="-","-","O")) -> - | CT2: =IF(CT3<=Premissas!$C$60,"C",IF(CT3="-","-","O")) -> - | CU2: =IF(CU3<=Premissas!$C$60,"C",IF(CU3="-","-","O")) -> - | CV2: =IF(CV3<=Premissas!$C$60,"C",IF(CV3="-","-","O")) -> - | CW2: =IF(CW3<=Premissas!$C$60,"C",IF(CW3="-","-","O")) -> - | CX2: =IF(CX3<=Premissas!$C$60,"C",IF(CX3="-","-","O")) -> - | CY2: =IF(CY3<=Premissas!$C$60,"C",IF(CY3="-","-","O")) -> - | CZ2: =IF(CZ3<=Premissas!$C$60,"C",IF(CZ3="-","-","O")) -> - | DA2: =IF(DA3<=Premissas!$C$60,"C",IF(DA3="-","-","O")) -> - | DB2: =IF(DB3<=Premissas!$C$60,"C",IF(DB3="-","-","O")) -> - | DC2: =IF(DC3<=Premissas!$C$60,"C",IF(DC3="-","-","O")) -> - | DD2: =IF(DD3<=Premissas!$C$60,"C",IF(DD3="-","-","O")) -> - | DE2: =IF(DE3<=Premissas!$C$60,"C",IF(DE3="-","-","O")) -> - | DF2: =IF(DF3<=Premissas!$C$60,"C",IF(DF3="-","-","O")) -> - | DG2: =IF(DG3<=Premissas!$C$60,"C",IF(DG3="-","-","O")) -> - | DH2: =IF(DH3<=Premissas!$C$60,"C",IF(DH3="-","-","O")) -> - | DI2: =IF(DI3<=Premissas!$C$60,"C",IF(DI3="-","-","O")) -> - | DJ2: =IF(DJ3<=Premissas!$C$60,"C",IF(DJ3="-","-","O")) -> - | DK2: =IF(DK3<=Premissas!$C$60,"C",IF(DK3="-","-","O")) -> - | DL2: =IF(DL3<=Premissas!$C$60,"C",IF(DL3="-","-","O")) -> - | DM2: =IF(DM3<=Premissas!$C$60,"C",IF(DM3="-","-","O")) -> - | DN2: =IF(DN3<=Premissas!$C$60,"C",IF(DN3="-","-","O")) -> - | DO2: =IF(DO3<=Premissas!$C$60,"C",IF(DO3="-","-","O")) -> - | DP2: =IF(DP3<=Premissas!$C$60,"C",IF(DP3="-","-","O")) -> - | DQ2: =IF(DQ3<=Premissas!$C$60,"C",IF(DQ3="-","-","O")) -> - | DR2: =IF(DR3<=Premissas!$C$60,"C",IF(DR3="-","-","O")) -> - | DS2: =IF(DS3<=Premissas!$C$60,"C",IF(DS3="-","-","O")) -> - | DT2: =IF(DT3<=Premissas!$C$60,"C",IF(DT3="-","-","O")) -> - | DU2: =IF(DU3<=Premissas!$C$60,"C",IF(DU3="-","-","O")) -> - | DV2: =IF(DV3<=Premissas!$C$60,"C",IF(DV3="-","-","O")) -> - | DW2: =IF(DW3<=Premissas!$C$60,"C",IF(DW3="-","-","O")) -> - | DX2: =IF(DX3<=Premissas!$C$60,"C",IF(DX3="-","-","O")) -> - | DY2: =IF(DY3<=Premissas!$C$60,"C",IF(DY3="-","-","O")) -> - | DZ2: =IF(DZ3<=Premissas!$C$60,"C",IF(DZ3="-","-","O")) -> - | EA2: =IF(EA3<=Premissas!$C$60,"C",IF(EA3="-","-","O")) -> - | EB2: =IF(EB3<=Premissas!$C$60,"C",IF(EB3="-","-","O")) -> - | EC2: =IF(EC3<=Premissas!$C$60,"C",IF(EC3="-","-","O")) -> - | ED2: =IF(ED3<=Premissas!$C$60,"C",IF(ED3="-","-","O")) -> - | EE2: =IF(EE3<=Premissas!$C$60,"C",IF(EE3="-","-","O")) -> - | EF2: =IF(EF3<=Premissas!$C$60,"C",IF(EF3="-","-","O")) -> - | EG2: =IF(EG3<=Premissas!$C$60,"C",IF(EG3="-","-","O")) -> - | EH2: =IF(EH3<=Premissas!$C$60,"C",IF(EH3="-","-","O")) -> - | EI2: =IF(EI3<=Premissas!$C$60,"C",IF(EI3="-","-","O")) -> - | EJ2: =IF(EJ3<=Premissas!$C$60,"C",IF(EJ3="-","-","O")) -> - | EK2: =IF(EK3<=Premissas!$C$60,"C",IF(EK3="-","-","O")) -> - | EL2: =IF(EL3<=Premissas!$C$60,"C",IF(EL3="-","-","O")) -> - | EM2: =IF(EM3<=Premissas!$C$60,"C",IF(EM3="-","-","O")) -> - | EN2: =IF(EN3<=Premissas!$C$60,"C",IF(EN3="-","-","O")) -> - | EO2: =IF(EO3<=Premissas!$C$60,"C",IF(EO3="-","-","O")) -> - | EP2: =IF(EP3<=Premissas!$C$60,"C",IF(EP3="-","-","O")) -> - | EQ2: =IF(EQ3<=Premissas!$C$60,"C",IF(EQ3="-","-","O")) -> - | ER2: =IF(ER3<=Premissas!$C$60,"C",IF(ER3="-","-","O")) -> - | ES2: =IF(ES3<=Premissas!$C$60,"C",IF(ES3="-","-","O")) -> - | ET2: =IF(ET3<=Premissas!$C$60,"C",IF(ET3="-","-","O")) -> - | EU2: =IF(EU3<=Premissas!$C$60,"C",IF(EU3="-","-","O")) -> - | EV2: =IF(EV3<=Premissas!$C$60,"C",IF(EV3="-","-","O")) -> - | EW2: =IF(EW3<=Premissas!$C$60,"C",IF(EW3="-","-","O")) -> - | EX2: =IF(EX3<=Premissas!$C$60,"C",IF(EX3="-","-","O")) -> - | EY2: =IF(EY3<=Premissas!$C$60,"C",IF(EY3="-","-","O")) -> - | EZ2: =IF(EZ3<=Premissas!$C$60,"C",IF(EZ3="-","-","O")) -> - | FA2: =IF(FA3<=Premissas!$C$60,"C",IF(FA3="-","-","O")) -> - | FB2: =IF(FB3<=Premissas!$C$60,"C",IF(FB3="-","-","O")) -> - | FC2: =IF(FC3<=Premissas!$C$60,"C",IF(FC3="-","-","O")) -> - | FD2: =IF(FD3<=Premissas!$C$60,"C",IF(FD3="-","-","O")) -> - | FE2: =IF(FE3<=Premissas!$C$60,"C",IF(FE3="-","-","O")) -> - | FF2: =IF(FF3<=Premissas!$C$60,"C",IF(FF3="-","-","O")) -> - | FG2: =IF(FG3<=Premissas!$C$60,"C",IF(FG3="-","-","O")) -> - | FH2: =IF(FH3<=Premissas!$C$60,"C",IF(FH3="-","-","O")) -> - | FI2: =IF(FI3<=Premissas!$C$60,"C",IF(FI3="-","-","O")) -> - | FJ2: =IF(FJ3<=Premissas!$C$60,"C",IF(FJ3="-","-","O")) -> - | FK2: =IF(FK3<=Premissas!$C$60,"C",IF(FK3="-","-","O")) -> - | FL2: =IF(FL3<=Premissas!$C$60,"C",IF(FL3="-","-","O")) -> - | FM2: =IF(FM3<=Premissas!$C$60,"C",IF(FM3="-","-","O")) -> - | FN2: =IF(FN3<=Premissas!$C$60,"C",IF(FN3="-","-","O")) -> - | FO2: =IF(FO3<=Premissas!$C$60,"C",IF(FO3="-","-","O")) -> - | FP2: =IF(FP3<=Premissas!$C$60,"C",IF(FP3="-","-","O")) -> - | FQ2: =IF(FQ3<=Premissas!$C$60,"C",IF(FQ3="-","-","O")) -> - | FR2: =IF(FR3<=Premissas!$C$60,"C",IF(FR3="-","-","O")) -> - | FS2: =IF(FS3<=Premissas!$C$60,"C",IF(FS3="-","-","O")) -> - | FT2: =IF(FT3<=Premissas!$C$60,"C",IF(FT3="-","-","O")) -> - | FU2: =IF(FU3<=Premissas!$C$60,"C",IF(FU3="-","-","O")) -> - | FV2: =IF(FV3<=Premissas!$C$60,"C",IF(FV3="-","-","O")) -> - | FW2: =IF(FW3<=Premissas!$C$60,"C",IF(FW3="-","-","O")) -> - | FX2: =IF(FX3<=Premissas!$C$60,"C",IF(FX3="-","-","O")) -> - | FY2: =IF(FY3<=Premissas!$C$60,"C",IF(FY3="-","-","O")) -> - | FZ2: =IF(FZ3<=Premissas!$C$60,"C",IF(FZ3="-","-","O")) -> - | GA2: =IF(GA3<=Premissas!$C$60,"C",IF(GA3="-","-","O")) -> - | GB2: =IF(GB3<=Premissas!$C$60,"C",IF(GB3="-","-","O")) -> - | GC2: =IF(GC3<=Premissas!$C$60,"C",IF(GC3="-","-","O")) -> - | GD2: =IF(GD3<=Premissas!$C$60,"C",IF(GD3="-","-","O")) -> - | GE2: =IF(GE3<=Premissas!$C$60,"C",IF(GE3="-","-","O")) -> - | GF2: =IF(GF3<=Premissas!$C$60,"C",IF(GF3="-","-","O")) -> - | GG2: =IF(GG3<=Premissas!$C$60,"C",IF(GG3="-","-","O")) -> - | GH2: =IF(GH3<=Premissas!$C$60,"C",IF(GH3="-","-","O")) -> - | GI2: =IF(GI3<=Premissas!$C$60,"C",IF(GI3="-","-","O")) -> - | GJ2: =IF(GJ3<=Premissas!$C$60,"C",IF(GJ3="-","-","O")) -> - | GK2: =IF(GK3<=Premissas!$C$60,"C",IF(GK3="-","-","O")) -> - | GL2: =IF(GL3<=Premissas!$C$60,"C",IF(GL3="-","-","O")) -> - | GM2: =IF(GM3<=Premissas!$C$60,"C",IF(GM3="-","-","O")) -> - | GN2: =IF(GN3<=Premissas!$C$60,"C",IF(GN3="-","-","O")) -> - | GO2: =IF(GO3<=Premissas!$C$60,"C",IF(GO3="-","-","O")) -> - | GP2: =IF(GP3<=Premissas!$C$60,"C",IF(GP3="-","-","O")) -> - | GQ2: =IF(GQ3<=Premissas!$C$60,"C",IF(GQ3="-","-","O")) -> - | GR2: =IF(GR3<=Premissas!$C$60,"C",IF(GR3="-","-","O")) -> - | GS2: =IF(GS3<=Premissas!$C$60,"C",IF(GS3="-","-","O")) -> - | GT2: =IF(GT3<=Premissas!$C$60,"C",IF(GT3="-","-","O")) -> - | GU2: =IF(GU3<=Premissas!$C$60,"C",IF(GU3="-","-","O")) -> - | GV2: =IF(GV3<=Premissas!$C$60,"C",IF(GV3="-","-","O")) -> - | GW2: =IF(GW3<=Premissas!$C$60,"C",IF(GW3="-","-","O")) -> - | GX2: =IF(GX3<=Premissas!$C$60,"C",IF(GX3="-","-","O")) -> - | GY2: =IF(GY3<=Premissas!$C$60,"C",IF(GY3="-","-","O")) -> - | GZ2: =IF(GZ3<=Premissas!$C$60,"C",IF(GZ3="-","-","O")) -> - | HA2: =IF(HA3<=Premissas!$C$60,"C",IF(HA3="-","-","O")) -> - | HB2: =IF(HB3<=Premissas!$C$60,"C",IF(HB3="-","-","O")) -> - | HC2: =IF(HC3<=Premissas!$C$60,"C",IF(HC3="-","-","O")) -> - | HD2: =IF(HD3<=Premissas!$C$60,"C",IF(HD3="-","-","O")) -> - | HE2: =IF(HE3<=Premissas!$C$60,"C",IF(HE3="-","-","O")) -> - | HF2: =IF(HF3<=Premissas!$C$60,"C",IF(HF3="-","-","O")) -> - | HG2: =IF(HG3<=Premissas!$C$60,"C",IF(HG3="-","-","O")) -> - | HH2: =IF(HH3<=Premissas!$C$60,"C",IF(HH3="-","-","O")) -> - | HI2: =IF(HI3<=Premissas!$C$60,"C",IF(HI3="-","-","O")) -> - | HJ2: =IF(HJ3<=Premissas!$C$60,"C",IF(HJ3="-","-","O")) -> - | HK2: =IF(HK3<=Premissas!$C$60,"C",IF(HK3="-","-","O")) -> - | HL2: =IF(HL3<=Premissas!$C$60,"C",IF(HL3="-","-","O")) -> - | HM2: =IF(HM3<=Premissas!$C$60,"C",IF(HM3="-","-","O")) -> - | HN2: =IF(HN3<=Premissas!$C$60,"C",IF(HN3="-","-","O")) -> - | HO2: =IF(HO3<=Premissas!$C$60,"C",IF(HO3="-","-","O")) -> - | HP2: =IF(HP3<=Premissas!$C$60,"C",IF(HP3="-","-","O")) -> - | HQ2: =IF(HQ3<=Premissas!$C$60,"C",IF(HQ3="-","-","O")) -> - | HR2: =IF(HR3<=Premissas!$C$60,"C",IF(HR3="-","-","O")) -> - | HS2: =IF(HS3<=Premissas!$C$60,"C",IF(HS3="-","-","O")) -> - | HT2: =IF(HT3<=Premissas!$C$60,"C",IF(HT3="-","-","O")) -> - | HU2: =IF(HU3<=Premissas!$C$60,"C",IF(HU3="-","-","O")) -> - | HV2: =IF(HV3<=Premissas!$C$60,"C",IF(HV3="-","-","O")) -> - | HW2: =IF(HW3<=Premissas!$C$60,"C",IF(HW3="-","-","O")) -> - | HX2: =IF(HX3<=Premissas!$C$60,"C",IF(HX3="-","-","O")) -> - | HY2: =IF(HY3<=Premissas!$C$60,"C",IF(HY3="-","-","O")) -> - | HZ2: =IF(HZ3<=Premissas!$C$60,"C",IF(HZ3="-","-","O")) -> - | IA2: =IF(IA3<=Premissas!$C$60,"C",IF(IA3="-","-","O")) -> - | IB2: =IF(IB3<=Premissas!$C$60,"C",IF(IB3="-","-","O")) -> - | IC2: =IF(IC3<=Premissas!$C$60,"C",IF(IC3="-","-","O")) -> - | ID2: =IF(ID3<=Premissas!$C$60,"C",IF(ID3="-","-","O")) -> - | IE2: =IF(IE3<=Premissas!$C$60,"C",IF(IE3="-","-","O")) -> - | IF2: =IF(IF3<=Premissas!$C$60,"C",IF(IF3="-","-","O")) -> - | IG2: =IF(IG3<=Premissas!$C$60,"C",IF(IG3="-","-","O")) -> - | IH2: =IF(IH3<=Premissas!$C$60,"C",IF(IH3="-","-","O")) -> - | II2: =IF(II3<=Premissas!$C$60,"C",IF(II3="-","-","O")) -> - | IJ2: =IF(IJ3<=Premissas!$C$60,"C",IF(IJ3="-","-","O")) -> - | IK2: =IF(IK3<=Premissas!$C$60,"C",IF(IK3="-","-","O")) -> - | IL2: =IF(IL3<=Premissas!$C$60,"C",IF(IL3="-","-","O")) -> - | IM2: =IF(IM3<=Premissas!$C$60,"C",IF(IM3="-","-","O")) -> - | IN2: =IF(IN3<=Premissas!$C$60,"C",IF(IN3="-","-","O")) -> - | IO2: =IF(IO3<=Premissas!$C$60,"C",IF(IO3="-","-","O")) -> - | IP2: =IF(IP3<=Premissas!$C$60,"C",IF(IP3="-","-","O")) -> - | IQ2: =IF(IQ3<=Premissas!$C$60,"C",IF(IQ3="-","-","O")) -> - | IR2: =IF(IR3<=Premissas!$C$60,"C",IF(IR3="-","-","O")) -> - | IS2: =IF(IS3<=Premissas!$C$60,"C",IF(IS3="-","-","O")) -> - | IT2: =IF(IT3<=Premissas!$C$60,"C",IF(IT3="-","-","O")) -> - | IU2: =IF(IU3<=Premissas!$C$60,"C",IF(IU3="-","-","O")) -> - | IV2: =IF(IV3<=Premissas!$C$60,"C",IF(IV3="-","-","O")) -> - | IW2: =IF(IW3<=Premissas!$C$60,"C",IF(IW3="-","-","O")) -> - | IX2: =IF(IX3<=Premissas!$C$60,"C",IF(IX3="-","-","O")) -> - | IY2: =IF(IY3<=Premissas!$C$60,"C",IF(IY3="-","-","O")) -> - | IZ2: =IF(IZ3<=Premissas!$C$60,"C",IF(IZ3="-","-","O")) -> - | JA2: =IF(JA3<=Premissas!$C$60,"C",IF(JA3="-","-","O")) -> - | JB2: =IF(JB3<=Premissas!$C$60,"C",IF(JB3="-","-","O")) -> - | JC2: =IF(JC3<=Premissas!$C$60,"C",IF(JC3="-","-","O")) -> - | JD2: =IF(JD3<=Premissas!$C$60,"C",IF(JD3="-","-","O")) -> - | JE2: =IF(JE3<=Premissas!$C$60,"C",IF(JE3="-","-","O")) -> - | JF2: =IF(JF3<=Premissas!$C$60,"C",IF(JF3="-","-","O")) -> - | JG2: =IF(JG3<=Premissas!$C$60,"C",IF(JG3="-","-","O")) -> - | JH2: =IF(JH3<=Premissas!$C$60,"C",IF(JH3="-","-","O")) -> - | JI2: =IF(JI3<=Premissas!$C$60,"C",IF(JI3="-","-","O")) -> - | JJ2: =IF(JJ3<=Premissas!$C$60,"C",IF(JJ3="-","-","O")) -> - | JK2: =IF(JK3<=Premissas!$C$60,"C",IF(JK3="-","-","O")) -> - | JL2: =IF(JL3<=Premissas!$C$60,"C",IF(JL3="-","-","O")) -> - | JM2: =IF(JM3<=Premissas!$C$60,"C",IF(JM3="-","-","O")) -> - | JN2: =IF(JN3<=Premissas!$C$60,"C",IF(JN3="-","-","O")) -> - | JO2: =IF(JO3<=Premissas!$C$60,"C",IF(JO3="-","-","O")) -> - | JP2: =IF(JP3<=Premissas!$C$60,"C",IF(JP3="-","-","O")) -> - | JQ2: =IF(JQ3<=Premissas!$C$60,"C",IF(JQ3="-","-","O")) -> - | JR2: =IF(JR3<=Premissas!$C$60,"C",IF(JR3="-","-","O")) -> - | JS2: =IF(JS3<=Premissas!$C$60,"C",IF(JS3="-","-","O")) -> - | JT2: =IF(JT3<=Premissas!$C$60,"C",IF(JT3="-","-","O")) -> - | JU2: =IF(JU3<=Premissas!$C$60,"C",IF(JU3="-","-","O")) -> - | JV2: =IF(JV3<=Premissas!$C$60,"C",IF(JV3="-","-","O")) -> - | JW2: =IF(JW3<=Premissas!$C$60,"C",IF(JW3="-","-","O")) -> - | JX2: =IF(JX3<=Premissas!$C$60,"C",IF(JX3="-","-","O")) -> - | JY2: =IF(JY3<=Premissas!$C$60,"C",IF(JY3="-","-","O")) -> - | JZ2: =IF(JZ3<=Premissas!$C$60,"C",IF(JZ3="-","-","O")) -> - | KA2: =IF(KA3<=Premissas!$C$60,"C",IF(KA3="-","-","O")) -> - | KB2: =IF(KB3<=Premissas!$C$60,"C",IF(KB3="-","-","O")) -> - | KC2: =IF(KC3<=Premissas!$C$60,"C",IF(KC3="-","-","O")) -> - | KD2: =IF(KD3<=Premissas!$C$60,"C",IF(KD3="-","-","O")) -> - | KE2: =IF(KE3<=Premissas!$C$60,"C",IF(KE3="-","-","O")) -> - | KF2: =IF(KF3<=Premissas!$C$60,"C",IF(KF3="-","-","O")) -> - | KG2: =IF(KG3<=Premissas!$C$60,"C",IF(KG3="-","-","O")) -> - | KH2: =IF(KH3<=Premissas!$C$60,"C",IF(KH3="-","-","O")) -> - | KI2: =IF(KI3<=Premissas!$C$60,"C",IF(KI3="-","-","O")) -> - | KJ2: =IF(KJ3<=Premissas!$C$60,"C",IF(KJ3="-","-","O")) -> - | KK2: =IF(KK3<=Premissas!$C$60,"C",IF(KK3="-","-","O")) -> - | KL2: =IF(KL3<=Premissas!$C$60,"C",IF(KL3="-","-","O")) -> - | KM2: =IF(KM3<=Premissas!$C$60,"C",IF(KM3="-","-","O")) -> - | KN2: =IF(KN3<=Premissas!$C$60,"C",IF(KN3="-","-","O")) -> - | KO2: =IF(KO3<=Premissas!$C$60,"C",IF(KO3="-","-","O")) -> - | KP2: =IF(KP3<=Premissas!$C$60,"C",IF(KP3="-","-","O")) -> - | KQ2: =IF(KQ3<=Premissas!$C$60,"C",IF(KQ3="-","-","O")) -> - | KR2: =IF(KR3<=Premissas!$C$60,"C",IF(KR3="-","-","O")) -> - | KS2: =IF(KS3<=Premissas!$C$60,"C",IF(KS3="-","-","O")) -> - | KT2: =IF(KT3<=Premissas!$C$60,"C",IF(KT3="-","-","O")) -> - | KU2: =IF(KU3<=Premissas!$C$60,"C",IF(KU3="-","-","O")) -> - | KV2: =IF(KV3<=Premissas!$C$60,"C",IF(KV3="-","-","O")) -> - | KW2: =IF(KW3<=Premissas!$C$60,"C",IF(KW3="-","-","O")) -> - | KX2: =IF(KX3<=Premissas!$C$60,"C",IF(KX3="-","-","O")) -> - | KY2: =IF(KY3<=Premissas!$C$60,"C",IF(KY3="-","-","O")) -> - | KZ2: =IF(KZ3<=Premissas!$C$60,"C",IF(KZ3="-","-","O")) -> - | LA2: =IF(LA3<=Premissas!$C$60,"C",IF(LA3="-","-","O")) -> - | LB2: =IF(LB3<=Premissas!$C$60,"C",IF(LB3="-","-","O")) -> - | LC2: =IF(LC3<=Premissas!$C$60,"C",IF(LC3="-","-","O")) -> - | LD2: =IF(LD3<=Premissas!$C$60,"C",IF(LD3="-","-","O")) -> - | LE2: =IF(LE3<=Premissas!$C$60,"C",IF(LE3="-","-","O")) -> - | LF2: =IF(LF3<=Premissas!$C$60,"C",IF(LF3="-","-","O")) -> - | LG2: =IF(LG3<=Premissas!$C$60,"C",IF(LG3="-","-","O")) -> - | LH2: =IF(LH3<=Premissas!$C$60,"C",IF(LH3="-","-","O")) -> - | LI2: =IF(LI3<=Premissas!$C$60,"C",IF(LI3="-","-","O")) -> - | LJ2: =IF(LJ3<=Premissas!$C$60,"C",IF(LJ3="-","-","O")) -> - | LK2: =IF(LK3<=Premissas!$C$60,"C",IF(LK3="-","-","O")) -> - | LL2: =IF(LL3<=Premissas!$C$60,"C",IF(LL3="-","-","O")) -> - | LM2: =IF(LM3<=Premissas!$C$60,"C",IF(LM3="-","-","O")) -> - | LN2: =IF(LN3<=Premissas!$C$60,"C",IF(LN3="-","-","O")) -> - | LO2: =IF(LO3<=Premissas!$C$60,"C",IF(LO3="-","-","O")) -> - | LP2: =IF(LP3<=Premissas!$C$60,"C",IF(LP3="-","-","O")) -> - | LQ2: =IF(LQ3<=Premissas!$C$60,"C",IF(LQ3="-","-","O")) -> - | LR2: =IF(LR3<=Premissas!$C$60,"C",IF(LR3="-","-","O")) -> - | LS2: =IF(LS3<=Premissas!$C$60,"C",IF(LS3="-","-","O")) -> - | LT2: =IF(LT3<=Premissas!$C$60,"C",IF(LT3="-","-","O")) -> - | LU2: =IF(LU3<=Premissas!$C$60,"C",IF(LU3="-","-","O")) -> - | LV2: =IF(LV3<=Premissas!$C$60,"C",IF(LV3="-","-","O")) -> - | LW2: =IF(LW3<=Premissas!$C$60,"C",IF(LW3="-","-","O")) -> - | LX2: =IF(LX3<=Premissas!$C$60,"C",IF(LX3="-","-","O")) -> - | LY2: =IF(LY3<=Premissas!$C$60,"C",IF(LY3="-","-","O")) -> - | LZ2: =IF(LZ3<=Premissas!$C$60,"C",IF(LZ3="-","-","O")) -> - | MA2: =IF(MA3<=Premissas!$C$60,"C",IF(MA3="-","-","O")) -> - | MB2: =IF(MB3<=Premissas!$C$60,"C",IF(MB3="-","-","O")) -> - | MC2: =IF(MC3<=Premissas!$C$60,"C",IF(MC3="-","-","O")) -> - | MD2: =IF(MD3<=Premissas!$C$60,"C",IF(MD3="-","-","O")) -> - | ME2: =IF(ME3<=Premissas!$C$60,"C",IF(ME3="-","-","O")) -> - | MF2: =IF(MF3<=Premissas!$C$60,"C",IF(MF3="-","-","O")) -> - | MG2: =IF(MG3<=Premissas!$C$60,"C",IF(MG3="-","-","O")) -> - | MH2: =IF(MH3<=Premissas!$C$60,"C",IF(MH3="-","-","O")) -> - | MI2: =IF(MI3<=Premissas!$C$60,"C",IF(MI3="-","-","O")) -> - | MJ2: =IF(MJ3<=Premissas!$C$60,"C",IF(MJ3="-","-","O")) -> - | MK2: =IF(MK3<=Premissas!$C$60,"C",IF(MK3="-","-","O")) -> - | ML2: =IF(ML3<=Premissas!$C$60,"C",IF(ML3="-","-","O")) -> - | MM2: =IF(MM3<=Premissas!$C$60,"C",IF(MM3="-","-","O")) -> - | MN2: =IF(MN3<=Premissas!$C$60,"C",IF(MN3="-","-","O")) -> - | MO2: =IF(MO3<=Premissas!$C$60,"C",IF(MO3="-","-","O")) -> - | MP2: =IF(MP3<=Premissas!$C$60,"C",IF(MP3="-","-","O")) -> - | MQ2: =IF(MQ3<=Premissas!$C$60,"C",IF(MQ3="-","-","O")) -> - | MR2: =IF(MR3<=Premissas!$C$60,"C",IF(MR3="-","-","O")) -> - | MS2: =IF(MS3<=Premissas!$C$60,"C",IF(MS3="-","-","O")) -> - | MT2: =IF(MT3<=Premissas!$C$60,"C",IF(MT3="-","-","O")) -> - | MU2: =IF(MU3<=Premissas!$C$60,"C",IF(MU3="-","-","O")) -> - | MV2: =IF(MV3<=Premissas!$C$60,"C",IF(MV3="-","-","O")) -> - | MW2: =IF(MW3<=Premissas!$C$60,"C",IF(MW3="-","-","O")) -> - | MX2: =IF(MX3<=Premissas!$C$60,"C",IF(MX3="-","-","O")) -> - | MY2: =IF(MY3<=Premissas!$C$60,"C",IF(MY3="-","-","O")) -> - | MZ2: =IF(MZ3<=Premissas!$C$60,"C",IF(MZ3="-","-","O")) -> - | NA2: =IF(NA3<=Premissas!$C$60,"C",IF(NA3="-","-","O")) -> - | NB2: =IF(NB3<=Premissas!$C$60,"C",IF(NB3="-","-","O")) -> - | NC2: =IF(NC3<=Premissas!$C$60,"C",IF(NC3="-","-","O")) -> - | ND2: =IF(ND3<=Premissas!$C$60,"C",IF(ND3="-","-","O")) -> - | NE2: =IF(NE3<=Premissas!$C$60,"C",IF(NE3="-","-","O")) -> - | NF2: =IF(NF3<=Premissas!$C$60,"C",IF(NF3="-","-","O")) -> - | NG2: =IF(NG3<=Premissas!$C$60,"C",IF(NG3="-","-","O")) -> - | NH2: =IF(NH3<=Premissas!$C$60,"C",IF(NH3="-","-","O")) -> - | NI2: =IF(NI3<=Premissas!$C$60,"C",IF(NI3="-","-","O")) -> - | NJ2: =IF(NJ3<=Premissas!$C$60,"C",IF(NJ3="-","-","O")) -> - | NK2: =IF(NK3<=Premissas!$C$60,"C",IF(NK3="-","-","O")) -> - | NL2: =IF(NL3<=Premissas!$C$60,"C",IF(NL3="-","-","O")) -> - | NM2: =IF(NM3<=Premissas!$C$60,"C",IF(NM3="-","-","O")) -> - | NN2: =IF(NN3<=Premissas!$C$60,"C",IF(NN3="-","-","O")) -> - | NO2: =IF(NO3<=Premissas!$C$60,"C",IF(NO3="-","-","O")) -> - | NP2: =IF(NP3<=Premissas!$C$60,"C",IF(NP3="-","-","O")) -> - | NQ2: =IF(NQ3<=Premissas!$C$60,"C",IF(NQ3="-","-","O")) -> - | NR2: =IF(NR3<=Premissas!$C$60,"C",IF(NR3="-","-","O")) -> - | NS2: =IF(NS3<=Premissas!$C$60,"C",IF(NS3="-","-","O")) -> - | NT2: =IF(NT3<=Premissas!$C$60,"C",IF(NT3="-","-","O")) -> - | NU2: =IF(NU3<=Premissas!$C$60,"C",IF(NU3="-","-","O")) -> - | NV2: =IF(NV3<=Premissas!$C$60,"C",IF(NV3="-","-","O")) -> - | NW2: =IF(NW3<=Premissas!$C$60,"C",IF(NW3="-","-","O")) -> - | NX2: =IF(NX3<=Premissas!$C$60,"C",IF(NX3="-","-","O")) -> - | NY2: =IF(NY3<=Premissas!$C$60,"C",IF(NY3="-","-","O")) -> - | NZ2: =IF(NZ3<=Premissas!$C$60,"C",IF(NZ3="-","-","O")) -> - | OA2: =IF(OA3<=Premissas!$C$60,"C",IF(OA3="-","-","O")) -> - | OB2: =IF(OB3<=Premissas!$C$60,"C",IF(OB3="-","-","O")) -> - | OC2: =IF(OC3<=Premissas!$C$60,"C",IF(OC3="-","-","O")) -> - | OD2: =IF(OD3<=Premissas!$C$60,"C",IF(OD3="-","-","O")) -> - | OE2: =IF(OE3<=Premissas!$C$60,"C",IF(OE3="-","-","O")) -> - | OF2: =IF(OF3<=Premissas!$C$60,"C",IF(OF3="-","-","O")) -> - | OG2: =IF(OG3<=Premissas!$C$60,"C",IF(OG3="-","-","O")) -> - | OH2: =IF(OH3<=Premissas!$C$60,"C",IF(OH3="-","-","O")) -> - | OI2: =IF(OI3<=Premissas!$C$60,"C",IF(OI3="-","-","O")) -> - | OJ2: =IF(OJ3<=Premissas!$C$60,"C",IF(OJ3="-","-","O")) -> - | OK2: =IF(OK3<=Premissas!$C$60,"C",IF(OK3="-","-","O")) -> - | OL2: =IF(OL3<=Premissas!$C$60,"C",IF(OL3="-","-","O")) -> - | OM2: =IF(OM3<=Premissas!$C$60,"C",IF(OM3="-","-","O")) -> - | ON2: =IF(ON3<=Premissas!$C$60,"C",IF(ON3="-","-","O")) -> - | OO2: =IF(OO3<=Premissas!$C$60,"C",IF(OO3="-","-","O")) -> - | OP2: =IF(OP3<=Premissas!$C$60,"C",IF(OP3="-","-","O")) -> - | OQ2: =IF(OQ3<=Premissas!$C$60,"C",IF(OQ3="-","-","O")) -> - | OR2: =IF(OR3<=Premissas!$C$60,"C",IF(OR3="-","-","O")) -> - | OS2: =IF(OS3<=Premissas!$C$60,"C",IF(OS3="-","-","O")) -> - | OT2: =IF(OT3<=Premissas!$C$60,"C",IF(OT3="-","-","O")) -> - | OU2: =IF(OU3<=Premissas!$C$60,"C",IF(OU3="-","-","O")) -> - | OV2: =IF(OV3<=Premissas!$C$60,"C",IF(OV3="-","-","O")) -> - | OW2: =IF(OW3<=Premissas!$C$60,"C",IF(OW3="-","-","O")) -> - | OX2: =IF(OX3<=Premissas!$C$60,"C",IF(OX3="-","-","O")) -> - | OY2: =IF(OY3<=Premissas!$C$60,"C",IF(OY3="-","-","O")) -> - | OZ2: =IF(OZ3<=Premissas!$C$60,"C",IF(OZ3="-","-","O")) -> - | PA2: =IF(PA3<=Premissas!$C$60,"C",IF(PA3="-","-","O")) -> - | PB2: =IF(PB3<=Premissas!$C$60,"C",IF(PB3="-","-","O")) -> - | PC2: =IF(PC3<=Premissas!$C$60,"C",IF(PC3="-","-","O")) -> - | PD2: =IF(PD3<=Premissas!$C$60,"C",IF(PD3="-","-","O")) -> - | PE2: =IF(PE3<=Premissas!$C$60,"C",IF(PE3="-","-","O")) -> - | PF2: =IF(PF3<=Premissas!$C$60,"C",IF(PF3="-","-","O")) -> - | PG2: =IF(PG3<=Premissas!$C$60,"C",IF(PG3="-","-","O")) -> - | PH2: =IF(PH3<=Premissas!$C$60,"C",IF(PH3="-","-","O")) -> - | PI2: =IF(PI3<=Premissas!$C$60,"C",IF(PI3="-","-","O")) -> - | PJ2: =IF(PJ3<=Premissas!$C$60,"C",IF(PJ3="-","-","O")) -> - | PK2: =IF(PK3<=Premissas!$C$60,"C",IF(PK3="-","-","O")) -> - | PL2: =IF(PL3<=Premissas!$C$60,"C",IF(PL3="-","-","O")) -> - | PM2: =IF(PM3<=Premissas!$C$60,"C",IF(PM3="-","-","O")) -> - | PN2: =IF(PN3<=Premissas!$C$60,"C",IF(PN3="-","-","O")) -> - | PO2: =IF(PO3<=Premissas!$C$60,"C",IF(PO3="-","-","O")) -> - | PP2: =IF(PP3<=Premissas!$C$60,"C",IF(PP3="-","-","O")) -> - | PQ2: =IF(PQ3<=Premissas!$C$60,"C",IF(PQ3="-","-","O")) -> - | PR2: =IF(PR3<=Premissas!$C$60,"C",IF(PR3="-","-","O")) -> - | PS2: =IF(PS3<=Premissas!$C$60,"C",IF(PS3="-","-","O")) -> - | PT2: =IF(PT3<=Premissas!$C$60,"C",IF(PT3="-","-","O")) -> - | PU2: =IF(PU3<=Premissas!$C$60,"C",IF(PU3="-","-","O")) -> - | PV2: =IF(PV3<=Premissas!$C$60,"C",IF(PV3="-","-","O")) -> - | PW2: =IF(PW3<=Premissas!$C$60,"C",IF(PW3="-","-","O")) -> - | PX2: =IF(PX3<=Premissas!$C$60,"C",IF(PX3="-","-","O")) -> - | PY2: =IF(PY3<=Premissas!$C$60,"C",IF(PY3="-","-","O")) -> - | PZ2: =IF(PZ3<=Premissas!$C$60,"C",IF(PZ3="-","-","O")) -> - | QA2: =IF(QA3<=Premissas!$C$60,"C",IF(QA3="-","-","O")) -> - | QB2: =IF(QB3<=Premissas!$C$60,"C",IF(QB3="-","-","O")) -> - | QC2: =IF(QC3<=Premissas!$C$60,"C",IF(QC3="-","-","O")) -> - | QD2: =IF(QD3<=Premissas!$C$60,"C",IF(QD3="-","-","O")) -> - | QE2: =IF(QE3<=Premissas!$C$60,"C",IF(QE3="-","-","O")) -> - | QF2: =IF(QF3<=Premissas!$C$60,"C",IF(QF3="-","-","O")) -> - | QG2: =IF(QG3<=Premissas!$C$60,"C",IF(QG3="-","-","O")) -> - | QH2: =IF(QH3<=Premissas!$C$60,"C",IF(QH3="-","-","O")) -> - | QI2: =IF(QI3<=Premissas!$C$60,"C",IF(QI3="-","-","O")) -> - | QJ2: =IF(QJ3<=Premissas!$C$60,"C",IF(QJ3="-","-","O")) -> - | QK2: =IF(QK3<=Premissas!$C$60,"C",IF(QK3="-","-","O")) -> - | QL2: =IF(QL3<=Premissas!$C$60,"C",IF(QL3="-","-","O")) -> - | QM2: =IF(QM3<=Premissas!$C$60,"C",IF(QM3="-","-","O")) -> - | QN2: =IF(QN3<=Premissas!$C$60,"C",IF(QN3="-","-","O")) -> - | QO2: =IF(QO3<=Premissas!$C$60,"C",IF(QO3="-","-","O")) -> - | QP2: =IF(QP3<=Premissas!$C$60,"C",IF(QP3="-","-","O")) -> - | QQ2: =IF(QQ3<=Premissas!$C$60,"C",IF(QQ3="-","-","O")) -> - | QR2: =IF(QR3<=Premissas!$C$60,"C",IF(QR3="-","-","O")) -> - | QS2: =IF(QS3<=Premissas!$C$60,"C",IF(QS3="-","-","O")) -> - | QT2: =IF(QT3<=Premissas!$C$60,"C",IF(QT3="-","-","O")) -> - | QU2: =IF(QU3<=Premissas!$C$60,"C",IF(QU3="-","-","O")) -> - | QV2: =IF(QV3<=Premissas!$C$60,"C",IF(QV3="-","-","O")) -> - | QW2: =IF(QW3<=Premissas!$C$60,"C",IF(QW3="-","-","O")) -> - | QX2: =IF(QX3<=Premissas!$C$60,"C",IF(QX3="-","-","O")) -> - | QY2: =IF(QY3<=Premissas!$C$60,"C",IF(QY3="-","-","O")) -> - | QZ2: =IF(QZ3<=Premissas!$C$60,"C",IF(QZ3="-","-","O")) -> - | RA2: =IF(RA3<=Premissas!$C$60,"C",IF(RA3="-","-","O")) -> - | RB2: =IF(RB3<=Premissas!$C$60,"C",IF(RB3="-","-","O")) -> - | RC2: =IF(RC3<=Premissas!$C$60,"C",IF(RC3="-","-","O")) -> - | RD2: =IF(RD3<=Premissas!$C$60,"C",IF(RD3="-","-","O")) -> - | RE2: =IF(RE3<=Premissas!$C$60,"C",IF(RE3="-","-","O")) -> - | RF2: =IF(RF3<=Premissas!$C$60,"C",IF(RF3="-","-","O")) -> - | RG2: =IF(RG3<=Premissas!$C$60,"C",IF(RG3="-","-","O")) -> - | RH2: =IF(RH3<=Premissas!$C$60,"C",IF(RH3="-","-","O")) -> - | RI2: =IF(RI3<=Premissas!$C$60,"C",IF(RI3="-","-","O")) -> - | RJ2: =IF(RJ3<=Premissas!$C$60,"C",IF(RJ3="-","-","O")) -> - | RK2: =IF(RK3<=Premissas!$C$60,"C",IF(RK3="-","-","O")) -> - | RL2: =IF(RL3<=Premissas!$C$60,"C",IF(RL3="-","-","O")) -> - | RM2: =IF(RM3<=Premissas!$C$60,"C",IF(RM3="-","-","O")) -> - | RN2: =IF(RN3<=Premissas!$C$60,"C",IF(RN3="-","-","O")) -> - | RO2: =IF(RO3<=Premissas!$C$60,"C",IF(RO3="-","-","O")) -> - | RP2: =IF(RP3<=Premissas!$C$60,"C",IF(RP3="-","-","O")) -> - | RQ2: =IF(RQ3<=Premissas!$C$60,"C",IF(RQ3="-","-","O")) -> - | RR2: =IF(RR3<=Premissas!$C$60,"C",IF(RR3="-","-","O")) -> - | RS2: =IF(RS3<=Premissas!$C$60,"C",IF(RS3="-","-","O")) -> - | RT2: =IF(RT3<=Premissas!$C$60,"C",IF(RT3="-","-","O")) -> - | RU2: =IF(RU3<=Premissas!$C$60,"C",IF(RU3="-","-","O")) -> - | RV2: =IF(RV3<=Premissas!$C$60,"C",IF(RV3="-","-","O")) -> - | RW2: =IF(RW3<=Premissas!$C$60,"C",IF(RW3="-","-","O")) -> - | RX2: =IF(RX3<=Premissas!$C$60,"C",IF(RX3="-","-","O")) -> - | RY2: =IF(RY3<=Premissas!$C$60,"C",IF(RY3="-","-","O")) -> - | RZ2: =IF(RZ3<=Premissas!$C$60,"C",IF(RZ3="-","-","O")) -> - | SA2: =IF(SA3<=Premissas!$C$60,"C",IF(SA3="-","-","O")) -> - | SB2: =IF(SB3<=Premissas!$C$60,"C",IF(SB3="-","-","O")) -> - | SC2: =IF(SC3<=Premissas!$C$60,"C",IF(SC3="-","-","O")) -> - | SD2: =IF(SD3<=Premissas!$C$60,"C",IF(SD3="-","-","O")) -> - | SE2: =IF(SE3<=Premissas!$C$60,"C",IF(SE3="-","-","O")) -> - | SF2: =IF(SF3<=Premissas!$C$60,"C",IF(SF3="-","-","O")) -> - | SG2: =IF(SG3<=Premissas!$C$60,"C",IF(SG3="-","-","O")) -> - | SH2: =IF(SH3<=Premissas!$C$60,"C",IF(SH3="-","-","O")) -> - | SI2: =IF(SI3<=Premissas!$C$60,"C",IF(SI3="-","-","O")) -> - | SJ2: =IF(SJ3<=Premissas!$C$60,"C",IF(SJ3="-","-","O")) -> - | SK2: =IF(SK3<=Premissas!$C$60,"C",IF(SK3="-","-","O")) -> - | SL2: =IF(SL3<=Premissas!$C$60,"C",IF(SL3="-","-","O")) -> - | SM2: =IF(SM3<=Premissas!$C$60,"C",IF(SM3="-","-","O")) -> - | SN2: =IF(SN3<=Premissas!$C$60,"C",IF(SN3="-","-","O")) -> - | SO2: =IF(SO3<=Premissas!$C$60,"C",IF(SO3="-","-","O")) -> - | SP2: =IF(SP3<=Premissas!$C$60,"C",IF(SP3="-","-","O")) -> - | SQ2: =IF(SQ3<=Premissas!$C$60,"C",IF(SQ3="-","-","O")) -> - | SR2: =IF(SR3<=Premissas!$C$60,"C",IF(SR3="-","-","O")) -> - | SS2: =IF(SS3<=Premissas!$C$60,"C",IF(SS3="-","-","O")) -> - | ST2: =IF(ST3<=Premissas!$C$60,"C",IF(ST3="-","-","O")) -> - | SU2: =IF(SU3<=Premissas!$C$60,"C",IF(SU3="-","-","O")) -> - | SV2: =IF(SV3<=Premissas!$C$60,"C",IF(SV3="-","-","O")) -> - | SW2: =IF(SW3<=Premissas!$C$60,"C",IF(SW3="-","-","O")) -> - | SX2: =IF(SX3<=Premissas!$C$60,"C",IF(SX3="-","-","O")) -> - | SY2: =IF(SY3<=Premissas!$C$60,"C",IF(SY3="-","-","O")) -> - | SZ2: =IF(SZ3<=Premissas!$C$60,"C",IF(SZ3="-","-","O")) -> - | TA2: =IF(TA3<=Premissas!$C$60,"C",IF(TA3="-","-","O")) -> - | TB2: =IF(TB3<=Premissas!$C$60,"C",IF(TB3="-","-","O")) -> - | TC2: =IF(TC3<=Premissas!$C$60,"C",IF(TC3="-","-","O")) -> - | TD2: =IF(TD3<=Premissas!$C$60,"C",IF(TD3="-","-","O")) -> - | TE2: =IF(TE3<=Premissas!$C$60,"C",IF(TE3="-","-","O")) -> - | TF2: =IF(TF3<=Premissas!$C$60,"C",IF(TF3="-","-","O")) -> - | TG2: =IF(TG3<=Premissas!$C$60,"C",IF(TG3="-","-","O")) -> - | TH2: =IF(TH3<=Premissas!$C$60,"C",IF(TH3="-","-","O")) -> - | TI2: =IF(TI3<=Premissas!$C$60,"C",IF(TI3="-","-","O")) -> - | TJ2: =IF(TJ3<=Premissas!$C$60,"C",IF(TJ3="-","-","O")) -> - | TK2: =IF(TK3<=Premissas!$C$60,"C",IF(TK3="-","-","O")) -> - | TL2: =IF(TL3<=Premissas!$C$60,"C",IF(TL3="-","-","O")) -> - | TM2: =IF(TM3<=Premissas!$C$60,"C",IF(TM3="-","-","O")) -> - | TN2: =IF(TN3<=Premissas!$C$60,"C",IF(TN3="-","-","O")) -> - | TO2: =IF(TO3<=Premissas!$C$60,"C",IF(TO3="-","-","O")) -> - | TP2: =IF(TP3<=Premissas!$C$60,"C",IF(TP3="-","-","O")) -> - | TQ2: =IF(TQ3<=Premissas!$C$60,"C",IF(TQ3="-","-","O")) -> - | TR2: =IF(TR3<=Premissas!$C$60,"C",IF(TR3="-","-","O")) -> - | TS2: =IF(TS3<=Premissas!$C$60,"C",IF(TS3="-","-","O")) -> - | TT2: =IF(TT3<=Premissas!$C$60,"C",IF(TT3="-","-","O")) -> - | TU2: =IF(TU3<=Premissas!$C$60,"C",IF(TU3="-","-","O")) -> - | TV2: =IF(TV3<=Premissas!$C$60,"C",IF(TV3="-","-","O")) -> - | TW2: =IF(TW3<=Premissas!$C$60,"C",IF(TW3="-","-","O")) -> - | TX2: =IF(TX3<=Premissas!$C$60,"C",IF(TX3="-","-","O")) -> - | TY2: =IF(TY3<=Premissas!$C$60,"C",IF(TY3="-","-","O")) -> - | TZ2: =IF(TZ3<=Premissas!$C$60,"C",IF(TZ3="-","-","O")) -> - | UA2: =IF(UA3<=Premissas!$C$60,"C",IF(UA3="-","-","O")) -> - | UB2: =IF(UB3<=Premissas!$C$60,"C",IF(UB3="-","-","O")) -> - | UC2: =IF(UC3<=Premissas!$C$60,"C",IF(UC3="-","-","O")) -> - | UD2: =IF(UD3<=Premissas!$C$60,"C",IF(UD3="-","-","O")) -> - | UE2: =IF(UE3<=Premissas!$C$60,"C",IF(UE3="-","-","O")) -> - | UF2: =IF(UF3<=Premissas!$C$60,"C",IF(UF3="-","-","O")) -> - | UG2: =IF(UG3<=Premissas!$C$60,"C",IF(UG3="-","-","O")) -> - | UH2: =IF(UH3<=Premissas!$C$60,"C",IF(UH3="-","-","O")) -> - | UI2: =IF(UI3<=Premissas!$C$60,"C",IF(UI3="-","-","O")) -> - | UJ2: =IF(UJ3<=Premissas!$C$60,"C",IF(UJ3="-","-","O")) -> - | UK2: =IF(UK3<=Premissas!$C$60,"C",IF(UK3="-","-","O")) -> - | UL2: =IF(UL3<=Premissas!$C$60,"C",IF(UL3="-","-","O")) -> - | UM2: =IF(UM3<=Premissas!$C$60,"C",IF(UM3="-","-","O")) -> - | UN2: =IF(UN3<=Premissas!$C$60,"C",IF(UN3="-","-","O")) -> - | UO2: =IF(UO3<=Premissas!$C$60,"C",IF(UO3="-","-","O")) -> - | UP2: =IF(UP3<=Premissas!$C$60,"C",IF(UP3="-","-","O")) -> - | UQ2: =IF(UQ3<=Premissas!$C$60,"C",IF(UQ3="-","-","O")) -> - | UR2: =IF(UR3<=Premissas!$C$60,"C",IF(UR3="-","-","O")) -> - | US2: =IF(US3<=Premissas!$C$60,"C",IF(US3="-","-","O")) -> - | UT2: =IF(UT3<=Premissas!$C$60,"C",IF(UT3="-","-","O")) -> - | UU2: =IF(UU3<=Premissas!$C$60,"C",IF(UU3="-","-","O")) -> - | UV2: =IF(UV3<=Premissas!$C$60,"C",IF(UV3="-","-","O")) -> - | UW2: =IF(UW3<=Premissas!$C$60,"C",IF(UW3="-","-","O")) -> - | UX2: =IF(UX3<=Premissas!$C$60,"C",IF(UX3="-","-","O")) -> - | UY2: =IF(UY3<=Premissas!$C$60,"C",IF(UY3="-","-","O")) -> - | UZ2: =IF(UZ3<=Premissas!$C$60,"C",IF(UZ3="-","-","O")) -> - | VA2: =IF(VA3<=Premissas!$C$60,"C",IF(VA3="-","-","O")) -> - | VB2: =IF(VB3<=Premissas!$C$60,"C",IF(VB3="-","-","O")) -> - | VC2: =IF(VC3<=Premissas!$C$60,"C",IF(VC3="-","-","O")) -> - | VD2: =IF(VD3<=Premissas!$C$60,"C",IF(VD3="-","-","O")) -> - | VE2: =IF(VE3<=Premissas!$C$60,"C",IF(VE3="-","-","O")) -> - | VF2: =IF(VF3<=Premissas!$C$60,"C",IF(VF3="-","-","O")) -> - | VG2: =IF(VG3<=Premissas!$C$60,"C",IF(VG3="-","-","O")) -> - | VH2: =IF(VH3<=Premissas!$C$60,"C",IF(VH3="-","-","O")) -> - | VI2: =IF(VI3<=Premissas!$C$60,"C",IF(VI3="-","-","O")) -> - | VJ2: =IF(VJ3<=Premissas!$C$60,"C",IF(VJ3="-","-","O")) -> - | VK2: =IF(VK3<=Premissas!$C$60,"C",IF(VK3="-","-","O")) -> - | VL2: =IF(VL3<=Premissas!$C$60,"C",IF(VL3="-","-","O")) -> - | VM2: =IF(VM3<=Premissas!$C$60,"C",IF(VM3="-","-","O")) -> - | VN2: =IF(VN3<=Premissas!$C$60,"C",IF(VN3="-","-","O")) -> - | VO2: =IF(VO3<=Premissas!$C$60,"C",IF(VO3="-","-","O")) -> - | VP2: =IF(VP3<=Premissas!$C$60,"C",IF(VP3="-","-","O")) -> - | VQ2: =IF(VQ3<=Premissas!$C$60,"C",IF(VQ3="-","-","O")) -> - | VR2: =IF(VR3<=Premissas!$C$60,"C",IF(VR3="-","-","O")) -> - | VS2: =IF(VS3<=Premissas!$C$60,"C",IF(VS3="-","-","O")) -> - | VT2: =IF(VT3<=Premissas!$C$60,"C",IF(VT3="-","-","O")) -> - | VU2: =IF(VU3<=Premissas!$C$60,"C",IF(VU3="-","-","O")) -> - | VV2: =IF(VV3<=Premissas!$C$60,"C",IF(VV3="-","-","O")) -> - | VW2: =IF(VW3<=Premissas!$C$60,"C",IF(VW3="-","-","O")) -> - | VX2: =IF(VX3<=Premissas!$C$60,"C",IF(VX3="-","-","O")) -> - | VY2: =IF(VY3<=Premissas!$C$60,"C",IF(VY3="-","-","O")) -> - | VZ2: =IF(VZ3<=Premissas!$C$60,"C",IF(VZ3="-","-","O")) -> - | WA2: =IF(WA3<=Premissas!$C$60,"C",IF(WA3="-","-","O")) -> - | WB2: =IF(WB3<=Premissas!$C$60,"C",IF(WB3="-","-","O")) -> - | WC2: =IF(WC3<=Premissas!$C$60,"C",IF(WC3="-","-","O")) -> - | WD2: =IF(WD3<=Premissas!$C$60,"C",IF(WD3="-","-","O")) -> -
B3: PERÍODO ABSOLUTO | C3: 1 | D3: =IF(C3="-","-",IF(C3+1>Premissas!$C$58,"-",C3+1)) -> 2 | E3: =IF(D3="-","-",IF(D3+1>Premissas!$C$58,"-",D3+1)) -> 3 | F3: =IF(E3="-","-",IF(E3+1>Premissas!$C$58,"-",E3+1)) -> 4 | G3: =IF(F3="-","-",IF(F3+1>Premissas!$C$58,"-",F3+1)) -> 5 | H3: =IF(G3="-","-",IF(G3+1>Premissas!$C$58,"-",G3+1)) -> 6 | I3: =IF(H3="-","-",IF(H3+1>Premissas!$C$58,"-",H3+1)) -> 7 | J3: =IF(I3="-","-",IF(I3+1>Premissas!$C$58,"-",I3+1)) -> 8 | K3: =IF(J3="-","-",IF(J3+1>Premissas!$C$58,"-",J3+1)) -> 9 | L3: =IF(K3="-","-",IF(K3+1>Premissas!$C$58,"-",K3+1)) -> 10 | M3: =IF(L3="-","-",IF(L3+1>Premissas!$C$58,"-",L3+1)) -> 11 | N3: =IF(M3="-","-",IF(M3+1>Premissas!$C$58,"-",M3+1)) -> 12 | O3: =IF(N3="-","-",IF(N3+1>Premissas!$C$58,"-",N3+1)) -> 13 | P3: =IF(O3="-","-",IF(O3+1>Premissas!$C$58,"-",O3+1)) -> 14 | Q3: =IF(P3="-","-",IF(P3+1>Premissas!$C$58,"-",P3+1)) -> 15 | R3: =IF(Q3="-","-",IF(Q3+1>Premissas!$C$58,"-",Q3+1)) -> 16 | S3: =IF(R3="-","-",IF(R3+1>Premissas!$C$58,"-",R3+1)) -> 17 | T3: =IF(S3="-","-",IF(S3+1>Premissas!$C$58,"-",S3+1)) -> 18 | U3: =IF(T3="-","-",IF(T3+1>Premissas!$C$58,"-",T3+1)) -> 19 | V3: =IF(U3="-","-",IF(U3+1>Premissas!$C$58,"-",U3+1)) -> 20 | W3: =IF(V3="-","-",IF(V3+1>Premissas!$C$58,"-",V3+1)) -> 21 | X3: =IF(W3="-","-",IF(W3+1>Premissas!$C$58,"-",W3+1)) -> 22 | Y3: =IF(X3="-","-",IF(X3+1>Premissas!$C$58,"-",X3+1)) -> 23 | Z3: =IF(Y3="-","-",IF(Y3+1>Premissas!$C$58,"-",Y3+1)) -> 24 | AA3: =IF(Z3="-","-",IF(Z3+1>Premissas!$C$58,"-",Z3+1)) -> 25 | AB3: =IF(AA3="-","-",IF(AA3+1>Premissas!$C$58,"-",AA3+1)) -> 26 | AC3: =IF(AB3="-","-",IF(AB3+1>Premissas!$C$58,"-",AB3+1)) -> 27 | AD3: =IF(AC3="-","-",IF(AC3+1>Premissas!$C$58,"-",AC3+1)) -> 28 | AE3: =IF(AD3="-","-",IF(AD3+1>Premissas!$C$58,"-",AD3+1)) -> 29 | AF3: =IF(AE3="-","-",IF(AE3+1>Premissas!$C$58,"-",AE3+1)) -> 30 | AG3: =IF(AF3="-","-",IF(AF3+1>Premissas!$C$58,"-",AF3+1)) -> 31 | AH3: =IF(AG3="-","-",IF(AG3+1>Premissas!$C$58,"-",AG3+1)) -> - | AI3: =IF(AH3="-","-",IF(AH3+1>Premissas!$C$58,"-",AH3+1)) -> - | AJ3: =IF(AI3="-","-",IF(AI3+1>Premissas!$C$58,"-",AI3+1)) -> - | AK3: =IF(AJ3="-","-",IF(AJ3+1>Premissas!$C$58,"-",AJ3+1)) -> - | AL3: =IF(AK3="-","-",IF(AK3+1>Premissas!$C$58,"-",AK3+1)) -> - | AM3: =IF(AL3="-","-",IF(AL3+1>Premissas!$C$58,"-",AL3+1)) -> - | AN3: =IF(AM3="-","-",IF(AM3+1>Premissas!$C$58,"-",AM3+1)) -> - | AO3: =IF(AN3="-","-",IF(AN3+1>Premissas!$C$58,"-",AN3+1)) -> - | AP3: =IF(AO3="-","-",IF(AO3+1>Premissas!$C$58,"-",AO3+1)) -> - | AQ3: =IF(AP3="-","-",IF(AP3+1>Premissas!$C$58,"-",AP3+1)) -> - | AR3: =IF(AQ3="-","-",IF(AQ3+1>Premissas!$C$58,"-",AQ3+1)) -> - | AS3: =IF(AR3="-","-",IF(AR3+1>Premissas!$C$58,"-",AR3+1)) -> - | AT3: =IF(AS3="-","-",IF(AS3+1>Premissas!$C$58,"-",AS3+1)) -> - | AU3: =IF(AT3="-","-",IF(AT3+1>Premissas!$C$58,"-",AT3+1)) -> - | AV3: =IF(AU3="-","-",IF(AU3+1>Premissas!$C$58,"-",AU3+1)) -> - | AW3: =IF(AV3="-","-",IF(AV3+1>Premissas!$C$58,"-",AV3+1)) -> - | AX3: =IF(AW3="-","-",IF(AW3+1>Premissas!$C$58,"-",AW3+1)) -> - | AY3: =IF(AX3="-","-",IF(AX3+1>Premissas!$C$58,"-",AX3+1)) -> - | AZ3: =IF(AY3="-","-",IF(AY3+1>Premissas!$C$58,"-",AY3+1)) -> - | BA3: =IF(AZ3="-","-",IF(AZ3+1>Premissas!$C$58,"-",AZ3+1)) -> - | BB3: =IF(BA3="-","-",IF(BA3+1>Premissas!$C$58,"-",BA3+1)) -> - | BC3: =IF(BB3="-","-",IF(BB3+1>Premissas!$C$58,"-",BB3+1)) -> - | BD3: =IF(BC3="-","-",IF(BC3+1>Premissas!$C$58,"-",BC3+1)) -> - | BE3: =IF(BD3="-","-",IF(BD3+1>Premissas!$C$58,"-",BD3+1)) -> - | BF3: =IF(BE3="-","-",IF(BE3+1>Premissas!$C$58,"-",BE3+1)) -> - | BG3: =IF(BF3="-","-",IF(BF3+1>Premissas!$C$58,"-",BF3+1)) -> - | BH3: =IF(BG3="-","-",IF(BG3+1>Premissas!$C$58,"-",BG3+1)) -> - | BI3: =IF(BH3="-","-",IF(BH3+1>Premissas!$C$58,"-",BH3+1)) -> - | BJ3: =IF(BI3="-","-",IF(BI3+1>Premissas!$C$58,"-",BI3+1)) -> - | BK3: =IF(BJ3="-","-",IF(BJ3+1>Premissas!$C$58,"-",BJ3+1)) -> - | BL3: =IF(BK3="-","-",IF(BK3+1>Premissas!$C$58,"-",BK3+1)) -> - | BM3: =IF(BL3="-","-",IF(BL3+1>Premissas!$C$58,"-",BL3+1)) -> - | BN3: =IF(BM3="-","-",IF(BM3+1>Premissas!$C$58,"-",BM3+1)) -> - | BO3: =IF(BN3="-","-",IF(BN3+1>Premissas!$C$58,"-",BN3+1)) -> - | BP3: =IF(BO3="-","-",IF(BO3+1>Premissas!$C$58,"-",BO3+1)) -> - | BQ3: =IF(BP3="-","-",IF(BP3+1>Premissas!$C$58,"-",BP3+1)) -> - | BR3: =IF(BQ3="-","-",IF(BQ3+1>Premissas!$C$58,"-",BQ3+1)) -> - | BS3: =IF(BR3="-","-",IF(BR3+1>Premissas!$C$58,"-",BR3+1)) -> - | BT3: =IF(BS3="-","-",IF(BS3+1>Premissas!$C$58,"-",BS3+1)) -> - | BU3: =IF(BT3="-","-",IF(BT3+1>Premissas!$C$58,"-",BT3+1)) -> - | BV3: =IF(BU3="-","-",IF(BU3+1>Premissas!$C$58,"-",BU3+1)) -> - | BW3: =IF(BV3="-","-",IF(BV3+1>Premissas!$C$58,"-",BV3+1)) -> - | BX3: =IF(BW3="-","-",IF(BW3+1>Premissas!$C$58,"-",BW3+1)) -> - | BY3: =IF(BX3="-","-",IF(BX3+1>Premissas!$C$58,"-",BX3+1)) -> - | BZ3: =IF(BY3="-","-",IF(BY3+1>Premissas!$C$58,"-",BY3+1)) -> - | CA3: =IF(BZ3="-","-",IF(BZ3+1>Premissas!$C$58,"-",BZ3+1)) -> - | CB3: =IF(CA3="-","-",IF(CA3+1>Premissas!$C$58,"-",CA3+1)) -> - | CC3: =IF(CB3="-","-",IF(CB3+1>Premissas!$C$58,"-",CB3+1)) -> - | CD3: =IF(CC3="-","-",IF(CC3+1>Premissas!$C$58,"-",CC3+1)) -> - | CE3: =IF(CD3="-","-",IF(CD3+1>Premissas!$C$58,"-",CD3+1)) -> - | CF3: =IF(CE3="-","-",IF(CE3+1>Premissas!$C$58,"-",CE3+1)) -> - | CG3: =IF(CF3="-","-",IF(CF3+1>Premissas!$C$58,"-",CF3+1)) -> - | CH3: =IF(CG3="-","-",IF(CG3+1>Premissas!$C$58,"-",CG3+1)) -> - | CI3: =IF(CH3="-","-",IF(CH3+1>Premissas!$C$58,"-",CH3+1)) -> - | CJ3: =IF(CI3="-","-",IF(CI3+1>Premissas!$C$58,"-",CI3+1)) -> - | CK3: =IF(CJ3="-","-",IF(CJ3+1>Premissas!$C$58,"-",CJ3+1)) -> - | CL3: =IF(CK3="-","-",IF(CK3+1>Premissas!$C$58,"-",CK3+1)) -> - | CM3: =IF(CL3="-","-",IF(CL3+1>Premissas!$C$58,"-",CL3+1)) -> - | CN3: =IF(CM3="-","-",IF(CM3+1>Premissas!$C$58,"-",CM3+1)) -> - | CO3: =IF(CN3="-","-",IF(CN3+1>Premissas!$C$58,"-",CN3+1)) -> - | CP3: =IF(CO3="-","-",IF(CO3+1>Premissas!$C$58,"-",CO3+1)) -> - | CQ3: =IF(CP3="-","-",IF(CP3+1>Premissas!$C$58,"-",CP3+1)) -> - | CR3: =IF(CQ3="-","-",IF(CQ3+1>Premissas!$C$58,"-",CQ3+1)) -> - | CS3: =IF(CR3="-","-",IF(CR3+1>Premissas!$C$58,"-",CR3+1)) -> - | CT3: =IF(CS3="-","-",IF(CS3+1>Premissas!$C$58,"-",CS3+1)) -> - | CU3: =IF(CT3="-","-",IF(CT3+1>Premissas!$C$58,"-",CT3+1)) -> - | CV3: =IF(CU3="-","-",IF(CU3+1>Premissas!$C$58,"-",CU3+1)) -> - | CW3: =IF(CV3="-","-",IF(CV3+1>Premissas!$C$58,"-",CV3+1)) -> - | CX3: =IF(CW3="-","-",IF(CW3+1>Premissas!$C$58,"-",CW3+1)) -> - | CY3: =IF(CX3="-","-",IF(CX3+1>Premissas!$C$58,"-",CX3+1)) -> - | CZ3: =IF(CY3="-","-",IF(CY3+1>Premissas!$C$58,"-",CY3+1)) -> - | DA3: =IF(CZ3="-","-",IF(CZ3+1>Premissas!$C$58,"-",CZ3+1)) -> - | DB3: =IF(DA3="-","-",IF(DA3+1>Premissas!$C$58,"-",DA3+1)) -> - | DC3: =IF(DB3="-","-",IF(DB3+1>Premissas!$C$58,"-",DB3+1)) -> - | DD3: =IF(DC3="-","-",IF(DC3+1>Premissas!$C$58,"-",DC3+1)) -> - | DE3: =IF(DD3="-","-",IF(DD3+1>Premissas!$C$58,"-",DD3+1)) -> - | DF3: =IF(DE3="-","-",IF(DE3+1>Premissas!$C$58,"-",DE3+1)) -> - | DG3: =IF(DF3="-","-",IF(DF3+1>Premissas!$C$58,"-",DF3+1)) -> - | DH3: =IF(DG3="-","-",IF(DG3+1>Premissas!$C$58,"-",DG3+1)) -> - | DI3: =IF(DH3="-","-",IF(DH3+1>Premissas!$C$58,"-",DH3+1)) -> - | DJ3: =IF(DI3="-","-",IF(DI3+1>Premissas!$C$58,"-",DI3+1)) -> - | DK3: =IF(DJ3="-","-",IF(DJ3+1>Premissas!$C$58,"-",DJ3+1)) -> - | DL3: =IF(DK3="-","-",IF(DK3+1>Premissas!$C$58,"-",DK3+1)) -> - | DM3: =IF(DL3="-","-",IF(DL3+1>Premissas!$C$58,"-",DL3+1)) -> - | DN3: =IF(DM3="-","-",IF(DM3+1>Premissas!$C$58,"-",DM3+1)) -> - | DO3: =IF(DN3="-","-",IF(DN3+1>Premissas!$C$58,"-",DN3+1)) -> - | DP3: =IF(DO3="-","-",IF(DO3+1>Premissas!$C$58,"-",DO3+1)) -> - | DQ3: =IF(DP3="-","-",IF(DP3+1>Premissas!$C$58,"-",DP3+1)) -> - | DR3: =IF(DQ3="-","-",IF(DQ3+1>Premissas!$C$58,"-",DQ3+1)) -> - | DS3: =IF(DR3="-","-",IF(DR3+1>Premissas!$C$58,"-",DR3+1)) -> - | DT3: =IF(DS3="-","-",IF(DS3+1>Premissas!$C$58,"-",DS3+1)) -> - | DU3: =IF(DT3="-","-",IF(DT3+1>Premissas!$C$58,"-",DT3+1)) -> - | DV3: =IF(DU3="-","-",IF(DU3+1>Premissas!$C$58,"-",DU3+1)) -> - | DW3: =IF(DV3="-","-",IF(DV3+1>Premissas!$C$58,"-",DV3+1)) -> - | DX3: =IF(DW3="-","-",IF(DW3+1>Premissas!$C$58,"-",DW3+1)) -> - | DY3: =IF(DX3="-","-",IF(DX3+1>Premissas!$C$58,"-",DX3+1)) -> - | DZ3: =IF(DY3="-","-",IF(DY3+1>Premissas!$C$58,"-",DY3+1)) -> - | EA3: =IF(DZ3="-","-",IF(DZ3+1>Premissas!$C$58,"-",DZ3+1)) -> - | EB3: =IF(EA3="-","-",IF(EA3+1>Premissas!$C$58,"-",EA3+1)) -> - | EC3: =IF(EB3="-","-",IF(EB3+1>Premissas!$C$58,"-",EB3+1)) -> - | ED3: =IF(EC3="-","-",IF(EC3+1>Premissas!$C$58,"-",EC3+1)) -> - | EE3: =IF(ED3="-","-",IF(ED3+1>Premissas!$C$58,"-",ED3+1)) -> - | EF3: =IF(EE3="-","-",IF(EE3+1>Premissas!$C$58,"-",EE3+1)) -> - | EG3: =IF(EF3="-","-",IF(EF3+1>Premissas!$C$58,"-",EF3+1)) -> - | EH3: =IF(EG3="-","-",IF(EG3+1>Premissas!$C$58,"-",EG3+1)) -> - | EI3: =IF(EH3="-","-",IF(EH3+1>Premissas!$C$58,"-",EH3+1)) -> - | EJ3: =IF(EI3="-","-",IF(EI3+1>Premissas!$C$58,"-",EI3+1)) -> - | EK3: =IF(EJ3="-","-",IF(EJ3+1>Premissas!$C$58,"-",EJ3+1)) -> - | EL3: =IF(EK3="-","-",IF(EK3+1>Premissas!$C$58,"-",EK3+1)) -> - | EM3: =IF(EL3="-","-",IF(EL3+1>Premissas!$C$58,"-",EL3+1)) -> - | EN3: =IF(EM3="-","-",IF(EM3+1>Premissas!$C$58,"-",EM3+1)) -> - | EO3: =IF(EN3="-","-",IF(EN3+1>Premissas!$C$58,"-",EN3+1)) -> - | EP3: =IF(EO3="-","-",IF(EO3+1>Premissas!$C$58,"-",EO3+1)) -> - | EQ3: =IF(EP3="-","-",IF(EP3+1>Premissas!$C$58,"-",EP3+1)) -> - | ER3: =IF(EQ3="-","-",IF(EQ3+1>Premissas!$C$58,"-",EQ3+1)) -> - | ES3: =IF(ER3="-","-",IF(ER3+1>Premissas!$C$58,"-",ER3+1)) -> - | ET3: =IF(ES3="-","-",IF(ES3+1>Premissas!$C$58,"-",ES3+1)) -> - | EU3: =IF(ET3="-","-",IF(ET3+1>Premissas!$C$58,"-",ET3+1)) -> - | EV3: =IF(EU3="-","-",IF(EU3+1>Premissas!$C$58,"-",EU3+1)) -> - | EW3: =IF(EV3="-","-",IF(EV3+1>Premissas!$C$58,"-",EV3+1)) -> - | EX3: =IF(EW3="-","-",IF(EW3+1>Premissas!$C$58,"-",EW3+1)) -> - | EY3: =IF(EX3="-","-",IF(EX3+1>Premissas!$C$58,"-",EX3+1)) -> - | EZ3: =IF(EY3="-","-",IF(EY3+1>Premissas!$C$58,"-",EY3+1)) -> - | FA3: =IF(EZ3="-","-",IF(EZ3+1>Premissas!$C$58,"-",EZ3+1)) -> - | FB3: =IF(FA3="-","-",IF(FA3+1>Premissas!$C$58,"-",FA3+1)) -> - | FC3: =IF(FB3="-","-",IF(FB3+1>Premissas!$C$58,"-",FB3+1)) -> - | FD3: =IF(FC3="-","-",IF(FC3+1>Premissas!$C$58,"-",FC3+1)) -> - | FE3: =IF(FD3="-","-",IF(FD3+1>Premissas!$C$58,"-",FD3+1)) -> - | FF3: =IF(FE3="-","-",IF(FE3+1>Premissas!$C$58,"-",FE3+1)) -> - | FG3: =IF(FF3="-","-",IF(FF3+1>Premissas!$C$58,"-",FF3+1)) -> - | FH3: =IF(FG3="-","-",IF(FG3+1>Premissas!$C$58,"-",FG3+1)) -> - | FI3: =IF(FH3="-","-",IF(FH3+1>Premissas!$C$58,"-",FH3+1)) -> - | FJ3: =IF(FI3="-","-",IF(FI3+1>Premissas!$C$58,"-",FI3+1)) -> - | FK3: =IF(FJ3="-","-",IF(FJ3+1>Premissas!$C$58,"-",FJ3+1)) -> - | FL3: =IF(FK3="-","-",IF(FK3+1>Premissas!$C$58,"-",FK3+1)) -> - | FM3: =IF(FL3="-","-",IF(FL3+1>Premissas!$C$58,"-",FL3+1)) -> - | FN3: =IF(FM3="-","-",IF(FM3+1>Premissas!$C$58,"-",FM3+1)) -> - | FO3: =IF(FN3="-","-",IF(FN3+1>Premissas!$C$58,"-",FN3+1)) -> - | FP3: =IF(FO3="-","-",IF(FO3+1>Premissas!$C$58,"-",FO3+1)) -> - | FQ3: =IF(FP3="-","-",IF(FP3+1>Premissas!$C$58,"-",FP3+1)) -> - | FR3: =IF(FQ3="-","-",IF(FQ3+1>Premissas!$C$58,"-",FQ3+1)) -> - | FS3: =IF(FR3="-","-",IF(FR3+1>Premissas!$C$58,"-",FR3+1)) -> - | FT3: =IF(FS3="-","-",IF(FS3+1>Premissas!$C$58,"-",FS3+1)) -> - | FU3: =IF(FT3="-","-",IF(FT3+1>Premissas!$C$58,"-",FT3+1)) -> - | FV3: =IF(FU3="-","-",IF(FU3+1>Premissas!$C$58,"-",FU3+1)) -> - | FW3: =IF(FV3="-","-",IF(FV3+1>Premissas!$C$58,"-",FV3+1)) -> - | FX3: =IF(FW3="-","-",IF(FW3+1>Premissas!$C$58,"-",FW3+1)) -> - | FY3: =IF(FX3="-","-",IF(FX3+1>Premissas!$C$58,"-",FX3+1)) -> - | FZ3: =IF(FY3="-","-",IF(FY3+1>Premissas!$C$58,"-",FY3+1)) -> - | GA3: =IF(FZ3="-","-",IF(FZ3+1>Premissas!$C$58,"-",FZ3+1)) -> - | GB3: =IF(GA3="-","-",IF(GA3+1>Premissas!$C$58,"-",GA3+1)) -> - | GC3: =IF(GB3="-","-",IF(GB3+1>Premissas!$C$58,"-",GB3+1)) -> - | GD3: =IF(GC3="-","-",IF(GC3+1>Premissas!$C$58,"-",GC3+1)) -> - | GE3: =IF(GD3="-","-",IF(GD3+1>Premissas!$C$58,"-",GD3+1)) -> - | GF3: =IF(GE3="-","-",IF(GE3+1>Premissas!$C$58,"-",GE3+1)) -> - | GG3: =IF(GF3="-","-",IF(GF3+1>Premissas!$C$58,"-",GF3+1)) -> - | GH3: =IF(GG3="-","-",IF(GG3+1>Premissas!$C$58,"-",GG3+1)) -> - | GI3: =IF(GH3="-","-",IF(GH3+1>Premissas!$C$58,"-",GH3+1)) -> - | GJ3: =IF(GI3="-","-",IF(GI3+1>Premissas!$C$58,"-",GI3+1)) -> - | GK3: =IF(GJ3="-","-",IF(GJ3+1>Premissas!$C$58,"-",GJ3+1)) -> - | GL3: =IF(GK3="-","-",IF(GK3+1>Premissas!$C$58,"-",GK3+1)) -> - | GM3: =IF(GL3="-","-",IF(GL3+1>Premissas!$C$58,"-",GL3+1)) -> - | GN3: =IF(GM3="-","-",IF(GM3+1>Premissas!$C$58,"-",GM3+1)) -> - | GO3: =IF(GN3="-","-",IF(GN3+1>Premissas!$C$58,"-",GN3+1)) -> - | GP3: =IF(GO3="-","-",IF(GO3+1>Premissas!$C$58,"-",GO3+1)) -> - | GQ3: =IF(GP3="-","-",IF(GP3+1>Premissas!$C$58,"-",GP3+1)) -> - | GR3: =IF(GQ3="-","-",IF(GQ3+1>Premissas!$C$58,"-",GQ3+1)) -> - | GS3: =IF(GR3="-","-",IF(GR3+1>Premissas!$C$58,"-",GR3+1)) -> - | GT3: =IF(GS3="-","-",IF(GS3+1>Premissas!$C$58,"-",GS3+1)) -> - | GU3: =IF(GT3="-","-",IF(GT3+1>Premissas!$C$58,"-",GT3+1)) -> - | GV3: =IF(GU3="-","-",IF(GU3+1>Premissas!$C$58,"-",GU3+1)) -> - | GW3: =IF(GV3="-","-",IF(GV3+1>Premissas!$C$58,"-",GV3+1)) -> - | GX3: =IF(GW3="-","-",IF(GW3+1>Premissas!$C$58,"-",GW3+1)) -> - | GY3: =IF(GX3="-","-",IF(GX3+1>Premissas!$C$58,"-",GX3+1)) -> - | GZ3: =IF(GY3="-","-",IF(GY3+1>Premissas!$C$58,"-",GY3+1)) -> - | HA3: =IF(GZ3="-","-",IF(GZ3+1>Premissas!$C$58,"-",GZ3+1)) -> - | HB3: =IF(HA3="-","-",IF(HA3+1>Premissas!$C$58,"-",HA3+1)) -> - | HC3: =IF(HB3="-","-",IF(HB3+1>Premissas!$C$58,"-",HB3+1)) -> - | HD3: =IF(HC3="-","-",IF(HC3+1>Premissas!$C$58,"-",HC3+1)) -> - | HE3: =IF(HD3="-","-",IF(HD3+1>Premissas!$C$58,"-",HD3+1)) -> - | HF3: =IF(HE3="-","-",IF(HE3+1>Premissas!$C$58,"-",HE3+1)) -> - | HG3: =IF(HF3="-","-",IF(HF3+1>Premissas!$C$58,"-",HF3+1)) -> - | HH3: =IF(HG3="-","-",IF(HG3+1>Premissas!$C$58,"-",HG3+1)) -> - | HI3: =IF(HH3="-","-",IF(HH3+1>Premissas!$C$58,"-",HH3+1)) -> - | HJ3: =IF(HI3="-","-",IF(HI3+1>Premissas!$C$58,"-",HI3+1)) -> - | HK3: =IF(HJ3="-","-",IF(HJ3+1>Premissas!$C$58,"-",HJ3+1)) -> - | HL3: =IF(HK3="-","-",IF(HK3+1>Premissas!$C$58,"-",HK3+1)) -> - | HM3: =IF(HL3="-","-",IF(HL3+1>Premissas!$C$58,"-",HL3+1)) -> - | HN3: =IF(HM3="-","-",IF(HM3+1>Premissas!$C$58,"-",HM3+1)) -> - | HO3: =IF(HN3="-","-",IF(HN3+1>Premissas!$C$58,"-",HN3+1)) -> - | HP3: =IF(HO3="-","-",IF(HO3+1>Premissas!$C$58,"-",HO3+1)) -> - | HQ3: =IF(HP3="-","-",IF(HP3+1>Premissas!$C$58,"-",HP3+1)) -> - | HR3: =IF(HQ3="-","-",IF(HQ3+1>Premissas!$C$58,"-",HQ3+1)) -> - | HS3: =IF(HR3="-","-",IF(HR3+1>Premissas!$C$58,"-",HR3+1)) -> - | HT3: =IF(HS3="-","-",IF(HS3+1>Premissas!$C$58,"-",HS3+1)) -> - | HU3: =IF(HT3="-","-",IF(HT3+1>Premissas!$C$58,"-",HT3+1)) -> - | HV3: =IF(HU3="-","-",IF(HU3+1>Premissas!$C$58,"-",HU3+1)) -> - | HW3: =IF(HV3="-","-",IF(HV3+1>Premissas!$C$58,"-",HV3+1)) -> - | HX3: =IF(HW3="-","-",IF(HW3+1>Premissas!$C$58,"-",HW3+1)) -> - | HY3: =IF(HX3="-","-",IF(HX3+1>Premissas!$C$58,"-",HX3+1)) -> - | HZ3: =IF(HY3="-","-",IF(HY3+1>Premissas!$C$58,"-",HY3+1)) -> - | IA3: =IF(HZ3="-","-",IF(HZ3+1>Premissas!$C$58,"-",HZ3+1)) -> - | IB3: =IF(IA3="-","-",IF(IA3+1>Premissas!$C$58,"-",IA3+1)) -> - | IC3: =IF(IB3="-","-",IF(IB3+1>Premissas!$C$58,"-",IB3+1)) -> - | ID3: =IF(IC3="-","-",IF(IC3+1>Premissas!$C$58,"-",IC3+1)) -> - | IE3: =IF(ID3="-","-",IF(ID3+1>Premissas!$C$58,"-",ID3+1)) -> - | IF3: =IF(IE3="-","-",IF(IE3+1>Premissas!$C$58,"-",IE3+1)) -> - | IG3: =IF(IF3="-","-",IF(IF3+1>Premissas!$C$58,"-",IF3+1)) -> - | IH3: =IF(IG3="-","-",IF(IG3+1>Premissas!$C$58,"-",IG3+1)) -> - | II3: =IF(IH3="-","-",IF(IH3+1>Premissas!$C$58,"-",IH3+1)) -> - | IJ3: =IF(II3="-","-",IF(II3+1>Premissas!$C$58,"-",II3+1)) -> - | IK3: =IF(IJ3="-","-",IF(IJ3+1>Premissas!$C$58,"-",IJ3+1)) -> - | IL3: =IF(IK3="-","-",IF(IK3+1>Premissas!$C$58,"-",IK3+1)) -> - | IM3: =IF(IL3="-","-",IF(IL3+1>Premissas!$C$58,"-",IL3+1)) -> - | IN3: =IF(IM3="-","-",IF(IM3+1>Premissas!$C$58,"-",IM3+1)) -> - | IO3: =IF(IN3="-","-",IF(IN3+1>Premissas!$C$58,"-",IN3+1)) -> - | IP3: =IF(IO3="-","-",IF(IO3+1>Premissas!$C$58,"-",IO3+1)) -> - | IQ3: =IF(IP3="-","-",IF(IP3+1>Premissas!$C$58,"-",IP3+1)) -> - | IR3: =IF(IQ3="-","-",IF(IQ3+1>Premissas!$C$58,"-",IQ3+1)) -> - | IS3: =IF(IR3="-","-",IF(IR3+1>Premissas!$C$58,"-",IR3+1)) -> - | IT3: =IF(IS3="-","-",IF(IS3+1>Premissas!$C$58,"-",IS3+1)) -> - | IU3: =IF(IT3="-","-",IF(IT3+1>Premissas!$C$58,"-",IT3+1)) -> - | IV3: =IF(IU3="-","-",IF(IU3+1>Premissas!$C$58,"-",IU3+1)) -> - | IW3: =IF(IV3="-","-",IF(IV3+1>Premissas!$C$58,"-",IV3+1)) -> - | IX3: =IF(IW3="-","-",IF(IW3+1>Premissas!$C$58,"-",IW3+1)) -> - | IY3: =IF(IX3="-","-",IF(IX3+1>Premissas!$C$58,"-",IX3+1)) -> - | IZ3: =IF(IY3="-","-",IF(IY3+1>Premissas!$C$58,"-",IY3+1)) -> - | JA3: =IF(IZ3="-","-",IF(IZ3+1>Premissas!$C$58,"-",IZ3+1)) -> - | JB3: =IF(JA3="-","-",IF(JA3+1>Premissas!$C$58,"-",JA3+1)) -> - | JC3: =IF(JB3="-","-",IF(JB3+1>Premissas!$C$58,"-",JB3+1)) -> - | JD3: =IF(JC3="-","-",IF(JC3+1>Premissas!$C$58,"-",JC3+1)) -> - | JE3: =IF(JD3="-","-",IF(JD3+1>Premissas!$C$58,"-",JD3+1)) -> - | JF3: =IF(JE3="-","-",IF(JE3+1>Premissas!$C$58,"-",JE3+1)) -> - | JG3: =IF(JF3="-","-",IF(JF3+1>Premissas!$C$58,"-",JF3+1)) -> - | JH3: =IF(JG3="-","-",IF(JG3+1>Premissas!$C$58,"-",JG3+1)) -> - | JI3: =IF(JH3="-","-",IF(JH3+1>Premissas!$C$58,"-",JH3+1)) -> - | JJ3: =IF(JI3="-","-",IF(JI3+1>Premissas!$C$58,"-",JI3+1)) -> - | JK3: =IF(JJ3="-","-",IF(JJ3+1>Premissas!$C$58,"-",JJ3+1)) -> - | JL3: =IF(JK3="-","-",IF(JK3+1>Premissas!$C$58,"-",JK3+1)) -> - | JM3: =IF(JL3="-","-",IF(JL3+1>Premissas!$C$58,"-",JL3+1)) -> - | JN3: =IF(JM3="-","-",IF(JM3+1>Premissas!$C$58,"-",JM3+1)) -> - | JO3: =IF(JN3="-","-",IF(JN3+1>Premissas!$C$58,"-",JN3+1)) -> - | JP3: =IF(JO3="-","-",IF(JO3+1>Premissas!$C$58,"-",JO3+1)) -> - | JQ3: =IF(JP3="-","-",IF(JP3+1>Premissas!$C$58,"-",JP3+1)) -> - | JR3: =IF(JQ3="-","-",IF(JQ3+1>Premissas!$C$58,"-",JQ3+1)) -> - | JS3: =IF(JR3="-","-",IF(JR3+1>Premissas!$C$58,"-",JR3+1)) -> - | JT3: =IF(JS3="-","-",IF(JS3+1>Premissas!$C$58,"-",JS3+1)) -> - | JU3: =IF(JT3="-","-",IF(JT3+1>Premissas!$C$58,"-",JT3+1)) -> - | JV3: =IF(JU3="-","-",IF(JU3+1>Premissas!$C$58,"-",JU3+1)) -> - | JW3: =IF(JV3="-","-",IF(JV3+1>Premissas!$C$58,"-",JV3+1)) -> - | JX3: =IF(JW3="-","-",IF(JW3+1>Premissas!$C$58,"-",JW3+1)) -> - | JY3: =IF(JX3="-","-",IF(JX3+1>Premissas!$C$58,"-",JX3+1)) -> - | JZ3: =IF(JY3="-","-",IF(JY3+1>Premissas!$C$58,"-",JY3+1)) -> - | KA3: =IF(JZ3="-","-",IF(JZ3+1>Premissas!$C$58,"-",JZ3+1)) -> - | KB3: =IF(KA3="-","-",IF(KA3+1>Premissas!$C$58,"-",KA3+1)) -> - | KC3: =IF(KB3="-","-",IF(KB3+1>Premissas!$C$58,"-",KB3+1)) -> - | KD3: =IF(KC3="-","-",IF(KC3+1>Premissas!$C$58,"-",KC3+1)) -> - | KE3: =IF(KD3="-","-",IF(KD3+1>Premissas!$C$58,"-",KD3+1)) -> - | KF3: =IF(KE3="-","-",IF(KE3+1>Premissas!$C$58,"-",KE3+1)) -> - | KG3: =IF(KF3="-","-",IF(KF3+1>Premissas!$C$58,"-",KF3+1)) -> - | KH3: =IF(KG3="-","-",IF(KG3+1>Premissas!$C$58,"-",KG3+1)) -> - | KI3: =IF(KH3="-","-",IF(KH3+1>Premissas!$C$58,"-",KH3+1)) -> - | KJ3: =IF(KI3="-","-",IF(KI3+1>Premissas!$C$58,"-",KI3+1)) -> - | KK3: =IF(KJ3="-","-",IF(KJ3+1>Premissas!$C$58,"-",KJ3+1)) -> - | KL3: =IF(KK3="-","-",IF(KK3+1>Premissas!$C$58,"-",KK3+1)) -> - | KM3: =IF(KL3="-","-",IF(KL3+1>Premissas!$C$58,"-",KL3+1)) -> - | KN3: =IF(KM3="-","-",IF(KM3+1>Premissas!$C$58,"-",KM3+1)) -> - | KO3: =IF(KN3="-","-",IF(KN3+1>Premissas!$C$58,"-",KN3+1)) -> - | KP3: =IF(KO3="-","-",IF(KO3+1>Premissas!$C$58,"-",KO3+1)) -> - | KQ3: =IF(KP3="-","-",IF(KP3+1>Premissas!$C$58,"-",KP3+1)) -> - | KR3: =IF(KQ3="-","-",IF(KQ3+1>Premissas!$C$58,"-",KQ3+1)) -> - | KS3: =IF(KR3="-","-",IF(KR3+1>Premissas!$C$58,"-",KR3+1)) -> - | KT3: =IF(KS3="-","-",IF(KS3+1>Premissas!$C$58,"-",KS3+1)) -> - | KU3: =IF(KT3="-","-",IF(KT3+1>Premissas!$C$58,"-",KT3+1)) -> - | KV3: =IF(KU3="-","-",IF(KU3+1>Premissas!$C$58,"-",KU3+1)) -> - | KW3: =IF(KV3="-","-",IF(KV3+1>Premissas!$C$58,"-",KV3+1)) -> - | KX3: =IF(KW3="-","-",IF(KW3+1>Premissas!$C$58,"-",KW3+1)) -> - | KY3: =IF(KX3="-","-",IF(KX3+1>Premissas!$C$58,"-",KX3+1)) -> - | KZ3: =IF(KY3="-","-",IF(KY3+1>Premissas!$C$58,"-",KY3+1)) -> - | LA3: =IF(KZ3="-","-",IF(KZ3+1>Premissas!$C$58,"-",KZ3+1)) -> - | LB3: =IF(LA3="-","-",IF(LA3+1>Premissas!$C$58,"-",LA3+1)) -> - | LC3: =IF(LB3="-","-",IF(LB3+1>Premissas!$C$58,"-",LB3+1)) -> - | LD3: =IF(LC3="-","-",IF(LC3+1>Premissas!$C$58,"-",LC3+1)) -> - | LE3: =IF(LD3="-","-",IF(LD3+1>Premissas!$C$58,"-",LD3+1)) -> - | LF3: =IF(LE3="-","-",IF(LE3+1>Premissas!$C$58,"-",LE3+1)) -> - | LG3: =IF(LF3="-","-",IF(LF3+1>Premissas!$C$58,"-",LF3+1)) -> - | LH3: =IF(LG3="-","-",IF(LG3+1>Premissas!$C$58,"-",LG3+1)) -> - | LI3: =IF(LH3="-","-",IF(LH3+1>Premissas!$C$58,"-",LH3+1)) -> - | LJ3: =IF(LI3="-","-",IF(LI3+1>Premissas!$C$58,"-",LI3+1)) -> - | LK3: =IF(LJ3="-","-",IF(LJ3+1>Premissas!$C$58,"-",LJ3+1)) -> - | LL3: =IF(LK3="-","-",IF(LK3+1>Premissas!$C$58,"-",LK3+1)) -> - | LM3: =IF(LL3="-","-",IF(LL3+1>Premissas!$C$58,"-",LL3+1)) -> - | LN3: =IF(LM3="-","-",IF(LM3+1>Premissas!$C$58,"-",LM3+1)) -> - | LO3: =IF(LN3="-","-",IF(LN3+1>Premissas!$C$58,"-",LN3+1)) -> - | LP3: =IF(LO3="-","-",IF(LO3+1>Premissas!$C$58,"-",LO3+1)) -> - | LQ3: =IF(LP3="-","-",IF(LP3+1>Premissas!$C$58,"-",LP3+1)) -> - | LR3: =IF(LQ3="-","-",IF(LQ3+1>Premissas!$C$58,"-",LQ3+1)) -> - | LS3: =IF(LR3="-","-",IF(LR3+1>Premissas!$C$58,"-",LR3+1)) -> - | LT3: =IF(LS3="-","-",IF(LS3+1>Premissas!$C$58,"-",LS3+1)) -> - | LU3: =IF(LT3="-","-",IF(LT3+1>Premissas!$C$58,"-",LT3+1)) -> - | LV3: =IF(LU3="-","-",IF(LU3+1>Premissas!$C$58,"-",LU3+1)) -> - | LW3: =IF(LV3="-","-",IF(LV3+1>Premissas!$C$58,"-",LV3+1)) -> - | LX3: =IF(LW3="-","-",IF(LW3+1>Premissas!$C$58,"-",LW3+1)) -> - | LY3: =IF(LX3="-","-",IF(LX3+1>Premissas!$C$58,"-",LX3+1)) -> - | LZ3: =IF(LY3="-","-",IF(LY3+1>Premissas!$C$58,"-",LY3+1)) -> - | MA3: =IF(LZ3="-","-",IF(LZ3+1>Premissas!$C$58,"-",LZ3+1)) -> - | MB3: =IF(MA3="-","-",IF(MA3+1>Premissas!$C$58,"-",MA3+1)) -> - | MC3: =IF(MB3="-","-",IF(MB3+1>Premissas!$C$58,"-",MB3+1)) -> - | MD3: =IF(MC3="-","-",IF(MC3+1>Premissas!$C$58,"-",MC3+1)) -> - | ME3: =IF(MD3="-","-",IF(MD3+1>Premissas!$C$58,"-",MD3+1)) -> - | MF3: =IF(ME3="-","-",IF(ME3+1>Premissas!$C$58,"-",ME3+1)) -> - | MG3: =IF(MF3="-","-",IF(MF3+1>Premissas!$C$58,"-",MF3+1)) -> - | MH3: =IF(MG3="-","-",IF(MG3+1>Premissas!$C$58,"-",MG3+1)) -> - | MI3: =IF(MH3="-","-",IF(MH3+1>Premissas!$C$58,"-",MH3+1)) -> - | MJ3: =IF(MI3="-","-",IF(MI3+1>Premissas!$C$58,"-",MI3+1)) -> - | MK3: =IF(MJ3="-","-",IF(MJ3+1>Premissas!$C$58,"-",MJ3+1)) -> - | ML3: =IF(MK3="-","-",IF(MK3+1>Premissas!$C$58,"-",MK3+1)) -> - | MM3: =IF(ML3="-","-",IF(ML3+1>Premissas!$C$58,"-",ML3+1)) -> - | MN3: =IF(MM3="-","-",IF(MM3+1>Premissas!$C$58,"-",MM3+1)) -> - | MO3: =IF(MN3="-","-",IF(MN3+1>Premissas!$C$58,"-",MN3+1)) -> - | MP3: =IF(MO3="-","-",IF(MO3+1>Premissas!$C$58,"-",MO3+1)) -> - | MQ3: =IF(MP3="-","-",IF(MP3+1>Premissas!$C$58,"-",MP3+1)) -> - | MR3: =IF(MQ3="-","-",IF(MQ3+1>Premissas!$C$58,"-",MQ3+1)) -> - | MS3: =IF(MR3="-","-",IF(MR3+1>Premissas!$C$58,"-",MR3+1)) -> - | MT3: =IF(MS3="-","-",IF(MS3+1>Premissas!$C$58,"-",MS3+1)) -> - | MU3: =IF(MT3="-","-",IF(MT3+1>Premissas!$C$58,"-",MT3+1)) -> - | MV3: =IF(MU3="-","-",IF(MU3+1>Premissas!$C$58,"-",MU3+1)) -> - | MW3: =IF(MV3="-","-",IF(MV3+1>Premissas!$C$58,"-",MV3+1)) -> - | MX3: =IF(MW3="-","-",IF(MW3+1>Premissas!$C$58,"-",MW3+1)) -> - | MY3: =IF(MX3="-","-",IF(MX3+1>Premissas!$C$58,"-",MX3+1)) -> - | MZ3: =IF(MY3="-","-",IF(MY3+1>Premissas!$C$58,"-",MY3+1)) -> - | NA3: =IF(MZ3="-","-",IF(MZ3+1>Premissas!$C$58,"-",MZ3+1)) -> - | NB3: =IF(NA3="-","-",IF(NA3+1>Premissas!$C$58,"-",NA3+1)) -> - | NC3: =IF(NB3="-","-",IF(NB3+1>Premissas!$C$58,"-",NB3+1)) -> - | ND3: =IF(NC3="-","-",IF(NC3+1>Premissas!$C$58,"-",NC3+1)) -> - | NE3: =IF(ND3="-","-",IF(ND3+1>Premissas!$C$58,"-",ND3+1)) -> - | NF3: =IF(NE3="-","-",IF(NE3+1>Premissas!$C$58,"-",NE3+1)) -> - | NG3: =IF(NF3="-","-",IF(NF3+1>Premissas!$C$58,"-",NF3+1)) -> - | NH3: =IF(NG3="-","-",IF(NG3+1>Premissas!$C$58,"-",NG3+1)) -> - | NI3: =IF(NH3="-","-",IF(NH3+1>Premissas!$C$58,"-",NH3+1)) -> - | NJ3: =IF(NI3="-","-",IF(NI3+1>Premissas!$C$58,"-",NI3+1)) -> - | NK3: =IF(NJ3="-","-",IF(NJ3+1>Premissas!$C$58,"-",NJ3+1)) -> - | NL3: =IF(NK3="-","-",IF(NK3+1>Premissas!$C$58,"-",NK3+1)) -> - | NM3: =IF(NL3="-","-",IF(NL3+1>Premissas!$C$58,"-",NL3+1)) -> - | NN3: =IF(NM3="-","-",IF(NM3+1>Premissas!$C$58,"-",NM3+1)) -> - | NO3: =IF(NN3="-","-",IF(NN3+1>Premissas!$C$58,"-",NN3+1)) -> - | NP3: =IF(NO3="-","-",IF(NO3+1>Premissas!$C$58,"-",NO3+1)) -> - | NQ3: =IF(NP3="-","-",IF(NP3+1>Premissas!$C$58,"-",NP3+1)) -> - | NR3: =IF(NQ3="-","-",IF(NQ3+1>Premissas!$C$58,"-",NQ3+1)) -> - | NS3: =IF(NR3="-","-",IF(NR3+1>Premissas!$C$58,"-",NR3+1)) -> - | NT3: =IF(NS3="-","-",IF(NS3+1>Premissas!$C$58,"-",NS3+1)) -> - | NU3: =IF(NT3="-","-",IF(NT3+1>Premissas!$C$58,"-",NT3+1)) -> - | NV3: =IF(NU3="-","-",IF(NU3+1>Premissas!$C$58,"-",NU3+1)) -> - | NW3: =IF(NV3="-","-",IF(NV3+1>Premissas!$C$58,"-",NV3+1)) -> - | NX3: =IF(NW3="-","-",IF(NW3+1>Premissas!$C$58,"-",NW3+1)) -> - | NY3: =IF(NX3="-","-",IF(NX3+1>Premissas!$C$58,"-",NX3+1)) -> - | NZ3: =IF(NY3="-","-",IF(NY3+1>Premissas!$C$58,"-",NY3+1)) -> - | OA3: =IF(NZ3="-","-",IF(NZ3+1>Premissas!$C$58,"-",NZ3+1)) -> - | OB3: =IF(OA3="-","-",IF(OA3+1>Premissas!$C$58,"-",OA3+1)) -> - | OC3: =IF(OB3="-","-",IF(OB3+1>Premissas!$C$58,"-",OB3+1)) -> - | OD3: =IF(OC3="-","-",IF(OC3+1>Premissas!$C$58,"-",OC3+1)) -> - | OE3: =IF(OD3="-","-",IF(OD3+1>Premissas!$C$58,"-",OD3+1)) -> - | OF3: =IF(OE3="-","-",IF(OE3+1>Premissas!$C$58,"-",OE3+1)) -> - | OG3: =IF(OF3="-","-",IF(OF3+1>Premissas!$C$58,"-",OF3+1)) -> - | OH3: =IF(OG3="-","-",IF(OG3+1>Premissas!$C$58,"-",OG3+1)) -> - | OI3: =IF(OH3="-","-",IF(OH3+1>Premissas!$C$58,"-",OH3+1)) -> - | OJ3: =IF(OI3="-","-",IF(OI3+1>Premissas!$C$58,"-",OI3+1)) -> - | OK3: =IF(OJ3="-","-",IF(OJ3+1>Premissas!$C$58,"-",OJ3+1)) -> - | OL3: =IF(OK3="-","-",IF(OK3+1>Premissas!$C$58,"-",OK3+1)) -> - | OM3: =IF(OL3="-","-",IF(OL3+1>Premissas!$C$58,"-",OL3+1)) -> - | ON3: =IF(OM3="-","-",IF(OM3+1>Premissas!$C$58,"-",OM3+1)) -> - | OO3: =IF(ON3="-","-",IF(ON3+1>Premissas!$C$58,"-",ON3+1)) -> - | OP3: =IF(OO3="-","-",IF(OO3+1>Premissas!$C$58,"-",OO3+1)) -> - | OQ3: =IF(OP3="-","-",IF(OP3+1>Premissas!$C$58,"-",OP3+1)) -> - | OR3: =IF(OQ3="-","-",IF(OQ3+1>Premissas!$C$58,"-",OQ3+1)) -> - | OS3: =IF(OR3="-","-",IF(OR3+1>Premissas!$C$58,"-",OR3+1)) -> - | OT3: =IF(OS3="-","-",IF(OS3+1>Premissas!$C$58,"-",OS3+1)) -> - | OU3: =IF(OT3="-","-",IF(OT3+1>Premissas!$C$58,"-",OT3+1)) -> - | OV3: =IF(OU3="-","-",IF(OU3+1>Premissas!$C$58,"-",OU3+1)) -> - | OW3: =IF(OV3="-","-",IF(OV3+1>Premissas!$C$58,"-",OV3+1)) -> - | OX3: =IF(OW3="-","-",IF(OW3+1>Premissas!$C$58,"-",OW3+1)) -> - | OY3: =IF(OX3="-","-",IF(OX3+1>Premissas!$C$58,"-",OX3+1)) -> - | OZ3: =IF(OY3="-","-",IF(OY3+1>Premissas!$C$58,"-",OY3+1)) -> - | PA3: =IF(OZ3="-","-",IF(OZ3+1>Premissas!$C$58,"-",OZ3+1)) -> - | PB3: =IF(PA3="-","-",IF(PA3+1>Premissas!$C$58,"-",PA3+1)) -> - | PC3: =IF(PB3="-","-",IF(PB3+1>Premissas!$C$58,"-",PB3+1)) -> - | PD3: =IF(PC3="-","-",IF(PC3+1>Premissas!$C$58,"-",PC3+1)) -> - | PE3: =IF(PD3="-","-",IF(PD3+1>Premissas!$C$58,"-",PD3+1)) -> - | PF3: =IF(PE3="-","-",IF(PE3+1>Premissas!$C$58,"-",PE3+1)) -> - | PG3: =IF(PF3="-","-",IF(PF3+1>Premissas!$C$58,"-",PF3+1)) -> - | PH3: =IF(PG3="-","-",IF(PG3+1>Premissas!$C$58,"-",PG3+1)) -> - | PI3: =IF(PH3="-","-",IF(PH3+1>Premissas!$C$58,"-",PH3+1)) -> - | PJ3: =IF(PI3="-","-",IF(PI3+1>Premissas!$C$58,"-",PI3+1)) -> - | PK3: =IF(PJ3="-","-",IF(PJ3+1>Premissas!$C$58,"-",PJ3+1)) -> - | PL3: =IF(PK3="-","-",IF(PK3+1>Premissas!$C$58,"-",PK3+1)) -> - | PM3: =IF(PL3="-","-",IF(PL3+1>Premissas!$C$58,"-",PL3+1)) -> - | PN3: =IF(PM3="-","-",IF(PM3+1>Premissas!$C$58,"-",PM3+1)) -> - | PO3: =IF(PN3="-","-",IF(PN3+1>Premissas!$C$58,"-",PN3+1)) -> - | PP3: =IF(PO3="-","-",IF(PO3+1>Premissas!$C$58,"-",PO3+1)) -> - | PQ3: =IF(PP3="-","-",IF(PP3+1>Premissas!$C$58,"-",PP3+1)) -> - | PR3: =IF(PQ3="-","-",IF(PQ3+1>Premissas!$C$58,"-",PQ3+1)) -> - | PS3: =IF(PR3="-","-",IF(PR3+1>Premissas!$C$58,"-",PR3+1)) -> - | PT3: =IF(PS3="-","-",IF(PS3+1>Premissas!$C$58,"-",PS3+1)) -> - | PU3: =IF(PT3="-","-",IF(PT3+1>Premissas!$C$58,"-",PT3+1)) -> - | PV3: =IF(PU3="-","-",IF(PU3+1>Premissas!$C$58,"-",PU3+1)) -> - | PW3: =IF(PV3="-","-",IF(PV3+1>Premissas!$C$58,"-",PV3+1)) -> - | PX3: =IF(PW3="-","-",IF(PW3+1>Premissas!$C$58,"-",PW3+1)) -> - | PY3: =IF(PX3="-","-",IF(PX3+1>Premissas!$C$58,"-",PX3+1)) -> - | PZ3: =IF(PY3="-","-",IF(PY3+1>Premissas!$C$58,"-",PY3+1)) -> - | QA3: =IF(PZ3="-","-",IF(PZ3+1>Premissas!$C$58,"-",PZ3+1)) -> - | QB3: =IF(QA3="-","-",IF(QA3+1>Premissas!$C$58,"-",QA3+1)) -> - | QC3: =IF(QB3="-","-",IF(QB3+1>Premissas!$C$58,"-",QB3+1)) -> - | QD3: =IF(QC3="-","-",IF(QC3+1>Premissas!$C$58,"-",QC3+1)) -> - | QE3: =IF(QD3="-","-",IF(QD3+1>Premissas!$C$58,"-",QD3+1)) -> - | QF3: =IF(QE3="-","-",IF(QE3+1>Premissas!$C$58,"-",QE3+1)) -> - | QG3: =IF(QF3="-","-",IF(QF3+1>Premissas!$C$58,"-",QF3+1)) -> - | QH3: =IF(QG3="-","-",IF(QG3+1>Premissas!$C$58,"-",QG3+1)) -> - | QI3: =IF(QH3="-","-",IF(QH3+1>Premissas!$C$58,"-",QH3+1)) -> - | QJ3: =IF(QI3="-","-",IF(QI3+1>Premissas!$C$58,"-",QI3+1)) -> - | QK3: =IF(QJ3="-","-",IF(QJ3+1>Premissas!$C$58,"-",QJ3+1)) -> - | QL3: =IF(QK3="-","-",IF(QK3+1>Premissas!$C$58,"-",QK3+1)) -> - | QM3: =IF(QL3="-","-",IF(QL3+1>Premissas!$C$58,"-",QL3+1)) -> - | QN3: =IF(QM3="-","-",IF(QM3+1>Premissas!$C$58,"-",QM3+1)) -> - | QO3: =IF(QN3="-","-",IF(QN3+1>Premissas!$C$58,"-",QN3+1)) -> - | QP3: =IF(QO3="-","-",IF(QO3+1>Premissas!$C$58,"-",QO3+1)) -> - | QQ3: =IF(QP3="-","-",IF(QP3+1>Premissas!$C$58,"-",QP3+1)) -> - | QR3: =IF(QQ3="-","-",IF(QQ3+1>Premissas!$C$58,"-",QQ3+1)) -> - | QS3: =IF(QR3="-","-",IF(QR3+1>Premissas!$C$58,"-",QR3+1)) -> - | QT3: =IF(QS3="-","-",IF(QS3+1>Premissas!$C$58,"-",QS3+1)) -> - | QU3: =IF(QT3="-","-",IF(QT3+1>Premissas!$C$58,"-",QT3+1)) -> - | QV3: =IF(QU3="-","-",IF(QU3+1>Premissas!$C$58,"-",QU3+1)) -> - | QW3: =IF(QV3="-","-",IF(QV3+1>Premissas!$C$58,"-",QV3+1)) -> - | QX3: =IF(QW3="-","-",IF(QW3+1>Premissas!$C$58,"-",QW3+1)) -> - | QY3: =IF(QX3="-","-",IF(QX3+1>Premissas!$C$58,"-",QX3+1)) -> - | QZ3: =IF(QY3="-","-",IF(QY3+1>Premissas!$C$58,"-",QY3+1)) -> - | RA3: =IF(QZ3="-","-",IF(QZ3+1>Premissas!$C$58,"-",QZ3+1)) -> - | RB3: =IF(RA3="-","-",IF(RA3+1>Premissas!$C$58,"-",RA3+1)) -> - | RC3: =IF(RB3="-","-",IF(RB3+1>Premissas!$C$58,"-",RB3+1)) -> - | RD3: =IF(RC3="-","-",IF(RC3+1>Premissas!$C$58,"-",RC3+1)) -> - | RE3: =IF(RD3="-","-",IF(RD3+1>Premissas!$C$58,"-",RD3+1)) -> - | RF3: =IF(RE3="-","-",IF(RE3+1>Premissas!$C$58,"-",RE3+1)) -> - | RG3: =IF(RF3="-","-",IF(RF3+1>Premissas!$C$58,"-",RF3+1)) -> - | RH3: =IF(RG3="-","-",IF(RG3+1>Premissas!$C$58,"-",RG3+1)) -> - | RI3: =IF(RH3="-","-",IF(RH3+1>Premissas!$C$58,"-",RH3+1)) -> - | RJ3: =IF(RI3="-","-",IF(RI3+1>Premissas!$C$58,"-",RI3+1)) -> - | RK3: =IF(RJ3="-","-",IF(RJ3+1>Premissas!$C$58,"-",RJ3+1)) -> - | RL3: =IF(RK3="-","-",IF(RK3+1>Premissas!$C$58,"-",RK3+1)) -> - | RM3: =IF(RL3="-","-",IF(RL3+1>Premissas!$C$58,"-",RL3+1)) -> - | RN3: =IF(RM3="-","-",IF(RM3+1>Premissas!$C$58,"-",RM3+1)) -> - | RO3: =IF(RN3="-","-",IF(RN3+1>Premissas!$C$58,"-",RN3+1)) -> - | RP3: =IF(RO3="-","-",IF(RO3+1>Premissas!$C$58,"-",RO3+1)) -> - | RQ3: =IF(RP3="-","-",IF(RP3+1>Premissas!$C$58,"-",RP3+1)) -> - | RR3: =IF(RQ3="-","-",IF(RQ3+1>Premissas!$C$58,"-",RQ3+1)) -> - | RS3: =IF(RR3="-","-",IF(RR3+1>Premissas!$C$58,"-",RR3+1)) -> - | RT3: =IF(RS3="-","-",IF(RS3+1>Premissas!$C$58,"-",RS3+1)) -> - | RU3: =IF(RT3="-","-",IF(RT3+1>Premissas!$C$58,"-",RT3+1)) -> - | RV3: =IF(RU3="-","-",IF(RU3+1>Premissas!$C$58,"-",RU3+1)) -> - | RW3: =IF(RV3="-","-",IF(RV3+1>Premissas!$C$58,"-",RV3+1)) -> - | RX3: =IF(RW3="-","-",IF(RW3+1>Premissas!$C$58,"-",RW3+1)) -> - | RY3: =IF(RX3="-","-",IF(RX3+1>Premissas!$C$58,"-",RX3+1)) -> - | RZ3: =IF(RY3="-","-",IF(RY3+1>Premissas!$C$58,"-",RY3+1)) -> - | SA3: =IF(RZ3="-","-",IF(RZ3+1>Premissas!$C$58,"-",RZ3+1)) -> - | SB3: =IF(SA3="-","-",IF(SA3+1>Premissas!$C$58,"-",SA3+1)) -> - | SC3: =IF(SB3="-","-",IF(SB3+1>Premissas!$C$58,"-",SB3+1)) -> - | SD3: =IF(SC3="-","-",IF(SC3+1>Premissas!$C$58,"-",SC3+1)) -> - | SE3: =IF(SD3="-","-",IF(SD3+1>Premissas!$C$58,"-",SD3+1)) -> - | SF3: =IF(SE3="-","-",IF(SE3+1>Premissas!$C$58,"-",SE3+1)) -> - | SG3: =IF(SF3="-","-",IF(SF3+1>Premissas!$C$58,"-",SF3+1)) -> - | SH3: =IF(SG3="-","-",IF(SG3+1>Premissas!$C$58,"-",SG3+1)) -> - | SI3: =IF(SH3="-","-",IF(SH3+1>Premissas!$C$58,"-",SH3+1)) -> - | SJ3: =IF(SI3="-","-",IF(SI3+1>Premissas!$C$58,"-",SI3+1)) -> - | SK3: =IF(SJ3="-","-",IF(SJ3+1>Premissas!$C$58,"-",SJ3+1)) -> - | SL3: =IF(SK3="-","-",IF(SK3+1>Premissas!$C$58,"-",SK3+1)) -> - | SM3: =IF(SL3="-","-",IF(SL3+1>Premissas!$C$58,"-",SL3+1)) -> - | SN3: =IF(SM3="-","-",IF(SM3+1>Premissas!$C$58,"-",SM3+1)) -> - | SO3: =IF(SN3="-","-",IF(SN3+1>Premissas!$C$58,"-",SN3+1)) -> - | SP3: =IF(SO3="-","-",IF(SO3+1>Premissas!$C$58,"-",SO3+1)) -> - | SQ3: =IF(SP3="-","-",IF(SP3+1>Premissas!$C$58,"-",SP3+1)) -> - | SR3: =IF(SQ3="-","-",IF(SQ3+1>Premissas!$C$58,"-",SQ3+1)) -> - | SS3: =IF(SR3="-","-",IF(SR3+1>Premissas!$C$58,"-",SR3+1)) -> - | ST3: =IF(SS3="-","-",IF(SS3+1>Premissas!$C$58,"-",SS3+1)) -> - | SU3: =IF(ST3="-","-",IF(ST3+1>Premissas!$C$58,"-",ST3+1)) -> - | SV3: =IF(SU3="-","-",IF(SU3+1>Premissas!$C$58,"-",SU3+1)) -> - | SW3: =IF(SV3="-","-",IF(SV3+1>Premissas!$C$58,"-",SV3+1)) -> - | SX3: =IF(SW3="-","-",IF(SW3+1>Premissas!$C$58,"-",SW3+1)) -> - | SY3: =IF(SX3="-","-",IF(SX3+1>Premissas!$C$58,"-",SX3+1)) -> - | SZ3: =IF(SY3="-","-",IF(SY3+1>Premissas!$C$58,"-",SY3+1)) -> - | TA3: =IF(SZ3="-","-",IF(SZ3+1>Premissas!$C$58,"-",SZ3+1)) -> - | TB3: =IF(TA3="-","-",IF(TA3+1>Premissas!$C$58,"-",TA3+1)) -> - | TC3: =IF(TB3="-","-",IF(TB3+1>Premissas!$C$58,"-",TB3+1)) -> - | TD3: =IF(TC3="-","-",IF(TC3+1>Premissas!$C$58,"-",TC3+1)) -> - | TE3: =IF(TD3="-","-",IF(TD3+1>Premissas!$C$58,"-",TD3+1)) -> - | TF3: =IF(TE3="-","-",IF(TE3+1>Premissas!$C$58,"-",TE3+1)) -> - | TG3: =IF(TF3="-","-",IF(TF3+1>Premissas!$C$58,"-",TF3+1)) -> - | TH3: =IF(TG3="-","-",IF(TG3+1>Premissas!$C$58,"-",TG3+1)) -> - | TI3: =IF(TH3="-","-",IF(TH3+1>Premissas!$C$58,"-",TH3+1)) -> - | TJ3: =IF(TI3="-","-",IF(TI3+1>Premissas!$C$58,"-",TI3+1)) -> - | TK3: =IF(TJ3="-","-",IF(TJ3+1>Premissas!$C$58,"-",TJ3+1)) -> - | TL3: =IF(TK3="-","-",IF(TK3+1>Premissas!$C$58,"-",TK3+1)) -> - | TM3: =IF(TL3="-","-",IF(TL3+1>Premissas!$C$58,"-",TL3+1)) -> - | TN3: =IF(TM3="-","-",IF(TM3+1>Premissas!$C$58,"-",TM3+1)) -> - | TO3: =IF(TN3="-","-",IF(TN3+1>Premissas!$C$58,"-",TN3+1)) -> - | TP3: =IF(TO3="-","-",IF(TO3+1>Premissas!$C$58,"-",TO3+1)) -> - | TQ3: =IF(TP3="-","-",IF(TP3+1>Premissas!$C$58,"-",TP3+1)) -> - | TR3: =IF(TQ3="-","-",IF(TQ3+1>Premissas!$C$58,"-",TQ3+1)) -> - | TS3: =IF(TR3="-","-",IF(TR3+1>Premissas!$C$58,"-",TR3+1)) -> - | TT3: =IF(TS3="-","-",IF(TS3+1>Premissas!$C$58,"-",TS3+1)) -> - | TU3: =IF(TT3="-","-",IF(TT3+1>Premissas!$C$58,"-",TT3+1)) -> - | TV3: =IF(TU3="-","-",IF(TU3+1>Premissas!$C$58,"-",TU3+1)) -> - | TW3: =IF(TV3="-","-",IF(TV3+1>Premissas!$C$58,"-",TV3+1)) -> - | TX3: =IF(TW3="-","-",IF(TW3+1>Premissas!$C$58,"-",TW3+1)) -> - | TY3: =IF(TX3="-","-",IF(TX3+1>Premissas!$C$58,"-",TX3+1)) -> - | TZ3: =IF(TY3="-","-",IF(TY3+1>Premissas!$C$58,"-",TY3+1)) -> - | UA3: =IF(TZ3="-","-",IF(TZ3+1>Premissas!$C$58,"-",TZ3+1)) -> - | UB3: =IF(UA3="-","-",IF(UA3+1>Premissas!$C$58,"-",UA3+1)) -> - | UC3: =IF(UB3="-","-",IF(UB3+1>Premissas!$C$58,"-",UB3+1)) -> - | UD3: =IF(UC3="-","-",IF(UC3+1>Premissas!$C$58,"-",UC3+1)) -> - | UE3: =IF(UD3="-","-",IF(UD3+1>Premissas!$C$58,"-",UD3+1)) -> - | UF3: =IF(UE3="-","-",IF(UE3+1>Premissas!$C$58,"-",UE3+1)) -> - | UG3: =IF(UF3="-","-",IF(UF3+1>Premissas!$C$58,"-",UF3+1)) -> - | UH3: =IF(UG3="-","-",IF(UG3+1>Premissas!$C$58,"-",UG3+1)) -> - | UI3: =IF(UH3="-","-",IF(UH3+1>Premissas!$C$58,"-",UH3+1)) -> - | UJ3: =IF(UI3="-","-",IF(UI3+1>Premissas!$C$58,"-",UI3+1)) -> - | UK3: =IF(UJ3="-","-",IF(UJ3+1>Premissas!$C$58,"-",UJ3+1)) -> - | UL3: =IF(UK3="-","-",IF(UK3+1>Premissas!$C$58,"-",UK3+1)) -> - | UM3: =IF(UL3="-","-",IF(UL3+1>Premissas!$C$58,"-",UL3+1)) -> - | UN3: =IF(UM3="-","-",IF(UM3+1>Premissas!$C$58,"-",UM3+1)) -> - | UO3: =IF(UN3="-","-",IF(UN3+1>Premissas!$C$58,"-",UN3+1)) -> - | UP3: =IF(UO3="-","-",IF(UO3+1>Premissas!$C$58,"-",UO3+1)) -> - | UQ3: =IF(UP3="-","-",IF(UP3+1>Premissas!$C$58,"-",UP3+1)) -> - | UR3: =IF(UQ3="-","-",IF(UQ3+1>Premissas!$C$58,"-",UQ3+1)) -> - | US3: =IF(UR3="-","-",IF(UR3+1>Premissas!$C$58,"-",UR3+1)) -> - | UT3: =IF(US3="-","-",IF(US3+1>Premissas!$C$58,"-",US3+1)) -> - | UU3: =IF(UT3="-","-",IF(UT3+1>Premissas!$C$58,"-",UT3+1)) -> - | UV3: =IF(UU3="-","-",IF(UU3+1>Premissas!$C$58,"-",UU3+1)) -> - | UW3: =IF(UV3="-","-",IF(UV3+1>Premissas!$C$58,"-",UV3+1)) -> - | UX3: =IF(UW3="-","-",IF(UW3+1>Premissas!$C$58,"-",UW3+1)) -> - | UY3: =IF(UX3="-","-",IF(UX3+1>Premissas!$C$58,"-",UX3+1)) -> - | UZ3: =IF(UY3="-","-",IF(UY3+1>Premissas!$C$58,"-",UY3+1)) -> - | VA3: =IF(UZ3="-","-",IF(UZ3+1>Premissas!$C$58,"-",UZ3+1)) -> - | VB3: =IF(VA3="-","-",IF(VA3+1>Premissas!$C$58,"-",VA3+1)) -> - | VC3: =IF(VB3="-","-",IF(VB3+1>Premissas!$C$58,"-",VB3+1)) -> - | VD3: =IF(VC3="-","-",IF(VC3+1>Premissas!$C$58,"-",VC3+1)) -> - | VE3: =IF(VD3="-","-",IF(VD3+1>Premissas!$C$58,"-",VD3+1)) -> - | VF3: =IF(VE3="-","-",IF(VE3+1>Premissas!$C$58,"-",VE3+1)) -> - | VG3: =IF(VF3="-","-",IF(VF3+1>Premissas!$C$58,"-",VF3+1)) -> - | VH3: =IF(VG3="-","-",IF(VG3+1>Premissas!$C$58,"-",VG3+1)) -> - | VI3: =IF(VH3="-","-",IF(VH3+1>Premissas!$C$58,"-",VH3+1)) -> - | VJ3: =IF(VI3="-","-",IF(VI3+1>Premissas!$C$58,"-",VI3+1)) -> - | VK3: =IF(VJ3="-","-",IF(VJ3+1>Premissas!$C$58,"-",VJ3+1)) -> - | VL3: =IF(VK3="-","-",IF(VK3+1>Premissas!$C$58,"-",VK3+1)) -> - | VM3: =IF(VL3="-","-",IF(VL3+1>Premissas!$C$58,"-",VL3+1)) -> - | VN3: =IF(VM3="-","-",IF(VM3+1>Premissas!$C$58,"-",VM3+1)) -> - | VO3: =IF(VN3="-","-",IF(VN3+1>Premissas!$C$58,"-",VN3+1)) -> - | VP3: =IF(VO3="-","-",IF(VO3+1>Premissas!$C$58,"-",VO3+1)) -> - | VQ3: =IF(VP3="-","-",IF(VP3+1>Premissas!$C$58,"-",VP3+1)) -> - | VR3: =IF(VQ3="-","-",IF(VQ3+1>Premissas!$C$58,"-",VQ3+1)) -> - | VS3: =IF(VR3="-","-",IF(VR3+1>Premissas!$C$58,"-",VR3+1)) -> - | VT3: =IF(VS3="-","-",IF(VS3+1>Premissas!$C$58,"-",VS3+1)) -> - | VU3: =IF(VT3="-","-",IF(VT3+1>Premissas!$C$58,"-",VT3+1)) -> - | VV3: =IF(VU3="-","-",IF(VU3+1>Premissas!$C$58,"-",VU3+1)) -> - | VW3: =IF(VV3="-","-",IF(VV3+1>Premissas!$C$58,"-",VV3+1)) -> - | VX3: =IF(VW3="-","-",IF(VW3+1>Premissas!$C$58,"-",VW3+1)) -> - | VY3: =IF(VX3="-","-",IF(VX3+1>Premissas!$C$58,"-",VX3+1)) -> - | VZ3: =IF(VY3="-","-",IF(VY3+1>Premissas!$C$58,"-",VY3+1)) -> - | WA3: =IF(VZ3="-","-",IF(VZ3+1>Premissas!$C$58,"-",VZ3+1)) -> - | WB3: =IF(WA3="-","-",IF(WA3+1>Premissas!$C$58,"-",WA3+1)) -> - | WC3: =IF(WB3="-","-",IF(WB3+1>Premissas!$C$58,"-",WB3+1)) -> - | WD3: =IF(WC3="-","-",IF(WC3+1>Premissas!$C$58,"-",WC3+1)) -> -
B4: ANO | C4: 2024 | D4: =IF(D2="-","-",IF(D5=1,C4+1,C4)) -> 2025 | E4: =IF(E2="-","-",IF(E5=1,D4+1,D4)) -> 2026 | F4: 2027 | G4: 2028 | H4: 2029 | I4: 2030 | J4: 2031 | K4: 2032 | L4: 2033 | M4: 2034 | N4: 2035 | O4: 2036 | P4: 2037 | Q4: 2038 | R4: 2039 | S4: 2040 | T4: 2041 | U4: 2042 | V4: 2043 | W4: 2044 | X4: 2045 | Y4: 2046 | Z4: 2047 | AA4: 2048 | AB4: 2049 | AC4: 2050 | AD4: 2051 | AE4: 2052 | AF4: 2053 | AG4: 2054 | AH4: - | AI4: - | AJ4: - | AK4: - | AL4: - | AM4: - | AN4: - | AO4: - | AP4: - | AQ4: - | AR4: - | AS4: - | AT4: - | AU4: - | AV4: - | AW4: - | AX4: - | AY4: - | AZ4: - | BA4: - | BB4: - | BC4: - | BD4: - | BE4: - | BF4: - | BG4: - | BH4: - | BI4: - | BJ4: - | BK4: - | BL4: - | BM4: - | BN4: - | BO4: - | BP4: - | BQ4: =IF(BQ2="-","-",IF(BQ5=1,BP4+1,BP4)) -> - | BR4: - | BS4: - | BT4: - | BU4: - | BV4: - | BW4: - | BX4: - | BY4: - | BZ4: - | CA4: - | CB4: - | CC4: - | CD4: - | CE4: - | CF4: - | CG4: - | CH4: - | CI4: - | CJ4: - | CK4: - | CL4: - | CM4: - | CN4: - | CO4: - | CP4: - | CQ4: - | CR4: - | CS4: - | CT4: - | CU4: - | CV4: - | CW4: - | CX4: - | CY4: - | CZ4: - | DA4: - | DB4: - | DC4: - | DD4: - | DE4: - | DF4: - | DG4: - | DH4: - | DI4: - | DJ4: - | DK4: - | DL4: - | DM4: - | DN4: - | DO4: - | DP4: - | DQ4: - | DR4: - | DS4: - | DT4: - | DU4: - | DV4: - | DW4: - | DX4: - | DY4: - | DZ4: - | EA4: - | EB4: - | EC4: =IF(EC2="-","-",IF(EC5=1,EB4+1,EB4)) -> - | ED4: - | EE4: - | EF4: - | EG4: - | EH4: - | EI4: - | EJ4: - | EK4: - | EL4: - | EM4: - | EN4: - | EO4: - | EP4: - | EQ4: - | ER4: - | ES4: - | ET4: - | EU4: - | EV4: - | EW4: - | EX4: - | EY4: - | EZ4: - | FA4: - | FB4: - | FC4: - | FD4: - | FE4: - | FF4: - | FG4: - | FH4: - | FI4: - | FJ4: - | FK4: - | FL4: - | FM4: - | FN4: - | FO4: - | FP4: - | FQ4: - | FR4: - | FS4: - | FT4: - | FU4: - | FV4: - | FW4: - | FX4: - | FY4: - | FZ4: - | GA4: - | GB4: - | GC4: - | GD4: - | GE4: - | GF4: - | GG4: - | GH4: - | GI4: - | GJ4: - | GK4: - | GL4: - | GM4: - | GN4: - | GO4: =IF(GO2="-","-",IF(GO5=1,GN4+1,GN4)) -> - | GP4: - | GQ4: - | GR4: - | GS4: - | GT4: - | GU4: - | GV4: - | GW4: - | GX4: - | GY4: - | GZ4: - | HA4: - | HB4: - | HC4: - | HD4: - | HE4: - | HF4: - | HG4: - | HH4: - | HI4: - | HJ4: - | HK4: - | HL4: - | HM4: - | HN4: - | HO4: - | HP4: - | HQ4: - | HR4: - | HS4: - | HT4: - | HU4: - | HV4: - | HW4: - | HX4: - | HY4: - | HZ4: - | IA4: - | IB4: - | IC4: - | ID4: - | IE4: - | IF4: - | IG4: - | IH4: - | II4: - | IJ4: - | IK4: - | IL4: - | IM4: - | IN4: - | IO4: - | IP4: - | IQ4: - | IR4: - | IS4: - | IT4: - | IU4: - | IV4: - | IW4: - | IX4: - | IY4: - | IZ4: - | JA4: =IF(JA2="-","-",IF(JA5=1,IZ4+1,IZ4)) -> - | JB4: - | JC4: - | JD4: - | JE4: - | JF4: - | JG4: - | JH4: - | JI4: - | JJ4: - | JK4: - | JL4: - | JM4: - | JN4: - | JO4: - | JP4: - | JQ4: - | JR4: - | JS4: - | JT4: - | JU4: - | JV4: - | JW4: - | JX4: - | JY4: - | JZ4: - | KA4: - | KB4: - | KC4: - | KD4: - | KE4: - | KF4: - | KG4: - | KH4: - | KI4: - | KJ4: - | KK4: - | KL4: - | KM4: - | KN4: - | KO4: - | KP4: - | KQ4: - | KR4: - | KS4: - | KT4: - | KU4: - | KV4: - | KW4: - | KX4: - | KY4: - | KZ4: - | LA4: - | LB4: - | LC4: - | LD4: - | LE4: - | LF4: - | LG4: - | LH4: - | LI4: - | LJ4: - | LK4: - | LL4: - | LM4: =IF(LM2="-","-",IF(LM5=1,LL4+1,LL4)) -> - | LN4: - | LO4: - | LP4: - | LQ4: - | LR4: - | LS4: - | LT4: - | LU4: - | LV4: - | LW4: - | LX4: - | LY4: - | LZ4: - | MA4: - | MB4: - | MC4: - | MD4: - | ME4: - | MF4: - | MG4: - | MH4: - | MI4: - | MJ4: - | MK4: - | ML4: - | MM4: - | MN4: - | MO4: - | MP4: - | MQ4: - | MR4: - | MS4: - | MT4: - | MU4: - | MV4: - | MW4: - | MX4: - | MY4: - | MZ4: - | NA4: - | NB4: - | NC4: - | ND4: - | NE4: - | NF4: - | NG4: - | NH4: - | NI4: - | NJ4: - | NK4: - | NL4: - | NM4: - | NN4: - | NO4: - | NP4: - | NQ4: - | NR4: - | NS4: - | NT4: - | NU4: - | NV4: - | NW4: - | NX4: - | NY4: =IF(NY2="-","-",IF(NY5=1,NX4+1,NX4)) -> - | NZ4: - | OA4: - | OB4: - | OC4: - | OD4: - | OE4: - | OF4: - | OG4: - | OH4: - | OI4: - | OJ4: - | OK4: - | OL4: - | OM4: - | ON4: - | OO4: - | OP4: - | OQ4: - | OR4: - | OS4: - | OT4: - | OU4: - | OV4: - | OW4: - | OX4: - | OY4: - | OZ4: - | PA4: - | PB4: - | PC4: - | PD4: - | PE4: - | PF4: - | PG4: - | PH4: - | PI4: - | PJ4: - | PK4: - | PL4: - | PM4: - | PN4: - | PO4: - | PP4: - | PQ4: - | PR4: - | PS4: - | PT4: - | PU4: - | PV4: - | PW4: - | PX4: - | PY4: - | PZ4: - | QA4: - | QB4: - | QC4: - | QD4: - | QE4: - | QF4: - | QG4: - | QH4: - | QI4: - | QJ4: - | QK4: =IF(QK2="-","-",IF(QK5=1,QJ4+1,QJ4)) -> - | QL4: - | QM4: - | QN4: - | QO4: - | QP4: - | QQ4: - | QR4: - | QS4: - | QT4: - | QU4: - | QV4: - | QW4: - | QX4: - | QY4: - | QZ4: - | RA4: - | RB4: - | RC4: - | RD4: - | RE4: - | RF4: - | RG4: - | RH4: - | RI4: - | RJ4: - | RK4: - | RL4: - | RM4: - | RN4: - | RO4: - | RP4: - | RQ4: - | RR4: - | RS4: - | RT4: - | RU4: - | RV4: - | RW4: - | RX4: - | RY4: - | RZ4: - | SA4: - | SB4: - | SC4: - | SD4: - | SE4: - | SF4: - | SG4: - | SH4: - | SI4: - | SJ4: - | SK4: - | SL4: - | SM4: - | SN4: - | SO4: - | SP4: - | SQ4: - | SR4: - | SS4: - | ST4: - | SU4: - | SV4: - | SW4: =IF(SW2="-","-",IF(SW5=1,SV4+1,SV4)) -> - | SX4: - | SY4: - | SZ4: - | TA4: - | TB4: - | TC4: - | TD4: - | TE4: - | TF4: - | TG4: - | TH4: - | TI4: - | TJ4: - | TK4: - | TL4: - | TM4: - | TN4: - | TO4: - | TP4: - | TQ4: - | TR4: - | TS4: - | TT4: - | TU4: - | TV4: - | TW4: - | TX4: - | TY4: - | TZ4: - | UA4: - | UB4: - | UC4: - | UD4: - | UE4: - | UF4: - | UG4: - | UH4: - | UI4: - | UJ4: - | UK4: - | UL4: - | UM4: - | UN4: - | UO4: - | UP4: - | UQ4: - | UR4: - | US4: - | UT4: - | UU4: - | UV4: - | UW4: - | UX4: - | UY4: - | UZ4: - | VA4: - | VB4: - | VC4: - | VD4: - | VE4: - | VF4: - | VG4: - | VH4: - | VI4: =IF(VI2="-","-",IF(VI5=1,VH4+1,VH4)) -> - | VJ4: - | VK4: - | VL4: - | VM4: - | VN4: - | VO4: - | VP4: - | VQ4: - | VR4: - | VS4: - | VT4: - | VU4: - | VV4: - | VW4: - | VX4: - | VY4: - | VZ4: - | WA4: - | WB4: - | WC4: - | WD4: -
B5: PERÍODO DO ANO | C5: 1 | D5: 1 | E5: 1 | F5: 1 | G5: 1 | H5: 1 | I5: 1 | J5: 1 | K5: 1 | L5: 1 | M5: 1 | N5: 1 | O5: 1 | P5: 1 | Q5: 1 | R5: 1 | S5: 1 | T5: 1 | U5: 1 | V5: 1 | W5: 1 | X5: 1 | Y5: 1 | Z5: 1 | AA5: 1 | AB5: 1 | AC5: 1 | AD5: 1 | AE5: 1 | AF5: 1 | AG5: 1 | AH5: 1 | AI5: 1 | AJ5: 1 | AK5: 1 | AL5: 1 | AM5: 1 | AN5: 1 | AO5: 1 | AP5: 1 | AQ5: 1 | AR5: 1 | AS5: 1 | AT5: 1 | AU5: 1 | AV5: 1 | AW5: 1 | AX5: 1 | AY5: 1 | AZ5: 1 | BA5: 1 | BB5: 1 | BC5: 1 | BD5: 1 | BE5: 1 | BF5: 1 | BG5: 1 | BH5: 1 | BI5: 1 | BJ5: 1 | BK5: 1 | BL5: 1 | BM5: 1 | BN5: 1 | BO5: 1 | BP5: 1 | BQ5: 1 | BR5: 1 | BS5: 1 | BT5: 1 | BU5: 1 | BV5: 1 | BW5: 1 | BX5: 1 | BY5: 1 | BZ5: 1 | CA5: 1 | CB5: 1 | CC5: 1 | CD5: 1 | CE5: 1 | CF5: 1 | CG5: 1 | CH5: 1 | CI5: 1 | CJ5: 1 | CK5: 1 | CL5: 1 | CM5: 1 | CN5: 1 | CO5: 1 | CP5: 1 | CQ5: 1 | CR5: 1 | CS5: 1 | CT5: 1 | CU5: 1 | CV5: 1 | CW5: 1 | CX5: 1 | CY5: 1 | CZ5: 1 | DA5: 1 | DB5: 1 | DC5: 1 | DD5: 1 | DE5: 1 | DF5: 1 | DG5: 1 | DH5: 1 | DI5: 1 | DJ5: 1 | DK5: 1 | DL5: 1 | DM5: 1 | DN5: 1 | DO5: 1 | DP5: 1 | DQ5: 1 | DR5: 1 | DS5: 1 | DT5: 1 | DU5: 1 | DV5: 1 | DW5: 1 | DX5: 1 | DY5: 1 | DZ5: 1 | EA5: 1 | EB5: 1 | EC5: 1 | ED5: 1 | EE5: 1 | EF5: 1 | EG5: 1 | EH5: 1 | EI5: 1 | EJ5: 1 | EK5: 1 | EL5: 1 | EM5: 1 | EN5: 1 | EO5: 1 | EP5: 1 | EQ5: 1 | ER5: 1 | ES5: 1 | ET5: 1 | EU5: 1 | EV5: 1 | EW5: 1 | EX5: 1 | EY5: 1 | EZ5: 1 | FA5: 1 | FB5: 1 | FC5: 1 | FD5: 1 | FE5: 1 | FF5: 1 | FG5: 1 | FH5: 1 | FI5: 1 | FJ5: 1 | FK5: 1 | FL5: 1 | FM5: 1 | FN5: 1 | FO5: 1 | FP5: 1 | FQ5: 1 | FR5: 1 | FS5: 1 | FT5: 1 | FU5: 1 | FV5: 1 | FW5: 1 | FX5: 1 | FY5: 1 | FZ5: 1 | GA5: 1 | GB5: 1 | GC5: 1 | GD5: 1 | GE5: 1 | GF5: 1 | GG5: 1 | GH5: 1 | GI5: 1 | GJ5: 1 | GK5: 1 | GL5: 1 | GM5: 1 | GN5: 1 | GO5: 1 | GP5: 1 | GQ5: 1 | GR5: 1 | GS5: 1 | GT5: 1 | GU5: 1 | GV5: 1 | GW5: 1 | GX5: 1 | GY5: 1 | GZ5: 1 | HA5: 1 | HB5: 1 | HC5: 1 | HD5: 1 | HE5: 1 | HF5: 1 | HG5: 1 | HH5: 1 | HI5: 1 | HJ5: 1 | HK5: 1 | HL5: 1 | HM5: 1 | HN5: 1 | HO5: 1 | HP5: 1 | HQ5: 1 | HR5: 1 | HS5: 1 | HT5: 1 | HU5: 1 | HV5: 1 | HW5: 1 | HX5: 1 | HY5: 1 | HZ5: 1 | IA5: 1 | IB5: 1 | IC5: 1 | ID5: 1 | IE5: 1 | IF5: 1 | IG5: 1 | IH5: 1 | II5: 1 | IJ5: 1 | IK5: 1 | IL5: 1 | IM5: 1 | IN5: 1 | IO5: 1 | IP5: 1 | IQ5: 1 | IR5: 1 | IS5: 1 | IT5: 1 | IU5: 1 | IV5: 1 | IW5: 1 | IX5: 1 | IY5: 1 | IZ5: 1 | JA5: 1 | JB5: 1 | JC5: 1 | JD5: 1 | JE5: 1 | JF5: 1 | JG5: 1 | JH5: 1 | JI5: 1 | JJ5: 1 | JK5: 1 | JL5: 1 | JM5: 1 | JN5: 1 | JO5: 1 | JP5: 1 | JQ5: 1 | JR5: 1 | JS5: 1 | JT5: 1 | JU5: 1 | JV5: 1 | JW5: 1 | JX5: 1 | JY5: 1 | JZ5: 1 | KA5: 1 | KB5: 1 | KC5: 1 | KD5: 1 | KE5: 1 | KF5: 1 | KG5: 1 | KH5: 1 | KI5: 1 | KJ5: 1 | KK5: 1 | KL5: 1 | KM5: 1 | KN5: 1 | KO5: 1 | KP5: 1 | KQ5: 1 | KR5: 1 | KS5: 1 | KT5: 1 | KU5: 1 | KV5: 1 | KW5: 1 | KX5: 1 | KY5: 1 | KZ5: 1 | LA5: 1 | LB5: 1 | LC5: 1 | LD5: 1 | LE5: 1 | LF5: 1 | LG5: 1 | LH5: 1 | LI5: 1 | LJ5: 1 | LK5: 1 | LL5: 1 | LM5: 1 | LN5: 1 | LO5: 1 | LP5: 1 | LQ5: 1 | LR5: 1 | LS5: 1 | LT5: 1 | LU5: 1 | LV5: 1 | LW5: 1 | LX5: 1 | LY5: 1 | LZ5: 1 | MA5: 1 | MB5: 1 | MC5: 1 | MD5: 1 | ME5: 1 | MF5: 1 | MG5: 1 | MH5: 1 | MI5: 1 | MJ5: 1 | MK5: 1 | ML5: 1 | MM5: 1 | MN5: 1 | MO5: 1 | MP5: 1 | MQ5: 1 | MR5: 1 | MS5: 1 | MT5: 1 | MU5: 1 | MV5: 1 | MW5: 1 | MX5: 1 | MY5: 1 | MZ5: 1 | NA5: 1 | NB5: 1 | NC5: 1 | ND5: 1 | NE5: 1 | NF5: 1 | NG5: 1 | NH5: 1 | NI5: 1 | NJ5: 1 | NK5: 1 | NL5: 1 | NM5: 1 | NN5: 1 | NO5: 1 | NP5: 1 | NQ5: 1 | NR5: 1 | NS5: 1 | NT5: 1 | NU5: 1 | NV5: 1 | NW5: 1 | NX5: 1 | NY5: 1 | NZ5: 1 | OA5: 1 | OB5: 1 | OC5: 1 | OD5: 1 | OE5: 1 | OF5: 1 | OG5: 1 | OH5: 1 | OI5: 1 | OJ5: 1 | OK5: 1 | OL5: 1 | OM5: 1 | ON5: 1 | OO5: 1 | OP5: 1 | OQ5: 1 | OR5: 1 | OS5: 1 | OT5: 1 | OU5: 1 | OV5: 1 | OW5: 1 | OX5: 1 | OY5: 1 | OZ5: 1 | PA5: 1 | PB5: 1 | PC5: 1 | PD5: 1 | PE5: 1 | PF5: 1 | PG5: 1 | PH5: 1 | PI5: 1 | PJ5: 1 | PK5: 1 | PL5: 1 | PM5: 1 | PN5: 1 | PO5: 1 | PP5: 1 | PQ5: 1 | PR5: 1 | PS5: 1 | PT5: 1 | PU5: 1 | PV5: 1 | PW5: 1 | PX5: 1 | PY5: 1 | PZ5: 1 | QA5: 1 | QB5: 1 | QC5: 1 | QD5: 1 | QE5: 1 | QF5: 1 | QG5: 1 | QH5: 1 | QI5: 1 | QJ5: 1 | QK5: 1 | QL5: 1 | QM5: 1 | QN5: 1 | QO5: 1 | QP5: 1 | QQ5: 1 | QR5: 1 | QS5: 1 | QT5: 1 | QU5: 1 | QV5: 1 | QW5: 1 | QX5: 1 | QY5: 1 | QZ5: 1 | RA5: 1 | RB5: 1 | RC5: 1 | RD5: 1 | RE5: 1 | RF5: 1 | RG5: 1 | RH5: 1 | RI5: 1 | RJ5: 1 | RK5: 1 | RL5: 1 | RM5: 1 | RN5: 1 | RO5: 1 | RP5: 1 | RQ5: 1 | RR5: 1 | RS5: 1 | RT5: 1 | RU5: 1 | RV5: 1 | RW5: 1 | RX5: 1 | RY5: 1 | RZ5: 1 | SA5: 1 | SB5: 1 | SC5: 1 | SD5: 1 | SE5: 1 | SF5: 1 | SG5: 1 | SH5: 1 | SI5: 1 | SJ5: 1 | SK5: 1 | SL5: 1 | SM5: 1 | SN5: 1 | SO5: 1 | SP5: 1 | SQ5: 1 | SR5: 1 | SS5: 1 | ST5: 1 | SU5: 1 | SV5: 1 | SW5: 1 | SX5: 1 | SY5: 1 | SZ5: 1 | TA5: 1 | TB5: 1 | TC5: 1 | TD5: 1 | TE5: 1 | TF5: 1 | TG5: 1 | TH5: 1 | TI5: 1 | TJ5: 1 | TK5: 1 | TL5: 1 | TM5: 1 | TN5: 1 | TO5: 1 | TP5: 1 | TQ5: 1 | TR5: 1 | TS5: 1 | TT5: 1 | TU5: 1 | TV5: 1 | TW5: 1 | TX5: 1 | TY5: 1 | TZ5: 1 | UA5: 1 | UB5: 1 | UC5: 1 | UD5: 1 | UE5: 1 | UF5: 1 | UG5: 1 | UH5: 1 | UI5: 1 | UJ5: 1 | UK5: 1 | UL5: 1 | UM5: 1 | UN5: 1 | UO5: 1 | UP5: 1 | UQ5: 1 | UR5: 1 | US5: 1 | UT5: 1 | UU5: 1 | UV5: 1 | UW5: 1 | UX5: 1 | UY5: 1 | UZ5: 1 | VA5: 1 | VB5: 1 | VC5: 1 | VD5: 1 | VE5: 1 | VF5: 1 | VG5: 1 | VH5: 1 | VI5: 1 | VJ5: 1 | VK5: 1 | VL5: 1 | VM5: 1 | VN5: 1 | VO5: 1 | VP5: 1 | VQ5: 1 | VR5: 1 | VS5: 1 | VT5: 1 | VU5: 1 | VV5: 1 | VW5: 1 | VX5: 1 | VY5: 1 | VZ5: 1 | WA5: 1 | WB5: 1 | WC5: 1 | WD5: 1
B7: Premissas Operacionais, Capex e Opex
B9: Nome do Ativo
B10: Escoamento
B12: Investimento Inicial
B13: Base de Ativos (BA) (US$ mi) | C13: 1
B14: Fator de localização dos custos | C14: 1.5
B16: Opex
B17: Opex Fixo (US$ mi) | C17: 0 | D17: 0 | E17: 0 | F17: 0 | G17: 0 | H17: 0 | I17: 0 | J17: 0 | K17: 0 | L17: 0 | M17: 0 | N17: 0 | O17: 0 | P17: 0 | Q17: 0 | R17: 0 | S17: 0 | T17: 0 | U17: 0 | V17: 0 | W17: 0 | X17: 0 | Y17: 0 | Z17: 0 | AA17: 0 | AB17: 0 | AC17: 0 | AD17: 0 | AE17: 0 | AF17: 0 | AG17: 0 | AH17: 0 | AI17: 0 | AJ17: 0 | AK17: 0 | AL17: 0 | AM17: 0 | AN17: 0 | AO17: 0 | AP17: 0 | AQ17: 0 | AR17: 0 | AS17: 0 | AT17: 0 | AU17: 0 | AV17: 0 | AW17: 0 | AX17: 0 | AY17: 0 | AZ17: 0 | BA17: 0 | BB17: 0 | BC17: 0 | BD17: 0 | BE17: 0 | BF17: 0 | BG17: 0 | BH17: 0 | BI17: 0 | BJ17: 0 | BK17: 0 | BL17: 0 | BM17: 0 | BN17: 0 | BO17: 0 | BP17: 0 | BQ17: 0 | BR17: 0 | BS17: 0 | BT17: 0 | BU17: 0 | BV17: 0 | BW17: 0 | BX17: 0 | BY17: 0 | BZ17: 0 | CA17: 0 | CB17: 0 | CC17: 0 | CD17: 0 | CE17: 0 | CF17: 0 | CG17: 0 | CH17: 0 | CI17: 0
B18: Opex Variável (US$ mi) | C18: 0 | D18: 0 | E18: 0 | F18: 0 | G18: 0 | H18: 0 | I18: 0 | J18: 0 | K18: 0 | L18: 0 | M18: 0 | N18: 0 | O18: 0 | P18: 0 | Q18: 0 | R18: 0 | S18: 0 | T18: 0 | U18: 0 | V18: 0 | W18: 0 | X18: 0 | Y18: 0 | Z18: 0 | AA18: 0 | AB18: 0 | AC18: 0 | AD18: 0 | AE18: 0 | AF18: 0 | AG18: 0 | AH18: 0 | AI18: 0 | AJ18: 0 | AK18: 0 | AL18: 0 | AM18: 0 | AN18: 0 | AO18: 0 | AP18: 0 | AQ18: 0 | AR18: 0 | AS18: 0 | AT18: 0 | AU18: 0 | AV18: 0 | AW18: 0 | AX18: 0 | AY18: 0 | AZ18: 0 | BA18: 0 | BB18: 0 | BC18: 0 | BD18: 0 | BE18: 0 | BF18: 0 | BG18: 0 | BH18: 0 | BI18: 0 | BJ18: 0 | BK18: 0 | BL18: 0 | BM18: 0 | BN18: 0 | BO18: 0 | BP18: 0 | BQ18: 0 | BR18: 0 | BS18: 0 | BT18: 0 | BU18: 0 | BV18: 0 | BW18: 0 | BX18: 0 | BY18: 0 | BZ18: 0 | CA18: 0 | CB18: 0 | CC18: 0 | CD18: 0 | CE18: 0 | CF18: 0 | CG18: 0 | CH18: 0 | CI18: 0
B20: Capacidade
B21: Capacidade (Mm3/dia) | C21: 1 | D21: 1 | E21: 1 | F21: 1 | G21: 1 | H21: 1 | I21: 1 | J21: 1 | K21: 1 | L21: 1 | M21: 1 | N21: 1 | O21: 1 | P21: 1 | Q21: 1 | R21: 1 | S21: 1 | T21: 1 | U21: 1 | V21: 1 | W21: 1 | X21: 1 | Y21: 1 | Z21: 1 | AA21: 1 | AB21: 1 | AC21: 1 | AD21: 1 | AE21: 1 | AF21: 1 | AG21: 1 | AH21: 1 | AI21: 1 | AJ21: 1 | AK21: 1 | AL21: 1 | AM21: 1 | AN21: 1 | AO21: 1 | AP21: 1 | AQ21: 1 | AR21: 1 | AS21: 1 | AT21: 1 | AU21: 1 | AV21: 1 | AW21: 1 | AX21: 1 | AY21: 1 | AZ21: 1 | BA21: 1 | BB21: 1 | BC21: 1 | BD21: 1 | BE21: 1 | BF21: 1 | BG21: 1 | BH21: 1 | BI21: 1 | BJ21: 1 | BK21: 1 | BL21: 1 | BM21: 1 | BN21: 1 | BO21: 1 | BP21: 1 | BQ21: 1 | BR21: 1 | BS21: 1 | BT21: 1 | BU21: 1 | BV21: 1 | BW21: 1 | BX21: 1 | BY21: 1 | BZ21: 1 | CA21: 1 | CB21: 1 | CC21: 1 | CD21: 1 | CE21: 1 | CF21: 1 | CG21: 1 | CH21: 1 | CI21: 1
B23: Prazos Operação
B24: Vida Útil de Operação (anos) | C24: 30
B25: Ano Base da BRA (anos) | C25: 1
B26: Vida Útil de Operação + Ano Base (anos) | C26: =C24+C25 -> 31

Sheet Premissas
B1: =Inputs!B10 -> Escoamento | F1: Input | G1: Fórmulas | H1: Sensibilidade
B2: Fase (C = Construção; O = Operação) | C2: =IF(C3<=Premissas!$C$60,"C",IF(C3="-","-","O")) -> C | D2: =IF(D3<=Premissas!$C$60,"C",IF(D3="-","-","O")) -> O | E2: =IF(E3<=Premissas!$C$60,"C",IF(E3="-","-","O")) -> O | F2: =IF(F3<=Premissas!$C$60,"C",IF(F3="-","-","O")) -> O | G2: =IF(G3<=Premissas!$C$60,"C",IF(G3="-","-","O")) -> O | H2: =IF(H3<=Premissas!$C$60,"C",IF(H3="-","-","O")) -> O | I2: =IF(I3<=Premissas!$C$60,"C",IF(I3="-","-","O")) -> O | J2: =IF(J3<=Premissas!$C$60,"C",IF(J3="-","-","O")) -> O | K2: =IF(K3<=Premissas!$C$60,"C",IF(K3="-","-","O")) -> O | L2: =IF(L3<=Premissas!$C$60,"C",IF(L3="-","-","O")) -> O | M2: =IF(M3<=Premissas!$C$60,"C",IF(M3="-","-","O")) -> O | N2: =IF(N3<=Premissas!$C$60,"C",IF(N3="-","-","O")) -> O | O2: =IF(O3<=Premissas!$C$60,"C",IF(O3="-","-","O")) -> O | P2: =IF(P3<=Premissas!$C$60,"C",IF(P3="-","-","O")) -> O | Q2: =IF(Q3<=Premissas!$C$60,"C",IF(Q3="-","-","O")) -> O | R2: =IF(R3<=Premissas!$C$60,"C",IF(R3="-","-","O")) -> O | S2: =IF(S3<=Premissas!$C$60,"C",IF(S3="-","-","O")) -> O | T2: =IF(T3<=Premissas!$C$60,"C",IF(T3="-","-","O")) -> O | U2: =IF(U3<=Premissas!$C$60,"C",IF(U3="-","-","O")) -> O | V2: =IF(V3<=Premissas!$C$60,"C",IF(V3="-","-","O")) -> O | W2: =IF(W3<=Premissas!$C$60,"C",IF(W3="-","-","O")) -> O | X2: =IF(X3<=Premissas!$C$60,"C",IF(X3="-","-","O")) -> O | Y2: =IF(Y3<=Premissas!$C$60,"C",IF(Y3="-","-","O")) -> O | Z2: =IF(Z3<=Premissas!$C$60,"C",IF(Z3="-","-","O")) -> O | AA2: =IF(AA3<=Premissas!$C$60,"C",IF(AA3="-","-","O")) -> O | AB2: =IF(AB3<=Premissas!$C$60,"C",IF(AB3="-","-","O")) -> O | AC2: =IF(AC3<=Premissas!$C$60,"C",IF(AC3="-","-","O")) -> O | AD2: =IF(AD3<=Premissas!$C$60,"C",IF(AD3="-","-","O")) -> O | AE2: =IF(AE3<=Premissas!$C$60,"C",IF(AE3="-","-","O")) -> O | AF2: =IF(AF3<=Premissas!$C$60,"C",IF(AF3="-","-","O")) -> O | AG2: =IF(AG3<=Premissas!$C$60,"C",IF(AG3="-","-","O")) -> O | AH2: =IF(AH3<=Premissas!$C$60,"C",IF(AH3="-","-","O")) -> - | AI2: =IF(AI3<=Premissas!$C$60,"C",IF(AI3="-","-","O")) -> - | AJ2: =IF(AJ3<=Premissas!$C$60,"C",IF(AJ3="-","-","O")) -> - | AK2: =IF(AK3<=Premissas!$C$60,"C",IF(AK3="-","-","O")) -> - | AL2: =IF(AL3<=Premissas!$C$60,"C",IF(AL3="-","-","O")) -> - | AM2: =IF(AM3<=Premissas!$C$60,"C",IF(AM3="-","-","O")) -> - | AN2: =IF(AN3<=Premissas!$C$60,"C",IF(AN3="-","-","O")) -> - | AO2: =IF(AO3<=Premissas!$C$60,"C",IF(AO3="-","-","O")) -> - | AP2: =IF(AP3<=Premissas!$C$60,"C",IF(AP3="-","-","O")) -> - | AQ2: =IF(AQ3<=Premissas!$C$60,"C",IF(AQ3="-","-","O")) -> - | AR2: =IF(AR3<=Premissas!$C$60,"C",IF(AR3="-","-","O")) -> - | AS2: =IF(AS3<=Premissas!$C$60,"C",IF(AS3="-","-","O")) -> - | AT2: =IF(AT3<=Premissas!$C$60,"C",IF(AT3="-","-","O")) -> - | AU2: =IF(AU3<=Premissas!$C$60,"C",IF(AU3="-","-","O")) -> - | AV2: =IF(AV3<=Premissas!$C$60,"C",IF(AV3="-","-","O")) -> - | AW2: =IF(AW3<=Premissas!$C$60,"C",IF(AW3="-","-","O")) -> - | AX2: =IF(AX3<=Premissas!$C$60,"C",IF(AX3="-","-","O")) -> - | AY2: =IF(AY3<=Premissas!$C$60,"C",IF(AY3="-","-","O")) -> - | AZ2: =IF(AZ3<=Premissas!$C$60,"C",IF(AZ3="-","-","O")) -> - | BA2: =IF(BA3<=Premissas!$C$60,"C",IF(BA3="-","-","O")) -> - | BB2: =IF(BB3<=Premissas!$C$60,"C",IF(BB3="-","-","O")) -> - | BC2: =IF(BC3<=Premissas!$C$60,"C",IF(BC3="-","-","O")) -> - | BD2: =IF(BD3<=Premissas!$C$60,"C",IF(BD3="-","-","O")) -> - | BE2: =IF(BE3<=Premissas!$C$60,"C",IF(BE3="-","-","O")) -> - | BF2: =IF(BF3<=Premissas!$C$60,"C",IF(BF3="-","-","O")) -> - | BG2: =IF(BG3<=Premissas!$C$60,"C",IF(BG3="-","-","O")) -> - | BH2: =IF(BH3<=Premissas!$C$60,"C",IF(BH3="-","-","O")) -> - | BI2: =IF(BI3<=Premissas!$C$60,"C",IF(BI3="-","-","O")) -> - | BJ2: =IF(BJ3<=Premissas!$C$60,"C",IF(BJ3="-","-","O")) -> - | BK2: =IF(BK3<=Premissas!$C$60,"C",IF(BK3="-","-","O")) -> - | BL2: =IF(BL3<=Premissas!$C$60,"C",IF(BL3="-","-","O")) -> - | BM2: =IF(BM3<=Premissas!$C$60,"C",IF(BM3="-","-","O")) -> - | BN2: =IF(BN3<=Premissas!$C$60,"C",IF(BN3="-","-","O")) -> - | BO2: =IF(BO3<=Premissas!$C$60,"C",IF(BO3="-","-","O")) -> - | BP2: =IF(BP3<=Premissas!$C$60,"C",IF(BP3="-","-","O")) -> - | BQ2: =IF(BQ3<=Premissas!$C$60,"C",IF(BQ3="-","-","O")) -> - | BR2: =IF(BR3<=Premissas!$C$60,"C",IF(BR3="-","-","O")) -> - | BS2: =IF(BS3<=Premissas!$C$60,"C",IF(BS3="-","-","O")) -> - | BT2: =IF(BT3<=Premissas!$C$60,"C",IF(BT3="-","-","O")) -> - | BU2: =IF(BU3<=Premissas!$C$60,"C",IF(BU3="-","-","O")) -> - | BV2: =IF(BV3<=Premissas!$C$60,"C",IF(BV3="-","-","O")) -> - | BW2: =IF(BW3<=Premissas!$C$60,"C",IF(BW3="-","-","O")) -> - | BX2: =IF(BX3<=Premissas!$C$60,"C",IF(BX3="-","-","O")) -> - | BY2: =IF(BY3<=Premissas!$C$60,"C",IF(BY3="-","-","O")) -> - | BZ2: =IF(BZ3<=Premissas!$C$60,"C",IF(BZ3="-","-","O")) -> - | CA2: =IF(CA3<=Premissas!$C$60,"C",IF(CA3="-","-","O")) -> - | CB2: =IF(CB3<=Premissas!$C$60,"C",IF(CB3="-","-","O")) -> - | CC2: =IF(CC3<=Premissas!$C$60,"C",IF(CC3="-","-","O")) -> - | CD2: =IF(CD3<=Premissas!$C$60,"C",IF(CD3="-","-","O")) -> - | CE2: =IF(CE3<=Premissas!$C$60,"C",IF(CE3="-","-","O")) -> - | CF2: =IF(CF3<=Premissas!$C$60,"C",IF(CF3="-","-","O")) -> - | CG2: =IF(CG3<=Premissas!$C$60,"C",IF(CG3="-","-","O")) -> - | CH2: =IF(CH3<=Premissas!$C$60,"C",IF(CH3="-","-","O")) -> - | CI2: =IF(CI3<=Premissas!$C$60,"C",IF(CI3="-","-","O")) -> - | CJ2: =IF(CJ3<=Premissas!$C$60,"C",IF(CJ3="-","-","O")) -> - | CK2: =IF(CK3<=Premissas!$C$60,"C",IF(CK3="-","-","O")) -> - | CL2: =IF(CL3<=Premissas!$C$60,"C",IF(CL3="-","-","O")) -> - | CM2: =IF(CM3<=Premissas!$C$60,"C",IF(CM3="-","-","O")) -> - | CN2: =IF(CN3<=Premissas!$C$60,"C",IF(CN3="-","-","O")) -> - | CO2: =IF(CO3<=Premissas!$C$60,"C",IF(CO3="-","-","O")) -> - | CP2: =IF(CP3<=Premissas!$C$60,"C",IF(CP3="-","-","O")) -> - | CQ2: =IF(CQ3<=Premissas!$C$60,"C",IF(CQ3="-","-","O")) -> - | CR2: =IF(CR3<=Premissas!$C$60,"C",IF(CR3="-","-","O")) -> - | CS2: =IF(CS3<=Premissas!$C$60,"C",IF(CS3="-","-","O")) -> - | CT2: =IF(CT3<=Premissas!$C$60,"C",IF(CT3="-","-","O")) -> - | CU2: =IF(CU3<=Premissas!$C$60,"C",IF(CU3="-","-","O")) -> - | CV2: =IF(CV3<=Premissas!$C$60,"C",IF(CV3="-","-","O")) -> - | CW2: =IF(CW3<=Premissas!$C$60,"C",IF(CW3="-","-","O")) -> - | CX2: =IF(CX3<=Premissas!$C$60,"C",IF(CX3="-","-","O")) -> - | CY2: =IF(CY3<=Premissas!$C$60,"C",IF(CY3="-","-","O")) -> - | CZ2: =IF(CZ3<=Premissas!$C$60,"C",IF(CZ3="-","-","O")) -> - | DA2: =IF(DA3<=Premissas!$C$60,"C",IF(DA3="-","-","O")) -> - | DB2: =IF(DB3<=Premissas!$C$60,"C",IF(DB3="-","-","O")) -> - | DC2: =IF(DC3<=Premissas!$C$60,"C",IF(DC3="-","-","O")) -> - | DD2: =IF(DD3<=Premissas!$C$60,"C",IF(DD3="-","-","O")) -> - | DE2: =IF(DE3<=Premissas!$C$60,"C",IF(DE3="-","-","O")) -> - | DF2: =IF(DF3<=Premissas!$C$60,"C",IF(DF3="-","-","O")) -> - | DG2: =IF(DG3<=Premissas!$C$60,"C",IF(DG3="-","-","O")) -> - | DH2: =IF(DH3<=Premissas!$C$60,"C",IF(DH3="-","-","O")) -> - | DI2: =IF(DI3<=Premissas!$C$60,"C",IF(DI3="-","-","O")) -> - | DJ2: =IF(DJ3<=Premissas!$C$60,"C",IF(DJ3="-","-","O")) -> - | DK2: =IF(DK3<=Premissas!$C$60,"C",IF(DK3="-","-","O")) -> - | DL2: =IF(DL3<=Premissas!$C$60,"C",IF(DL3="-","-","O")) -> - | DM2: =IF(DM3<=Premissas!$C$60,"C",IF(DM3="-","-","O")) -> - | DN2: =IF(DN3<=Premissas!$C$60,"C",IF(DN3="-","-","O")) -> - | DO2: =IF(DO3<=Premissas!$C$60,"C",IF(DO3="-","-","O")) -> - | DP2: =IF(DP3<=Premissas!$C$60,"C",IF(DP3="-","-","O")) -> - | DQ2: =IF(DQ3<=Premissas!$C$60,"C",IF(DQ3="-","-","O")) -> - | DR2: =IF(DR3<=Premissas!$C$60,"C",IF(DR3="-","-","O")) -> - | DS2: =IF(DS3<=Premissas!$C$60,"C",IF(DS3="-","-","O")) -> - | DT2: =IF(DT3<=Premissas!$C$60,"C",IF(DT3="-","-","O")) -> - | DU2: =IF(DU3<=Premissas!$C$60,"C",IF(DU3="-","-","O")) -> - | DV2: =IF(DV3<=Premissas!$C$60,"C",IF(DV3="-","-","O")) -> - | DW2: =IF(DW3<=Premissas!$C$60,"C",IF(DW3="-","-","O")) -> - | DX2: =IF(DX3<=Premissas!$C$60,"C",IF(DX3="-","-","O")) -> - | DY2: =IF(DY3<=Premissas!$C$60,"C",IF(DY3="-","-","O")) -> - | DZ2: =IF(DZ3<=Premissas!$C$60,"C",IF(DZ3="-","-","O")) -> - | EA2: =IF(EA3<=Premissas!$C$60,"C",IF(EA3="-","-","O")) -> - | EB2: =IF(EB3<=Premissas!$C$60,"C",IF(EB3="-","-","O")) -> - | EC2: =IF(EC3<=Premissas!$C$60,"C",IF(EC3="-","-","O")) -> - | ED2: =IF(ED3<=Premissas!$C$60,"C",IF(ED3="-","-","O")) -> - | EE2: =IF(EE3<=Premissas!$C$60,"C",IF(EE3="-","-","O")) -> - | EF2: =IF(EF3<=Premissas!$C$60,"C",IF(EF3="-","-","O")) -> - | EG2: =IF(EG3<=Premissas!$C$60,"C",IF(EG3="-","-","O")) -> - | EH2: =IF(EH3<=Premissas!$C$60,"C",IF(EH3="-","-","O")) -> - | EI2: =IF(EI3<=Premissas!$C$60,"C",IF(EI3="-","-","O")) -> - | EJ2: =IF(EJ3<=Premissas!$C$60,"C",IF(EJ3="-","-","O")) -> - | EK2: =IF(EK3<=Premissas!$C$60,"C",IF(EK3="-","-","O")) -> - | EL2: =IF(EL3<=Premissas!$C$60,"C",IF(EL3="-","-","O")) -> - | EM2: =IF(EM3<=Premissas!$C$60,"C",IF(EM3="-","-","O")) -> - | EN2: =IF(EN3<=Premissas!$C$60,"C",IF(EN3="-","-","O")) -> - | EO2: =IF(EO3<=Premissas!$C$60,"C",IF(EO3="-","-","O")) -> - | EP2: =IF(EP3<=Premissas!$C$60,"C",IF(EP3="-","-","O")) -> - | EQ2: =IF(EQ3<=Premissas!$C$60,"C",IF(EQ3="-","-","O")) -> - | ER2: =IF(ER3<=Premissas!$C$60,"C",IF(ER3="-","-","O")) -> - | ES2: =IF(ES3<=Premissas!$C$60,"C",IF(ES3="-","-","O")) -> - | ET2: =IF(ET3<=Premissas!$C$60,"C",IF(ET3="-","-","O")) -> - | EU2: =IF(EU3<=Premissas!$C$60,"C",IF(EU3="-","-","O")) -> - | EV2: =IF(EV3<=Premissas!$C$60,"C",IF(EV3="-","-","O")) -> - | EW2: =IF(EW3<=Premissas!$C$60,"C",IF(EW3="-","-","O")) -> - | EX2: =IF(EX3<=Premissas!$C$60,"C",IF(EX3="-","-","O")) -> - | EY2: =IF(EY3<=Premissas!$C$60,"C",IF(EY3="-","-","O")) -> - | EZ2: =IF(EZ3<=Premissas!$C$60,"C",IF(EZ3="-","-","O")) -> - | FA2: =IF(FA3<=Premissas!$C$60,"C",IF(FA3="-","-","O")) -> - | FB2: =IF(FB3<=Premissas!$C$60,"C",IF(FB3="-","-","O")) -> - | FC2: =IF(FC3<=Premissas!$C$60,"C",IF(FC3="-","-","O")) -> - | FD2: =IF(FD3<=Premissas!$C$60,"C",IF(FD3="-","-","O")) -> - | FE2: =IF(FE3<=Premissas!$C$60,"C",IF(FE3="-","-","O")) -> - | FF2: =IF(FF3<=Premissas!$C$60,"C",IF(FF3="-","-","O")) -> - | FG2: =IF(FG3<=Premissas!$C$60,"C",IF(FG3="-","-","O")) -> - | FH2: =IF(FH3<=Premissas!$C$60,"C",IF(FH3="-","-","O")) -> - | FI2: =IF(FI3<=Premissas!$C$60,"C",IF(FI3="-","-","O")) -> - | FJ2: =IF(FJ3<=Premissas!$C$60,"C",IF(FJ3="-","-","O")) -> - | FK2: =IF(FK3<=Premissas!$C$60,"C",IF(FK3="-","-","O")) -> - | FL2: =IF(FL3<=Premissas!$C$60,"C",IF(FL3="-","-","O")) -> - | FM2: =IF(FM3<=Premissas!$C$60,"C",IF(FM3="-","-","O")) -> - | FN2: =IF(FN3<=Premissas!$C$60,"C",IF(FN3="-","-","O")) -> - | FO2: =IF(FO3<=Premissas!$C$60,"C",IF(FO3="-","-","O")) -> - | FP2: =IF(FP3<=Premissas!$C$60,"C",IF(FP3="-","-","O")) -> - | FQ2: =IF(FQ3<=Premissas!$C$60,"C",IF(FQ3="-","-","O")) -> - | FR2: =IF(FR3<=Premissas!$C$60,"C",IF(FR3="-","-","O")) -> - | FS2: =IF(FS3<=Premissas!$C$60,"C",IF(FS3="-","-","O")) -> - | FT2: =IF(FT3<=Premissas!$C$60,"C",IF(FT3="-","-","O")) -> - | FU2: =IF(FU3<=Premissas!$C$60,"C",IF(FU3="-","-","O")) -> - | FV2: =IF(FV3<=Premissas!$C$60,"C",IF(FV3="-","-","O")) -> - | FW2: =IF(FW3<=Premissas!$C$60,"C",IF(FW3="-","-","O")) -> - | FX2: =IF(FX3<=Premissas!$C$60,"C",IF(FX3="-","-","O")) -> - | FY2: =IF(FY3<=Premissas!$C$60,"C",IF(FY3="-","-","O")) -> - | FZ2: =IF(FZ3<=Premissas!$C$60,"C",IF(FZ3="-","-","O")) -> - | GA2: =IF(GA3<=Premissas!$C$60,"C",IF(GA3="-","-","O")) -> - | GB2: =IF(GB3<=Premissas!$C$60,"C",IF(GB3="-","-","O")) -> - | GC2: =IF(GC3<=Premissas!$C$60,"C",IF(GC3="-","-","O")) -> - | GD2: =IF(GD3<=Premissas!$C$60,"C",IF(GD3="-","-","O")) -> - | GE2: =IF(GE3<=Premissas!$C$60,"C",IF(GE3="-","-","O")) -> - | GF2: =IF(GF3<=Premissas!$C$60,"C",IF(GF3="-","-","O")) -> - | GG2: =IF(GG3<=Premissas!$C$60,"C",IF(GG3="-","-","O")) -> - | GH2: =IF(GH3<=Premissas!$C$60,"C",IF(GH3="-","-","O")) -> - | GI2: =IF(GI3<=Premissas!$C$60,"C",IF(GI3="-","-","O")) -> - | GJ2: =IF(GJ3<=Premissas!$C$60,"C",IF(GJ3="-","-","O")) -> - | GK2: =IF(GK3<=Premissas!$C$60,"C",IF(GK3="-","-","O")) -> - | GL2: =IF(GL3<=Premissas!$C$60,"C",IF(GL3="-","-","O")) -> - | GM2: =IF(GM3<=Premissas!$C$60,"C",IF(GM3="-","-","O")) -> - | GN2: =IF(GN3<=Premissas!$C$60,"C",IF(GN3="-","-","O")) -> - | GO2: =IF(GO3<=Premissas!$C$60,"C",IF(GO3="-","-","O")) -> - | GP2: =IF(GP3<=Premissas!$C$60,"C",IF(GP3="-","-","O")) -> - | GQ2: =IF(GQ3<=Premissas!$C$60,"C",IF(GQ3="-","-","O")) -> - | GR2: =IF(GR3<=Premissas!$C$60,"C",IF(GR3="-","-","O")) -> - | GS2: =IF(GS3<=Premissas!$C$60,"C",IF(GS3="-","-","O")) -> - | GT2: =IF(GT3<=Premissas!$C$60,"C",IF(GT3="-","-","O")) -> - | GU2: =IF(GU3<=Premissas!$C$60,"C",IF(GU3="-","-","O")) -> - | GV2: =IF(GV3<=Premissas!$C$60,"C",IF(GV3="-","-","O")) -> - | GW2: =IF(GW3<=Premissas!$C$60,"C",IF(GW3="-","-","O")) -> - | GX2: =IF(GX3<=Premissas!$C$60,"C",IF(GX3="-","-","O")) -> - | GY2: =IF(GY3<=Premissas!$C$60,"C",IF(GY3="-","-","O")) -> - | GZ2: =IF(GZ3<=Premissas!$C$60,"C",IF(GZ3="-","-","O")) -> - | HA2: =IF(HA3<=Premissas!$C$60,"C",IF(HA3="-","-","O")) -> - | HB2: =IF(HB3<=Premissas!$C$60,"C",IF(HB3="-","-","O")) -> - | HC2: =IF(HC3<=Premissas!$C$60,"C",IF(HC3="-","-","O")) -> - | HD2: =IF(HD3<=Premissas!$C$60,"C",IF(HD3="-","-","O")) -> - | HE2: =IF(HE3<=Premissas!$C$60,"C",IF(HE3="-","-","O")) -> - | HF2: =IF(HF3<=Premissas!$C$60,"C",IF(HF3="-","-","O")) -> - | HG2: =IF(HG3<=Premissas!$C$60,"C",IF(HG3="-","-","O")) -> - | HH2: =IF(HH3<=Premissas!$C$60,"C",IF(HH3="-","-","O")) -> - | HI2: =IF(HI3<=Premissas!$C$60,"C",IF(HI3="-","-","O")) -> - | HJ2: =IF(HJ3<=Premissas!$C$60,"C",IF(HJ3="-","-","O")) -> - | HK2: =IF(HK3<=Premissas!$C$60,"C",IF(HK3="-","-","O")) -> - | HL2: =IF(HL3<=Premissas!$C$60,"C",IF(HL3="-","-","O")) -> - | HM2: =IF(HM3<=Premissas!$C$60,"C",IF(HM3="-","-","O")) -> - | HN2: =IF(HN3<=Premissas!$C$60,"C",IF(HN3="-","-","O")) -> - | HO2: =IF(HO3<=Premissas!$C$60,"C",IF(HO3="-","-","O")) -> - | HP2: =IF(HP3<=Premissas!$C$60,"C",IF(HP3="-","-","O")) -> - | HQ2: =IF(HQ3<=Premissas!$C$60,"C",IF(HQ3="-","-","O")) -> - | HR2: =IF(HR3<=Premissas!$C$60,"C",IF(HR3="-","-","O")) -> - | HS2: =IF(HS3<=Premissas!$C$60,"C",IF(HS3="-","-","O")) -> - | HT2: =IF(HT3<=Premissas!$C$60,"C",IF(HT3="-","-","O")) -> - | HU2: =IF(HU3<=Premissas!$C$60,"C",IF(HU3="-","-","O")) -> - | HV2: =IF(HV3<=Premissas!$C$60,"C",IF(HV3="-","-","O")) -> - | HW2: =IF(HW3<=Premissas!$C$60,"C",IF(HW3="-","-","O")) -> - | HX2: =IF(HX3<=Premissas!$C$60,"C",IF(HX3="-","-","O")) -> - | HY2: =IF(HY3<=Premissas!$C$60,"C",IF(HY3="-","-","O")) -> - | HZ2: =IF(HZ3<=Premissas!$C$60,"C",IF(HZ3="-","-","O")) -> - | IA2: =IF(IA3<=Premissas!$C$60,"C",IF(IA3="-","-","O")) -> - | IB2: =IF(IB3<=Premissas!$C$60,"C",IF(IB3="-","-","O")) -> - | IC2: =IF(IC3<=Premissas!$C$60,"C",IF(IC3="-","-","O")) -> - | ID2: =IF(ID3<=Premissas!$C$60,"C",IF(ID3="-","-","O")) -> - | IE2: =IF(IE3<=Premissas!$C$60,"C",IF(IE3="-","-","O")) -> - | IF2: =IF(IF3<=Premissas!$C$60,"C",IF(IF3="-","-","O")) -> - | IG2: =IF(IG3<=Premissas!$C$60,"C",IF(IG3="-","-","O")) -> - | IH2: =IF(IH3<=Premissas!$C$60,"C",IF(IH3="-","-","O")) -> - | II2: =IF(II3<=Premissas!$C$60,"C",IF(II3="-","-","O")) -> - | IJ2: =IF(IJ3<=Premissas!$C$60,"C",IF(IJ3="-","-","O")) -> - | IK2: =IF(IK3<=Premissas!$C$60,"C",IF(IK3="-","-","O")) -> - | IL2: =IF(IL3<=Premissas!$C$60,"C",IF(IL3="-","-","O")) -> - | IM2: =IF(IM3<=Premissas!$C$60,"C",IF(IM3="-","-","O")) -> - | IN2: =IF(IN3<=Premissas!$C$60,"C",IF(IN3="-","-","O")) -> - | IO2: =IF(IO3<=Premissas!$C$60,"C",IF(IO3="-","-","O")) -> - | IP2: =IF(IP3<=Premissas!$C$60,"C",IF(IP3="-","-","O")) -> - | IQ2: =IF(IQ3<=Premissas!$C$60,"C",IF(IQ3="-","-","O")) -> - | IR2: =IF(IR3<=Premissas!$C$60,"C",IF(IR3="-","-","O")) -> - | IS2: =IF(IS3<=Premissas!$C$60,"C",IF(IS3="-","-","O")) -> - | IT2: =IF(IT3<=Premissas!$C$60,"C",IF(IT3="-","-","O")) -> - | IU2: =IF(IU3<=Premissas!$C$60,"C",IF(IU3="-","-","O")) -> - | IV2: =IF(IV3<=Premissas!$C$60,"C",IF(IV3="-","-","O")) -> - | IW2: =IF(IW3<=Premissas!$C$60,"C",IF(IW3="-","-","O")) -> - | IX2: =IF(IX3<=Premissas!$C$60,"C",IF(IX3="-","-","O")) -> - | IY2: =IF(IY3<=Premissas!$C$60,"C",IF(IY3="-","-","O")) -> - | IZ2: =IF(IZ3<=Premissas!$C$60,"C",IF(IZ3="-","-","O")) -> - | JA2: =IF(JA3<=Premissas!$C$60,"C",IF(JA3="-","-","O")) -> - | JB2: =IF(JB3<=Premissas!$C$60,"C",IF(JB3="-","-","O")) -> - | JC2: =IF(JC3<=Premissas!$C$60,"C",IF(JC3="-","-","O")) -> - | JD2: =IF(JD3<=Premissas!$C$60,"C",IF(JD3="-","-","O")) -> - | JE2: =IF(JE3<=Premissas!$C$60,"C",IF(JE3="-","-","O")) -> - | JF2: =IF(JF3<=Premissas!$C$60,"C",IF(JF3="-","-","O")) -> - | JG2: =IF(JG3<=Premissas!$C$60,"C",IF(JG3="-","-","O")) -> - | JH2: =IF(JH3<=Premissas!$C$60,"C",IF(JH3="-","-","O")) -> - | JI2: =IF(JI3<=Premissas!$C$60,"C",IF(JI3="-","-","O")) -> - | JJ2: =IF(JJ3<=Premissas!$C$60,"C",IF(JJ3="-","-","O")) -> - | JK2: =IF(JK3<=Premissas!$C$60,"C",IF(JK3="-","-","O")) -> - | JL2: =IF(JL3<=Premissas!$C$60,"C",IF(JL3="-","-","O")) -> - | JM2: =IF(JM3<=Premissas!$C$60,"C",IF(JM3="-","-","O")) -> - | JN2: =IF(JN3<=Premissas!$C$60,"C",IF(JN3="-","-","O")) -> - | JO2: =IF(JO3<=Premissas!$C$60,"C",IF(JO3="-","-","O")) -> - | JP2: =IF(JP3<=Premissas!$C$60,"C",IF(JP3="-","-","O")) -> - | JQ2: =IF(JQ3<=Premissas!$C$60,"C",IF(JQ3="-","-","O")) -> - | JR2: =IF(JR3<=Premissas!$C$60,"C",IF(JR3="-","-","O")) -> - | JS2: =IF(JS3<=Premissas!$C$60,"C",IF(JS3="-","-","O")) -> - | JT2: =IF(JT3<=Premissas!$C$60,"C",IF(JT3="-","-","O")) -> - | JU2: =IF(JU3<=Premissas!$C$60,"C",IF(JU3="-","-","O")) -> - | JV2: =IF(JV3<=Premissas!$C$60,"C",IF(JV3="-","-","O")) -> - | JW2: =IF(JW3<=Premissas!$C$60,"C",IF(JW3="-","-","O")) -> - | JX2: =IF(JX3<=Premissas!$C$60,"C",IF(JX3="-","-","O")) -> - | JY2: =IF(JY3<=Premissas!$C$60,"C",IF(JY3="-","-","O")) -> - | JZ2: =IF(JZ3<=Premissas!$C$60,"C",IF(JZ3="-","-","O")) -> - | KA2: =IF(KA3<=Premissas!$C$60,"C",IF(KA3="-","-","O")) -> - | KB2: =IF(KB3<=Premissas!$C$60,"C",IF(KB3="-","-","O")) -> - | KC2: =IF(KC3<=Premissas!$C$60,"C",IF(KC3="-","-","O")) -> - | KD2: =IF(KD3<=Premissas!$C$60,"C",IF(KD3="-","-","O")) -> - | KE2: =IF(KE3<=Premissas!$C$60,"C",IF(KE3="-","-","O")) -> - | KF2: =IF(KF3<=Premissas!$C$60,"C",IF(KF3="-","-","O")) -> - | KG2: =IF(KG3<=Premissas!$C$60,"C",IF(KG3="-","-","O")) -> - | KH2: =IF(KH3<=Premissas!$C$60,"C",IF(KH3="-","-","O")) -> - | KI2: =IF(KI3<=Premissas!$C$60,"C",IF(KI3="-","-","O")) -> - | KJ2: =IF(KJ3<=Premissas!$C$60,"C",IF(KJ3="-","-","O")) -> - | KK2: =IF(KK3<=Premissas!$C$60,"C",IF(KK3="-","-","O")) -> - | KL2: =IF(KL3<=Premissas!$C$60,"C",IF(KL3="-","-","O")) -> - | KM2: =IF(KM3<=Premissas!$C$60,"C",IF(KM3="-","-","O")) -> - | KN2: =IF(KN3<=Premissas!$C$60,"C",IF(KN3="-","-","O")) -> - | KO2: =IF(KO3<=Premissas!$C$60,"C",IF(KO3="-","-","O")) -> - | KP2: =IF(KP3<=Premissas!$C$60,"C",IF(KP3="-","-","O")) -> - | KQ2: =IF(KQ3<=Premissas!$C$60,"C",IF(KQ3="-","-","O")) -> - | KR2: =IF(KR3<=Premissas!$C$60,"C",IF(KR3="-","-","O")) -> - | KS2: =IF(KS3<=Premissas!$C$60,"C",IF(KS3="-","-","O")) -> - | KT2: =IF(KT3<=Premissas!$C$60,"C",IF(KT3="-","-","O")) -> - | KU2: =IF(KU3<=Premissas!$C$60,"C",IF(KU3="-","-","O")) -> - | KV2: =IF(KV3<=Premissas!$C$60,"C",IF(KV3="-","-","O")) -> - | KW2: =IF(KW3<=Premissas!$C$60,"C",IF(KW3="-","-","O")) -> - | KX2: =IF(KX3<=Premissas!$C$60,"C",IF(KX3="-","-","O")) -> - | KY2: =IF(KY3<=Premissas!$C$60,"C",IF(KY3="-","-","O")) -> - | KZ2: =IF(KZ3<=Premissas!$C$60,"C",IF(KZ3="-","-","O")) -> - | LA2: =IF(LA3<=Premissas!$C$60,"C",IF(LA3="-","-","O")) -> - | LB2: =IF(LB3<=Premissas!$C$60,"C",IF(LB3="-","-","O")) -> - | LC2: =IF(LC3<=Premissas!$C$60,"C",IF(LC3="-","-","O")) -> - | LD2: =IF(LD3<=Premissas!$C$60,"C",IF(LD3="-","-","O")) -> - | LE2: =IF(LE3<=Premissas!$C$60,"C",IF(LE3="-","-","O")) -> - | LF2: =IF(LF3<=Premissas!$C$60,"C",IF(LF3="-","-","O")) -> - | LG2: =IF(LG3<=Premissas!$C$60,"C",IF(LG3="-","-","O")) -> - | LH2: =IF(LH3<=Premissas!$C$60,"C",IF(LH3="-","-","O")) -> - | LI2: =IF(LI3<=Premissas!$C$60,"C",IF(LI3="-","-","O")) -> - | LJ2: =IF(LJ3<=Premissas!$C$60,"C",IF(LJ3="-","-","O")) -> - | LK2: =IF(LK3<=Premissas!$C$60,"C",IF(LK3="-","-","O")) -> - | LL2: =IF(LL3<=Premissas!$C$60,"C",IF(LL3="-","-","O")) -> - | LM2: =IF(LM3<=Premissas!$C$60,"C",IF(LM3="-","-","O")) -> - | LN2: =IF(LN3<=Premissas!$C$60,"C",IF(LN3="-","-","O")) -> - | LO2: =IF(LO3<=Premissas!$C$60,"C",IF(LO3="-","-","O")) -> - | LP2: =IF(LP3<=Premissas!$C$60,"C",IF(LP3="-","-","O")) -> - | LQ2: =IF(LQ3<=Premissas!$C$60,"C",IF(LQ3="-","-","O")) -> - | LR2: =IF(LR3<=Premissas!$C$60,"C",IF(LR3="-","-","O")) -> - | LS2: =IF(LS3<=Premissas!$C$60,"C",IF(LS3="-","-","O")) -> - | LT2: =IF(LT3<=Premissas!$C$60,"C",IF(LT3="-","-","O")) -> - | LU2: =IF(LU3<=Premissas!$C$60,"C",IF(LU3="-","-","O")) -> - | LV2: =IF(LV3<=Premissas!$C$60,"C",IF(LV3="-","-","O")) -> - | LW2: =IF(LW3<=Premissas!$C$60,"C",IF(LW3="-","-","O")) -> - | LX2: =IF(LX3<=Premissas!$C$60,"C",IF(LX3="-","-","O")) -> - | LY2: =IF(LY3<=Premissas!$C$60,"C",IF(LY3="-","-","O")) -> - | LZ2: =IF(LZ3<=Premissas!$C$60,"C",IF(LZ3="-","-","O")) -> - | MA2: =IF(MA3<=Premissas!$C$60,"C",IF(MA3="-","-","O")) -> - | MB2: =IF(MB3<=Premissas!$C$60,"C",IF(MB3="-","-","O")) -> - | MC2: =IF(MC3<=Premissas!$C$60,"C",IF(MC3="-","-","O")) -> - | MD2: =IF(MD3<=Premissas!$C$60,"C",IF(MD3="-","-","O")) -> - | ME2: =IF(ME3<=Premissas!$C$60,"C",IF(ME3="-","-","O")) -> - | MF2: =IF(MF3<=Premissas!$C$60,"C",IF(MF3="-","-","O")) -> - | MG2: =IF(MG3<=Premissas!$C$60,"C",IF(MG3="-","-","O")) -> - | MH2: =IF(MH3<=Premissas!$C$60,"C",IF(MH3="-","-","O")) -> - | MI2: =IF(MI3<=Premissas!$C$60,"C",IF(MI3="-","-","O")) -> - | MJ2: =IF(MJ3<=Premissas!$C$60,"C",IF(MJ3="-","-","O")) -> - | MK2: =IF(MK3<=Premissas!$C$60,"C",IF(MK3="-","-","O")) -> - | ML2: =IF(ML3<=Premissas!$C$60,"C",IF(ML3="-","-","O")) -> - | MM2: =IF(MM3<=Premissas!$C$60,"C",IF(MM3="-","-","O")) -> - | MN2: =IF(MN3<=Premissas!$C$60,"C",IF(MN3="-","-","O")) -> - | MO2: =IF(MO3<=Premissas!$C$60,"C",IF(MO3="-","-","O")) -> - | MP2: =IF(MP3<=Premissas!$C$60,"C",IF(MP3="-","-","O")) -> - | MQ2: =IF(MQ3<=Premissas!$C$60,"C",IF(MQ3="-","-","O")) -> - | MR2: =IF(MR3<=Premissas!$C$60,"C",IF(MR3="-","-","O")) -> - | MS2: =IF(MS3<=Premissas!$C$60,"C",IF(MS3="-","-","O")) -> - | MT2: =IF(MT3<=Premissas!$C$60,"C",IF(MT3="-","-","O")) -> - | MU2: =IF(MU3<=Premissas!$C$60,"C",IF(MU3="-","-","O")) -> - | MV2: =IF(MV3<=Premissas!$C$60,"C",IF(MV3="-","-","O")) -> - | MW2: =IF(MW3<=Premissas!$C$60,"C",IF(MW3="-","-","O")) -> - | MX2: =IF(MX3<=Premissas!$C$60,"C",IF(MX3="-","-","O")) -> - | MY2: =IF(MY3<=Premissas!$C$60,"C",IF(MY3="-","-","O")) -> - | MZ2: =IF(MZ3<=Premissas!$C$60,"C",IF(MZ3="-","-","O")) -> - | NA2: =IF(NA3<=Premissas!$C$60,"C",IF(NA3="-","-","O")) -> - | NB2: =IF(NB3<=Premissas!$C$60,"C",IF(NB3="-","-","O")) -> - | NC2: =IF(NC3<=Premissas!$C$60,"C",IF(NC3="-","-","O")) -> - | ND2: =IF(ND3<=Premissas!$C$60,"C",IF(ND3="-","-","O")) -> - | NE2: =IF(NE3<=Premissas!$C$60,"C",IF(NE3="-","-","O")) -> - | NF2: =IF(NF3<=Premissas!$C$60,"C",IF(NF3="-","-","O")) -> - | NG2: =IF(NG3<=Premissas!$C$60,"C",IF(NG3="-","-","O")) -> - | NH2: =IF(NH3<=Premissas!$C$60,"C",IF(NH3="-","-","O")) -> - | NI2: =IF(NI3<=Premissas!$C$60,"C",IF(NI3="-","-","O")) -> - | NJ2: =IF(NJ3<=Premissas!$C$60,"C",IF(NJ3="-","-","O")) -> - | NK2: =IF(NK3<=Premissas!$C$60,"C",IF(NK3="-","-","O")) -> - | NL2: =IF(NL3<=Premissas!$C$60,"C",IF(NL3="-","-","O")) -> - | NM2: =IF(NM3<=Premissas!$C$60,"C",IF(NM3="-","-","O")) -> - | NN2: =IF(NN3<=Premissas!$C$60,"C",IF(NN3="-","-","O")) -> - | NO2: =IF(NO3<=Premissas!$C$60,"C",IF(NO3="-","-","O")) -> - | NP2: =IF(NP3<=Premissas!$C$60,"C",IF(NP3="-","-","O")) -> - | NQ2: =IF(NQ3<=Premissas!$C$60,"C",IF(NQ3="-","-","O")) -> - | NR2: =IF(NR3<=Premissas!$C$60,"C",IF(NR3="-","-","O")) -> - | NS2: =IF(NS3<=Premissas!$C$60,"C",IF(NS3="-","-","O")) -> - | NT2: =IF(NT3<=Premissas!$C$60,"C",IF(NT3="-","-","O")) -> - | NU2: =IF(NU3<=Premissas!$C$60,"C",IF(NU3="-","-","O")) -> - | NV2: =IF(NV3<=Premissas!$C$60,"C",IF(NV3="-","-","O")) -> - | NW2: =IF(NW3<=Premissas!$C$60,"C",IF(NW3="-","-","O")) -> - | NX2: =IF(NX3<=Premissas!$C$60,"C",IF(NX3="-","-","O")) -> - | NY2: =IF(NY3<=Premissas!$C$60,"C",IF(NY3="-","-","O")) -> - | NZ2: =IF(NZ3<=Premissas!$C$60,"C",IF(NZ3="-","-","O")) -> - | OA2: =IF(OA3<=Premissas!$C$60,"C",IF(OA3="-","-","O")) -> - | OB2: =IF(OB3<=Premissas!$C$60,"C",IF(OB3="-","-","O")) -> - | OC2: =IF(OC3<=Premissas!$C$60,"C",IF(OC3="-","-","O")) -> - | OD2: =IF(OD3<=Premissas!$C$60,"C",IF(OD3="-","-","O")) -> - | OE2: =IF(OE3<=Premissas!$C$60,"C",IF(OE3="-","-","O")) -> - | OF2: =IF(OF3<=Premissas!$C$60,"C",IF(OF3="-","-","O")) -> - | OG2: =IF(OG3<=Premissas!$C$60,"C",IF(OG3="-","-","O")) -> - | OH2: =IF(OH3<=Premissas!$C$60,"C",IF(OH3="-","-","O")) -> - | OI2: =IF(OI3<=Premissas!$C$60,"C",IF(OI3="-","-","O")) -> - | OJ2: =IF(OJ3<=Premissas!$C$60,"C",IF(OJ3="-","-","O")) -> - | OK2: =IF(OK3<=Premissas!$C$60,"C",IF(OK3="-","-","O")) -> - | OL2: =IF(OL3<=Premissas!$C$60,"C",IF(OL3="-","-","O")) -> - | OM2: =IF(OM3<=Premissas!$C$60,"C",IF(OM3="-","-","O")) -> - | ON2: =IF(ON3<=Premissas!$C$60,"C",IF(ON3="-","-","O")) -> - | OO2: =IF(OO3<=Premissas!$C$60,"C",IF(OO3="-","-","O")) -> - | OP2: =IF(OP3<=Premissas!$C$60,"C",IF(OP3="-","-","O")) -> - | OQ2: =IF(OQ3<=Premissas!$C$60,"C",IF(OQ3="-","-","O")) -> - | OR2: =IF(OR3<=Premissas!$C$60,"C",IF(OR3="-","-","O")) -> - | OS2: =IF(OS3<=Premissas!$C$60,"C",IF(OS3="-","-","O")) -> - | OT2: =IF(OT3<=Premissas!$C$60,"C",IF(OT3="-","-","O")) -> - | OU2: =IF(OU3<=Premissas!$C$60,"C",IF(OU3="-","-","O")) -> - | OV2: =IF(OV3<=Premissas!$C$60,"C",IF(OV3="-","-","O")) -> - | OW2: =IF(OW3<=Premissas!$C$60,"C",IF(OW3="-","-","O")) -> - | OX2: =IF(OX3<=Premissas!$C$60,"C",IF(OX3="-","-","O")) -> - | OY2: =IF(OY3<=Premissas!$C$60,"C",IF(OY3="-","-","O")) -> - | OZ2: =IF(OZ3<=Premissas!$C$60,"C",IF(OZ3="-","-","O")) -> - | PA2: =IF(PA3<=Premissas!$C$60,"C",IF(PA3="-","-","O")) -> - | PB2: =IF(PB3<=Premissas!$C$60,"C",IF(PB3="-","-","O")) -> - | PC2: =IF(PC3<=Premissas!$C$60,"C",IF(PC3="-","-","O")) -> - | PD2: =IF(PD3<=Premissas!$C$60,"C",IF(PD3="-","-","O")) -> - | PE2: =IF(PE3<=Premissas!$C$60,"C",IF(PE3="-","-","O")) -> - | PF2: =IF(PF3<=Premissas!$C$60,"C",IF(PF3="-","-","O")) -> - | PG2: =IF(PG3<=Premissas!$C$60,"C",IF(PG3="-","-","O")) -> - | PH2: =IF(PH3<=Premissas!$C$60,"C",IF(PH3="-","-","O")) -> - | PI2: =IF(PI3<=Premissas!$C$60,"C",IF(PI3="-","-","O")) -> - | PJ2: =IF(PJ3<=Premissas!$C$60,"C",IF(PJ3="-","-","O")) -> - | PK2: =IF(PK3<=Premissas!$C$60,"C",IF(PK3="-","-","O")) -> - | PL2: =IF(PL3<=Premissas!$C$60,"C",IF(PL3="-","-","O")) -> - | PM2: =IF(PM3<=Premissas!$C$60,"C",IF(PM3="-","-","O")) -> - | PN2: =IF(PN3<=Premissas!$C$60,"C",IF(PN3="-","-","O")) -> - | PO2: =IF(PO3<=Premissas!$C$60,"C",IF(PO3="-","-","O")) -> - | PP2: =IF(PP3<=Premissas!$C$60,"C",IF(PP3="-","-","O")) -> - | PQ2: =IF(PQ3<=Premissas!$C$60,"C",IF(PQ3="-","-","O")) -> - | PR2: =IF(PR3<=Premissas!$C$60,"C",IF(PR3="-","-","O")) -> - | PS2: =IF(PS3<=Premissas!$C$60,"C",IF(PS3="-","-","O")) -> - | PT2: =IF(PT3<=Premissas!$C$60,"C",IF(PT3="-","-","O")) -> - | PU2: =IF(PU3<=Premissas!$C$60,"C",IF(PU3="-","-","O")) -> - | PV2: =IF(PV3<=Premissas!$C$60,"C",IF(PV3="-","-","O")) -> - | PW2: =IF(PW3<=Premissas!$C$60,"C",IF(PW3="-","-","O")) -> - | PX2: =IF(PX3<=Premissas!$C$60,"C",IF(PX3="-","-","O")) -> - | PY2: =IF(PY3<=Premissas!$C$60,"C",IF(PY3="-","-","O")) -> - | PZ2: =IF(PZ3<=Premissas!$C$60,"C",IF(PZ3="-","-","O")) -> - | QA2: =IF(QA3<=Premissas!$C$60,"C",IF(QA3="-","-","O")) -> - | QB2: =IF(QB3<=Premissas!$C$60,"C",IF(QB3="-","-","O")) -> - | QC2: =IF(QC3<=Premissas!$C$60,"C",IF(QC3="-","-","O")) -> - | QD2: =IF(QD3<=Premissas!$C$60,"C",IF(QD3="-","-","O")) -> - | QE2: =IF(QE3<=Premissas!$C$60,"C",IF(QE3="-","-","O")) -> - | QF2: =IF(QF3<=Premissas!$C$60,"C",IF(QF3="-","-","O")) -> - | QG2: =IF(QG3<=Premissas!$C$60,"C",IF(QG3="-","-","O")) -> - | QH2: =IF(QH3<=Premissas!$C$60,"C",IF(QH3="-","-","O")) -> - | QI2: =IF(QI3<=Premissas!$C$60,"C",IF(QI3="-","-","O")) -> - | QJ2: =IF(QJ3<=Premissas!$C$60,"C",IF(QJ3="-","-","O")) -> - | QK2: =IF(QK3<=Premissas!$C$60,"C",IF(QK3="-","-","O")) -> - | QL2: =IF(QL3<=Premissas!$C$60,"C",IF(QL3="-","-","O")) -> - | QM2: =IF(QM3<=Premissas!$C$60,"C",IF(QM3="-","-","O")) -> - | QN2: =IF(QN3<=Premissas!$C$60,"C",IF(QN3="-","-","O")) -> - | QO2: =IF(QO3<=Premissas!$C$60,"C",IF(QO3="-","-","O")) -> - | QP2: =IF(QP3<=Premissas!$C$60,"C",IF(QP3="-","-","O")) -> - | QQ2: =IF(QQ3<=Premissas!$C$60,"C",IF(QQ3="-","-","O")) -> - | QR2: =IF(QR3<=Premissas!$C$60,"C",IF(QR3="-","-","O")) -> - | QS2: =IF(QS3<=Premissas!$C$60,"C",IF(QS3="-","-","O")) -> - | QT2: =IF(QT3<=Premissas!$C$60,"C",IF(QT3="-","-","O")) -> - | QU2: =IF(QU3<=Premissas!$C$60,"C",IF(QU3="-","-","O")) -> - | QV2: =IF(QV3<=Premissas!$C$60,"C",IF(QV3="-","-","O")) -> - | QW2: =IF(QW3<=Premissas!$C$60,"C",IF(QW3="-","-","O")) -> - | QX2: =IF(QX3<=Premissas!$C$60,"C",IF(QX3="-","-","O")) -> - | QY2: =IF(QY3<=Premissas!$C$60,"C",IF(QY3="-","-","O")) -> - | QZ2: =IF(QZ3<=Premissas!$C$60,"C",IF(QZ3="-","-","O")) -> - | RA2: =IF(RA3<=Premissas!$C$60,"C",IF(RA3="-","-","O")) -> - | RB2: =IF(RB3<=Premissas!$C$60,"C",IF(RB3="-","-","O")) -> - | RC2: =IF(RC3<=Premissas!$C$60,"C",IF(RC3="-","-","O")) -> - | RD2: =IF(RD3<=Premissas!$C$60,"C",IF(RD3="-","-","O")) -> - | RE2: =IF(RE3<=Premissas!$C$60,"C",IF(RE3="-","-","O")) -> - | RF2: =IF(RF3<=Premissas!$C$60,"C",IF(RF3="-","-","O")) -> - | RG2: =IF(RG3<=Premissas!$C$60,"C",IF(RG3="-","-","O")) -> - | RH2: =IF(RH3<=Premissas!$C$60,"C",IF(RH3="-","-","O")) -> - | RI2: =IF(RI3<=Premissas!$C$60,"C",IF(RI3="-","-","O")) -> - | RJ2: =IF(RJ3<=Premissas!$C$60,"C",IF(RJ3="-","-","O")) -> - | RK2: =IF(RK3<=Premissas!$C$60,"C",IF(RK3="-","-","O")) -> - | RL2: =IF(RL3<=Premissas!$C$60,"C",IF(RL3="-","-","O")) -> - | RM2: =IF(RM3<=Premissas!$C$60,"C",IF(RM3="-","-","O")) -> - | RN2: =IF(RN3<=Premissas!$C$60,"C",IF(RN3="-","-","O")) -> - | RO2: =IF(RO3<=Premissas!$C$60,"C",IF(RO3="-","-","O")) -> - | RP2: =IF(RP3<=Premissas!$C$60,"C",IF(RP3="-","-","O")) -> - | RQ2: =IF(RQ3<=Premissas!$C$60,"C",IF(RQ3="-","-","O")) -> - | RR2: =IF(RR3<=Premissas!$C$60,"C",IF(RR3="-","-","O")) -> - | RS2: =IF(RS3<=Premissas!$C$60,"C",IF(RS3="-","-","O")) -> - | RT2: =IF(RT3<=Premissas!$C$60,"C",IF(RT3="-","-","O")) -> - | RU2: =IF(RU3<=Premissas!$C$60,"C",IF(RU3="-","-","O")) -> - | RV2: =IF(RV3<=Premissas!$C$60,"C",IF(RV3="-","-","O")) -> - | RW2: =IF(RW3<=Premissas!$C$60,"C",IF(RW3="-","-","O")) -> - | RX2: =IF(RX3<=Premissas!$C$60,"C",IF(RX3="-","-","O")) -> - | RY2: =IF(RY3<=Premissas!$C$60,"C",IF(RY3="-","-","O")) -> - | RZ2: =IF(RZ3<=Premissas!$C$60,"C",IF(RZ3="-","-","O")) -> - | SA2: =IF(SA3<=Premissas!$C$60,"C",IF(SA3="-","-","O")) -> - | SB2: =IF(SB3<=Premissas!$C$60,"C",IF(SB3="-","-","O")) -> - | SC2: =IF(SC3<=Premissas!$C$60,"C",IF(SC3="-","-","O")) -> - | SD2: =IF(SD3<=Premissas!$C$60,"C",IF(SD3="-","-","O")) -> - | SE2: =IF(SE3<=Premissas!$C$60,"C",IF(SE3="-","-","O")) -> - | SF2: =IF(SF3<=Premissas!$C$60,"C",IF(SF3="-","-","O")) -> - | SG2: =IF(SG3<=Premissas!$C$60,"C",IF(SG3="-","-","O")) -> - | SH2: =IF(SH3<=Premissas!$C$60,"C",IF(SH3="-","-","O")) -> - | SI2: =IF(SI3<=Premissas!$C$60,"C",IF(SI3="-","-","O")) -> - | SJ2: =IF(SJ3<=Premissas!$C$60,"C",IF(SJ3="-","-","O")) -> - | SK2: =IF(SK3<=Premissas!$C$60,"C",IF(SK3="-","-","O")) -> - | SL2: =IF(SL3<=Premissas!$C$60,"C",IF(SL3="-","-","O")) -> - | SM2: =IF(SM3<=Premissas!$C$60,"C",IF(SM3="-","-","O")) -> - | SN2: =IF(SN3<=Premissas!$C$60,"C",IF(SN3="-","-","O")) -> - | SO2: =IF(SO3<=Premissas!$C$60,"C",IF(SO3="-","-","O")) -> - | SP2: =IF(SP3<=Premissas!$C$60,"C",IF(SP3="-","-","O")) -> - | SQ2: =IF(SQ3<=Premissas!$C$60,"C",IF(SQ3="-","-","O")) -> - | SR2: =IF(SR3<=Premissas!$C$60,"C",IF(SR3="-","-","O")) -> - | SS2: =IF(SS3<=Premissas!$C$60,"C",IF(SS3="-","-","O")) -> - | ST2: =IF(ST3<=Premissas!$C$60,"C",IF(ST3="-","-","O")) -> - | SU2: =IF(SU3<=Premissas!$C$60,"C",IF(SU3="-","-","O")) -> - | SV2: =IF(SV3<=Premissas!$C$60,"C",IF(SV3="-","-","O")) -> - | SW2: =IF(SW3<=Premissas!$C$60,"C",IF(SW3="-","-","O")) -> - | SX2: =IF(SX3<=Premissas!$C$60,"C",IF(SX3="-","-","O")) -> - | SY2: =IF(SY3<=Premissas!$C$60,"C",IF(SY3="-","-","O")) -> - | SZ2: =IF(SZ3<=Premissas!$C$60,"C",IF(SZ3="-","-","O")) -> - | TA2: =IF(TA3<=Premissas!$C$60,"C",IF(TA3="-","-","O")) -> - | TB2: =IF(TB3<=Premissas!$C$60,"C",IF(TB3="-","-","O")) -> - | TC2: =IF(TC3<=Premissas!$C$60,"C",IF(TC3="-","-","O")) -> - | TD2: =IF(TD3<=Premissas!$C$60,"C",IF(TD3="-","-","O")) -> - | TE2: =IF(TE3<=Premissas!$C$60,"C",IF(TE3="-","-","O")) -> - | TF2: =IF(TF3<=Premissas!$C$60,"C",IF(TF3="-","-","O")) -> - | TG2: =IF(TG3<=Premissas!$C$60,"C",IF(TG3="-","-","O")) -> - | TH2: =IF(TH3<=Premissas!$C$60,"C",IF(TH3="-","-","O")) -> - | TI2: =IF(TI3<=Premissas!$C$60,"C",IF(TI3="-","-","O")) -> - | TJ2: =IF(TJ3<=Premissas!$C$60,"C",IF(TJ3="-","-","O")) -> - | TK2: =IF(TK3<=Premissas!$C$60,"C",IF(TK3="-","-","O")) -> - | TL2: =IF(TL3<=Premissas!$C$60,"C",IF(TL3="-","-","O")) -> - | TM2: =IF(TM3<=Premissas!$C$60,"C",IF(TM3="-","-","O")) -> - | TN2: =IF(TN3<=Premissas!$C$60,"C",IF(TN3="-","-","O")) -> - | TO2: =IF(TO3<=Premissas!$C$60,"C",IF(TO3="-","-","O")) -> - | TP2: =IF(TP3<=Premissas!$C$60,"C",IF(TP3="-","-","O")) -> - | TQ2: =IF(TQ3<=Premissas!$C$60,"C",IF(TQ3="-","-","O")) -> - | TR2: =IF(TR3<=Premissas!$C$60,"C",IF(TR3="-","-","O")) -> - | TS2: =IF(TS3<=Premissas!$C$60,"C",IF(TS3="-","-","O")) -> - | TT2: =IF(TT3<=Premissas!$C$60,"C",IF(TT3="-","-","O")) -> - | TU2: =IF(TU3<=Premissas!$C$60,"C",IF(TU3="-","-","O")) -> - | TV2: =IF(TV3<=Premissas!$C$60,"C",IF(TV3="-","-","O")) -> - | TW2: =IF(TW3<=Premissas!$C$60,"C",IF(TW3="-","-","O")) -> - | TX2: =IF(TX3<=Premissas!$C$60,"C",IF(TX3="-","-","O")) -> - | TY2: =IF(TY3<=Premissas!$C$60,"C",IF(TY3="-","-","O")) -> - | TZ2: =IF(TZ3<=Premissas!$C$60,"C",IF(TZ3="-","-","O")) -> - | UA2: =IF(UA3<=Premissas!$C$60,"C",IF(UA3="-","-","O")) -> - | UB2: =IF(UB3<=Premissas!$C$60,"C",IF(UB3="-","-","O")) -> - | UC2: =IF(UC3<=Premissas!$C$60,"C",IF(UC3="-","-","O")) -> - | UD2: =IF(UD3<=Premissas!$C$60,"C",IF(UD3="-","-","O")) -> - | UE2: =IF(UE3<=Premissas!$C$60,"C",IF(UE3="-","-","O")) -> - | UF2: =IF(UF3<=Premissas!$C$60,"C",IF(UF3="-","-","O")) -> - | UG2: =IF(UG3<=Premissas!$C$60,"C",IF(UG3="-","-","O")) -> - | UH2: =IF(UH3<=Premissas!$C$60,"C",IF(UH3="-","-","O")) -> - | UI2: =IF(UI3<=Premissas!$C$60,"C",IF(UI3="-","-","O")) -> - | UJ2: =IF(UJ3<=Premissas!$C$60,"C",IF(UJ3="-","-","O")) -> - | UK2: =IF(UK3<=Premissas!$C$60,"C",IF(UK3="-","-","O")) -> - | UL2: =IF(UL3<=Premissas!$C$60,"C",IF(UL3="-","-","O")) -> - | UM2: =IF(UM3<=Premissas!$C$60,"C",IF(UM3="-","-","O")) -> - | UN2: =IF(UN3<=Premissas!$C$60,"C",IF(UN3="-","-","O")) -> - | UO2: =IF(UO3<=Premissas!$C$60,"C",IF(UO3="-","-","O")) -> - | UP2: =IF(UP3<=Premissas!$C$60,"C",IF(UP3="-","-","O")) -> - | UQ2: =IF(UQ3<=Premissas!$C$60,"C",IF(UQ3="-","-","O")) -> - | UR2: =IF(UR3<=Premissas!$C$60,"C",IF(UR3="-","-","O")) -> - | US2: =IF(US3<=Premissas!$C$60,"C",IF(US3="-","-","O")) -> - | UT2: =IF(UT3<=Premissas!$C$60,"C",IF(UT3="-","-","O")) -> - | UU2: =IF(UU3<=Premissas!$C$60,"C",IF(UU3="-","-","O")) -> - | UV2: =IF(UV3<=Premissas!$C$60,"C",IF(UV3="-","-","O")) -> - | UW2: =IF(UW3<=Premissas!$C$60,"C",IF(UW3="-","-","O")) -> - | UX2: =IF(UX3<=Premissas!$C$60,"C",IF(UX3="-","-","O")) -> - | UY2: =IF(UY3<=Premissas!$C$60,"C",IF(UY3="-","-","O")) -> - | UZ2: =IF(UZ3<=Premissas!$C$60,"C",IF(UZ3="-","-","O")) -> - | VA2: =IF(VA3<=Premissas!$C$60,"C",IF(VA3="-","-","O")) -> - | VB2: =IF(VB3<=Premissas!$C$60,"C",IF(VB3="-","-","O")) -> - | VC2: =IF(VC3<=Premissas!$C$60,"C",IF(VC3="-","-","O")) -> - | VD2: =IF(VD3<=Premissas!$C$60,"C",IF(VD3="-","-","O")) -> - | VE2: =IF(VE3<=Premissas!$C$60,"C",IF(VE3="-","-","O")) -> - | VF2: =IF(VF3<=Premissas!$C$60,"C",IF(VF3="-","-","O")) -> - | VG2: =IF(VG3<=Premissas!$C$60,"C",IF(VG3="-","-","O")) -> - | VH2: =IF(VH3<=Premissas!$C$60,"C",IF(VH3="-","-","O")) -> - | VI2: =IF(VI3<=Premissas!$C$60,"C",IF(VI3="-","-","O")) -> - | VJ2: =IF(VJ3<=Premissas!$C$60,"C",IF(VJ3="-","-","O")) -> - | VK2: =IF(VK3<=Premissas!$C$60,"C",IF(VK3="-","-","O")) -> - | VL2: =IF(VL3<=Premissas!$C$60,"C",IF(VL3="-","-","O")) -> - | VM2: =IF(VM3<=Premissas!$C$60,"C",IF(VM3="-","-","O")) -> - | VN2: =IF(VN3<=Premissas!$C$60,"C",IF(VN3="-","-","O")) -> - | VO2: =IF(VO3<=Premissas!$C$60,"C",IF(VO3="-","-","O")) -> - | VP2: =IF(VP3<=Premissas!$C$60,"C",IF(VP3="-","-","O")) -> - | VQ2: =IF(VQ3<=Premissas!$C$60,"C",IF(VQ3="-","-","O")) -> - | VR2: =IF(VR3<=Premissas!$C$60,"C",IF(VR3="-","-","O")) -> - | VS2: =IF(VS3<=Premissas!$C$60,"C",IF(VS3="-","-","O")) -> - | VT2: =IF(VT3<=Premissas!$C$60,"C",IF(VT3="-","-","O")) -> - | VU2: =IF(VU3<=Premissas!$C$60,"C",IF(VU3="-","-","O")) -> - | VV2: =IF(VV3<=Premissas!$C$60,"C",IF(VV3="-","-","O")) -> - | VW2: =IF(VW3<=Premissas!$C$60,"C",IF(VW3="-","-","O")) -> - | VX2: =IF(VX3<=Premissas!$C$60,"C",IF(VX3="-","-","O")) -> - | VY2: =IF(VY3<=Premissas!$C$60,"C",IF(VY3="-","-","O")) -> - | VZ2: =IF(VZ3<=Premissas!$C$60,"C",IF(VZ3="-","-","O")) -> - | WA2: =IF(WA3<=Premissas!$C$60,"C",IF(WA3="-","-","O")) -> - | WB2: =IF(WB3<=Premissas!$C$60,"C",IF(WB3="-","-","O")) -> - | WC2: =IF(WC3<=Premissas!$C$60,"C",IF(WC3="-","-","O")) -> - | WD2: =IF(WD3<=Premissas!$C$60,"C",IF(WD3="-","-","O")) -> -
B3: PERÍODO ABSOLUTO | C3: 1 | D3: =IF(C3="-","-",IF(C3+1>Premissas!$C$58,"-",C3+1)) -> 2 | E3: =IF(D3="-","-",IF(D3+1>Premissas!$C$58,"-",D3+1)) -> 3 | F3: =IF(E3="-","-",IF(E3+1>Premissas!$C$58,"-",E3+1)) -> 4 | G3: =IF(F3="-","-",IF(F3+1>Premissas!$C$58,"-",F3+1)) -> 5 | H3: =IF(G3="-","-",IF(G3+1>Premissas!$C$58,"-",G3+1)) -> 6 | I3: =IF(H3="-","-",IF(H3+1>Premissas!$C$58,"-",H3+1)) -> 7 | J3: =IF(I3="-","-",IF(I3+1>Premissas!$C$58,"-",I3+1)) -> 8 | K3: =IF(J3="-","-",IF(J3+1>Premissas!$C$58,"-",J3+1)) -> 9 | L3: =IF(K3="-","-",IF(K3+1>Premissas!$C$58,"-",K3+1)) -> 10 | M3: =IF(L3="-","-",IF(L3+1>Premissas!$C$58,"-",L3+1)) -> 11 | N3: =IF(M3="-","-",IF(M3+1>Premissas!$C$58,"-",M3+1)) -> 12 | O3: =IF(N3="-","-",IF(N3+1>Premissas!$C$58,"-",N3+1)) -> 13 | P3: =IF(O3="-","-",IF(O3+1>Premissas!$C$58,"-",O3+1)) -> 14 | Q3: =IF(P3="-","-",IF(P3+1>Premissas!$C$58,"-",P3+1)) -> 15 | R3: =IF(Q3="-","-",IF(Q3+1>Premissas!$C$58,"-",Q3+1)) -> 16 | S3: =IF(R3="-","-",IF(R3+1>Premissas!$C$58,"-",R3+1)) -> 17 | T3: =IF(S3="-","-",IF(S3+1>Premissas!$C$58,"-",S3+1)) -> 18 | U3: =IF(T3="-","-",IF(T3+1>Premissas!$C$58,"-",T3+1)) -> 19 | V3: =IF(U3="-","-",IF(U3+1>Premissas!$C$58,"-",U3+1)) -> 20 | W3: =IF(V3="-","-",IF(V3+1>Premissas!$C$58,"-",V3+1)) -> 21 | X3: =IF(W3="-","-",IF(W3+1>Premissas!$C$58,"-",W3+1)) -> 22 | Y3: =IF(X3="-","-",IF(X3+1>Premissas!$C$58,"-",X3+1)) -> 23 | Z3: =IF(Y3="-","-",IF(Y3+1>Premissas!$C$58,"-",Y3+1)) -> 24 | AA3: =IF(Z3="-","-",IF(Z3+1>Premissas!$C$58,"-",Z3+1)) -> 25 | AB3: =IF(AA3="-","-",IF(AA3+1>Premissas!$C$58,"-",AA3+1)) -> 26 | AC3: =IF(AB3="-","-",IF(AB3+1>Premissas!$C$58,"-",AB3+1)) -> 27 | AD3: =IF(AC3="-","-",IF(AC3+1>Premissas!$C$58,"-",AC3+1)) -> 28 | AE3: =IF(AD3="-","-",IF(AD3+1>Premissas!$C$58,"-",AD3+1)) -> 29 | AF3: =IF(AE3="-","-",IF(AE3+1>Premissas!$C$58,"-",AE3+1)) -> 30 | AG3: =IF(AF3="-","-",IF(AF3+1>Premissas!$C$58,"-",AF3+1)) -> 31 | AH3: =IF(AG3="-","-",IF(AG3+1>Premissas!$C$58,"-",AG3+1)) -> - | AI3: =IF(AH3="-","-",IF(AH3+1>Premissas!$C$58,"-",AH3+1)) -> - | AJ3: =IF(AI3="-","-",IF(AI3+1>Premissas!$C$58,"-",AI3+1)) -> - | AK3: =IF(AJ3="-","-",IF(AJ3+1>Premissas!$C$58,"-",AJ3+1)) -> - | AL3: =IF(AK3="-","-",IF(AK3+1>Premissas!$C$58,"-",AK3+1)) -> - | AM3: =IF(AL3="-","-",IF(AL3+1>Premissas!$C$58,"-",AL3+1)) -> - | AN3: =IF(AM3="-","-",IF(AM3+1>Premissas!$C$58,"-",AM3+1)) -> - | AO3: =IF(AN3="-","-",IF(AN3+1>Premissas!$C$58,"-",AN3+1)) -> - | AP3: =IF(AO3="-","-",IF(AO3+1>Premissas!$C$58,"-",AO3+1)) -> - | AQ3: =IF(AP3="-","-",IF(AP3+1>Premissas!$C$58,"-",AP3+1)) -> - | AR3: =IF(AQ3="-","-",IF(AQ3+1>Premissas!$C$58,"-",AQ3+1)) -> - | AS3: =IF(AR3="-","-",IF(AR3+1>Premissas!$C$58,"-",AR3+1)) -> - | AT3: =IF(AS3="-","-",IF(AS3+1>Premissas!$C$58,"-",AS3+1)) -> - | AU3: =IF(AT3="-","-",IF(AT3+1>Premissas!$C$58,"-",AT3+1)) -> - | AV3: =IF(AU3="-","-",IF(AU3+1>Premissas!$C$58,"-",AU3+1)) -> - | AW3: =IF(AV3="-","-",IF(AV3+1>Premissas!$C$58,"-",AV3+1)) -> - | AX3: =IF(AW3="-","-",IF(AW3+1>Premissas!$C$58,"-",AW3+1)) -> - | AY3: =IF(AX3="-","-",IF(AX3+1>Premissas!$C$58,"-",AX3+1)) -> - | AZ3: =IF(AY3="-","-",IF(AY3+1>Premissas!$C$58,"-",AY3+1)) -> - | BA3: =IF(AZ3="-","-",IF(AZ3+1>Premissas!$C$58,"-",AZ3+1)) -> - | BB3: =IF(BA3="-","-",IF(BA3+1>Premissas!$C$58,"-",BA3+1)) -> - | BC3: =IF(BB3="-","-",IF(BB3+1>Premissas!$C$58,"-",BB3+1)) -> - | BD3: =IF(BC3="-","-",IF(BC3+1>Premissas!$C$58,"-",BC3+1)) -> - | BE3: =IF(BD3="-","-",IF(BD3+1>Premissas!$C$58,"-",BD3+1)) -> - | BF3: =IF(BE3="-","-",IF(BE3+1>Premissas!$C$58,"-",BE3+1)) -> - | BG3: =IF(BF3="-","-",IF(BF3+1>Premissas!$C$58,"-",BF3+1)) -> - | BH3: =IF(BG3="-","-",IF(BG3+1>Premissas!$C$58,"-",BG3+1)) -> - | BI3: =IF(BH3="-","-",IF(BH3+1>Premissas!$C$58,"-",BH3+1)) -> - | BJ3: =IF(BI3="-","-",IF(BI3+1>Premissas!$C$58,"-",BI3+1)) -> - | BK3: =IF(BJ3="-","-",IF(BJ3+1>Premissas!$C$58,"-",BJ3+1)) -> - | BL3: =IF(BK3="-","-",IF(BK3+1>Premissas!$C$58,"-",BK3+1)) -> - | BM3: =IF(BL3="-","-",IF(BL3+1>Premissas!$C$58,"-",BL3+1)) -> - | BN3: =IF(BM3="-","-",IF(BM3+1>Premissas!$C$58,"-",BM3+1)) -> - | BO3: =IF(BN3="-","-",IF(BN3+1>Premissas!$C$58,"-",BN3+1)) -> - | BP3: =IF(BO3="-","-",IF(BO3+1>Premissas!$C$58,"-",BO3+1)) -> - | BQ3: =IF(BP3="-","-",IF(BP3+1>Premissas!$C$58,"-",BP3+1)) -> - | BR3: =IF(BQ3="-","-",IF(BQ3+1>Premissas!$C$58,"-",BQ3+1)) -> - | BS3: =IF(BR3="-","-",IF(BR3+1>Premissas!$C$58,"-",BR3+1)) -> - | BT3: =IF(BS3="-","-",IF(BS3+1>Premissas!$C$58,"-",BS3+1)) -> - | BU3: =IF(BT3="-","-",IF(BT3+1>Premissas!$C$58,"-",BT3+1)) -> - | BV3: =IF(BU3="-","-",IF(BU3+1>Premissas!$C$58,"-",BU3+1)) -> - | BW3: =IF(BV3="-","-",IF(BV3+1>Premissas!$C$58,"-",BV3+1)) -> - | BX3: =IF(BW3="-","-",IF(BW3+1>Premissas!$C$58,"-",BW3+1)) -> - | BY3: =IF(BX3="-","-",IF(BX3+1>Premissas!$C$58,"-",BX3+1)) -> - | BZ3: =IF(BY3="-","-",IF(BY3+1>Premissas!$C$58,"-",BY3+1)) -> - | CA3: =IF(BZ3="-","-",IF(BZ3+1>Premissas!$C$58,"-",BZ3+1)) -> - | CB3: =IF(CA3="-","-",IF(CA3+1>Premissas!$C$58,"-",CA3+1)) -> - | CC3: =IF(CB3="-","-",IF(CB3+1>Premissas!$C$58,"-",CB3+1)) -> - | CD3: =IF(CC3="-","-",IF(CC3+1>Premissas!$C$58,"-",CC3+1)) -> - | CE3: =IF(CD3="-","-",IF(CD3+1>Premissas!$C$58,"-",CD3+1)) -> - | CF3: =IF(CE3="-","-",IF(CE3+1>Premissas!$C$58,"-",CE3+1)) -> - | CG3: =IF(CF3="-","-",IF(CF3+1>Premissas!$C$58,"-",CF3+1)) -> - | CH3: =IF(CG3="-","-",IF(CG3+1>Premissas!$C$58,"-",CG3+1)) -> - | CI3: =IF(CH3="-","-",IF(CH3+1>Premissas!$C$58,"-",CH3+1)) -> - | CJ3: =IF(CI3="-","-",IF(CI3+1>Premissas!$C$58,"-",CI3+1)) -> - | CK3: =IF(CJ3="-","-",IF(CJ3+1>Premissas!$C$58,"-",CJ3+1)) -> - | CL3: =IF(CK3="-","-",IF(CK3+1>Premissas!$C$58,"-",CK3+1)) -> - | CM3: =IF(CL3="-","-",IF(CL3+1>Premissas!$C$58,"-",CL3+1)) -> - | CN3: =IF(CM3="-","-",IF(CM3+1>Premissas!$C$58,"-",CM3+1)) -> - | CO3: =IF(CN3="-","-",IF(CN3+1>Premissas!$C$58,"-",CN3+1)) -> - | CP3: =IF(CO3="-","-",IF(CO3+1>Premissas!$C$58,"-",CO3+1)) -> - | CQ3: =IF(CP3="-","-",IF(CP3+1>Premissas!$C$58,"-",CP3+1)) -> - | CR3: =IF(CQ3="-","-",IF(CQ3+1>Premissas!$C$58,"-",CQ3+1)) -> - | CS3: =IF(CR3="-","-",IF(CR3+1>Premissas!$C$58,"-",CR3+1)) -> - | CT3: =IF(CS3="-","-",IF(CS3+1>Premissas!$C$58,"-",CS3+1)) -> - | CU3: =IF(CT3="-","-",IF(CT3+1>Premissas!$C$58,"-",CT3+1)) -> - | CV3: =IF(CU3="-","-",IF(CU3+1>Premissas!$C$58,"-",CU3+1)) -> - | CW3: =IF(CV3="-","-",IF(CV3+1>Premissas!$C$58,"-",CV3+1)) -> - | CX3: =IF(CW3="-","-",IF(CW3+1>Premissas!$C$58,"-",CW3+1)) -> - | CY3: =IF(CX3="-","-",IF(CX3+1>Premissas!$C$58,"-",CX3+1)) -> - | CZ3: =IF(CY3="-","-",IF(CY3+1>Premissas!$C$58,"-",CY3+1)) -> - | DA3: =IF(CZ3="-","-",IF(CZ3+1>Premissas!$C$58,"-",CZ3+1)) -> - | DB3: =IF(DA3="-","-",IF(DA3+1>Premissas!$C$58,"-",DA3+1)) -> - | DC3: =IF(DB3="-","-",IF(DB3+1>Premissas!$C$58,"-",DB3+1)) -> - | DD3: =IF(DC3="-","-",IF(DC3+1>Premissas!$C$58,"-",DC3+1)) -> - | DE3: =IF(DD3="-","-",IF(DD3+1>Premissas!$C$58,"-",DD3+1)) -> - | DF3: =IF(DE3="-","-",IF(DE3+1>Premissas!$C$58,"-",DE3+1)) -> - | DG3: =IF(DF3="-","-",IF(DF3+1>Premissas!$C$58,"-",DF3+1)) -> - | DH3: =IF(DG3="-","-",IF(DG3+1>Premissas!$C$58,"-",DG3+1)) -> - | DI3: =IF(DH3="-","-",IF(DH3+1>Premissas!$C$58,"-",DH3+1)) -> - | DJ3: =IF(DI3="-","-",IF(DI3+1>Premissas!$C$58,"-",DI3+1)) -> - | DK3: =IF(DJ3="-","-",IF(DJ3+1>Premissas!$C$58,"-",DJ3+1)) -> - | DL3: =IF(DK3="-","-",IF(DK3+1>Premissas!$C$58,"-",DK3+1)) -> - | DM3: =IF(DL3="-","-",IF(DL3+1>Premissas!$C$58,"-",DL3+1)) -> - | DN3: =IF(DM3="-","-",IF(DM3+1>Premissas!$C$58,"-",DM3+1)) -> - | DO3: =IF(DN3="-","-",IF(DN3+1>Premissas!$C$58,"-",DN3+1)) -> - | DP3: =IF(DO3="-","-",IF(DO3+1>Premissas!$C$58,"-",DO3+1)) -> - | DQ3: =IF(DP3="-","-",IF(DP3+1>Premissas!$C$58,"-",DP3+1)) -> - | DR3: =IF(DQ3="-","-",IF(DQ3+1>Premissas!$C$58,"-",DQ3+1)) -> - | DS3: =IF(DR3="-","-",IF(DR3+1>Premissas!$C$58,"-",DR3+1)) -> - | DT3: =IF(DS3="-","-",IF(DS3+1>Premissas!$C$58,"-",DS3+1)) -> - | DU3: =IF(DT3="-","-",IF(DT3+1>Premissas!$C$58,"-",DT3+1)) -> - | DV3: =IF(DU3="-","-",IF(DU3+1>Premissas!$C$58,"-",DU3+1)) -> - | DW3: =IF(DV3="-","-",IF(DV3+1>Premissas!$C$58,"-",DV3+1)) -> - | DX3: =IF(DW3="-","-",IF(DW3+1>Premissas!$C$58,"-",DW3+1)) -> - | DY3: =IF(DX3="-","-",IF(DX3+1>Premissas!$C$58,"-",DX3+1)) -> - | DZ3: =IF(DY3="-","-",IF(DY3+1>Premissas!$C$58,"-",DY3+1)) -> - | EA3: =IF(DZ3="-","-",IF(DZ3+1>Premissas!$C$58,"-",DZ3+1)) -> - | EB3: =IF(EA3="-","-",IF(EA3+1>Premissas!$C$58,"-",EA3+1)) -> - | EC3: =IF(EB3="-","-",IF(EB3+1>Premissas!$C$58,"-",EB3+1)) -> - | ED3: =IF(EC3="-","-",IF(EC3+1>Premissas!$C$58,"-",EC3+1)) -> - | EE3: =IF(ED3="-","-",IF(ED3+1>Premissas!$C$58,"-",ED3+1)) -> - | EF3: =IF(EE3="-","-",IF(EE3+1>Premissas!$C$58,"-",EE3+1)) -> - | EG3: =IF(EF3="-","-",IF(EF3+1>Premissas!$C$58,"-",EF3+1)) -> - | EH3: =IF(EG3="-","-",IF(EG3+1>Premissas!$C$58,"-",EG3+1)) -> - | EI3: =IF(EH3="-","-",IF(EH3+1>Premissas!$C$58,"-",EH3+1)) -> - | EJ3: =IF(EI3="-","-",IF(EI3+1>Premissas!$C$58,"-",EI3+1)) -> - | EK3: =IF(EJ3="-","-",IF(EJ3+1>Premissas!$C$58,"-",EJ3+1)) -> - | EL3: =IF(EK3="-","-",IF(EK3+1>Premissas!$C$58,"-",EK3+1)) -> - | EM3: =IF(EL3="-","-",IF(EL3+1>Premissas!$C$58,"-",EL3+1)) -> - | EN3: =IF(EM3="-","-",IF(EM3+1>Premissas!$C$58,"-",EM3+1)) -> - | EO3: =IF(EN3="-","-",IF(EN3+1>Premissas!$C$58,"-",EN3+1)) -> - | EP3: =IF(EO3="-","-",IF(EO3+1>Premissas!$C$58,"-",EO3+1)) -> - | EQ3: =IF(EP3="-","-",IF(EP3+1>Premissas!$C$58,"-",EP3+1)) -> - | ER3: =IF(EQ3="-","-",IF(EQ3+1>Premissas!$C$58,"-",EQ3+1)) -> - | ES3: =IF(ER3="-","-",IF(ER3+1>Premissas!$C$58,"-",ER3+1)) -> - | ET3: =IF(ES3="-","-",IF(ES3+1>Premissas!$C$58,"-",ES3+1)) -> - | EU3: =IF(ET3="-","-",IF(ET3+1>Premissas!$C$58,"-",ET3+1)) -> - | EV3: =IF(EU3="-","-",IF(EU3+1>Premissas!$C$58,"-",EU3+1)) -> - | EW3: =IF(EV3="-","-",IF(EV3+1>Premissas!$C$58,"-",EV3+1)) -> - | EX3: =IF(EW3="-","-",IF(EW3+1>Premissas!$C$58,"-",EW3+1)) -> - | EY3: =IF(EX3="-","-",IF(EX3+1>Premissas!$C$58,"-",EX3+1)) -> - | EZ3: =IF(EY3="-","-",IF(EY3+1>Premissas!$C$58,"-",EY3+1)) -> - | FA3: =IF(EZ3="-","-",IF(EZ3+1>Premissas!$C$58,"-",EZ3+1)) -> - | FB3: =IF(FA3="-","-",IF(FA3+1>Premissas!$C$58,"-",FA3+1)) -> - | FC3: =IF(FB3="-","-",IF(FB3+1>Premissas!$C$58,"-",FB3+1)) -> - | FD3: =IF(FC3="-","-",IF(FC3+1>Premissas!$C$58,"-",FC3+1)) -> - | FE3: =IF(FD3="-","-",IF(FD3+1>Premissas!$C$58,"-",FD3+1)) -> - | FF3: =IF(FE3="-","-",IF(FE3+1>Premissas!$C$58,"-",FE3+1)) -> - | FG3: =IF(FF3="-","-",IF(FF3+1>Premissas!$C$58,"-",FF3+1)) -> - | FH3: =IF(FG3="-","-",IF(FG3+1>Premissas!$C$58,"-",FG3+1)) -> - | FI3: =IF(FH3="-","-",IF(FH3+1>Premissas!$C$58,"-",FH3+1)) -> - | FJ3: =IF(FI3="-","-",IF(FI3+1>Premissas!$C$58,"-",FI3+1)) -> - | FK3: =IF(FJ3="-","-",IF(FJ3+1>Premissas!$C$58,"-",FJ3+1)) -> - | FL3: =IF(FK3="-","-",IF(FK3+1>Premissas!$C$58,"-",FK3+1)) -> - | FM3: =IF(FL3="-","-",IF(FL3+1>Premissas!$C$58,"-",FL3+1)) -> - | FN3: =IF(FM3="-","-",IF(FM3+1>Premissas!$C$58,"-",FM3+1)) -> - | FO3: =IF(FN3="-","-",IF(FN3+1>Premissas!$C$58,"-",FN3+1)) -> - | FP3: =IF(FO3="-","-",IF(FO3+1>Premissas!$C$58,"-",FO3+1)) -> - | FQ3: =IF(FP3="-","-",IF(FP3+1>Premissas!$C$58,"-",FP3+1)) -> - | FR3: =IF(FQ3="-","-",IF(FQ3+1>Premissas!$C$58,"-",FQ3+1)) -> - | FS3: =IF(FR3="-","-",IF(FR3+1>Premissas!$C$58,"-",FR3+1)) -> - | FT3: =IF(FS3="-","-",IF(FS3+1>Premissas!$C$58,"-",FS3+1)) -> - | FU3: =IF(FT3="-","-",IF(FT3+1>Premissas!$C$58,"-",FT3+1)) -> - | FV3: =IF(FU3="-","-",IF(FU3+1>Premissas!$C$58,"-",FU3+1)) -> - | FW3: =IF(FV3="-","-",IF(FV3+1>Premissas!$C$58,"-",FV3+1)) -> - | FX3: =IF(FW3="-","-",IF(FW3+1>Premissas!$C$58,"-",FW3+1)) -> - | FY3: =IF(FX3="-","-",IF(FX3+1>Premissas!$C$58,"-",FX3+1)) -> - | FZ3: =IF(FY3="-","-",IF(FY3+1>Premissas!$C$58,"-",FY3+1)) -> - | GA3: =IF(FZ3="-","-",IF(FZ3+1>Premissas!$C$58,"-",FZ3+1)) -> - | GB3: =IF(GA3="-","-",IF(GA3+1>Premissas!$C$58,"-",GA3+1)) -> - | GC3: =IF(GB3="-","-",IF(GB3+1>Premissas!$C$58,"-",GB3+1)) -> - | GD3: =IF(GC3="-","-",IF(GC3+1>Premissas!$C$58,"-",GC3+1)) -> - | GE3: =IF(GD3="-","-",IF(GD3+1>Premissas!$C$58,"-",GD3+1)) -> - | GF3: =IF(GE3="-","-",IF(GE3+1>Premissas!$C$58,"-",GE3+1)) -> - | GG3: =IF(GF3="-","-",IF(GF3+1>Premissas!$C$58,"-",GF3+1)) -> - | GH3: =IF(GG3="-","-",IF(GG3+1>Premissas!$C$58,"-",GG3+1)) -> - | GI3: =IF(GH3="-","-",IF(GH3+1>Premissas!$C$58,"-",GH3+1)) -> - | GJ3: =IF(GI3="-","-",IF(GI3+1>Premissas!$C$58,"-",GI3+1)) -> - | GK3: =IF(GJ3="-","-",IF(GJ3+1>Premissas!$C$58,"-",GJ3+1)) -> - | GL3: =IF(GK3="-","-",IF(GK3+1>Premissas!$C$58,"-",GK3+1)) -> - | GM3: =IF(GL3="-","-",IF(GL3+1>Premissas!$C$58,"-",GL3+1)) -> - | GN3: =IF(GM3="-","-",IF(GM3+1>Premissas!$C$58,"-",GM3+1)) -> - | GO3: =IF(GN3="-","-",IF(GN3+1>Premissas!$C$58,"-",GN3+1)) -> - | GP3: =IF(GO3="-","-",IF(GO3+1>Premissas!$C$58,"-",GO3+1)) -> - | GQ3: =IF(GP3="-","-",IF(GP3+1>Premissas!$C$58,"-",GP3+1)) -> - | GR3: =IF(GQ3="-","-",IF(GQ3+1>Premissas!$C$58,"-",GQ3+1)) -> - | GS3: =IF(GR3="-","-",IF(GR3+1>Premissas!$C$58,"-",GR3+1)) -> - | GT3: =IF(GS3="-","-",IF(GS3+1>Premissas!$C$58,"-",GS3+1)) -> - | GU3: =IF(GT3="-","-",IF(GT3+1>Premissas!$C$58,"-",GT3+1)) -> - | GV3: =IF(GU3="-","-",IF(GU3+1>Premissas!$C$58,"-",GU3+1)) -> - | GW3: =IF(GV3="-","-",IF(GV3+1>Premissas!$C$58,"-",GV3+1)) -> - | GX3: =IF(GW3="-","-",IF(GW3+1>Premissas!$C$58,"-",GW3+1)) -> - | GY3: =IF(GX3="-","-",IF(GX3+1>Premissas!$C$58,"-",GX3+1)) -> - | GZ3: =IF(GY3="-","-",IF(GY3+1>Premissas!$C$58,"-",GY3+1)) -> - | HA3: =IF(GZ3="-","-",IF(GZ3+1>Premissas!$C$58,"-",GZ3+1)) -> - | HB3: =IF(HA3="-","-",IF(HA3+1>Premissas!$C$58,"-",HA3+1)) -> - | HC3: =IF(HB3="-","-",IF(HB3+1>Premissas!$C$58,"-",HB3+1)) -> - | HD3: =IF(HC3="-","-",IF(HC3+1>Premissas!$C$58,"-",HC3+1)) -> - | HE3: =IF(HD3="-","-",IF(HD3+1>Premissas!$C$58,"-",HD3+1)) -> - | HF3: =IF(HE3="-","-",IF(HE3+1>Premissas!$C$58,"-",HE3+1)) -> - | HG3: =IF(HF3="-","-",IF(HF3+1>Premissas!$C$58,"-",HF3+1)) -> - | HH3: =IF(HG3="-","-",IF(HG3+1>Premissas!$C$58,"-",HG3+1)) -> - | HI3: =IF(HH3="-","-",IF(HH3+1>Premissas!$C$58,"-",HH3+1)) -> - | HJ3: =IF(HI3="-","-",IF(HI3+1>Premissas!$C$58,"-",HI3+1)) -> - | HK3: =IF(HJ3="-","-",IF(HJ3+1>Premissas!$C$58,"-",HJ3+1)) -> - | HL3: =IF(HK3="-","-",IF(HK3+1>Premissas!$C$58,"-",HK3+1)) -> - | HM3: =IF(HL3="-","-",IF(HL3+1>Premissas!$C$58,"-",HL3+1)) -> - | HN3: =IF(HM3="-","-",IF(HM3+1>Premissas!$C$58,"-",HM3+1)) -> - | HO3: =IF(HN3="-","-",IF(HN3+1>Premissas!$C$58,"-",HN3+1)) -> - | HP3: =IF(HO3="-","-",IF(HO3+1>Premissas!$C$58,"-",HO3+1)) -> - | HQ3: =IF(HP3="-","-",IF(HP3+1>Premissas!$C$58,"-",HP3+1)) -> - | HR3: =IF(HQ3="-","-",IF(HQ3+1>Premissas!$C$58,"-",HQ3+1)) -> - | HS3: =IF(HR3="-","-",IF(HR3+1>Premissas!$C$58,"-",HR3+1)) -> - | HT3: =IF(HS3="-","-",IF(HS3+1>Premissas!$C$58,"-",HS3+1)) -> - | HU3: =IF(HT3="-","-",IF(HT3+1>Premissas!$C$58,"-",HT3+1)) -> - | HV3: =IF(HU3="-","-",IF(HU3+1>Premissas!$C$58,"-",HU3+1)) -> - | HW3: =IF(HV3="-","-",IF(HV3+1>Premissas!$C$58,"-",HV3+1)) -> - | HX3: =IF(HW3="-","-",IF(HW3+1>Premissas!$C$58,"-",HW3+1)) -> - | HY3: =IF(HX3="-","-",IF(HX3+1>Premissas!$C$58,"-",HX3+1)) -> - | HZ3: =IF(HY3="-","-",IF(HY3+1>Premissas!$C$58,"-",HY3+1)) -> - | IA3: =IF(HZ3="-","-",IF(HZ3+1>Premissas!$C$58,"-",HZ3+1)) -> - | IB3: =IF(IA3="-","-",IF(IA3+1>Premissas!$C$58,"-",IA3+1)) -> - | IC3: =IF(IB3="-","-",IF(IB3+1>Premissas!$C$58,"-",IB3+1)) -> - | ID3: =IF(IC3="-","-",IF(IC3+1>Premissas!$C$58,"-",IC3+1)) -> - | IE3: =IF(ID3="-","-",IF(ID3+1>Premissas!$C$58,"-",ID3+1)) -> - | IF3: =IF(IE3="-","-",IF(IE3+1>Premissas!$C$58,"-",IE3+1)) -> - | IG3: =IF(IF3="-","-",IF(IF3+1>Premissas!$C$58,"-",IF3+1)) -> - | IH3: =IF(IG3="-","-",IF(IG3+1>Premissas!$C$58,"-",IG3+1)) -> - | II3: =IF(IH3="-","-",IF(IH3+1>Premissas!$C$58,"-",IH3+1)) -> - | IJ3: =IF(II3="-","-",IF(II3+1>Premissas!$C$58,"-",II3+1)) -> - | IK3: =IF(IJ3="-","-",IF(IJ3+1>Premissas!$C$58,"-",IJ3+1)) -> - | IL3: =IF(IK3="-","-",IF(IK3+1>Premissas!$C$58,"-",IK3+1)) -> - | IM3: =IF(IL3="-","-",IF(IL3+1>Premissas!$C$58,"-",IL3+1)) -> - | IN3: =IF(IM3="-","-",IF(IM3+1>Premissas!$C$58,"-",IM3+1)) -> - | IO3: =IF(IN3="-","-",IF(IN3+1>Premissas!$C$58,"-",IN3+1)) -> - | IP3: =IF(IO3="-","-",IF(IO3+1>Premissas!$C$58,"-",IO3+1)) -> - | IQ3: =IF(IP3="-","-",IF(IP3+1>Premissas!$C$58,"-",IP3+1)) -> - | IR3: =IF(IQ3="-","-",IF(IQ3+1>Premissas!$C$58,"-",IQ3+1)) -> - | IS3: =IF(IR3="-","-",IF(IR3+1>Premissas!$C$58,"-",IR3+1)) -> - | IT3: =IF(IS3="-","-",IF(IS3+1>Premissas!$C$58,"-",IS3+1)) -> - | IU3: =IF(IT3="-","-",IF(IT3+1>Premissas!$C$58,"-",IT3+1)) -> - | IV3: =IF(IU3="-","-",IF(IU3+1>Premissas!$C$58,"-",IU3+1)) -> - | IW3: =IF(IV3="-","-",IF(IV3+1>Premissas!$C$58,"-",IV3+1)) -> - | IX3: =IF(IW3="-","-",IF(IW3+1>Premissas!$C$58,"-",IW3+1)) -> - | IY3: =IF(IX3="-","-",IF(IX3+1>Premissas!$C$58,"-",IX3+1)) -> - | IZ3: =IF(IY3="-","-",IF(IY3+1>Premissas!$C$58,"-",IY3+1)) -> - | JA3: =IF(IZ3="-","-",IF(IZ3+1>Premissas!$C$58,"-",IZ3+1)) -> - | JB3: =IF(JA3="-","-",IF(JA3+1>Premissas!$C$58,"-",JA3+1)) -> - | JC3: =IF(JB3="-","-",IF(JB3+1>Premissas!$C$58,"-",JB3+1)) -> - | JD3: =IF(JC3="-","-",IF(JC3+1>Premissas!$C$58,"-",JC3+1)) -> - | JE3: =IF(JD3="-","-",IF(JD3+1>Premissas!$C$58,"-",JD3+1)) -> - | JF3: =IF(JE3="-","-",IF(JE3+1>Premissas!$C$58,"-",JE3+1)) -> - | JG3: =IF(JF3="-","-",IF(JF3+1>Premissas!$C$58,"-",JF3+1)) -> - | JH3: =IF(JG3="-","-",IF(JG3+1>Premissas!$C$58,"-",JG3+1)) -> - | JI3: =IF(JH3="-","-",IF(JH3+1>Premissas!$C$58,"-",JH3+1)) -> - | JJ3: =IF(JI3="-","-",IF(JI3+1>Premissas!$C$58,"-",JI3+1)) -> - | JK3: =IF(JJ3="-","-",IF(JJ3+1>Premissas!$C$58,"-",JJ3+1)) -> - | JL3: =IF(JK3="-","-",IF(JK3+1>Premissas!$C$58,"-",JK3+1)) -> - | JM3: =IF(JL3="-","-",IF(JL3+1>Premissas!$C$58,"-",JL3+1)) -> - | JN3: =IF(JM3="-","-",IF(JM3+1>Premissas!$C$58,"-",JM3+1)) -> - | JO3: =IF(JN3="-","-",IF(JN3+1>Premissas!$C$58,"-",JN3+1)) -> - | JP3: =IF(JO3="-","-",IF(JO3+1>Premissas!$C$58,"-",JO3+1)) -> - | JQ3: =IF(JP3="-","-",IF(JP3+1>Premissas!$C$58,"-",JP3+1)) -> - | JR3: =IF(JQ3="-","-",IF(JQ3+1>Premissas!$C$58,"-",JQ3+1)) -> - | JS3: =IF(JR3="-","-",IF(JR3+1>Premissas!$C$58,"-",JR3+1)) -> - | JT3: =IF(JS3="-","-",IF(JS3+1>Premissas!$C$58,"-",JS3+1)) -> - | JU3: =IF(JT3="-","-",IF(JT3+1>Premissas!$C$58,"-",JT3+1)) -> - | JV3: =IF(JU3="-","-",IF(JU3+1>Premissas!$C$58,"-",JU3+1)) -> - | JW3: =IF(JV3="-","-",IF(JV3+1>Premissas!$C$58,"-",JV3+1)) -> - | JX3: =IF(JW3="-","-",IF(JW3+1>Premissas!$C$58,"-",JW3+1)) -> - | JY3: =IF(JX3="-","-",IF(JX3+1>Premissas!$C$58,"-",JX3+1)) -> - | JZ3: =IF(JY3="-","-",IF(JY3+1>Premissas!$C$58,"-",JY3+1)) -> - | KA3: =IF(JZ3="-","-",IF(JZ3+1>Premissas!$C$58,"-",JZ3+1)) -> - | KB3: =IF(KA3="-","-",IF(KA3+1>Premissas!$C$58,"-",KA3+1)) -> - | KC3: =IF(KB3="-","-",IF(KB3+1>Premissas!$C$58,"-",KB3+1)) -> - | KD3: =IF(KC3="-","-",IF(KC3+1>Premissas!$C$58,"-",KC3+1)) -> - | KE3: =IF(KD3="-","-",IF(KD3+1>Premissas!$C$58,"-",KD3+1)) -> - | KF3: =IF(KE3="-","-",IF(KE3+1>Premissas!$C$58,"-",KE3+1)) -> - | KG3: =IF(KF3="-","-",IF(KF3+1>Premissas!$C$58,"-",KF3+1)) -> - | KH3: =IF(KG3="-","-",IF(KG3+1>Premissas!$C$58,"-",KG3+1)) -> - | KI3: =IF(KH3="-","-",IF(KH3+1>Premissas!$C$58,"-",KH3+1)) -> - | KJ3: =IF(KI3="-","-",IF(KI3+1>Premissas!$C$58,"-",KI3+1)) -> - | KK3: =IF(KJ3="-","-",IF(KJ3+1>Premissas!$C$58,"-",KJ3+1)) -> - | KL3: =IF(KK3="-","-",IF(KK3+1>Premissas!$C$58,"-",KK3+1)) -> - | KM3: =IF(KL3="-","-",IF(KL3+1>Premissas!$C$58,"-",KL3+1)) -> - | KN3: =IF(KM3="-","-",IF(KM3+1>Premissas!$C$58,"-",KM3+1)) -> - | KO3: =IF(KN3="-","-",IF(KN3+1>Premissas!$C$58,"-",KN3+1)) -> - | KP3: =IF(KO3="-","-",IF(KO3+1>Premissas!$C$58,"-",KO3+1)) -> - | KQ3: =IF(KP3="-","-",IF(KP3+1>Premissas!$C$58,"-",KP3+1)) -> - | KR3: =IF(KQ3="-","-",IF(KQ3+1>Premissas!$C$58,"-",KQ3+1)) -> - | KS3: =IF(KR3="-","-",IF(KR3+1>Premissas!$C$58,"-",KR3+1)) -> - | KT3: =IF(KS3="-","-",IF(KS3+1>Premissas!$C$58,"-",KS3+1)) -> - | KU3: =IF(KT3="-","-",IF(KT3+1>Premissas!$C$58,"-",KT3+1)) -> - | KV3: =IF(KU3="-","-",IF(KU3+1>Premissas!$C$58,"-",KU3+1)) -> - | KW3: =IF(KV3="-","-",IF(KV3+1>Premissas!$C$58,"-",KV3+1)) -> - | KX3: =IF(KW3="-","-",IF(KW3+1>Premissas!$C$58,"-",KW3+1)) -> - | KY3: =IF(KX3="-","-",IF(KX3+1>Premissas!$C$58,"-",KX3+1)) -> - | KZ3: =IF(KY3="-","-",IF(KY3+1>Premissas!$C$58,"-",KY3+1)) -> - | LA3: =IF(KZ3="-","-",IF(KZ3+1>Premissas!$C$58,"-",KZ3+1)) -> - | LB3: =IF(LA3="-","-",IF(LA3+1>Premissas!$C$58,"-",LA3+1)) -> - | LC3: =IF(LB3="-","-",IF(LB3+1>Premissas!$C$58,"-",LB3+1)) -> - | LD3: =IF(LC3="-","-",IF(LC3+1>Premissas!$C$58,"-",LC3+1)) -> - | LE3: =IF(LD3="-","-",IF(LD3+1>Premissas!$C$58,"-",LD3+1)) -> - | LF3: =IF(LE3="-","-",IF(LE3+1>Premissas!$C$58,"-",LE3+1)) -> - | LG3: =IF(LF3="-","-",IF(LF3+1>Premissas!$C$58,"-",LF3+1)) -> - | LH3: =IF(LG3="-","-",IF(LG3+1>Premissas!$C$58,"-",LG3+1)) -> - | LI3: =IF(LH3="-","-",IF(LH3+1>Premissas!$C$58,"-",LH3+1)) -> - | LJ3: =IF(LI3="-","-",IF(LI3+1>Premissas!$C$58,"-",LI3+1)) -> - | LK3: =IF(LJ3="-","-",IF(LJ3+1>Premissas!$C$58,"-",LJ3+1)) -> - | LL3: =IF(LK3="-","-",IF(LK3+1>Premissas!$C$58,"-",LK3+1)) -> - | LM3: =IF(LL3="-","-",IF(LL3+1>Premissas!$C$58,"-",LL3+1)) -> - | LN3: =IF(LM3="-","-",IF(LM3+1>Premissas!$C$58,"-",LM3+1)) -> - | LO3: =IF(LN3="-","-",IF(LN3+1>Premissas!$C$58,"-",LN3+1)) -> - | LP3: =IF(LO3="-","-",IF(LO3+1>Premissas!$C$58,"-",LO3+1)) -> - | LQ3: =IF(LP3="-","-",IF(LP3+1>Premissas!$C$58,"-",LP3+1)) -> - | LR3: =IF(LQ3="-","-",IF(LQ3+1>Premissas!$C$58,"-",LQ3+1)) -> - | LS3: =IF(LR3="-","-",IF(LR3+1>Premissas!$C$58,"-",LR3+1)) -> - | LT3: =IF(LS3="-","-",IF(LS3+1>Premissas!$C$58,"-",LS3+1)) -> - | LU3: =IF(LT3="-","-",IF(LT3+1>Premissas!$C$58,"-",LT3+1)) -> - | LV3: =IF(LU3="-","-",IF(LU3+1>Premissas!$C$58,"-",LU3+1)) -> - | LW3: =IF(LV3="-","-",IF(LV3+1>Premissas!$C$58,"-",LV3+1)) -> - | LX3: =IF(LW3="-","-",IF(LW3+1>Premissas!$C$58,"-",LW3+1)) -> - | LY3: =IF(LX3="-","-",IF(LX3+1>Premissas!$C$58,"-",LX3+1)) -> - | LZ3: =IF(LY3="-","-",IF(LY3+1>Premissas!$C$58,"-",LY3+1)) -> - | MA3: =IF(LZ3="-","-",IF(LZ3+1>Premissas!$C$58,"-",LZ3+1)) -> - | MB3: =IF(MA3="-","-",IF(MA3+1>Premissas!$C$58,"-",MA3+1)) -> - | MC3: =IF(MB3="-","-",IF(MB3+1>Premissas!$C$58,"-",MB3+1)) -> - | MD3: =IF(MC3="-","-",IF(MC3+1>Premissas!$C$58,"-",MC3+1)) -> - | ME3: =IF(MD3="-","-",IF(MD3+1>Premissas!$C$58,"-",MD3+1)) -> - | MF3: =IF(ME3="-","-",IF(ME3+1>Premissas!$C$58,"-",ME3+1)) -> - | MG3: =IF(MF3="-","-",IF(MF3+1>Premissas!$C$58,"-",MF3+1)) -> - | MH3: =IF(MG3="-","-",IF(MG3+1>Premissas!$C$58,"-",MG3+1)) -> - | MI3: =IF(MH3="-","-",IF(MH3+1>Premissas!$C$58,"-",MH3+1)) -> - | MJ3: =IF(MI3="-","-",IF(MI3+1>Premissas!$C$58,"-",MI3+1)) -> - | MK3: =IF(MJ3="-","-",IF(MJ3+1>Premissas!$C$58,"-",MJ3+1)) -> - | ML3: =IF(MK3="-","-",IF(MK3+1>Premissas!$C$58,"-",MK3+1)) -> - | MM3: =IF(ML3="-","-",IF(ML3+1>Premissas!$C$58,"-",ML3+1)) -> - | MN3: =IF(MM3="-","-",IF(MM3+1>Premissas!$C$58,"-",MM3+1)) -> - | MO3: =IF(MN3="-","-",IF(MN3+1>Premissas!$C$58,"-",MN3+1)) -> - | MP3: =IF(MO3="-","-",IF(MO3+1>Premissas!$C$58,"-",MO3+1)) -> - | MQ3: =IF(MP3="-","-",IF(MP3+1>Premissas!$C$58,"-",MP3+1)) -> - | MR3: =IF(MQ3="-","-",IF(MQ3+1>Premissas!$C$58,"-",MQ3+1)) -> - | MS3: =IF(MR3="-","-",IF(MR3+1>Premissas!$C$58,"-",MR3+1)) -> - | MT3: =IF(MS3="-","-",IF(MS3+1>Premissas!$C$58,"-",MS3+1)) -> - | MU3: =IF(MT3="-","-",IF(MT3+1>Premissas!$C$58,"-",MT3+1)) -> - | MV3: =IF(MU3="-","-",IF(MU3+1>Premissas!$C$58,"-",MU3+1)) -> - | MW3: =IF(MV3="-","-",IF(MV3+1>Premissas!$C$58,"-",MV3+1)) -> - | MX3: =IF(MW3="-","-",IF(MW3+1>Premissas!$C$58,"-",MW3+1)) -> - | MY3: =IF(MX3="-","-",IF(MX3+1>Premissas!$C$58,"-",MX3+1)) -> - | MZ3: =IF(MY3="-","-",IF(MY3+1>Premissas!$C$58,"-",MY3+1)) -> - | NA3: =IF(MZ3="-","-",IF(MZ3+1>Premissas!$C$58,"-",MZ3+1)) -> - | NB3: =IF(NA3="-","-",IF(NA3+1>Premissas!$C$58,"-",NA3+1)) -> - | NC3: =IF(NB3="-","-",IF(NB3+1>Premissas!$C$58,"-",NB3+1)) -> - | ND3: =IF(NC3="-","-",IF(NC3+1>Premissas!$C$58,"-",NC3+1)) -> - | NE3: =IF(ND3="-","-",IF(ND3+1>Premissas!$C$58,"-",ND3+1)) -> - | NF3: =IF(NE3="-","-",IF(NE3+1>Premissas!$C$58,"-",NE3+1)) -> - | NG3: =IF(NF3="-","-",IF(NF3+1>Premissas!$C$58,"-",NF3+1)) -> - | NH3: =IF(NG3="-","-",IF(NG3+1>Premissas!$C$58,"-",NG3+1)) -> - | NI3: =IF(NH3="-","-",IF(NH3+1>Premissas!$C$58,"-",NH3+1)) -> - | NJ3: =IF(NI3="-","-",IF(NI3+1>Premissas!$C$58,"-",NI3+1)) -> - | NK3: =IF(NJ3="-","-",IF(NJ3+1>Premissas!$C$58,"-",NJ3+1)) -> - | NL3: =IF(NK3="-","-",IF(NK3+1>Premissas!$C$58,"-",NK3+1)) -> - | NM3: =IF(NL3="-","-",IF(NL3+1>Premissas!$C$58,"-",NL3+1)) -> - | NN3: =IF(NM3="-","-",IF(NM3+1>Premissas!$C$58,"-",NM3+1)) -> - | NO3: =IF(NN3="-","-",IF(NN3+1>Premissas!$C$58,"-",NN3+1)) -> - | NP3: =IF(NO3="-","-",IF(NO3+1>Premissas!$C$58,"-",NO3+1)) -> - | NQ3: =IF(NP3="-","-",IF(NP3+1>Premissas!$C$58,"-",NP3+1)) -> - | NR3: =IF(NQ3="-","-",IF(NQ3+1>Premissas!$C$58,"-",NQ3+1)) -> - | NS3: =IF(NR3="-","-",IF(NR3+1>Premissas!$C$58,"-",NR3+1)) -> - | NT3: =IF(NS3="-","-",IF(NS3+1>Premissas!$C$58,"-",NS3+1)) -> - | NU3: =IF(NT3="-","-",IF(NT3+1>Premissas!$C$58,"-",NT3+1)) -> - | NV3: =IF(NU3="-","-",IF(NU3+1>Premissas!$C$58,"-",NU3+1)) -> - | NW3: =IF(NV3="-","-",IF(NV3+1>Premissas!$C$58,"-",NV3+1)) -> - | NX3: =IF(NW3="-","-",IF(NW3+1>Premissas!$C$58,"-",NW3+1)) -> - | NY3: =IF(NX3="-","-",IF(NX3+1>Premissas!$C$58,"-",NX3+1)) -> - | NZ3: =IF(NY3="-","-",IF(NY3+1>Premissas!$C$58,"-",NY3+1)) -> - | OA3: =IF(NZ3="-","-",IF(NZ3+1>Premissas!$C$58,"-",NZ3+1)) -> - | OB3: =IF(OA3="-","-",IF(OA3+1>Premissas!$C$58,"-",OA3+1)) -> - | OC3: =IF(OB3="-","-",IF(OB3+1>Premissas!$C$58,"-",OB3+1)) -> - | OD3: =IF(OC3="-","-",IF(OC3+1>Premissas!$C$58,"-",OC3+1)) -> - | OE3: =IF(OD3="-","-",IF(OD3+1>Premissas!$C$58,"-",OD3+1)) -> - | OF3: =IF(OE3="-","-",IF(OE3+1>Premissas!$C$58,"-",OE3+1)) -> - | OG3: =IF(OF3="-","-",IF(OF3+1>Premissas!$C$58,"-",OF3+1)) -> - | OH3: =IF(OG3="-","-",IF(OG3+1>Premissas!$C$58,"-",OG3+1)) -> - | OI3: =IF(OH3="-","-",IF(OH3+1>Premissas!$C$58,"-",OH3+1)) -> - | OJ3: =IF(OI3="-","-",IF(OI3+1>Premissas!$C$58,"-",OI3+1)) -> - | OK3: =IF(OJ3="-","-",IF(OJ3+1>Premissas!$C$58,"-",OJ3+1)) -> - | OL3: =IF(OK3="-","-",IF(OK3+1>Premissas!$C$58,"-",OK3+1)) -> - | OM3: =IF(OL3="-","-",IF(OL3+1>Premissas!$C$58,"-",OL3+1)) -> - | ON3: =IF(OM3="-","-",IF(OM3+1>Premissas!$C$58,"-",OM3+1)) -> - | OO3: =IF(ON3="-","-",IF(ON3+1>Premissas!$C$58,"-",ON3+1)) -> - | OP3: =IF(OO3="-","-",IF(OO3+1>Premissas!$C$58,"-",OO3+1)) -> - | OQ3: =IF(OP3="-","-",IF(OP3+1>Premissas!$C$58,"-",OP3+1)) -> - | OR3: =IF(OQ3="-","-",IF(OQ3+1>Premissas!$C$58,"-",OQ3+1)) -> - | OS3: =IF(OR3="-","-",IF(OR3+1>Premissas!$C$58,"-",OR3+1)) -> - | OT3: =IF(OS3="-","-",IF(OS3+1>Premissas!$C$58,"-",OS3+1)) -> - | OU3: =IF(OT3="-","-",IF(OT3+1>Premissas!$C$58,"-",OT3+1)) -> - | OV3: =IF(OU3="-","-",IF(OU3+1>Premissas!$C$58,"-",OU3+1)) -> - | OW3: =IF(OV3="-","-",IF(OV3+1>Premissas!$C$58,"-",OV3+1)) -> - | OX3: =IF(OW3="-","-",IF(OW3+1>Premissas!$C$58,"-",OW3+1)) -> - | OY3: =IF(OX3="-","-",IF(OX3+1>Premissas!$C$58,"-",OX3+1)) -> - | OZ3: =IF(OY3="-","-",IF(OY3+1>Premissas!$C$58,"-",OY3+1)) -> - | PA3: =IF(OZ3="-","-",IF(OZ3+1>Premissas!$C$58,"-",OZ3+1)) -> - | PB3: =IF(PA3="-","-",IF(PA3+1>Premissas!$C$58,"-",PA3+1)) -> - | PC3: =IF(PB3="-","-",IF(PB3+1>Premissas!$C$58,"-",PB3+1)) -> - | PD3: =IF(PC3="-","-",IF(PC3+1>Premissas!$C$58,"-",PC3+1)) -> - | PE3: =IF(PD3="-","-",IF(PD3+1>Premissas!$C$58,"-",PD3+1)) -> - | PF3: =IF(PE3="-","-",IF(PE3+1>Premissas!$C$58,"-",PE3+1)) -> - | PG3: =IF(PF3="-","-",IF(PF3+1>Premissas!$C$58,"-",PF3+1)) -> - | PH3: =IF(PG3="-","-",IF(PG3+1>Premissas!$C$58,"-",PG3+1)) -> - | PI3: =IF(PH3="-","-",IF(PH3+1>Premissas!$C$58,"-",PH3+1)) -> - | PJ3: =IF(PI3="-","-",IF(PI3+1>Premissas!$C$58,"-",PI3+1)) -> - | PK3: =IF(PJ3="-","-",IF(PJ3+1>Premissas!$C$58,"-",PJ3+1)) -> - | PL3: =IF(PK3="-","-",IF(PK3+1>Premissas!$C$58,"-",PK3+1)) -> - | PM3: =IF(PL3="-","-",IF(PL3+1>Premissas!$C$58,"-",PL3+1)) -> - | PN3: =IF(PM3="-","-",IF(PM3+1>Premissas!$C$58,"-",PM3+1)) -> - | PO3: =IF(PN3="-","-",IF(PN3+1>Premissas!$C$58,"-",PN3+1)) -> - | PP3: =IF(PO3="-","-",IF(PO3+1>Premissas!$C$58,"-",PO3+1)) -> - | PQ3: =IF(PP3="-","-",IF(PP3+1>Premissas!$C$58,"-",PP3+1)) -> - | PR3: =IF(PQ3="-","-",IF(PQ3+1>Premissas!$C$58,"-",PQ3+1)) -> - | PS3: =IF(PR3="-","-",IF(PR3+1>Premissas!$C$58,"-",PR3+1)) -> - | PT3: =IF(PS3="-","-",IF(PS3+1>Premissas!$C$58,"-",PS3+1)) -> - | PU3: =IF(PT3="-","-",IF(PT3+1>Premissas!$C$58,"-",PT3+1)) -> - | PV3: =IF(PU3="-","-",IF(PU3+1>Premissas!$C$58,"-",PU3+1)) -> - | PW3: =IF(PV3="-","-",IF(PV3+1>Premissas!$C$58,"-",PV3+1)) -> - | PX3: =IF(PW3="-","-",IF(PW3+1>Premissas!$C$58,"-",PW3+1)) -> - | PY3: =IF(PX3="-","-",IF(PX3+1>Premissas!$C$58,"-",PX3+1)) -> - | PZ3: =IF(PY3="-","-",IF(PY3+1>Premissas!$C$58,"-",PY3+1)) -> - | QA3: =IF(PZ3="-","-",IF(PZ3+1>Premissas!$C$58,"-",PZ3+1)) -> - | QB3: =IF(QA3="-","-",IF(QA3+1>Premissas!$C$58,"-",QA3+1)) -> - | QC3: =IF(QB3="-","-",IF(QB3+1>Premissas!$C$58,"-",QB3+1)) -> - | QD3: =IF(QC3="-","-",IF(QC3+1>Premissas!$C$58,"-",QC3+1)) -> - | QE3: =IF(QD3="-","-",IF(QD3+1>Premissas!$C$58,"-",QD3+1)) -> - | QF3: =IF(QE3="-","-",IF(QE3+1>Premissas!$C$58,"-",QE3+1)) -> - | QG3: =IF(QF3="-","-",IF(QF3+1>Premissas!$C$58,"-",QF3+1)) -> - | QH3: =IF(QG3="-","-",IF(QG3+1>Premissas!$C$58,"-",QG3+1)) -> - | QI3: =IF(QH3="-","-",IF(QH3+1>Premissas!$C$58,"-",QH3+1)) -> - | QJ3: =IF(QI3="-","-",IF(QI3+1>Premissas!$C$58,"-",QI3+1)) -> - | QK3: =IF(QJ3="-","-",IF(QJ3+1>Premissas!$C$58,"-",QJ3+1)) -> - | QL3: =IF(QK3="-","-",IF(QK3+1>Premissas!$C$58,"-",QK3+1)) -> - | QM3: =IF(QL3="-","-",IF(QL3+1>Premissas!$C$58,"-",QL3+1)) -> - | QN3: =IF(QM3="-","-",IF(QM3+1>Premissas!$C$58,"-",QM3+1)) -> - | QO3: =IF(QN3="-","-",IF(QN3+1>Premissas!$C$58,"-",QN3+1)) -> - | QP3: =IF(QO3="-","-",IF(QO3+1>Premissas!$C$58,"-",QO3+1)) -> - | QQ3: =IF(QP3="-","-",IF(QP3+1>Premissas!$C$58,"-",QP3+1)) -> - | QR3: =IF(QQ3="-","-",IF(QQ3+1>Premissas!$C$58,"-",QQ3+1)) -> - | QS3: =IF(QR3="-","-",IF(QR3+1>Premissas!$C$58,"-",QR3+1)) -> - | QT3: =IF(QS3="-","-",IF(QS3+1>Premissas!$C$58,"-",QS3+1)) -> - | QU3: =IF(QT3="-","-",IF(QT3+1>Premissas!$C$58,"-",QT3+1)) -> - | QV3: =IF(QU3="-","-",IF(QU3+1>Premissas!$C$58,"-",QU3+1)) -> - | QW3: =IF(QV3="-","-",IF(QV3+1>Premissas!$C$58,"-",QV3+1)) -> - | QX3: =IF(QW3="-","-",IF(QW3+1>Premissas!$C$58,"-",QW3+1)) -> - | QY3: =IF(QX3="-","-",IF(QX3+1>Premissas!$C$58,"-",QX3+1)) -> - | QZ3: =IF(QY3="-","-",IF(QY3+1>Premissas!$C$58,"-",QY3+1)) -> - | RA3: =IF(QZ3="-","-",IF(QZ3+1>Premissas!$C$58,"-",QZ3+1)) -> - | RB3: =IF(RA3="-","-",IF(RA3+1>Premissas!$C$58,"-",RA3+1)) -> - | RC3: =IF(RB3="-","-",IF(RB3+1>Premissas!$C$58,"-",RB3+1)) -> - | RD3: =IF(RC3="-","-",IF(RC3+1>Premissas!$C$58,"-",RC3+1)) -> - | RE3: =IF(RD3="-","-",IF(RD3+1>Premissas!$C$58,"-",RD3+1)) -> - | RF3: =IF(RE3="-","-",IF(RE3+1>Premissas!$C$58,"-",RE3+1)) -> - | RG3: =IF(RF3="-","-",IF(RF3+1>Premissas!$C$58,"-",RF3+1)) -> - | RH3: =IF(RG3="-","-",IF(RG3+1>Premissas!$C$58,"-",RG3+1)) -> - | RI3: =IF(RH3="-","-",IF(RH3+1>Premissas!$C$58,"-",RH3+1)) -> - | RJ3: =IF(RI3="-","-",IF(RI3+1>Premissas!$C$58,"-",RI3+1)) -> - | RK3: =IF(RJ3="-","-",IF(RJ3+1>Premissas!$C$58,"-",RJ3+1)) -> - | RL3: =IF(RK3="-","-",IF(RK3+1>Premissas!$C$58,"-",RK3+1)) -> - | RM3: =IF(RL3="-","-",IF(RL3+1>Premissas!$C$58,"-",RL3+1)) -> - | RN3: =IF(RM3="-","-",IF(RM3+1>Premissas!$C$58,"-",RM3+1)) -> - | RO3: =IF(RN3="-","-",IF(RN3+1>Premissas!$C$58,"-",RN3+1)) -> - | RP3: =IF(RO3="-","-",IF(RO3+1>Premissas!$C$58,"-",RO3+1)) -> - | RQ3: =IF(RP3="-","-",IF(RP3+1>Premissas!$C$58,"-",RP3+1)) -> - | RR3: =IF(RQ3="-","-",IF(RQ3+1>Premissas!$C$58,"-",RQ3+1)) -> - | RS3: =IF(RR3="-","-",IF(RR3+1>Premissas!$C$58,"-",RR3+1)) -> - | RT3: =IF(RS3="-","-",IF(RS3+1>Premissas!$C$58,"-",RS3+1)) -> - | RU3: =IF(RT3="-","-",IF(RT3+1>Premissas!$C$58,"-",RT3+1)) -> - | RV3: =IF(RU3="-","-",IF(RU3+1>Premissas!$C$58,"-",RU3+1)) -> - | RW3: =IF(RV3="-","-",IF(RV3+1>Premissas!$C$58,"-",RV3+1)) -> - | RX3: =IF(RW3="-","-",IF(RW3+1>Premissas!$C$58,"-",RW3+1)) -> - | RY3: =IF(RX3="-","-",IF(RX3+1>Premissas!$C$58,"-",RX3+1)) -> - | RZ3: =IF(RY3="-","-",IF(RY3+1>Premissas!$C$58,"-",RY3+1)) -> - | SA3: =IF(RZ3="-","-",IF(RZ3+1>Premissas!$C$58,"-",RZ3+1)) -> - | SB3: =IF(SA3="-","-",IF(SA3+1>Premissas!$C$58,"-",SA3+1)) -> - | SC3: =IF(SB3="-","-",IF(SB3+1>Premissas!$C$58,"-",SB3+1)) -> - | SD3: =IF(SC3="-","-",IF(SC3+1>Premissas!$C$58,"-",SC3+1)) -> - | SE3: =IF(SD3="-","-",IF(SD3+1>Premissas!$C$58,"-",SD3+1)) -> - | SF3: =IF(SE3="-","-",IF(SE3+1>Premissas!$C$58,"-",SE3+1)) -> - | SG3: =IF(SF3="-","-",IF(SF3+1>Premissas!$C$58,"-",SF3+1)) -> - | SH3: =IF(SG3="-","-",IF(SG3+1>Premissas!$C$58,"-",SG3+1)) -> - | SI3: =IF(SH3="-","-",IF(SH3+1>Premissas!$C$58,"-",SH3+1)) -> - | SJ3: =IF(SI3="-","-",IF(SI3+1>Premissas!$C$58,"-",SI3+1)) -> - | SK3: =IF(SJ3="-","-",IF(SJ3+1>Premissas!$C$58,"-",SJ3+1)) -> - | SL3: =IF(SK3="-","-",IF(SK3+1>Premissas!$C$58,"-",SK3+1)) -> - | SM3: =IF(SL3="-","-",IF(SL3+1>Premissas!$C$58,"-",SL3+1)) -> - | SN3: =IF(SM3="-","-",IF(SM3+1>Premissas!$C$58,"-",SM3+1)) -> - | SO3: =IF(SN3="-","-",IF(SN3+1>Premissas!$C$58,"-",SN3+1)) -> - | SP3: =IF(SO3="-","-",IF(SO3+1>Premissas!$C$58,"-",SO3+1)) -> - | SQ3: =IF(SP3="-","-",IF(SP3+1>Premissas!$C$58,"-",SP3+1)) -> - | SR3: =IF(SQ3="-","-",IF(SQ3+1>Premissas!$C$58,"-",SQ3+1)) -> - | SS3: =IF(SR3="-","-",IF(SR3+1>Premissas!$C$58,"-",SR3+1)) -> - | ST3: =IF(SS3="-","-",IF(SS3+1>Premissas!$C$58,"-",SS3+1)) -> - | SU3: =IF(ST3="-","-",IF(ST3+1>Premissas!$C$58,"-",ST3+1)) -> - | SV3: =IF(SU3="-","-",IF(SU3+1>Premissas!$C$58,"-",SU3+1)) -> - | SW3: =IF(SV3="-","-",IF(SV3+1>Premissas!$C$58,"-",SV3+1)) -> - | SX3: =IF(SW3="-","-",IF(SW3+1>Premissas!$C$58,"-",SW3+1)) -> - | SY3: =IF(SX3="-","-",IF(SX3+1>Premissas!$C$58,"-",SX3+1)) -> - | SZ3: =IF(SY3="-","-",IF(SY3+1>Premissas!$C$58,"-",SY3+1)) -> - | TA3: =IF(SZ3="-","-",IF(SZ3+1>Premissas!$C$58,"-",SZ3+1)) -> - | TB3: =IF(TA3="-","-",IF(TA3+1>Premissas!$C$58,"-",TA3+1)) -> - | TC3: =IF(TB3="-","-",IF(TB3+1>Premissas!$C$58,"-",TB3+1)) -> - | TD3: =IF(TC3="-","-",IF(TC3+1>Premissas!$C$58,"-",TC3+1)) -> - | TE3: =IF(TD3="-","-",IF(TD3+1>Premissas!$C$58,"-",TD3+1)) -> - | TF3: =IF(TE3="-","-",IF(TE3+1>Premissas!$C$58,"-",TE3+1)) -> - | TG3: =IF(TF3="-","-",IF(TF3+1>Premissas!$C$58,"-",TF3+1)) -> - | TH3: =IF(TG3="-","-",IF(TG3+1>Premissas!$C$58,"-",TG3+1)) -> - | TI3: =IF(TH3="-","-",IF(TH3+1>Premissas!$C$58,"-",TH3+1)) -> - | TJ3: =IF(TI3="-","-",IF(TI3+1>Premissas!$C$58,"-",TI3+1)) -> - | TK3: =IF(TJ3="-","-",IF(TJ3+1>Premissas!$C$58,"-",TJ3+1)) -> - | TL3: =IF(TK3="-","-",IF(TK3+1>Premissas!$C$58,"-",TK3+1)) -> - | TM3: =IF(TL3="-","-",IF(TL3+1>Premissas!$C$58,"-",TL3+1)) -> - | TN3: =IF(TM3="-","-",IF(TM3+1>Premissas!$C$58,"-",TM3+1)) -> - | TO3: =IF(TN3="-","-",IF(TN3+1>Premissas!$C$58,"-",TN3+1)) -> - | TP3: =IF(TO3="-","-",IF(TO3+1>Premissas!$C$58,"-",TO3+1)) -> - | TQ3: =IF(TP3="-","-",IF(TP3+1>Premissas!$C$58,"-",TP3+1)) -> - | TR3: =IF(TQ3="-","-",IF(TQ3+1>Premissas!$C$58,"-",TQ3+1)) -> - | TS3: =IF(TR3="-","-",IF(TR3+1>Premissas!$C$58,"-",TR3+1)) -> - | TT3: =IF(TS3="-","-",IF(TS3+1>Premissas!$C$58,"-",TS3+1)) -> - | TU3: =IF(TT3="-","-",IF(TT3+1>Premissas!$C$58,"-",TT3+1)) -> - | TV3: =IF(TU3="-","-",IF(TU3+1>Premissas!$C$58,"-",TU3+1)) -> - | TW3: =IF(TV3="-","-",IF(TV3+1>Premissas!$C$58,"-",TV3+1)) -> - | TX3: =IF(TW3="-","-",IF(TW3+1>Premissas!$C$58,"-",TW3+1)) -> - | TY3: =IF(TX3="-","-",IF(TX3+1>Premissas!$C$58,"-",TX3+1)) -> - | TZ3: =IF(TY3="-","-",IF(TY3+1>Premissas!$C$58,"-",TY3+1)) -> - | UA3: =IF(TZ3="-","-",IF(TZ3+1>Premissas!$C$58,"-",TZ3+1)) -> - | UB3: =IF(UA3="-","-",IF(UA3+1>Premissas!$C$58,"-",UA3+1)) -> - | UC3: =IF(UB3="-","-",IF(UB3+1>Premissas!$C$58,"-",UB3+1)) -> - | UD3: =IF(UC3="-","-",IF(UC3+1>Premissas!$C$58,"-",UC3+1)) -> - | UE3: =IF(UD3="-","-",IF(UD3+1>Premissas!$C$58,"-",UD3+1)) -> - | UF3: =IF(UE3="-","-",IF(UE3+1>Premissas!$C$58,"-",UE3+1)) -> - | UG3: =IF(UF3="-","-",IF(UF3+1>Premissas!$C$58,"-",UF3+1)) -> - | UH3: =IF(UG3="-","-",IF(UG3+1>Premissas!$C$58,"-",UG3+1)) -> - | UI3: =IF(UH3="-","-",IF(UH3+1>Premissas!$C$58,"-",UH3+1)) -> - | UJ3: =IF(UI3="-","-",IF(UI3+1>Premissas!$C$58,"-",UI3+1)) -> - | UK3: =IF(UJ3="-","-",IF(UJ3+1>Premissas!$C$58,"-",UJ3+1)) -> - | UL3: =IF(UK3="-","-",IF(UK3+1>Premissas!$C$58,"-",UK3+1)) -> - | UM3: =IF(UL3="-","-",IF(UL3+1>Premissas!$C$58,"-",UL3+1)) -> - | UN3: =IF(UM3="-","-",IF(UM3+1>Premissas!$C$58,"-",UM3+1)) -> - | UO3: =IF(UN3="-","-",IF(UN3+1>Premissas!$C$58,"-",UN3+1)) -> - | UP3: =IF(UO3="-","-",IF(UO3+1>Premissas!$C$58,"-",UO3+1)) -> - | UQ3: =IF(UP3="-","-",IF(UP3+1>Premissas!$C$58,"-",UP3+1)) -> - | UR3: =IF(UQ3="-","-",IF(UQ3+1>Premissas!$C$58,"-",UQ3+1)) -> - | US3: =IF(UR3="-","-",IF(UR3+1>Premissas!$C$58,"-",UR3+1)) -> - | UT3: =IF(US3="-","-",IF(US3+1>Premissas!$C$58,"-",US3+1)) -> - | UU3: =IF(UT3="-","-",IF(UT3+1>Premissas!$C$58,"-",UT3+1)) -> - | UV3: =IF(UU3="-","-",IF(UU3+1>Premissas!$C$58,"-",UU3+1)) -> - | UW3: =IF(UV3="-","-",IF(UV3+1>Premissas!$C$58,"-",UV3+1)) -> - | UX3: =IF(UW3="-","-",IF(UW3+1>Premissas!$C$58,"-",UW3+1)) -> - | UY3: =IF(UX3="-","-",IF(UX3+1>Premissas!$C$58,"-",UX3+1)) -> - | UZ3: =IF(UY3="-","-",IF(UY3+1>Premissas!$C$58,"-",UY3+1)) -> - | VA3: =IF(UZ3="-","-",IF(UZ3+1>Premissas!$C$58,"-",UZ3+1)) -> - | VB3: =IF(VA3="-","-",IF(VA3+1>Premissas!$C$58,"-",VA3+1)) -> - | VC3: =IF(VB3="-","-",IF(VB3+1>Premissas!$C$58,"-",VB3+1)) -> - | VD3: =IF(VC3="-","-",IF(VC3+1>Premissas!$C$58,"-",VC3+1)) -> - | VE3: =IF(VD3="-","-",IF(VD3+1>Premissas!$C$58,"-",VD3+1)) -> - | VF3: =IF(VE3="-","-",IF(VE3+1>Premissas!$C$58,"-",VE3+1)) -> - | VG3: =IF(VF3="-","-",IF(VF3+1>Premissas!$C$58,"-",VF3+1)) -> - | VH3: =IF(VG3="-","-",IF(VG3+1>Premissas!$C$58,"-",VG3+1)) -> - | VI3: =IF(VH3="-","-",IF(VH3+1>Premissas!$C$58,"-",VH3+1)) -> - | VJ3: =IF(VI3="-","-",IF(VI3+1>Premissas!$C$58,"-",VI3+1)) -> - | VK3: =IF(VJ3="-","-",IF(VJ3+1>Premissas!$C$58,"-",VJ3+1)) -> - | VL3: =IF(VK3="-","-",IF(VK3+1>Premissas!$C$58,"-",VK3+1)) -> - | VM3: =IF(VL3="-","-",IF(VL3+1>Premissas!$C$58,"-",VL3+1)) -> - | VN3: =IF(VM3="-","-",IF(VM3+1>Premissas!$C$58,"-",VM3+1)) -> - | VO3: =IF(VN3="-","-",IF(VN3+1>Premissas!$C$58,"-",VN3+1)) -> - | VP3: =IF(VO3="-","-",IF(VO3+1>Premissas!$C$58,"-",VO3+1)) -> - | VQ3: =IF(VP3="-","-",IF(VP3+1>Premissas!$C$58,"-",VP3+1)) -> - | VR3: =IF(VQ3="-","-",IF(VQ3+1>Premissas!$C$58,"-",VQ3+1)) -> - | VS3: =IF(VR3="-","-",IF(VR3+1>Premissas!$C$58,"-",VR3+1)) -> - | VT3: =IF(VS3="-","-",IF(VS3+1>Premissas!$C$58,"-",VS3+1)) -> - | VU3: =IF(VT3="-","-",IF(VT3+1>Premissas!$C$58,"-",VT3+1)) -> - | VV3: =IF(VU3="-","-",IF(VU3+1>Premissas!$C$58,"-",VU3+1)) -> - | VW3: =IF(VV3="-","-",IF(VV3+1>Premissas!$C$58,"-",VV3+1)) -> - | VX3: =IF(VW3="-","-",IF(VW3+1>Premissas!$C$58,"-",VW3+1)) -> - | VY3: =IF(VX3="-","-",IF(VX3+1>Premissas!$C$58,"-",VX3+1)) -> - | VZ3: =IF(VY3="-","-",IF(VY3+1>Premissas!$C$58,"-",VY3+1)) -> - | WA3: =IF(VZ3="-","-",IF(VZ3+1>Premissas!$C$58,"-",VZ3+1)) -> - | WB3: =IF(WA3="-","-",IF(WA3+1>Premissas!$C$58,"-",WA3+1)) -> - | WC3: =IF(WB3="-","-",IF(WB3+1>Premissas!$C$58,"-",WB3+1)) -> - | WD3: =IF(WC3="-","-",IF(WC3+1>Premissas!$C$58,"-",WC3+1)) -> -
B4: ANO | C4: 2024 | D4: =IF(D2="-","-",IF(D5=1,C4+1,C4)) -> 2025 | E4: =IF(E2="-","-",IF(E5=1,D4+1,D4)) -> 2026 | F4: 2027 | G4: 2028 | H4: 2029 | I4: 2030 | J4: 2031 | K4: 2032 | L4: 2033 | M4: 2034 | N4: 2035 | O4: 2036 | P4: 2037 | Q4: 2038 | R4: 2039 | S4: 2040 | T4: 2041 | U4: 2042 | V4: 2043 | W4: 2044 | X4: 2045 | Y4: 2046 | Z4: 2047 | AA4: 2048 | AB4: 2049 | AC4: 2050 | AD4: 2051 | AE4: 2052 | AF4: 2053 | AG4: 2054 | AH4: - | AI4: - | AJ4: - | AK4: - | AL4: - | AM4: - | AN4: - | AO4: - | AP4: - | AQ4: - | AR4: - | AS4: - | AT4: - | AU4: - | AV4: - | AW4: - | AX4: - | AY4: - | AZ4: - | BA4: - | BB4: - | BC4: - | BD4: - | BE4: - | BF4: - | BG4: - | BH4: - | BI4: - | BJ4: - | BK4: - | BL4: - | BM4: - | BN4: - | BO4: - | BP4: - | BQ4: =IF(BQ2="-","-",IF(BQ5=1,BP4+1,BP4)) -> - | BR4: - | BS4: - | BT4: - | BU4: - | BV4: - | BW4: - | BX4: - | BY4: - | BZ4: - | CA4: - | CB4: - | CC4: - | CD4: - | CE4: - | CF4: - | CG4: - | CH4: - | CI4: - | CJ4: - | CK4: - | CL4: - | CM4: - | CN4: - | CO4: - | CP4: - | CQ4: - | CR4: - | CS4: - | CT4: - | CU4: - | CV4: - | CW4: - | CX4: - | CY4: - | CZ4: - | DA4: - | DB4: - | DC4: - | DD4: - | DE4: - | DF4: - | DG4: - | DH4: - | DI4: - | DJ4: - | DK4: - | DL4: - | DM4: - | DN4: - | DO4: - | DP4: - | DQ4: - | DR4: - | DS4: - | DT4: - | DU4: - | DV4: - | DW4: - | DX4: - | DY4: - | DZ4: - | EA4: - | EB4: - | EC4: =IF(EC2="-","-",IF(EC5=1,EB4+1,EB4)) -> - | ED4: - | EE4: - | EF4: - | EG4: - | EH4: - | EI4: - | EJ4: - | EK4: - | EL4: - | EM4: - | EN4: - | EO4: - | EP4: - | EQ4: - | ER4: - | ES4: - | ET4: - | EU4: - | EV4: - | EW4: - | EX4: - | EY4: - | EZ4: - | FA4: - | FB4: - | FC4: - | FD4: - | FE4: - | FF4: - | FG4: - | FH4: - | FI4: - | FJ4: - | FK4: - | FL4: - | FM4: - | FN4: - | FO4: - | FP4: - | FQ4: - | FR4: - | FS4: - | FT4: - | FU4: - | FV4: - | FW4: - | FX4: - | FY4: - | FZ4: - | GA4: - | GB4: - | GC4: - | GD4: - | GE4: - | GF4: - | GG4: - | GH4: - | GI4: - | GJ4: - | GK4: - | GL4: - | GM4: - | GN4: - | GO4: =IF(GO2="-","-",IF(GO5=1,GN4+1,GN4)) -> - | GP4: - | GQ4: - | GR4: - | GS4: - | GT4: - | GU4: - | GV4: - | GW4: - | GX4: - | GY4: - | GZ4: - | HA4: - | HB4: - | HC4: - | HD4: - | HE4: - | HF4: - | HG4: - | HH4: - | HI4: - | HJ4: - | HK4: - | HL4: - | HM4: - | HN4: - | HO4: - | HP4: - | HQ4: - | HR4: - | HS4: - | HT4: - | HU4: - | HV4: - | HW4: - | HX4: - | HY4: - | HZ4: - | IA4: - | IB4: - | IC4: - | ID4: - | IE4: - | IF4: - | IG4: - | IH4: - | II4: - | IJ4: - | IK4: - | IL4: - | IM4: - | IN4: - | IO4: - | IP4: - | IQ4: - | IR4: - | IS4: - | IT4: - | IU4: - | IV4: - | IW4: - | IX4: - | IY4: - | IZ4: - | JA4: =IF(JA2="-","-",IF(JA5=1,IZ4+1,IZ4)) -> - | JB4: - | JC4: - | JD4: - | JE4: - | JF4: - | JG4: - | JH4: - | JI4: - | JJ4: - | JK4: - | JL4: - | JM4: - | JN4: - | JO4: - | JP4: - | JQ4: - | JR4: - | JS4: - | JT4: - | JU4: - | JV4: - | JW4: - | JX4: - | JY4: - | JZ4: - | KA4: - | KB4: - | KC4: - | KD4: - | KE4: - | KF4: - | KG4: - | KH4: - | KI4: - | KJ4: - | KK4: - | KL4: - | KM4: - | KN4: - | KO4: - | KP4: - | KQ4: - | KR4: - | KS4: - | KT4: - | KU4: - | KV4: - | KW4: - | KX4: - | KY4: - | KZ4: - | LA4: - | LB4: - | LC4: - | LD4: - | LE4: - | LF4: - | LG4: - | LH4: - | LI4: - | LJ4: - | LK4: - | LL4: - | LM4: =IF(LM2="-","-",IF(LM5=1,LL4+1,LL4)) -> - | LN4: - | LO4: - | LP4: - | LQ4: - | LR4: - | LS4: - | LT4: - | LU4: - | LV4: - | LW4: - | LX4: - | LY4: - | LZ4: - | MA4: - | MB4: - | MC4: - | MD4: - | ME4: - | MF4: - | MG4: - | MH4: - | MI4: - | MJ4: - | MK4: - | ML4: - | MM4: - | MN4: - | MO4: - | MP4: - | MQ4: - | MR4: - | MS4: - | MT4: - | MU4: - | MV4: - | MW4: - | MX4: - | MY4: - | MZ4: - | NA4: - | NB4: - | NC4: - | ND4: - | NE4: - | NF4: - | NG4: - | NH4: - | NI4: - | NJ4: - | NK4: - | NL4: - | NM4: - | NN4: - | NO4: - | NP4: - | NQ4: - | NR4: - | NS4: - | NT4: - | NU4: - | NV4: - | NW4: - | NX4: - | NY4: =IF(NY2="-","-",IF(NY5=1,NX4+1,NX4)) -> - | NZ4: - | OA4: - | OB4: - | OC4: - | OD4: - | OE4: - | OF4: - | OG4: - | OH4: - | OI4: - | OJ4: - | OK4: - | OL4: - | OM4: - | ON4: - | OO4: - | OP4: - | OQ4: - | OR4: - | OS4: - | OT4: - | OU4: - | OV4: - | OW4: - | OX4: - | OY4: - | OZ4: - | PA4: - | PB4: - | PC4: - | PD4: - | PE4: - | PF4: - | PG4: - | PH4: - | PI4: - | PJ4: - | PK4: - | PL4: - | PM4: - | PN4: - | PO4: - | PP4: - | PQ4: - | PR4: - | PS4: - | PT4: - | PU4: - | PV4: - | PW4: - | PX4: - | PY4: - | PZ4: - | QA4: - | QB4: - | QC4: - | QD4: - | QE4: - | QF4: - | QG4: - | QH4: - | QI4: - | QJ4: - | QK4: =IF(QK2="-","-",IF(QK5=1,QJ4+1,QJ4)) -> - | QL4: - | QM4: - | QN4: - | QO4: - | QP4: - | QQ4: - | QR4: - | QS4: - | QT4: - | QU4: - | QV4: - | QW4: - | QX4: - | QY4: - | QZ4: - | RA4: - | RB4: - | RC4: - | RD4: - | RE4: - | RF4: - | RG4: - | RH4: - | RI4: - | RJ4: - | RK4: - | RL4: - | RM4: - | RN4: - | RO4: - | RP4: - | RQ4: - | RR4: - | RS4: - | RT4: - | RU4: - | RV4: - | RW4: - | RX4: - | RY4: - | RZ4: - | SA4: - | SB4: - | SC4: - | SD4: - | SE4: - | SF4: - | SG4: - | SH4: - | SI4: - | SJ4: - | SK4: - | SL4: - | SM4: - | SN4: - | SO4: - | SP4: - | SQ4: - | SR4: - | SS4: - | ST4: - | SU4: - | SV4: - | SW4: =IF(SW2="-","-",IF(SW5=1,SV4+1,SV4)) -> - | SX4: - | SY4: - | SZ4: - | TA4: - | TB4: - | TC4: - | TD4: - | TE4: - | TF4: - | TG4: - | TH4: - | TI4: - | TJ4: - | TK4: - | TL4: - | TM4: - | TN4: - | TO4: - | TP4: - | TQ4: - | TR4: - | TS4: - | TT4: - | TU4: - | TV4: - | TW4: - | TX4: - | TY4: - | TZ4: - | UA4: - | UB4: - | UC4: - | UD4: - | UE4: - | UF4: - | UG4: - | UH4: - | UI4: - | UJ4: - | UK4: - | UL4: - | UM4: - | UN4: - | UO4: - | UP4: - | UQ4: - | UR4: - | US4: - | UT4: - | UU4: - | UV4: - | UW4: - | UX4: - | UY4: - | UZ4: - | VA4: - | VB4: - | VC4: - | VD4: - | VE4: - | VF4: - | VG4: - | VH4: - | VI4: =IF(VI2="-","-",IF(VI5=1,VH4+1,VH4)) -> - | VJ4: - | VK4: - | VL4: - | VM4: - | VN4: - | VO4: - | VP4: - | VQ4: - | VR4: - | VS4: - | VT4: - | VU4: - | VV4: - | VW4: - | VX4: - | VY4: - | VZ4: - | WA4: - | WB4: - | WC4: - | WD4: -
B5: PERÍODO DO ANO | C5: 1 | D5: 1 | E5: 1 | F5: 1 | G5: 1 | H5: 1 | I5: 1 | J5: 1 | K5: 1 | L5: 1 | M5: 1 | N5: 1 | O5: 1 | P5: 1 | Q5: 1 | R5: 1 | S5: 1 | T5: 1 | U5: 1 | V5: 1 | W5: 1 | X5: 1 | Y5: 1 | Z5: 1 | AA5: 1 | AB5: 1 | AC5: 1 | AD5: 1 | AE5: 1 | AF5: 1 | AG5: 1 | AH5: 1 | AI5: 1 | AJ5: 1 | AK5: 1 | AL5: 1 | AM5: 1 | AN5: 1 | AO5: 1 | AP5: 1 | AQ5: 1 | AR5: 1 | AS5: 1 | AT5: 1 | AU5: 1 | AV5: 1 | AW5: 1 | AX5: 1 | AY5: 1 | AZ5: 1 | BA5: 1 | BB5: 1 | BC5: 1 | BD5: 1 | BE5: 1 | BF5: 1 | BG5: 1 | BH5: 1 | BI5: 1 | BJ5: 1 | BK5: 1 | BL5: 1 | BM5: 1 | BN5: 1 | BO5: 1 | BP5: 1 | BQ5: 1 | BR5: 1 | BS5: 1 | BT5: 1 | BU5: 1 | BV5: 1 | BW5: 1 | BX5: 1 | BY5: 1 | BZ5: 1 | CA5: 1 | CB5: 1 | CC5: 1 | CD5: 1 | CE5: 1 | CF5: 1 | CG5: 1 | CH5: 1 | CI5: 1 | CJ5: 1 | CK5: 1 | CL5: 1 | CM5: 1 | CN5: 1 | CO5: 1 | CP5: 1 | CQ5: 1 | CR5: 1 | CS5: 1 | CT5: 1 | CU5: 1 | CV5: 1 | CW5: 1 | CX5: 1 | CY5: 1 | CZ5: 1 | DA5: 1 | DB5: 1 | DC5: 1 | DD5: 1 | DE5: 1 | DF5: 1 | DG5: 1 | DH5: 1 | DI5: 1 | DJ5: 1 | DK5: 1 | DL5: 1 | DM5: 1 | DN5: 1 | DO5: 1 | DP5: 1 | DQ5: 1 | DR5: 1 | DS5: 1 | DT5: 1 | DU5: 1 | DV5: 1 | DW5: 1 | DX5: 1 | DY5: 1 | DZ5: 1 | EA5: 1 | EB5: 1 | EC5: 1 | ED5: 1 | EE5: 1 | EF5: 1 | EG5: 1 | EH5: 1 | EI5: 1 | EJ5: 1 | EK5: 1 | EL5: 1 | EM5: 1 | EN5: 1 | EO5: 1 | EP5: 1 | EQ5: 1 | ER5: 1 | ES5: 1 | ET5: 1 | EU5: 1 | EV5: 1 | EW5: 1 | EX5: 1 | EY5: 1 | EZ5: 1 | FA5: 1 | FB5: 1 | FC5: 1 | FD5: 1 | FE5: 1 | FF5: 1 | FG5: 1 | FH5: 1 | FI5: 1 | FJ5: 1 | FK5: 1 | FL5: 1 | FM5: 1 | FN5: 1 | FO5: 1 | FP5: 1 | FQ5: 1 | FR5: 1 | FS5: 1 | FT5: 1 | FU5: 1 | FV5: 1 | FW5: 1 | FX5: 1 | FY5: 1 | FZ5: 1 | GA5: 1 | GB5: 1 | GC5: 1 | GD5: 1 | GE5: 1 | GF5: 1 | GG5: 1 | GH5: 1 | GI5: 1 | GJ5: 1 | GK5: 1 | GL5: 1 | GM5: 1 | GN5: 1 | GO5: 1 | GP5: 1 | GQ5: 1 | GR5: 1 | GS5: 1 | GT5: 1 | GU5: 1 | GV5: 1 | GW5: 1 | GX5: 1 | GY5: 1 | GZ5: 1 | HA5: 1 | HB5: 1 | HC5: 1 | HD5: 1 | HE5: 1 | HF5: 1 | HG5: 1 | HH5: 1 | HI5: 1 | HJ5: 1 | HK5: 1 | HL5: 1 | HM5: 1 | HN5: 1 | HO5: 1 | HP5: 1 | HQ5: 1 | HR5: 1 | HS5: 1 | HT5: 1 | HU5: 1 | HV5: 1 | HW5: 1 | HX5: 1 | HY5: 1 | HZ5: 1 | IA5: 1 | IB5: 1 | IC5: 1 | ID5: 1 | IE5: 1 | IF5: 1 | IG5: 1 | IH5: 1 | II5: 1 | IJ5: 1 | IK5: 1 | IL5: 1 | IM5: 1 | IN5: 1 | IO5: 1 | IP5: 1 | IQ5: 1 | IR5: 1 | IS5: 1 | IT5: 1 | IU5: 1 | IV5: 1 | IW5: 1 | IX5: 1 | IY5: 1 | IZ5: 1 | JA5: 1 | JB5: 1 | JC5: 1 | JD5: 1 | JE5: 1 | JF5: 1 | JG5: 1 | JH5: 1 | JI5: 1 | JJ5: 1 | JK5: 1 | JL5: 1 | JM5: 1 | JN5: 1 | JO5: 1 | JP5: 1 | JQ5: 1 | JR5: 1 | JS5: 1 | JT5: 1 | JU5: 1 | JV5: 1 | JW5: 1 | JX5: 1 | JY5: 1 | JZ5: 1 | KA5: 1 | KB5: 1 | KC5: 1 | KD5: 1 | KE5: 1 | KF5: 1 | KG5: 1 | KH5: 1 | KI5: 1 | KJ5: 1 | KK5: 1 | KL5: 1 | KM5: 1 | KN5: 1 | KO5: 1 | KP5: 1 | KQ5: 1 | KR5: 1 | KS5: 1 | KT5: 1 | KU5: 1 | KV5: 1 | KW5: 1 | KX5: 1 | KY5: 1 | KZ5: 1 | LA5: 1 | LB5: 1 | LC5: 1 | LD5: 1 | LE5: 1 | LF5: 1 | LG5: 1 | LH5: 1 | LI5: 1 | LJ5: 1 | LK5: 1 | LL5: 1 | LM5: 1 | LN5: 1 | LO5: 1 | LP5: 1 | LQ5: 1 | LR5: 1 | LS5: 1 | LT5: 1 | LU5: 1 | LV5: 1 | LW5: 1 | LX5: 1 | LY5: 1 | LZ5: 1 | MA5: 1 | MB5: 1 | MC5: 1 | MD5: 1 | ME5: 1 | MF5: 1 | MG5: 1 | MH5: 1 | MI5: 1 | MJ5: 1 | MK5: 1 | ML5: 1 | MM5: 1 | MN5: 1 | MO5: 1 | MP5: 1 | MQ5: 1 | MR5: 1 | MS5: 1 | MT5: 1 | MU5: 1 | MV5: 1 | MW5: 1 | MX5: 1 | MY5: 1 | MZ5: 1 | NA5: 1 | NB5: 1 | NC5: 1 | ND5: 1 | NE5: 1 | NF5: 1 | NG5: 1 | NH5: 1 | NI5: 1 | NJ5: 1 | NK5: 1 | NL5: 1 | NM5: 1 | NN5: 1 | NO5: 1 | NP5: 1 | NQ5: 1 | NR5: 1 | NS5: 1 | NT5: 1 | NU5: 1 | NV5: 1 | NW5: 1 | NX5: 1 | NY5: 1 | NZ5: 1 | OA5: 1 | OB5: 1 | OC5: 1 | OD5: 1 | OE5: 1 | OF5: 1 | OG5: 1 | OH5: 1 | OI5: 1 | OJ5: 1 | OK5: 1 | OL5: 1 | OM5: 1 | ON5: 1 | OO5: 1 | OP5: 1 | OQ5: 1 | OR5: 1 | OS5: 1 | OT5: 1 | OU5: 1 | OV5: 1 | OW5: 1 | OX5: 1 | OY5: 1 | OZ5: 1 | PA5: 1 | PB5: 1 | PC5: 1 | PD5: 1 | PE5: 1 | PF5: 1 | PG5: 1 | PH5: 1 | PI5: 1 | PJ5: 1 | PK5: 1 | PL5: 1 | PM5: 1 | PN5: 1 | PO5: 1 | PP5: 1 | PQ5: 1 | PR5: 1 | PS5: 1 | PT5: 1 | PU5: 1 | PV5: 1 | PW5: 1 | PX5: 1 | PY5: 1 | PZ5: 1 | QA5: 1 | QB5: 1 | QC5: 1 | QD5: 1 | QE5: 1 | QF5: 1 | QG5: 1 | QH5: 1 | QI5: 1 | QJ5: 1 | QK5: 1 | QL5: 1 | QM5: 1 | QN5: 1 | QO5: 1 | QP5: 1 | QQ5: 1 | QR5: 1 | QS5: 1 | QT5: 1 | QU5: 1 | QV5: 1 | QW5: 1 | QX5: 1 | QY5: 1 | QZ5: 1 | RA5: 1 | RB5: 1 | RC5: 1 | RD5: 1 | RE5: 1 | RF5: 1 | RG5: 1 | RH5: 1 | RI5: 1 | RJ5: 1 | RK5: 1 | RL5: 1 | RM5: 1 | RN5: 1 | RO5: 1 | RP5: 1 | RQ5: 1 | RR5: 1 | RS5: 1 | RT5: 1 | RU5: 1 | RV5: 1 | RW5: 1 | RX5: 1 | RY5: 1 | RZ5: 1 | SA5: 1 | SB5: 1 | SC5: 1 | SD5: 1 | SE5: 1 | SF5: 1 | SG5: 1 | SH5: 1 | SI5: 1 | SJ5: 1 | SK5: 1 | SL5: 1 | SM5: 1 | SN5: 1 | SO5: 1 | SP5: 1 | SQ5: 1 | SR5: 1 | SS5: 1 | ST5: 1 | SU5: 1 | SV5: 1 | SW5: 1 | SX5: 1 | SY5: 1 | SZ5: 1 | TA5: 1 | TB5: 1 | TC5: 1 | TD5: 1 | TE5: 1 | TF5: 1 | TG5: 1 | TH5: 1 | TI5: 1 | TJ5: 1 | TK5: 1 | TL5: 1 | TM5: 1 | TN5: 1 | TO5: 1 | TP5: 1 | TQ5: 1 | TR5: 1 | TS5: 1 | TT5: 1 | TU5: 1 | TV5: 1 | TW5: 1 | TX5: 1 | TY5: 1 | TZ5: 1 | UA5: 1 | UB5: 1 | UC5: 1 | UD5: 1 | UE5: 1 | UF5: 1 | UG5: 1 | UH5: 1 | UI5: 1 | UJ5: 1 | UK5: 1 | UL5: 1 | UM5: 1 | UN5: 1 | UO5: 1 | UP5: 1 | UQ5: 1 | UR5: 1 | US5: 1 | UT5: 1 | UU5: 1 | UV5: 1 | UW5: 1 | UX5: 1 | UY5: 1 | UZ5: 1 | VA5: 1 | VB5: 1 | VC5: 1 | VD5: 1 | VE5: 1 | VF5: 1 | VG5: 1 | VH5: 1 | VI5: 1 | VJ5: 1 | VK5: 1 | VL5: 1 | VM5: 1 | VN5: 1 | VO5: 1 | VP5: 1 | VQ5: 1 | VR5: 1 | VS5: 1 | VT5: 1 | VU5: 1 | VV5: 1 | VW5: 1 | VX5: 1 | VY5: 1 | VZ5: 1 | WA5: 1 | WB5: 1 | WC5: 1 | WD5: 1
B7: Tarifa Calculada
D8: 2025 | E8: 2026 | F8: 2027 | G8: 2028 | H8: 2029 | I8: 2030 | J8: 2031 | K8: 2032 | L8: 2033 | M8: 2034 | N8: 2035 | O8: 2036 | P8: 2037 | Q8: 2038 | R8: 2039 | S8: 2040 | T8: 2041 | U8: 2042 | V8: 2043 | W8: 2044 | X8: 2045 | Y8: 2046 | Z8: 2047 | AA8: 2048 | AB8: 2049 | AC8: 2050 | AD8: 2051 | AE8: 2052 | AF8: 2053 | AG8: 2054 | AH8: 2055 | AI8: 2056 | AJ8: 2057 | AK8: 2058 | AL8: 2059 | AM8: 2060 | AN8: 2061 | AO8: 2062 | AP8: 2063 | AQ8: 2064 | AR8: 2065 | AS8: 2066 | AT8: 2067 | AU8: 2068 | AV8: 2069 | AW8: 2070 | AX8: 2071 | AY8: 2072 | AZ8: 2073 | BA8: 2074 | BB8: 2075 | BC8: 2076 | BD8: 2077 | BE8: 2078 | BF8: 2079 | BG8: 2080 | BH8: 2081 | BI8: 2082 | BJ8: 2083 | BK8: 2084 | BL8: 2085 | BM8: 2086 | BN8: 2087 | BO8: 2088 | BP8: 2089 | BQ8: 2090 | BR8: 2091 | BS8: 2092 | BT8: 2093 | BU8: 2094 | BV8: 2095 | BW8: 2096 | BX8: 2097 | BY8: 2098 | BZ8: 2099 | CA8: 2100 | CB8: 2101 | CC8: 2102 | CD8: 2103 | CE8: 2104 | CF8: 2105 | CG8: 2106 | CH8: 2107 | CI8: 2108
B9: (US$/MMBtu) | C9: média | D9: 1 | E9: 2 | F9: 3 | G9: 4 | H9: 5 | I9: 6 | J9: 7 | K9: 8 | L9: 9 | M9: 10 | N9: 11 | O9: 12 | P9: 13 | Q9: 14 | R9: 15 | S9: 16 | T9: 17 | U9: 18 | V9: 19 | W9: 20 | X9: 21 | Y9: 22 | Z9: 23 | AA9: 24 | AB9: 25 | AC9: 26 | AD9: 27 | AE9: 28 | AF9: 29 | AG9: 30 | AH9: 31 | AI9: 32 | AJ9: 33 | AK9: 34 | AL9: 35 | AM9: 36 | AN9: 37 | AO9: 38 | AP9: 39 | AQ9: 40 | AR9: 41 | AS9: 42 | AT9: 43 | AU9: 44 | AV9: 45 | AW9: 46 | AX9: 47 | AY9: 48 | AZ9: 49 | BA9: 50 | BB9: 51 | BC9: 52 | BD9: 53 | BE9: 54 | BF9: 55 | BG9: 56 | BH9: 57 | BI9: 58 | BJ9: 59 | BK9: 60 | BL9: 61 | BM9: 62 | BN9: 63 | BO9: 64 | BP9: 65 | BQ9: 66 | BR9: 67 | BS9: 68 | BT9: 69 | BU9: 70 | BV9: 71 | BW9: 72 | BX9: 73 | BY9: 74 | BZ9: 75 | CA9: 76 | CB9: 77 | CC9: 78 | CD9: 79 | CE9: 80 | CF9: 81 | CG9: 82 | CH9: 83 | CI9: 84
B10: Cálculo Tarifário Real | C10: ='Tarifa Anual_BRA_MarkUp_R'!C64 -> 0.01221788758 | D10: ='Tarifa Anual_BRA_MarkUp_R'!D64 -> 0.02089262569 | E10: ='Tarifa Anual_BRA_MarkUp_R'!E64 -> 0.01854721219 | F10: ='Tarifa Anual_BRA_MarkUp_R'!F64 -> 0.01808236164 | G10: ='Tarifa Anual_BRA_MarkUp_R'!G64 -> 0.01761751109 | H10: ='Tarifa Anual_BRA_MarkUp_R'!H64 -> 0.01715266054 | I10: ='Tarifa Anual_BRA_MarkUp_R'!I64 -> 0.01668780999 | J10: ='Tarifa Anual_BRA_MarkUp_R'!J64 -> 0.01622295945 | K10: ='Tarifa Anual_BRA_MarkUp_R'!K64 -> 0.0157581089 | L10: ='Tarifa Anual_BRA_MarkUp_R'!L64 -> 0.01529325835 | M10: ='Tarifa Anual_BRA_MarkUp_R'!M64 -> 0.0148284078 | N10: ='Tarifa Anual_BRA_MarkUp_R'!N64 -> 0.01436355725 | O10: ='Tarifa Anual_BRA_MarkUp_R'!O64 -> 0.0138987067 | P10: ='Tarifa Anual_BRA_MarkUp_R'!P64 -> 0.01343385616 | Q10: ='Tarifa Anual_BRA_MarkUp_R'!Q64 -> 0.01296900561 | R10: ='Tarifa Anual_BRA_MarkUp_R'!R64 -> 0.01250415506 | S10: ='Tarifa Anual_BRA_MarkUp_R'!S64 -> 0.01203930451 | T10: ='Tarifa Anual_BRA_MarkUp_R'!T64 -> 0.01157445396 | U10: ='Tarifa Anual_BRA_MarkUp_R'!U64 -> 0.01110960341 | V10: ='Tarifa Anual_BRA_MarkUp_R'!V64 -> 0.01064475287 | W10: ='Tarifa Anual_BRA_MarkUp_R'!W64 -> 0.01017990232 | X10: ='Tarifa Anual_BRA_MarkUp_R'!X64 -> 0.009715051769 | Y10: ='Tarifa Anual_BRA_MarkUp_R'!Y64 -> 0.009177782917 | Z10: ='Tarifa Anual_BRA_MarkUp_R'!Z64 -> 0.008633930583 | AA10: ='Tarifa Anual_BRA_MarkUp_R'!AA64 -> 0.008090078248 | AB10: ='Tarifa Anual_BRA_MarkUp_R'!AB64 -> 0.007546225914 | AC10: ='Tarifa Anual_BRA_MarkUp_R'!AC64 -> 0.00700237358 | AD10: ='Tarifa Anual_BRA_MarkUp_R'!AD64 -> 0.006458521245 | AE10: ='Tarifa Anual_BRA_MarkUp_R'!AE64 -> 0.005914668911 | AF10: ='Tarifa Anual_BRA_MarkUp_R'!AF64 -> 0.005370816577 | AG10: ='Tarifa Anual_BRA_MarkUp_R'!AG64 -> 0.004826964242 | AH10: ='Tarifa Anual_BRA_MarkUp_R'!AH64 -> - | AI10: ='Tarifa Anual_BRA_MarkUp_R'!AI64 -> - | AJ10: ='Tarifa Anual_BRA_MarkUp_R'!AJ64 -> - | AK10: ='Tarifa Anual_BRA_MarkUp_R'!AK64 -> - | AL10: ='Tarifa Anual_BRA_MarkUp_R'!AL64 -> - | AM10: ='Tarifa Anual_BRA_MarkUp_R'!AM64 -> - | AN10: ='Tarifa Anual_BRA_MarkUp_R'!AN64 -> - | AO10: ='Tarifa Anual_BRA_MarkUp_R'!AO64 -> - | AP10: ='Tarifa Anual_BRA_MarkUp_R'!AP64 -> - | AQ10: ='Tarifa Anual_BRA_MarkUp_R'!AQ64 -> - | AR10: ='Tarifa Anual_BRA_MarkUp_R'!AR64 -> - | AS10: ='Tarifa Anual_BRA_MarkUp_R'!AS64 -> - | AT10: ='Tarifa Anual_BRA_MarkUp_R'!AT64 -> - | AU10: ='Tarifa Anual_BRA_MarkUp_R'!AU64 -> - | AV10: ='Tarifa Anual_BRA_MarkUp_R'!AV64 -> - | AW10: ='Tarifa Anual_BRA_MarkUp_R'!AW64 -> - | AX10: ='Tarifa Anual_BRA_MarkUp_R'!AX64 -> - | AY10: ='Tarifa Anual_BRA_MarkUp_R'!AY64 -> - | AZ10: ='Tarifa Anual_BRA_MarkUp_R'!AZ64 -> - | BA10: ='Tarifa Anual_BRA_MarkUp_R'!BA64 -> - | BB10: ='Tarifa Anual_BRA_MarkUp_R'!BB64 -> - | BC10: ='Tarifa Anual_BRA_MarkUp_R'!BC64 -> - | BD10: ='Tarifa Anual_BRA_MarkUp_R'!BD64 -> - | BE10: ='Tarifa Anual_BRA_MarkUp_R'!BE64 -> - | BF10: ='Tarifa Anual_BRA_MarkUp_R'!BF64 -> - | BG10: ='Tarifa Anual_BRA_MarkUp_R'!BG64 -> - | BH10: ='Tarifa Anual_BRA_MarkUp_R'!BH64 -> - | BI10: ='Tarifa Anual_BRA_MarkUp_R'!BI64 -> - | BJ10: ='Tarifa Anual_BRA_MarkUp_R'!BJ64 -> - | BK10: ='Tarifa Anual_BRA_MarkUp_R'!BK64 -> - | BL10: ='Tarifa Anual_BRA_MarkUp_R'!BL64 -> - | BM10: ='Tarifa Anual_BRA_MarkUp_R'!BM64 -> - | BN10: ='Tarifa Anual_BRA_MarkUp_R'!BN64 -> - | BO10: ='Tarifa Anual_BRA_MarkUp_R'!BO64 -> - | BP10: ='Tarifa Anual_BRA_MarkUp_R'!BP64 -> - | BQ10: ='Tarifa Anual_BRA_MarkUp_R'!BQ64 -> - | BR10: ='Tarifa Anual_BRA_MarkUp_R'!BR64 -> - | BS10: ='Tarifa Anual_BRA_MarkUp_R'!BS64 -> - | BT10: ='Tarifa Anual_BRA_MarkUp_R'!BT64 -> - | BU10: ='Tarifa Anual_BRA_MarkUp_R'!BU64 -> - | BV10: ='Tarifa Anual_BRA_MarkUp_R'!BV64 -> - | BW10: ='Tarifa Anual_BRA_MarkUp_R'!BW64 -> - | BX10: ='Tarifa Anual_BRA_MarkUp_R'!BX64 -> - | BY10: ='Tarifa Anual_BRA_MarkUp_R'!BY64 -> - | BZ10: ='Tarifa Anual_BRA_MarkUp_R'!BZ64 -> - | CA10: ='Tarifa Anual_BRA_MarkUp_R'!CA64 -> - | CB10: ='Tarifa Anual_BRA_MarkUp_R'!CB64 -> - | CC10: ='Tarifa Anual_BRA_MarkUp_R'!CC64 -> - | CD10: ='Tarifa Anual_BRA_MarkUp_R'!CD64 -> - | CE10: ='Tarifa Anual_BRA_MarkUp_R'!CE64 -> - | CF10: ='Tarifa Anual_BRA_MarkUp_R'!CF64 -> - | CG10: ='Tarifa Anual_BRA_MarkUp_R'!CG64 -> - | CH10: ='Tarifa Anual_BRA_MarkUp_R'!CH64 -> - | CI10: ='Tarifa Anual_BRA_MarkUp_R'!CI64 -> -
B11: Cálculo Tarifário Nominal | C11: ='Tarifa Anual_BRA_MarkUp_N'!C64 -> 0.01477621149 | D11: ='Tarifa Anual_BRA_MarkUp_N'!D64 -> 0.02643018557 | E11: ='Tarifa Anual_BRA_MarkUp_N'!E64 -> 0.02301700357 | F11: ='Tarifa Anual_BRA_MarkUp_N'!F64 -> 0.02241352109 | G11: ='Tarifa Anual_BRA_MarkUp_N'!G64 -> 0.02181003861 | H11: ='Tarifa Anual_BRA_MarkUp_N'!H64 -> 0.02120655614 | I11: ='Tarifa Anual_BRA_MarkUp_N'!I64 -> 0.02060307366 | J11: ='Tarifa Anual_BRA_MarkUp_N'!J64 -> 0.01999959118 | K11: ='Tarifa Anual_BRA_MarkUp_N'!K64 -> 0.01939610871 | L11: ='Tarifa Anual_BRA_MarkUp_N'!L64 -> 0.01879262623 | M11: ='Tarifa Anual_BRA_MarkUp_N'!M64 -> 0.01818914375 | N11: ='Tarifa Anual_BRA_MarkUp_N'!N64 -> 0.01758566127 | O11: ='Tarifa Anual_BRA_MarkUp_N'!O64 -> 0.0169821788 | P11: ='Tarifa Anual_BRA_MarkUp_N'!P64 -> 0.01637869632 | Q11: ='Tarifa Anual_BRA_MarkUp_N'!Q64 -> 0.01577521384 | R11: ='Tarifa Anual_BRA_MarkUp_N'!R64 -> 0.01517173136 | S11: ='Tarifa Anual_BRA_MarkUp_N'!S64 -> 0.01456824889 | T11: ='Tarifa Anual_BRA_MarkUp_N'!T64 -> 0.01396476641 | U11: ='Tarifa Anual_BRA_MarkUp_N'!U64 -> 0.01336128393 | V11: ='Tarifa Anual_BRA_MarkUp_N'!V64 -> 0.01275780146 | W11: ='Tarifa Anual_BRA_MarkUp_N'!W64 -> 0.01215431898 | X11: ='Tarifa Anual_BRA_MarkUp_N'!X64 -> 0.0115508365 | Y11: ='Tarifa Anual_BRA_MarkUp_N'!Y64 -> 0.01083086881 | Z11: ='Tarifa Anual_BRA_MarkUp_N'!Z64 -> 0.01010031156 | AA11: ='Tarifa Anual_BRA_MarkUp_N'!AA64 -> 0.009369754313 | AB11: ='Tarifa Anual_BRA_MarkUp_N'!AB64 -> 0.008639197063 | AC11: ='Tarifa Anual_BRA_MarkUp_N'!AC64 -> 0.007908639812 | AD11: ='Tarifa Anual_BRA_MarkUp_N'!AD64 -> 0.007178082561 | AE11: ='Tarifa Anual_BRA_MarkUp_N'!AE64 -> 0.00644752531 | AF11: ='Tarifa Anual_BRA_MarkUp_N'!AF64 -> 0.00571696806 | AG11: ='Tarifa Anual_BRA_MarkUp_N'!AG64 -> 0.004986410809 | AH11: ='Tarifa Anual_BRA_MarkUp_N'!AH64 -> - | AI11: ='Tarifa Anual_BRA_MarkUp_N'!AI64 -> - | AJ11: ='Tarifa Anual_BRA_MarkUp_N'!AJ64 -> - | AK11: ='Tarifa Anual_BRA_MarkUp_N'!AK64 -> - | AL11: ='Tarifa Anual_BRA_MarkUp_N'!AL64 -> - | AM11: ='Tarifa Anual_BRA_MarkUp_N'!AM64 -> - | AN11: ='Tarifa Anual_BRA_MarkUp_N'!AN64 -> - | AO11: ='Tarifa Anual_BRA_MarkUp_N'!AO64 -> - | AP11: ='Tarifa Anual_BRA_MarkUp_N'!AP64 -> - | AQ11: ='Tarifa Anual_BRA_MarkUp_N'!AQ64 -> - | AR11: ='Tarifa Anual_BRA_MarkUp_N'!AR64 -> - | AS11: ='Tarifa Anual_BRA_MarkUp_N'!AS64 -> - | AT11: ='Tarifa Anual_BRA_MarkUp_N'!AT64 -> - | AU11: ='Tarifa Anual_BRA_MarkUp_N'!AU64 -> - | AV11: ='Tarifa Anual_BRA_MarkUp_N'!AV64 -> - | AW11: ='Tarifa Anual_BRA_MarkUp_N'!AW64 -> - | AX11: ='Tarifa Anual_BRA_MarkUp_N'!AX64 -> - | AY11: ='Tarifa Anual_BRA_MarkUp_N'!AY64 -> - | AZ11: ='Tarifa Anual_BRA_MarkUp_N'!AZ64 -> - | BA11: ='Tarifa Anual_BRA_MarkUp_N'!BA64 -> - | BB11: ='Tarifa Anual_BRA_MarkUp_N'!BB64 -> - | BC11: ='Tarifa Anual_BRA_MarkUp_N'!BC64 -> - | BD11: ='Tarifa Anual_BRA_MarkUp_N'!BD64 -> - | BE11: ='Tarifa Anual_BRA_MarkUp_N'!BE64 -> - | BF11: ='Tarifa Anual_BRA_MarkUp_N'!BF64 -> - | BG11: ='Tarifa Anual_BRA_MarkUp_N'!BG64 -> - | BH11: ='Tarifa Anual_BRA_MarkUp_N'!BH64 -> - | BI11: ='Tarifa Anual_BRA_MarkUp_N'!BI64 -> - | BJ11: ='Tarifa Anual_BRA_MarkUp_N'!BJ64 -> - | BK11: ='Tarifa Anual_BRA_MarkUp_N'!BK64 -> - | BL11: ='Tarifa Anual_BRA_MarkUp_N'!BL64 -> - | BM11: ='Tarifa Anual_BRA_MarkUp_N'!BM64 -> - | BN11: ='Tarifa Anual_BRA_MarkUp_N'!BN64 -> - | BO11: ='Tarifa Anual_BRA_MarkUp_N'!BO64 -> - | BP11: ='Tarifa Anual_BRA_MarkUp_N'!BP64 -> - | BQ11: ='Tarifa Anual_BRA_MarkUp_N'!BQ64 -> - | BR11: ='Tarifa Anual_BRA_MarkUp_N'!BR64 -> - | BS11: ='Tarifa Anual_BRA_MarkUp_N'!BS64 -> - | BT11: ='Tarifa Anual_BRA_MarkUp_N'!BT64 -> - | BU11: ='Tarifa Anual_BRA_MarkUp_N'!BU64 -> - | BV11: ='Tarifa Anual_BRA_MarkUp_N'!BV64 -> - | BW11: ='Tarifa Anual_BRA_MarkUp_N'!BW64 -> - | BX11: ='Tarifa Anual_BRA_MarkUp_N'!BX64 -> - | BY11: ='Tarifa Anual_BRA_MarkUp_N'!BY64 -> - | BZ11: ='Tarifa Anual_BRA_MarkUp_N'!BZ64 -> - | CA11: ='Tarifa Anual_BRA_MarkUp_N'!CA64 -> - | CB11: ='Tarifa Anual_BRA_MarkUp_N'!CB64 -> - | CC11: ='Tarifa Anual_BRA_MarkUp_N'!CC64 -> - | CD11: ='Tarifa Anual_BRA_MarkUp_N'!CD64 -> - | CE11: ='Tarifa Anual_BRA_MarkUp_N'!CE64 -> - | CF11: ='Tarifa Anual_BRA_MarkUp_N'!CF64 -> - | CG11: ='Tarifa Anual_BRA_MarkUp_N'!CG64 -> - | CH11: ='Tarifa Anual_BRA_MarkUp_N'!CH64 -> - | CI11: ='Tarifa Anual_BRA_MarkUp_N'!CI64 -> -
B13: Sensibilidade sobre a BA | C13: 0 | D13: -0.5 | E13: 0 | F13: 1
B14: Sensibilidade sobre a Capacidade | C14: 1 | D14: 1 | E14: 0.8 | F14: 0.6
B16: 1. Premissas Operacionais, Capex e Opex
B17: Investimento
B18: Investimento Inicial
B19: Base de Ativos (BA) (US$ mi) | C19: =Inputs!C13 -> 1
B20: Base de Ativos (BA) (US$ mi) com sensibilidade | C20: =C19*(1+E20) -> 1 | D20: ---> | E20: =C13 -> 0 | F20: incerteza sobre Base de Ativos
B21: Base de Ativos (BA) (R$ mi) | C21: =C20*C75*(1-C118) -> 5.84 | D21: ---> | E21: =C118 -> 0 | F21: efeito do Reidi
B22: Base de Ativos (BA) (R$ mi + Fator de Localização) | C22: =C21*C23 -> 8.76
B23: Fator de localização dos custos | C23: =Inputs!C14*(1-C120) -> 1.5 | D23: ---> | E23: =C120 -> 0 | F23: efeito de redução de tarifas aduaneiras
B25: Capex Sustaining
B26: Capex (US$ mi) | C26: 0 | D26: 0 | E26: 0 | F26: 0 | G26: 0 | H26: 0 | I26: 0 | J26: 0 | K26: 0 | L26: 0 | M26: 0 | N26: 0 | O26: 0 | P26: 0 | Q26: 0 | R26: 0 | S26: 0 | T26: 0 | U26: 0 | V26: 0 | W26: 0 | X26: 0 | Y26: 0 | Z26: 0 | AA26: 0 | AB26: 0 | AC26: 0 | AD26: 0 | AE26: 0 | AF26: 0 | AG26: 0 | AH26: 0 | AI26: 0 | AJ26: 0 | AK26: 0 | AL26: 0 | AM26: 0 | AN26: 0 | AO26: 0 | AP26: 0 | AQ26: 0 | AR26: 0 | AS26: 0 | AT26: 0 | AU26: 0 | AV26: 0 | AW26: 0 | AX26: 0 | AY26: 0 | AZ26: 0 | BA26: 0 | BB26: 0 | BC26: 0 | BD26: 0 | BE26: 0 | BF26: 0 | BG26: 0 | BH26: 0 | BI26: 0 | BJ26: 0 | BK26: 0 | BL26: 0 | BM26: 0 | BN26: 0 | BO26: 0 | BP26: 0 | BQ26: 0 | BR26: 0 | BS26: 0 | BT26: 0 | BU26: 0 | BV26: 0 | BW26: 0 | BX26: 0 | BY26: 0 | BZ26: 0 | CA26: 0 | CB26: 0 | CC26: 0 | CD26: 0 | CE26: 0 | CF26: 0 | CG26: 0 | CH26: 0 | CI26: 0
B27: Capex (R$ mi) | C27: =C26*C75 -> 0 | D27: 0 | E27: 0 | F27: 0 | G27: 0 | H27: 0 | I27: 0 | J27: 0 | K27: 0 | L27: 0 | M27: 0 | N27: 0 | O27: 0 | P27: 0 | Q27: 0 | R27: 0 | S27: 0 | T27: 0 | U27: 0 | V27: 0 | W27: 0 | X27: 0 | Y27: 0 | Z27: 0 | AA27: 0 | AB27: 0 | AC27: 0 | AD27: 0 | AE27: 0 | AF27: 0 | AG27: 0 | AH27: 0 | AI27: =AI26*AI75 -> 0 | AJ27: 0 | AK27: 0 | AL27: 0 | AM27: 0 | AN27: 0 | AO27: 0 | AP27: 0 | AQ27: 0 | AR27: 0 | AS27: 0 | AT27: 0 | AU27: 0 | AV27: 0 | AW27: 0 | AX27: 0 | AY27: 0 | AZ27: 0 | BA27: 0 | BB27: 0 | BC27: 0 | BD27: 0 | BE27: 0 | BF27: 0 | BG27: 0 | BH27: 0 | BI27: 0 | BJ27: 0 | BK27: 0 | BL27: 0 | BM27: 0 | BN27: 0 | BO27: =BO26*BO75 -> 0 | BP27: 0 | BQ27: 0 | BR27: 0 | BS27: 0 | BT27: 0 | BU27: 0 | BV27: 0 | BW27: 0 | BX27: 0 | BY27: 0 | BZ27: 0 | CA27: 0 | CB27: 0 | CC27: 0 | CD27: 0 | CE27: 0 | CF27: 0 | CG27: 0 | CH27: 0 | CI27: 0
B28: Capex (R$ mi + Fator de Localização) | C28: =C27*$C$23 -> 0 | D28: =D27*$C$23 -> 0 | E28: 0 | F28: 0 | G28: 0 | H28: 0 | I28: 0 | J28: 0 | K28: 0 | L28: 0 | M28: 0 | N28: 0 | O28: 0 | P28: 0 | Q28: 0 | R28: 0 | S28: 0 | T28: 0 | U28: 0 | V28: 0 | W28: 0 | X28: 0 | Y28: 0 | Z28: 0 | AA28: 0 | AB28: 0 | AC28: 0 | AD28: 0 | AE28: 0 | AF28: 0 | AG28: 0 | AH28: 0 | AI28: 0 | AJ28: 0 | AK28: 0 | AL28: 0 | AM28: 0 | AN28: 0 | AO28: 0 | AP28: 0 | AQ28: 0 | AR28: 0 | AS28: 0 | AT28: 0 | AU28: 0 | AV28: 0 | AW28: 0 | AX28: 0 | AY28: 0 | AZ28: 0 | BA28: 0 | BB28: 0 | BC28: 0 | BD28: 0 | BE28: 0 | BF28: 0 | BG28: 0 | BH28: 0 | BI28: 0 | BJ28: 0 | BK28: 0 | BL28: 0 | BM28: 0 | BN28: 0 | BO28: 0 | BP28: =BP27*$C$23 -> 0 | BQ28: 0 | BR28: 0 | BS28: 0 | BT28: 0 | BU28: 0 | BV28: 0 | BW28: 0 | BX28: 0 | BY28: 0 | BZ28: 0 | CA28: 0 | CB28: 0 | CC28: 0 | CD28: 0 | CE28: 0 | CF28: 0 | CG28: 0 | CH28: 0 | CI28: 0
B30: Capex Novos Projetos
B31: Capex (US$ mi) | C31: 0 | D31: 0 | E31: 0 | F31: 0 | G31: 0 | H31: 0 | I31: 0 | J31: 0 | K31: 0 | L31: 0 | M31: 0 | N31: 0 | O31: 0 | P31: 0 | Q31: 0 | R31: 0 | S31: 0 | T31: 0 | U31: 0 | V31: 0 | W31: 0 | X31: 0 | Y31: 0 | Z31: 0 | AA31: 0 | AB31: 0 | AC31: 0 | AD31: 0 | AE31: 0 | AF31: 0 | AG31: 0 | AH31: 0 | AI31: 0 | AJ31: 0 | AK31: 0 | AL31: 0 | AM31: 0 | AN31: 0 | AO31: 0 | AP31: 0 | AQ31: 0 | AR31: 0 | AS31: 0 | AT31: 0 | AU31: 0 | AV31: 0 | AW31: 0 | AX31: 0 | AY31: 0 | AZ31: 0 | BA31: 0 | BB31: 0 | BC31: 0 | BD31: 0 | BE31: 0 | BF31: 0 | BG31: 0 | BH31: 0 | BI31: 0 | BJ31: 0 | BK31: 0 | BL31: 0 | BM31: 0 | BN31: 0 | BO31: 0 | BP31: 0 | BQ31: 0 | BR31: 0 | BS31: 0 | BT31: 0 | BU31: 0 | BV31: 0 | BW31: 0 | BX31: 0 | BY31: 0 | BZ31: 0 | CA31: 0 | CB31: 0 | CC31: 0 | CD31: 0 | CE31: 0 | CF31: 0 | CG31: 0 | CH31: 0 | CI31: 0
B32: Capex (R$ mi) | C32: =C31*C75 -> 0 | D32: 0 | E32: 0 | F32: 0 | G32: 0 | H32: 0 | I32: 0 | J32: 0 | K32: 0 | L32: 0 | M32: 0 | N32: 0 | O32: 0 | P32: 0 | Q32: 0 | R32: 0 | S32: 0 | T32: 0 | U32: 0 | V32: 0 | W32: 0 | X32: 0 | Y32: 0 | Z32: 0 | AA32: 0 | AB32: 0 | AC32: 0 | AD32: 0 | AE32: 0 | AF32: 0 | AG32: 0 | AH32: 0 | AI32: =AI31*AI75 -> 0 | AJ32: 0 | AK32: 0 | AL32: 0 | AM32: 0 | AN32: 0 | AO32: 0 | AP32: 0 | AQ32: 0 | AR32: 0 | AS32: 0 | AT32: 0 | AU32: 0 | AV32: 0 | AW32: 0 | AX32: 0 | AY32: 0 | AZ32: 0 | BA32: 0 | BB32: 0 | BC32: 0 | BD32: 0 | BE32: 0 | BF32: 0 | BG32: 0 | BH32: 0 | BI32: 0 | BJ32: 0 | BK32: 0 | BL32: 0 | BM32: 0 | BN32: 0 | BO32: =BO31*BO75 -> 0 | BP32: 0 | BQ32: 0 | BR32: 0 | BS32: 0 | BT32: 0 | BU32: 0 | BV32: 0 | BW32: 0 | BX32: 0 | BY32: 0 | BZ32: 0 | CA32: 0 | CB32: 0 | CC32: 0 | CD32: 0 | CE32: 0 | CF32: 0 | CG32: 0 | CH32: 0 | CI32: 0
B33: Capex (R$ mi + Fator de Localização) | C33: =C32*$C$23 -> 0 | D33: =D32*$C$23 -> 0 | E33: 0 | F33: 0 | G33: 0 | H33: 0 | I33: 0 | J33: 0 | K33: 0 | L33: 0 | M33: 0 | N33: 0 | O33: 0 | P33: 0 | Q33: 0 | R33: 0 | S33: 0 | T33: 0 | U33: 0 | V33: 0 | W33: 0 | X33: 0 | Y33: 0 | Z33: 0 | AA33: 0 | AB33: 0 | AC33: 0 | AD33: 0 | AE33: 0 | AF33: 0 | AG33: 0 | AH33: 0 | AI33: 0 | AJ33: 0 | AK33: 0 | AL33: 0 | AM33: 0 | AN33: 0 | AO33: 0 | AP33: 0 | AQ33: 0 | AR33: 0 | AS33: 0 | AT33: 0 | AU33: 0 | AV33: 0 | AW33: 0 | AX33: 0 | AY33: 0 | AZ33: 0 | BA33: 0 | BB33: 0 | BC33: 0 | BD33: 0 | BE33: 0 | BF33: 0 | BG33: 0 | BH33: 0 | BI33: 0 | BJ33: 0 | BK33: 0 | BL33: 0 | BM33: 0 | BN33: 0 | BO33: 0 | BP33: =BP32*$C$23 -> 0 | BQ33: 0 | BR33: 0 | BS33: 0 | BT33: 0 | BU33: 0 | BV33: 0 | BW33: 0 | BX33: 0 | BY33: 0 | BZ33: 0 | CA33: 0 | CB33: 0 | CC33: 0 | CD33: 0 | CE33: 0 | CF33: 0 | CG33: 0 | CH33: 0 | CI33: 0
B38: Aumento na Capacidade
B39: Aumento na Capacidade (Mm3/dia)
B44: Opex
B45: Opex Fixo (US$ mi) | C45: =Inputs!C17 -> 0 | D45: =Inputs!D17 -> 0 | E45: =Inputs!E17 -> 0 | F45: =Inputs!F17 -> 0 | G45: =Inputs!G17 -> 0 | H45: =Inputs!H17 -> 0 | I45: =Inputs!I17 -> 0 | J45: =Inputs!J17 -> 0 | K45: =Inputs!K17 -> 0 | L45: =Inputs!L17 -> 0 | M45: =Inputs!M17 -> 0 | N45: =Inputs!N17 -> 0 | O45: =Inputs!O17 -> 0 | P45: =Inputs!P17 -> 0 | Q45: =Inputs!Q17 -> 0 | R45: =Q45 -> 0 | S45: =R45 -> 0 | T45: 0 | U45: 0 | V45: 0 | W45: 0 | X45: 0 | Y45: 0 | Z45: 0 | AA45: 0 | AB45: 0 | AC45: 0 | AD45: 0 | AE45: 0 | AF45: 0 | AG45: 0 | AH45: 0 | AI45: 0 | AJ45: 0 | AK45: 0 | AL45: 0 | AM45: 0 | AN45: 0 | AO45: 0 | AP45: 0 | AQ45: 0 | AR45: 0 | AS45: 0 | AT45: 0 | AU45: 0 | AV45: 0 | AW45: 0 | AX45: 0 | AY45: 0 | AZ45: 0 | BA45: 0 | BB45: 0 | BC45: 0 | BD45: 0 | BE45: 0 | BF45: 0 | BG45: 0 | BH45: 0 | BI45: 0 | BJ45: 0 | BK45: 0 | BL45: 0 | BM45: 0 | BN45: 0 | BO45: 0 | BP45: 0 | BQ45: 0 | BR45: 0 | BS45: 0 | BT45: 0 | BU45: 0 | BV45: 0 | BW45: 0 | BX45: 0 | BY45: 0 | BZ45: 0 | CA45: 0 | CB45: 0 | CC45: 0 | CD45: 0 | CE45: =CD45 -> 0 | CF45: 0 | CG45: 0 | CH45: 0 | CI45: 0
B46: Opex Variável (US$ mi) | C46: =Inputs!C18 -> 0 | D46: =Inputs!D18 -> 0 | E46: =Inputs!E18 -> 0 | F46: =Inputs!F18 -> 0 | G46: =Inputs!G18 -> 0 | H46: =Inputs!H18 -> 0 | I46: =Inputs!I18 -> 0 | J46: =Inputs!J18 -> 0 | K46: =Inputs!K18 -> 0 | L46: =Inputs!L18 -> 0 | M46: =Inputs!M18 -> 0 | N46: =Inputs!N18 -> 0 | O46: =Inputs!O18 -> 0 | P46: =Inputs!P18 -> 0 | Q46: =Inputs!Q18 -> 0 | R46: =Q46 -> 0 | S46: =R46 -> 0 | T46: 0 | U46: 0 | V46: 0 | W46: 0 | X46: 0 | Y46: 0 | Z46: 0 | AA46: 0 | AB46: 0 | AC46: 0 | AD46: 0 | AE46: 0 | AF46: 0 | AG46: 0 | AH46: 0 | AI46: 0 | AJ46: 0 | AK46: 0 | AL46: 0 | AM46: 0 | AN46: 0 | AO46: 0 | AP46: 0 | AQ46: 0 | AR46: 0 | AS46: 0 | AT46: 0 | AU46: 0 | AV46: 0 | AW46: 0 | AX46: 0 | AY46: 0 | AZ46: 0 | BA46: 0 | BB46: 0 | BC46: 0 | BD46: 0 | BE46: 0 | BF46: 0 | BG46: 0 | BH46: 0 | BI46: 0 | BJ46: 0 | BK46: 0 | BL46: 0 | BM46: 0 | BN46: 0 | BO46: 0 | BP46: 0 | BQ46: 0 | BR46: 0 | BS46: 0 | BT46: 0 | BU46: 0 | BV46: 0 | BW46: 0 | BX46: 0 | BY46: 0 | BZ46: 0 | CA46: 0 | CB46: 0 | CC46: 0 | CD46: 0 | CE46: =CD46 -> 0 | CF46: 0 | CG46: 0 | CH46: 0 | CI46: 0
B47: Opex Fixo (R$ mi) | C47: =C45*$C$23*C75 -> 0 | D47: 0 | E47: 0 | F47: 0 | G47: 0 | H47: 0 | I47: 0 | J47: 0 | K47: 0 | L47: 0 | M47: 0 | N47: 0 | O47: 0 | P47: 0 | Q47: 0 | R47: 0 | S47: 0 | T47: 0 | U47: 0 | V47: 0 | W47: 0 | X47: 0 | Y47: 0 | Z47: 0 | AA47: 0 | AB47: 0 | AC47: 0 | AD47: 0 | AE47: 0 | AF47: 0 | AG47: 0 | AH47: 0 | AI47: =AI45*$C$23*AI75 -> 0 | AJ47: 0 | AK47: 0 | AL47: 0 | AM47: 0 | AN47: 0 | AO47: 0 | AP47: 0 | AQ47: 0 | AR47: 0 | AS47: 0 | AT47: 0 | AU47: 0 | AV47: 0 | AW47: 0 | AX47: 0 | AY47: 0 | AZ47: 0 | BA47: 0 | BB47: 0 | BC47: 0 | BD47: 0 | BE47: 0 | BF47: 0 | BG47: 0 | BH47: 0 | BI47: 0 | BJ47: 0 | BK47: 0 | BL47: 0 | BM47: 0 | BN47: 0 | BO47: =BO45*$C$23*BO75 -> 0 | BP47: 0 | BQ47: 0 | BR47: 0 | BS47: 0 | BT47: 0 | BU47: 0 | BV47: 0 | BW47: 0 | BX47: 0 | BY47: 0 | BZ47: 0 | CA47: 0 | CB47: 0 | CC47: 0 | CD47: 0 | CE47: 0 | CF47: 0 | CG47: 0 | CH47: 0 | CI47: 0
B48: Opex Variável (R$ mi) | C48: =C46*$C$23*C81 -> 0 | D48: 0 | E48: 0 | F48: 0 | G48: 0 | H48: 0 | I48: 0 | J48: 0 | K48: 0 | L48: 0 | M48: 0 | N48: 0 | O48: 0 | P48: 0 | Q48: 0 | R48: 0 | S48: 0 | T48: 0 | U48: 0 | V48: 0 | W48: 0 | X48: 0 | Y48: 0 | Z48: 0 | AA48: 0 | AB48: 0 | AC48: 0 | AD48: 0 | AE48: 0 | AF48: 0 | AG48: 0 | AH48: 0 | AI48: =AI46*$C$23*AI81 -> 0 | AJ48: 0 | AK48: 0 | AL48: 0 | AM48: 0 | AN48: 0 | AO48: 0 | AP48: 0 | AQ48: 0 | AR48: 0 | AS48: 0 | AT48: 0 | AU48: 0 | AV48: 0 | AW48: 0 | AX48: 0 | AY48: 0 | AZ48: 0 | BA48: 0 | BB48: 0 | BC48: 0 | BD48: 0 | BE48: 0 | BF48: 0 | BG48: 0 | BH48: 0 | BI48: 0 | BJ48: 0 | BK48: 0 | BL48: 0 | BM48: 0 | BN48: 0 | BO48: =BO46*$C$23*BO81 -> 0 | BP48: 0 | BQ48: 0 | BR48: 0 | BS48: 0 | BT48: 0 | BU48: 0 | BV48: 0 | BW48: 0 | BX48: 0 | BY48: 0 | BZ48: 0 | CA48: 0 | CB48: 0 | CC48: 0 | CD48: 0 | CE48: 0 | CF48: 0 | CG48: 0 | CH48: 0 | CI48: 0
B50: Capacidade
B51: Capacidade (Mm3/dia) | C51: =Inputs!C21 -> 1 | D51: =Inputs!D21 -> 1 | E51: =Inputs!E21 -> 1 | F51: =Inputs!F21 -> 1 | G51: =Inputs!G21 -> 1 | H51: =Inputs!H21 -> 1 | I51: =Inputs!I21 -> 1 | J51: =Inputs!J21 -> 1 | K51: =Inputs!K21 -> 1 | L51: =Inputs!L21 -> 1 | M51: =Inputs!M21 -> 1 | N51: =Inputs!N21 -> 1 | O51: =Inputs!O21 -> 1 | P51: =Inputs!P21 -> 1 | Q51: =Inputs!Q21 -> 1 | R51: =Inputs!R21 -> 1 | S51: =Inputs!S21 -> 1 | T51: =Inputs!T21 -> 1 | U51: =Inputs!U21 -> 1 | V51: =Inputs!V21 -> 1 | W51: =Inputs!W21 -> 1 | X51: =Inputs!X21 -> 1 | Y51: =Inputs!Y21 -> 1 | Z51: =Inputs!Z21 -> 1 | AA51: =Inputs!AA21 -> 1 | AB51: =Inputs!AB21 -> 1 | AC51: =Inputs!AC21 -> 1 | AD51: =Inputs!AD21 -> 1 | AE51: =Inputs!AE21 -> 1 | AF51: =Inputs!AF21 -> 1 | AG51: =Inputs!AG21 -> 1 | AH51: =Inputs!AH21 -> 1 | AI51: =Inputs!AI21 -> 1 | AJ51: =Inputs!AJ21 -> 1 | AK51: =Inputs!AK21 -> 1 | AL51: =Inputs!AL21 -> 1 | AM51: =Inputs!AM21 -> 1 | AN51: =Inputs!AN21 -> 1 | AO51: =Inputs!AO21 -> 1 | AP51: =Inputs!AP21 -> 1 | AQ51: =Inputs!AQ21 -> 1 | AR51: =Inputs!AR21 -> 1 | AS51: =Inputs!AS21 -> 1 | AT51: =Inputs!AT21 -> 1 | AU51: =Inputs!AU21 -> 1 | AV51: =Inputs!AV21 -> 1 | AW51: =Inputs!AW21 -> 1 | AX51: =Inputs!AX21 -> 1 | AY51: =Inputs!AY21 -> 1 | AZ51: =Inputs!AZ21 -> 1 | BA51: =Inputs!BA21 -> 1 | BB51: =Inputs!BB21 -> 1 | BC51: =Inputs!BC21 -> 1 | BD51: =Inputs!BD21 -> 1 | BE51: =Inputs!BE21 -> 1 | BF51: =Inputs!BF21 -> 1 | BG51: =Inputs!BG21 -> 1 | BH51: =Inputs!BH21 -> 1 | BI51: =Inputs!BI21 -> 1 | BJ51: =Inputs!BJ21 -> 1 | BK51: =Inputs!BK21 -> 1 | BL51: =Inputs!BL21 -> 1 | BM51: =Inputs!BM21 -> 1 | BN51: =Inputs!BN21 -> 1 | BO51: =Inputs!BO21 -> 1 | BP51: =Inputs!BP21 -> 1 | BQ51: =Inputs!BQ21 -> 1 | BR51: =Inputs!BR21 -> 1 | BS51: =Inputs!BS21 -> 1 | BT51: =Inputs!BT21 -> 1 | BU51: =Inputs!BU21 -> 1 | BV51: =Inputs!BV21 -> 1 | BW51: =Inputs!BW21 -> 1 | BX51: =Inputs!BX21 -> 1 | BY51: =Inputs!BY21 -> 1 | BZ51: =Inputs!BZ21 -> 1 | CA51: =Inputs!CA21 -> 1 | CB51: =Inputs!CB21 -> 1 | CC51: =Inputs!CC21 -> 1 | CD51: =Inputs!CD21 -> 1 | CE51: =Inputs!CE21 -> 1 | CF51: =Inputs!CF21 -> 1 | CG51: =Inputs!CG21 -> 1 | CH51: =Inputs!CH21 -> 1 | CI51: =Inputs!CI21 -> 1
B52: Capacidade (Mm3/dia) | C52: =C$51*$C$14+C39 -> 1 | D52: 1 | E52: 1 | F52: 1 | G52: 1 | H52: 1 | I52: 1 | J52: 1 | K52: 1 | L52: 1 | M52: 1 | N52: 1 | O52: 1 | P52: 1 | Q52: 1 | R52: 1 | S52: 1 | T52: 1 | U52: 1 | V52: 1 | W52: 1 | X52: 1 | Y52: 1 | Z52: 1 | AA52: 1 | AB52: 1 | AC52: 1 | AD52: 1 | AE52: 1 | AF52: 1 | AG52: 1 | AH52: 1 | AI52: =AI$51*$C$14+AI39 -> 1 | AJ52: 1 | AK52: 1 | AL52: 1 | AM52: 1 | AN52: 1 | AO52: 1 | AP52: 1 | AQ52: 1 | AR52: 1 | AS52: 1 | AT52: 1 | AU52: 1 | AV52: 1 | AW52: 1 | AX52: 1 | AY52: 1 | AZ52: 1 | BA52: 1 | BB52: 1 | BC52: 1 | BD52: 1 | BE52: 1 | BF52: 1 | BG52: 1 | BH52: 1 | BI52: 1 | BJ52: 1 | BK52: 1 | BL52: 1 | BM52: 1 | BN52: 1 | BO52: =BO$51*$C$14+BO39 -> 1 | BP52: 1 | BQ52: 1 | BR52: 1 | BS52: 1 | BT52: 1 | BU52: 1 | BV52: 1 | BW52: 1 | BX52: 1 | BY52: 1 | BZ52: 1 | CA52: 1 | CB52: 1 | CC52: 1 | CD52: 1 | CE52: 1 | CF52: 1 | CG52: 1 | CH52: 1 | CI52: 1
B54: % Fator de Capacidade | C54: =C14 -> 1
B56: Prazos Operação
B57: Vida Útil + Ano Base (anos) | C57: =Inputs!C26 -> 31 | D57: --> célula livre para simular a vida útil do projeto
B58: Vida Útil + Ano Base (anos) | C58: =C57+C59 -> 31
B59: Adicional | D59: --> célula livre para simular a vida útil do projeto
B60: Ano Base da BA (anos) | C60: =Inputs!C25 -> 1
B66: 2. Fator de conversão, inflação e câmbio
B68: Poder Calorífico de Referência (kcal/m3) | C68: 9400 | D68: 9400 | E68: 9400 | F68: =+E68 -> 9400 | G68: =+F68 -> 9400 | H68: =+G68 -> 9400 | I68: 9400 | J68: 9400 | K68: 9400 | L68: 9400 | M68: 9400 | N68: 9400 | O68: 9400 | P68: 9400 | Q68: 9400 | R68: 9400 | S68: 9400 | T68: 9400 | U68: 9400 | V68: 9400 | W68: 9400 | X68: 9400 | Y68: 9400 | Z68: 9400 | AA68: =+Z68 -> 9400 | AB68: =+AA68 -> 9400 | AC68: =+AB68 -> 9400 | AD68: =+AC68 -> 9400 | AE68: =+AD68 -> 9400 | AF68: =+AE68 -> 9400 | AG68: =+AF68 -> 9400 | AH68: =+AG68 -> 9400 | AI68: =+AH68 -> 9400 | AJ68: =+AI68 -> 9400 | AK68: =+AJ68 -> 9400 | AL68: =+AK68 -> 9400 | AM68: =+AL68 -> 9400 | AN68: =+AM68 -> 9400 | AO68: =+AN68 -> 9400 | AP68: =+AO68 -> 9400 | AQ68: =+AP68 -> 9400 | AR68: =+AQ68 -> 9400 | AS68: =+AR68 -> 9400 | AT68: =+AS68 -> 9400 | AU68: =+AT68 -> 9400 | AV68: =+AU68 -> 9400 | AW68: =+AV68 -> 9400 | AX68: =+AW68 -> 9400 | AY68: =+AX68 -> 9400 | AZ68: =+AY68 -> 9400 | BA68: =+AZ68 -> 9400 | BB68: =+BA68 -> 9400 | BC68: =+BB68 -> 9400 | BD68: =+BC68 -> 9400 | BE68: =+BD68 -> 9400 | BF68: =+BE68 -> 9400 | BG68: =+BF68 -> 9400 | BH68: =+BG68 -> 9400 | BI68: =+BH68 -> 9400 | BJ68: =+BI68 -> 9400 | BK68: =+BJ68 -> 9400 | BL68: =+BK68 -> 9400 | BM68: =+BL68 -> 9400 | BN68: =+BM68 -> 9400 | BO68: =+BN68 -> 9400 | BP68: =+BO68 -> 9400 | BQ68: =+BP68 -> 9400 | BR68: =+BQ68 -> 9400 | BS68: =+BR68 -> 9400 | BT68: =+BS68 -> 9400 | BU68: =+BT68 -> 9400 | BV68: =+BU68 -> 9400 | BW68: =+BV68 -> 9400 | BX68: =+BW68 -> 9400 | BY68: =+BX68 -> 9400 | BZ68: =+BY68 -> 9400 | CA68: =+BZ68 -> 9400 | CB68: =+CA68 -> 9400 | CC68: =+CB68 -> 9400 | CD68: =+CC68 -> 9400 | CE68: =+CD68 -> 9400 | CF68: =+CE68 -> 9400 | CG68: =+CF68 -> 9400 | CH68: =+CG68 -> 9400 | CI68: =+CH68 -> 9400
B69: Fator de conversão (MMBtu/m³) | C69: 34920 | D69: 34920 | E69: 34920 | F69: 34920 | G69: 34920 | H69: 34920 | I69: 34920 | J69: 34920 | K69: 34920 | L69: 34920 | M69: 34920 | N69: 34920 | O69: 34920 | P69: 34920 | Q69: 34920 | R69: 34920 | S69: 34920 | T69: 34920 | U69: 34920 | V69: 34920 | W69: 34920 | X69: 34920 | Y69: 34920 | Z69: 34920 | AA69: 34920 | AB69: 34920 | AC69: 34920 | AD69: 34920 | AE69: 34920 | AF69: 34920 | AG69: 34920 | AH69: 34920 | AI69: 34920 | AJ69: 34920 | AK69: 34920 | AL69: 34920 | AM69: 34920 | AN69: 34920 | AO69: 34920 | AP69: 34920 | AQ69: 34920 | AR69: 34920 | AS69: 34920 | AT69: 34920 | AU69: 34920 | AV69: 34920 | AW69: 34920 | AX69: 34920 | AY69: 34920 | AZ69: 34920 | BA69: 34920 | BB69: 34920 | BC69: 34920 | BD69: 34920 | BE69: 34920 | BF69: 34920 | BG69: 34920 | BH69: 34920 | BI69: 34920 | BJ69: 34920 | BK69: 34920 | BL69: 34920 | BM69: 34920 | BN69: 34920 | BO69: 34920 | BP69: 34920 | BQ69: 34920 | BR69: 34920 | BS69: 34920 | BT69: 34920 | BU69: 34920 | BV69: 34920 | BW69: 34920 | BX69: 34920 | BY69: 34920 | BZ69: 34920 | CA69: 34920 | CB69: 34920 | CC69: 34920 | CD69: 34920 | CE69: 34920 | CF69: 34920 | CG69: 34920 | CH69: 34920 | CI69: 34920
B70: Duração do Ano (dias) | C70: 365 | D70: 365 | E70: 365 | F70: 365 | G70: 365 | H70: 365 | I70: 365 | J70: 365 | K70: 365 | L70: 365 | M70: 365 | N70: 365 | O70: 365 | P70: 365 | Q70: 365 | R70: 365 | S70: 365 | T70: 365 | U70: 365 | V70: 365 | W70: 365 | X70: 365 | Y70: 365 | Z70: 365 | AA70: 365 | AB70: 365 | AC70: 365 | AD70: 365 | AE70: 365 | AF70: 365 | AG70: 365 | AH70: 365 | AI70: 365 | AJ70: 365 | AK70: 365 | AL70: 365 | AM70: 365 | AN70: 365 | AO70: 365 | AP70: 365 | AQ70: 365 | AR70: 365 | AS70: 365 | AT70: 365 | AU70: 365 | AV70: 365 | AW70: 365 | AX70: 365 | AY70: 365 | AZ70: 365 | BA70: 365 | BB70: 365 | BC70: 365 | BD70: 365 | BE70: 365 | BF70: 365 | BG70: 365 | BH70: 365 | BI70: 365 | BJ70: 365 | BK70: 365 | BL70: 365 | BM70: 365 | BN70: 365 | BO70: 365 | BP70: 365 | BQ70: 365 | BR70: 365 | BS70: 365 | BT70: 365 | BU70: 365 | BV70: 365 | BW70: 365 | BX70: 365 | BY70: 365 | BZ70: 365 | CA70: 365 | CB70: 365 | CC70: 365 | CD70: 365 | CE70: 365 | CF70: 365 | CG70: 365 | CH70: 365 | CI70: 365
B71: Dias Operacionais (dias) | C71: 365 | D71: 365 | E71: 365 | F71: 365 | G71: 365 | H71: 365 | I71: 365 | J71: 365 | K71: 365 | L71: 365 | M71: 365 | N71: 365 | O71: 365 | P71: 365 | Q71: 365 | R71: 365 | S71: 365 | T71: 365 | U71: 365 | V71: 365 | W71: 365 | X71: 365 | Y71: 365 | Z71: 365 | AA71: 365 | AB71: 365 | AC71: 365 | AD71: 365 | AE71: 365 | AF71: 365 | AG71: 365 | AH71: 365 | AI71: 365 | AJ71: 365 | AK71: 365 | AL71: 365 | AM71: 365 | AN71: 365 | AO71: 365 | AP71: 365 | AQ71: 365 | AR71: 365 | AS71: 365 | AT71: 365 | AU71: 365 | AV71: 365 | AW71: 365 | AX71: 365 | AY71: 365 | AZ71: 365 | BA71: 365 | BB71: 365 | BC71: 365 | BD71: 365 | BE71: 365 | BF71: 365 | BG71: 365 | BH71: 365 | BI71: 365 | BJ71: 365 | BK71: 365 | BL71: 365 | BM71: 365 | BN71: 365 | BO71: 365 | BP71: 365 | BQ71: 365 | BR71: 365 | BS71: 365 | BT71: 365 | BU71: 365 | BV71: 365 | BW71: 365 | BX71: 365 | BY71: 365 | BZ71: 365 | CA71: 365 | CB71: 365 | CC71: 365 | CD71: 365 | CE71: 365 | CF71: 365 | CG71: 365 | CH71: 365 | CI71: 365
B73: TJLP (a.a.) | C73: 0.0631 | D73: 0.0631 | E73: 0.0631 | F73: 0.0631 | G73: 0.0631 | H73: 0.0631 | I73: 0.0631 | J73: 0.0631 | K73: 0.0631 | L73: 0.0631 | M73: 0.0631 | N73: 0.0631 | O73: 0.0631 | P73: 0.0631 | Q73: 0.0631 | R73: 0.0631 | S73: 0.0631 | T73: 0.0631 | U73: 0.0631 | V73: 0.0631 | W73: 0.0631 | X73: 0.0631 | Y73: 0.0631 | Z73: 0.0631 | AA73: 0.0631 | AB73: 0.0631 | AC73: 0.0631 | AD73: 0.0631 | AE73: 0.0631 | AF73: 0.0631 | AG73: 0.0631 | AH73: 0.0631 | AI73: 0.0631 | AJ73: 0.0631 | AK73: 0.0631 | AL73: 0.0631 | AM73: 0.0631 | AN73: 0.0631 | AO73: 0.0631 | AP73: 0.0631 | AQ73: 0.0631 | AR73: 0.0631 | AS73: 0.0631 | AT73: 0.0631 | AU73: 0.0631 | AV73: 0.0631 | AW73: 0.0631 | AX73: 0.0631 | AY73: 0.0631 | AZ73: 0.0631 | BA73: 0.0631 | BB73: 0.0631 | BC73: 0.0631 | BD73: 0.0631 | BE73: 0.0631 | BF73: 0.0631 | BG73: 0.0631 | BH73: 0.0631 | BI73: 0.0631 | BJ73: 0.0631 | BK73: 0.0631 | BL73: 0.0631 | BM73: 0.0631 | BN73: 0.0631 | BO73: 0.0631 | BP73: 0.0631 | BQ73: 0.0631 | BR73: 0.0631 | BS73: 0.0631 | BT73: 0.0631 | BU73: 0.0631 | BV73: 0.0631 | BW73: 0.0631 | BX73: 0.0631 | BY73: 0.0631 | BZ73: 0.0631 | CA73: 0.0631 | CB73: 0.0631 | CC73: 0.0631 | CD73: 0.0631 | CE73: 0.0631 | CF73: 0.0631 | CG73: 0.0631 | CH73: 0.0631 | CI73: 0.0631
B74: Taxa de Inflação EUA (a.a.) | C74: 0.02 | D74: 0.02 | E74: 0.02 | F74: 0.02 | G74: 0.02 | H74: 0.02 | I74: 0.02 | J74: 0.02 | K74: 0.02 | L74: 0.02 | M74: 0.02 | N74: 0.02 | O74: 0.02 | P74: 0.02 | Q74: 0.02 | R74: 0.02 | S74: 0.02 | T74: 0.02 | U74: 0.02 | V74: 0.02 | W74: 0.02 | X74: 0.02 | Y74: 0.02 | Z74: 0.02 | AA74: 0.02 | AB74: 0.02 | AC74: 0.02 | AD74: 0.02 | AE74: 0.02 | AF74: 0.02 | AG74: 0.02 | AH74: 0.02 | AI74: 0.02 | AJ74: 0.02 | AK74: 0.02 | AL74: 0.02 | AM74: 0.02 | AN74: 0.02 | AO74: 0.02 | AP74: 0.02 | AQ74: 0.02 | AR74: 0.02 | AS74: 0.02 | AT74: 0.02 | AU74: 0.02 | AV74: 0.02 | AW74: 0.02 | AX74: 0.02 | AY74: 0.02 | AZ74: 0.02 | BA74: 0.02 | BB74: 0.02 | BC74: 0.02 | BD74: 0.02 | BE74: 0.02 | BF74: 0.02 | BG74: 0.02 | BH74: 0.02 | BI74: 0.02 | BJ74: 0.02 | BK74: 0.02 | BL74: 0.02 | BM74: 0.02 | BN74: 0.02 | BO74: 0.02 | BP74: 0.02 | BQ74: 0.02 | BR74: 0.02 | BS74: 0.02 | BT74: 0.02 | BU74: 0.02 | BV74: 0.02 | BW74: 0.02 | BX74: 0.02 | BY74: 0.02 | BZ74: 0.02 | CA74: 0.02 | CB74: 0.02 | CC74: 0.02 | CD74: 0.02 | CE74: 0.02 | CF74: 0.02 | CG74: 0.02 | CH74: 0.02 | CI74: 0.02
B75: Taxa de câmbio R$/US$ | C75: 5.84 | D75: 5.84 | E75: 5.84 | F75: 5.84 | G75: 5.84 | H75: 5.84 | I75: 5.84 | J75: 5.84 | K75: 5.84 | L75: 5.84 | M75: 5.84 | N75: 5.84 | O75: 5.84 | P75: 5.84 | Q75: 5.84 | R75: 5.84 | S75: 5.84 | T75: 5.84 | U75: 5.84 | V75: 5.84 | W75: 5.84 | X75: 5.84 | Y75: 5.84 | Z75: 5.84 | AA75: 5.84 | AB75: 5.84 | AC75: 5.84 | AD75: 5.84 | AE75: 5.84 | AF75: 5.84 | AG75: 5.84 | AH75: 5.84 | AI75: 5.84 | AJ75: 5.84 | AK75: 5.84 | AL75: 5.84 | AM75: 5.84 | AN75: 5.84 | AO75: 5.84 | AP75: 5.84 | AQ75: 5.84 | AR75: 5.84 | AS75: 5.84 | AT75: 5.84 | AU75: 5.84 | AV75: 5.84 | AW75: 5.84 | AX75: 5.84 | AY75: 5.84 | AZ75: 5.84 | BA75: 5.84 | BB75: 5.84 | BC75: 5.84 | BD75: 5.84 | BE75: 5.84 | BF75: 5.84 | BG75: 5.84 | BH75: 5.84 | BI75: 5.84 | BJ75: 5.84 | BK75: 5.84 | BL75: 5.84 | BM75: 5.84 | BN75: 5.84 | BO75: 5.84 | BP75: 5.84 | BQ75: 5.84 | BR75: 5.84 | BS75: 5.84 | BT75: 5.84 | BU75: 5.84 | BV75: 5.84 | BW75: 5.84 | BX75: 5.84 | BY75: 5.84 | BZ75: 5.84 | CA75: 5.84 | CB75: 5.84 | CC75: 5.84 | CD75: 5.84 | CE75: 5.84 | CF75: 5.84 | CG75: 5.84 | CH75: 5.84 | CI75: 5.84
B77: Modelo Real (R) ou Nominal (N) | C77: N
B78: Taxa de Inflação Brasil (a.a.) | C78: 0.0445 | D78: =C78 -> 0.0445 | E78: =D78 -> 0.0445 | F78: 0.0445 | G78: 0.0445 | H78: 0.0445 | I78: 0.0445 | J78: 0.0445 | K78: 0.0445 | L78: 0.0445 | M78: 0.0445 | N78: 0.0445 | O78: 0.0445 | P78: 0.0445 | Q78: 0.0445 | R78: 0.0445 | S78: 0.0445 | T78: 0.0445 | U78: 0.0445 | V78: 0.0445 | W78: 0.0445 | X78: 0.0445 | Y78: 0.0445 | Z78: 0.0445 | AA78: 0.0445 | AB78: 0.0445 | AC78: 0.0445 | AD78: 0.0445 | AE78: 0.0445 | AF78: 0.0445 | AG78: 0.0445 | AH78: 0.0445 | AI78: 0.0445 | AJ78: 0.0445 | AK78: 0.0445 | AL78: 0.0445 | AM78: 0.0445 | AN78: 0.0445 | AO78: 0.0445 | AP78: 0.0445 | AQ78: 0.0445 | AR78: 0.0445 | AS78: 0.0445 | AT78: 0.0445 | AU78: 0.0445 | AV78: 0.0445 | AW78: 0.0445 | AX78: 0.0445 | AY78: 0.0445 | AZ78: 0.0445 | BA78: 0.0445 | BB78: 0.0445 | BC78: 0.0445 | BD78: 0.0445 | BE78: 0.0445 | BF78: 0.0445 | BG78: 0.0445 | BH78: 0.0445 | BI78: 0.0445 | BJ78: 0.0445 | BK78: 0.0445 | BL78: 0.0445 | BM78: 0.0445 | BN78: 0.0445 | BO78: 0.0445 | BP78: 0.0445 | BQ78: =BP78 -> 0.0445 | BR78: 0.0445 | BS78: 0.0445 | BT78: 0.0445 | BU78: 0.0445 | BV78: 0.0445 | BW78: 0.0445 | BX78: 0.0445 | BY78: 0.0445 | BZ78: 0.0445 | CA78: 0.0445 | CB78: 0.0445 | CC78: 0.0445 | CD78: 0.0445 | CE78: 0.0445 | CF78: 0.0445 | CG78: 0.0445 | CH78: 0.0445 | CI78: 0.0445
B79: Fator de Inflação Brasil (a.a.) | C79: =1*(1+C78) -> 1.0445 | D79: =C79*(1+D78) -> 1.09098025 | E79: =D79*(1+E78) -> 1.139528871 | F79: 1.190237906 | G79: 1.243203493 | H79: 1.298526048 | I79: 1.356310457 | J79: 1.416666273 | K79: 1.479707922 | L79: 1.545554924 | M79: 1.614332118 | N79: 1.686169898 | O79: 1.761204458 | P79: 1.839578056 | Q79: 1.92143928 | R79: 2.006943328 | S79: 2.096252306 | T79: 2.189535534 | U79: 2.286969865 | V79: 2.388740024 | W79: 2.495038955 | X79: 2.606068188 | Y79: 2.722038223 | Z79: 2.843168924 | AA79: =Z79*(1+AA78) -> 2.969689941 | AB79: =AA79*(1+AB78) -> 3.101841143 | AC79: =AB79*(1+AC78) -> 3.239873074 | AD79: =AC79*(1+AD78) -> 3.384047426 | AE79: =AD79*(1+AE78) -> 3.534637536 | AF79: =AE79*(1+AF78) -> 3.691928907 | AG79: =AF79*(1+AG78) -> 3.856219743 | AH79: =AG79*(1+AH78) -> 4.027821522 | AI79: =AH79*(1+AI78) -> 4.207059579 | AJ79: =AI79*(1+AJ78) -> 4.394273731 | AK79: =AJ79*(1+AK78) -> 4.589818912 | AL79: =AK79*(1+AL78) -> 4.794065853 | AM79: =AL79*(1+AM78) -> 5.007401784 | AN79: =AM79*(1+AN78) -> 5.230231163 | AO79: =AN79*(1+AO78) -> 5.46297645 | AP79: =AO79*(1+AP78) -> 5.706078902 | AQ79: =AP79*(1+AQ78) -> 5.959999413 | AR79: =AQ79*(1+AR78) -> 6.225219387 | AS79: =AR79*(1+AS78) -> 6.50224165 | AT79: =AS79*(1+AT78) -> 6.791591403 | AU79: =AT79*(1+AU78) -> 7.09381722 | AV79: =AU79*(1+AV78) -> 7.409492087 | AW79: =AV79*(1+AW78) -> 7.739214485 | AX79: =AW79*(1+AX78) -> 8.083609529 | AY79: =AX79*(1+AY78) -> 8.443330153 | AZ79: =AY79*(1+AZ78) -> 8.819058345 | BA79: =AZ79*(1+BA78) -> 9.211506441 | BB79: =BA79*(1+BB78) -> 9.621418478 | BC79: =BB79*(1+BC78) -> 10.0495716 | BD79: =BC79*(1+BD78) -> 10.49677754 | BE79: =BD79*(1+BE78) -> 10.96388414 | BF79: =BE79*(1+BF78) -> 11.45177698 | BG79: =BF79*(1+BG78) -> 11.96138106 | BH79: =BG79*(1+BH78) -> 12.49366251 | BI79: =BH79*(1+BI78) -> 13.0496305 | BJ79: =BI79*(1+BJ78) -> 13.63033905 | BK79: =BJ79*(1+BK78) -> 14.23688914 | BL79: =BK79*(1+BL78) -> 14.87043071 | BM79: =BL79*(1+BM78) -> 15.53216487 | BN79: =BM79*(1+BN78) -> 16.22334621 | BO79: =BN79*(1+BO78) -> 16.94528512 | BP79: =BO79*(1+BP78) -> 17.6993503 | BQ79: =BP79*(1+BQ78) -> 18.48697139 | BR79: =BQ79*(1+BR78) -> 19.30964162 | BS79: =BR79*(1+BS78) -> 20.16892067 | BT79: =BS79*(1+BT78) -> 21.06643764 | BU79: =BT79*(1+BU78) -> 22.00389412 | BV79: =BU79*(1+BV78) -> 22.98306741 | BW79: =BV79*(1+BW78) -> 24.00581391 | BX79: =BW79*(1+BX78) -> 25.07407262 | BY79: =BX79*(1+BY78) -> 26.18986886 | BZ79: =BY79*(1+BZ78) -> 27.35531802 | CA79: =BZ79*(1+CA78) -> 28.57262967 | CB79: =CA79*(1+CB78) -> 29.84411169 | CC79: =CB79*(1+CC78) -> 31.17217466 | CD79: =CC79*(1+CD78) -> 32.55933643 | CE79: =CD79*(1+CE78) -> 34.00822691 | CF79: =CE79*(1+CF78) -> 35.521593 | CG79: =CF79*(1+CG78) -> 37.10230389 | CH79: =CG79*(1+CH78) -> 38.75335642 | CI79: =CH79*(1+CI78) -> 40.47788078
B82: 3. Custo de Capital Próprio, Custo de Capital de Terceiros e Custo Médio Ponderado de Capital
B84: Total da Dívida/Capital Total [D/(D+E)] | C84: 0.3 | D84: --> 0% para simular estrutura com 100% de capital próprio
B85: Capital Próprio/Capital Total [E/(D+E)] | C85: =1-C84 -> 0.7
B87: Modelo Real (R) ou Nominal (N) | C87: =C77 -> N | D87: R | E87: N
B88: Custo da Divida | C88: =IF($C$87="R",D88,E88) -> 0.12691105 | D88: =7.89/100 -> 0.0789 | E88: =(1+D88)*(1+$C$78)-1 -> 0.12691105
B89: Custo do Capital Próprio | C89: =IF($C$87="R",D89,E89) -> 0.1451898 | D89: =9.64/100 -> 0.0964 | E89: =(1+D89)*(1+$C$78)-1 -> 0.1451898
B90: Custo Médio Ponderado de Capital, em termos reais (% a.a.) | C90: 0.1267612479 | D90: =(C85*D89)+(C84*D88*(1-D99-D100-D103)) -> 0.0831022 | E90: =(C85*E89)+(C84*E88*(1-E99-E100-E103)) -> 0.1267612479
B91: Prazos Dívida
B92: Prazo para amortização | C92: =MIN(C58,20) -> 20 | D92: --> menor valor entre prazo da concessão e 20 anos
B93: Carência para início da amortização | C93: 1
B94: Carência para início do pagamento de juros | C94: 1
B95: Sistema de amortização | C95: SAC
B97: 4. Alíquotas de Tributos (%)
B99: IRPJ Aliquota Básica | C99: 0.15 | D99: 0.15 | E99: 0.15 | F99: 0.15 | G99: 0.15 | H99: 0.15 | I99: 0.15 | J99: 0.15 | K99: 0.15 | L99: 0.15 | M99: 0.15 | N99: 0.15 | O99: 0.15 | P99: 0.15 | Q99: 0.15 | R99: 0.15 | S99: 0.15 | T99: 0.15 | U99: 0.15 | V99: 0.15 | W99: 0.15 | X99: 0.15 | Y99: 0.15 | Z99: 0.15 | AA99: 0.15 | AB99: 0.15 | AC99: 0.15 | AD99: 0.15 | AE99: 0.15 | AF99: 0.15 | AG99: 0.15 | AH99: 0.15 | AI99: 0.15 | AJ99: 0.15 | AK99: 0.15 | AL99: 0.15 | AM99: 0.15 | AN99: 0.15 | AO99: 0.15 | AP99: 0.15 | AQ99: 0.15 | AR99: 0.15 | AS99: 0.15 | AT99: 0.15 | AU99: 0.15 | AV99: 0.15 | AW99: 0.15 | AX99: 0.15 | AY99: 0.15 | AZ99: 0.15 | BA99: 0.15 | BB99: 0.15 | BC99: 0.15 | BD99: 0.15 | BE99: 0.15 | BF99: 0.15 | BG99: 0.15 | BH99: 0.15 | BI99: 0.15 | BJ99: 0.15 | BK99: 0.15 | BL99: 0.15 | BM99: 0.15 | BN99: 0.15 | BO99: 0.15 | BP99: 0.15 | BQ99: 0.15 | BR99: 0.15 | BS99: 0.15 | BT99: 0.15 | BU99: 0.15 | BV99: 0.15 | BW99: 0.15 | BX99: 0.15 | BY99: 0.15 | BZ99: 0.15 | CA99: 0.15 | CB99: 0.15 | CC99: 0.15 | CD99: 0.15 | CE99: 0.15 | CF99: 0.15 | CG99: 0.15 | CH99: 0.15 | CI99: 0.15
B100: IRPJ Aliquota Adicional | C100: 0.1 | D100: 0.1 | E100: 0.1 | F100: 0.1 | G100: 0.1 | H100: 0.1 | I100: 0.1 | J100: 0.1 | K100: 0.1 | L100: 0.1 | M100: 0.1 | N100: 0.1 | O100: 0.1 | P100: 0.1 | Q100: 0.1 | R100: 0.1 | S100: 0.1 | T100: 0.1 | U100: 0.1 | V100: 0.1 | W100: 0.1 | X100: 0.1 | Y100: 0.1 | Z100: 0.1 | AA100: 0.1 | AB100: 0.1 | AC100: 0.1 | AD100: 0.1 | AE100: 0.1 | AF100: 0.1 | AG100: 0.1 | AH100: 0.1 | AI100: 0.1 | AJ100: 0.1 | AK100: 0.1 | AL100: 0.1 | AM100: 0.1 | AN100: 0.1 | AO100: 0.1 | AP100: 0.1 | AQ100: 0.1 | AR100: 0.1 | AS100: 0.1 | AT100: 0.1 | AU100: 0.1 | AV100: 0.1 | AW100: 0.1 | AX100: 0.1 | AY100: 0.1 | AZ100: 0.1 | BA100: 0.1 | BB100: 0.1 | BC100: 0.1 | BD100: 0.1 | BE100: 0.1 | BF100: 0.1 | BG100: 0.1 | BH100: 0.1 | BI100: 0.1 | BJ100: 0.1 | BK100: 0.1 | BL100: 0.1 | BM100: 0.1 | BN100: 0.1 | BO100: 0.1 | BP100: 0.1 | BQ100: 0.1 | BR100: 0.1 | BS100: 0.1 | BT100: 0.1 | BU100: 0.1 | BV100: 0.1 | BW100: 0.1 | BX100: 0.1 | BY100: 0.1 | BZ100: 0.1 | CA100: 0.1 | CB100: 0.1 | CC100: 0.1 | CD100: 0.1 | CE100: 0.1 | CF100: 0.1 | CG100: 0.1 | CH100: 0.1 | CI100: 0.1
B101: Teto para isenção do adicional (R$ mil) | C101: 240
B103: CSLL | C103: 0.09 | D103: 0.09 | E103: 0.09 | F103: 0.09 | G103: 0.09 | H103: 0.09 | I103: 0.09 | J103: 0.09 | K103: 0.09 | L103: 0.09 | M103: 0.09 | N103: 0.09 | O103: 0.09 | P103: 0.09 | Q103: 0.09 | R103: 0.09 | S103: 0.09 | T103: 0.09 | U103: 0.09 | V103: 0.09 | W103: 0.09 | X103: 0.09 | Y103: 0.09 | Z103: 0.09 | AA103: 0.09 | AB103: 0.09 | AC103: 0.09 | AD103: 0.09 | AE103: 0.09 | AF103: 0.09 | AG103: 0.09 | AH103: 0.09 | AI103: 0.09 | AJ103: 0.09 | AK103: 0.09 | AL103: 0.09 | AM103: 0.09 | AN103: 0.09 | AO103: 0.09 | AP103: 0.09 | AQ103: 0.09 | AR103: 0.09 | AS103: 0.09 | AT103: 0.09 | AU103: 0.09 | AV103: 0.09 | AW103: 0.09 | AX103: 0.09 | AY103: 0.09 | AZ103: 0.09 | BA103: 0.09 | BB103: 0.09 | BC103: 0.09 | BD103: 0.09 | BE103: 0.09 | BF103: 0.09 | BG103: 0.09 | BH103: 0.09 | BI103: 0.09 | BJ103: 0.09 | BK103: 0.09 | BL103: 0.09 | BM103: 0.09 | BN103: 0.09 | BO103: 0.09 | BP103: 0.09 | BQ103: 0.09 | BR103: 0.09 | BS103: 0.09 | BT103: 0.09 | BU103: 0.09 | BV103: 0.09 | BW103: 0.09 | BX103: 0.09 | BY103: 0.09 | BZ103: 0.09 | CA103: 0.09 | CB103: 0.09 | CC103: 0.09 | CD103: 0.09 | CE103: 0.09 | CF103: 0.09 | CG103: 0.09 | CH103: 0.09 | CI103: 0.09
B105: ICMS | C105: 0 | D105: 0 | E105: 0 | F105: 0 | G105: 0 | H105: 0 | I105: 0 | J105: 0 | K105: 0 | L105: 0 | M105: 0 | N105: 0 | O105: 0 | P105: 0 | Q105: 0 | R105: 0 | S105: 0 | T105: 0 | U105: 0 | V105: 0 | W105: 0 | X105: 0 | Y105: 0 | Z105: 0 | AA105: 0 | AB105: 0 | AC105: 0 | AD105: 0 | AE105: 0 | AF105: 0 | AG105: 0 | AH105: 0 | AI105: 0 | AJ105: 0 | AK105: 0 | AL105: 0 | AM105: 0 | AN105: 0 | AO105: 0 | AP105: 0 | AQ105: 0 | AR105: 0 | AS105: 0 | AT105: 0 | AU105: 0 | AV105: 0 | AW105: 0 | AX105: 0 | AY105: 0 | AZ105: 0 | BA105: 0 | BB105: 0 | BC105: 0 | BD105: 0 | BE105: 0 | BF105: 0 | BG105: 0 | BH105: 0 | BI105: 0 | BJ105: 0 | BK105: 0 | BL105: 0 | BM105: 0 | BN105: 0 | BO105: 0 | BP105: 0 | BQ105: 0 | BR105: 0 | BS105: 0 | BT105: 0 | BU105: 0 | BV105: 0 | BW105: 0 | BX105: 0 | BY105: 0 | BZ105: 0 | CA105: 0 | CB105: 0 | CC105: 0 | CD105: 0 | CE105: 0 | CF105: 0 | CG105: 0 | CH105: 0 | CI105: 0
B106: PIS | C106: 0.0165 | D106: 0.0165 | E106: 0.0165 | F106: 0.0165 | G106: 0.0165 | H106: 0.0165 | I106: 0.0165 | J106: 0.0165 | K106: 0.0165 | L106: 0.0165 | M106: 0.0165 | N106: 0.0165 | O106: 0.0165 | P106: 0.0165 | Q106: 0.0165 | R106: 0.0165 | S106: 0.0165 | T106: 0.0165 | U106: 0.0165 | V106: 0.0165 | W106: 0.0165 | X106: 0.0165 | Y106: 0.0165 | Z106: 0.0165 | AA106: 0.0165 | AB106: 0.0165 | AC106: 0.0165 | AD106: 0.0165 | AE106: 0.0165 | AF106: 0.0165 | AG106: 0.0165 | AH106: 0.0165 | AI106: 0.0165 | AJ106: 0.0165 | AK106: 0.0165 | AL106: 0.0165 | AM106: 0.0165 | AN106: 0.0165 | AO106: 0.0165 | AP106: 0.0165 | AQ106: 0.0165 | AR106: 0.0165 | AS106: 0.0165 | AT106: 0.0165 | AU106: 0.0165 | AV106: 0.0165 | AW106: 0.0165 | AX106: 0.0165 | AY106: 0.0165 | AZ106: 0.0165 | BA106: 0.0165 | BB106: 0.0165 | BC106: 0.0165 | BD106: 0.0165 | BE106: 0.0165 | BF106: 0.0165 | BG106: 0.0165 | BH106: 0.0165 | BI106: 0.0165 | BJ106: 0.0165 | BK106: 0.0165 | BL106: 0.0165 | BM106: 0.0165 | BN106: 0.0165 | BO106: 0.0165 | BP106: 0.0165 | BQ106: 0.0165 | BR106: 0.0165 | BS106: 0.0165 | BT106: 0.0165 | BU106: 0.0165 | BV106: 0.0165 | BW106: 0.0165 | BX106: 0.0165 | BY106: 0.0165 | BZ106: 0.0165 | CA106: 0.0165 | CB106: 0.0165 | CC106: 0.0165 | CD106: 0.0165 | CE106: 0.0165 | CF106: 0.0165 | CG106: 0.0165 | CH106: 0.0165 | CI106: 0.0165
B107: COFINS | C107: 0.076 | D107: 0.076 | E107: 0.076 | F107: 0.076 | G107: 0.076 | H107: 0.076 | I107: 0.076 | J107: 0.076 | K107: 0.076 | L107: 0.076 | M107: 0.076 | N107: 0.076 | O107: 0.076 | P107: 0.076 | Q107: 0.076 | R107: 0.076 | S107: 0.076 | T107: 0.076 | U107: 0.076 | V107: 0.076 | W107: 0.076 | X107: 0.076 | Y107: 0.076 | Z107: 0.076 | AA107: 0.076 | AB107: 0.076 | AC107: 0.076 | AD107: 0.076 | AE107: 0.076 | AF107: 0.076 | AG107: 0.076 | AH107: 0.076 | AI107: 0.076 | AJ107: 0.076 | AK107: 0.076 | AL107: 0.076 | AM107: 0.076 | AN107: 0.076 | AO107: 0.076 | AP107: 0.076 | AQ107: 0.076 | AR107: 0.076 | AS107: 0.076 | AT107: 0.076 | AU107: 0.076 | AV107: 0.076 | AW107: 0.076 | AX107: 0.076 | AY107: 0.076 | AZ107: 0.076 | BA107: 0.076 | BB107: 0.076 | BC107: 0.076 | BD107: 0.076 | BE107: 0.076 | BF107: 0.076 | BG107: 0.076 | BH107: 0.076 | BI107: 0.076 | BJ107: 0.076 | BK107: 0.076 | BL107: 0.076 | BM107: 0.076 | BN107: 0.076 | BO107: 0.076 | BP107: 0.076 | BQ107: 0.076 | BR107: 0.076 | BS107: 0.076 | BT107: 0.076 | BU107: 0.076 | BV107: 0.076 | BW107: 0.076 | BX107: 0.076 | BY107: 0.076 | BZ107: 0.076 | CA107: 0.076 | CB107: 0.076 | CC107: 0.076 | CD107: 0.076 | CE107: 0.076 | CF107: 0.076 | CG107: 0.076 | CH107: 0.076 | CI107: 0.076
B108: CPMF | C108: 0 | D108: 0 | E108: 0 | F108: 0 | G108: 0 | H108: 0 | I108: 0 | J108: 0 | K108: 0 | L108: 0 | M108: 0 | N108: 0 | O108: 0 | P108: 0 | Q108: 0 | R108: 0 | S108: 0 | T108: 0 | U108: 0 | V108: 0 | W108: 0 | X108: 0 | Y108: 0 | Z108: 0 | AA108: 0 | AB108: 0 | AC108: 0 | AD108: 0 | AE108: 0 | AF108: 0 | AG108: 0 | AH108: 0 | AI108: 0 | AJ108: 0 | AK108: 0 | AL108: 0 | AM108: 0 | AN108: 0 | AO108: 0 | AP108: 0 | AQ108: 0 | AR108: 0 | AS108: 0 | AT108: 0 | AU108: 0 | AV108: 0 | AW108: 0 | AX108: 0 | AY108: 0 | AZ108: 0 | BA108: 0 | BB108: 0 | BC108: 0 | BD108: 0 | BE108: 0 | BF108: 0 | BG108: 0 | BH108: 0 | BI108: 0 | BJ108: 0 | BK108: 0 | BL108: 0 | BM108: 0 | BN108: 0 | BO108: 0 | BP108: 0 | BQ108: 0 | BR108: 0 | BS108: 0 | BT108: 0 | BU108: 0 | BV108: 0 | BW108: 0 | BX108: 0 | BY108: 0 | BZ108: 0 | CA108: 0 | CB108: 0 | CC108: 0 | CD108: 0 | CE108: 0 | CF108: 0 | CG108: 0 | CH108: 0 | CI108: 0
B110: BA gera crédito de PIS/Cofins? | C110: N | D110: --> "S" BA reduz a base de cálculo do PIS/Cofins
B111: Períodos de parcelamento do crédito | C111: 5
B112: Parcela do investimento sujeita a créd. de PIS/COFINS | C112: 1
B113: Depreciação inclui PIS/COFINS? | C113: N | D113: --> "S": a depreciação reduz a base de cálculo do PIS/Cofins
B114: Opex fixo inclui PIS/COFINS? | C114: N | D114: --> "S": o opex reduz a base de cálculo do PIS/Cofins
B115: Opex variavel inclui PIS/COFINS? | C115: N | D115: --> "S": o opex reduz a base de cálculo do PIS/Cofins
B117: Reidi | C117: N
C118: =IF(C117="S",C106+C107,0) -> 0 | D118: --> isenção de PIS/Cofins na aquisição de capex
B119: Redução de Tarifas Aduaneiras | C119: N
C120: =IF(C119="S",5%,0) -> 0 | D120: --> isenção de tarifas aduaneiras na importação de equipamentos (o percentual é livre para simulações)
B122: 5. Variação de Capital de Giro
B124: Prazo de Recebimento (dias) | C124: 60
B125: Prazo de Pagamento (dias) | C125: 30
B127: 6. Ajustes na Receita
B129: Penalidades
B131: Conta Ajuste

Sheet Financiamento_N
B1: =Premissas!$B$1 -> Escoamento | F1: Input | G1: Fórmulas | H1: Sensibilidade
B2: Fase (C = Construção; O = Operação) | C2: =IF(C3<=Premissas!$C$60,"C",IF(C3="-","-","O")) -> C | D2: =IF(D3<=Premissas!$C$60,"C",IF(D3="-","-","O")) -> O | E2: =IF(E3<=Premissas!$C$60,"C",IF(E3="-","-","O")) -> O | F2: =IF(F3<=Premissas!$C$60,"C",IF(F3="-","-","O")) -> O | G2: =IF(G3<=Premissas!$C$60,"C",IF(G3="-","-","O")) -> O | H2: =IF(H3<=Premissas!$C$60,"C",IF(H3="-","-","O")) -> O | I2: =IF(I3<=Premissas!$C$60,"C",IF(I3="-","-","O")) -> O | J2: =IF(J3<=Premissas!$C$60,"C",IF(J3="-","-","O")) -> O | K2: =IF(K3<=Premissas!$C$60,"C",IF(K3="-","-","O")) -> O | L2: =IF(L3<=Premissas!$C$60,"C",IF(L3="-","-","O")) -> O | M2: =IF(M3<=Premissas!$C$60,"C",IF(M3="-","-","O")) -> O | N2: =IF(N3<=Premissas!$C$60,"C",IF(N3="-","-","O")) -> O | O2: =IF(O3<=Premissas!$C$60,"C",IF(O3="-","-","O")) -> O | P2: =IF(P3<=Premissas!$C$60,"C",IF(P3="-","-","O")) -> O | Q2: =IF(Q3<=Premissas!$C$60,"C",IF(Q3="-","-","O")) -> O | R2: =IF(R3<=Premissas!$C$60,"C",IF(R3="-","-","O")) -> O | S2: =IF(S3<=Premissas!$C$60,"C",IF(S3="-","-","O")) -> O | T2: =IF(T3<=Premissas!$C$60,"C",IF(T3="-","-","O")) -> O | U2: =IF(U3<=Premissas!$C$60,"C",IF(U3="-","-","O")) -> O | V2: =IF(V3<=Premissas!$C$60,"C",IF(V3="-","-","O")) -> O | W2: =IF(W3<=Premissas!$C$60,"C",IF(W3="-","-","O")) -> O | X2: =IF(X3<=Premissas!$C$60,"C",IF(X3="-","-","O")) -> O | Y2: =IF(Y3<=Premissas!$C$60,"C",IF(Y3="-","-","O")) -> O | Z2: =IF(Z3<=Premissas!$C$60,"C",IF(Z3="-","-","O")) -> O | AA2: =IF(AA3<=Premissas!$C$60,"C",IF(AA3="-","-","O")) -> O | AB2: =IF(AB3<=Premissas!$C$60,"C",IF(AB3="-","-","O")) -> O | AC2: =IF(AC3<=Premissas!$C$60,"C",IF(AC3="-","-","O")) -> O | AD2: =IF(AD3<=Premissas!$C$60,"C",IF(AD3="-","-","O")) -> O | AE2: =IF(AE3<=Premissas!$C$60,"C",IF(AE3="-","-","O")) -> O | AF2: =IF(AF3<=Premissas!$C$60,"C",IF(AF3="-","-","O")) -> O | AG2: =IF(AG3<=Premissas!$C$60,"C",IF(AG3="-","-","O")) -> O | AH2: =IF(AH3<=Premissas!$C$60,"C",IF(AH3="-","-","O")) -> - | AI2: =IF(AI3<=Premissas!$C$60,"C",IF(AI3="-","-","O")) -> - | AJ2: =IF(AJ3<=Premissas!$C$60,"C",IF(AJ3="-","-","O")) -> - | AK2: =IF(AK3<=Premissas!$C$60,"C",IF(AK3="-","-","O")) -> - | AL2: =IF(AL3<=Premissas!$C$60,"C",IF(AL3="-","-","O")) -> - | AM2: =IF(AM3<=Premissas!$C$60,"C",IF(AM3="-","-","O")) -> - | AN2: =IF(AN3<=Premissas!$C$60,"C",IF(AN3="-","-","O")) -> - | AO2: =IF(AO3<=Premissas!$C$60,"C",IF(AO3="-","-","O")) -> - | AP2: =IF(AP3<=Premissas!$C$60,"C",IF(AP3="-","-","O")) -> - | AQ2: =IF(AQ3<=Premissas!$C$60,"C",IF(AQ3="-","-","O")) -> - | AR2: =IF(AR3<=Premissas!$C$60,"C",IF(AR3="-","-","O")) -> - | AS2: =IF(AS3<=Premissas!$C$60,"C",IF(AS3="-","-","O")) -> - | AT2: =IF(AT3<=Premissas!$C$60,"C",IF(AT3="-","-","O")) -> - | AU2: =IF(AU3<=Premissas!$C$60,"C",IF(AU3="-","-","O")) -> - | AV2: =IF(AV3<=Premissas!$C$60,"C",IF(AV3="-","-","O")) -> - | AW2: =IF(AW3<=Premissas!$C$60,"C",IF(AW3="-","-","O")) -> - | AX2: =IF(AX3<=Premissas!$C$60,"C",IF(AX3="-","-","O")) -> - | AY2: =IF(AY3<=Premissas!$C$60,"C",IF(AY3="-","-","O")) -> - | AZ2: =IF(AZ3<=Premissas!$C$60,"C",IF(AZ3="-","-","O")) -> - | BA2: =IF(BA3<=Premissas!$C$60,"C",IF(BA3="-","-","O")) -> - | BB2: =IF(BB3<=Premissas!$C$60,"C",IF(BB3="-","-","O")) -> - | BC2: =IF(BC3<=Premissas!$C$60,"C",IF(BC3="-","-","O")) -> - | BD2: =IF(BD3<=Premissas!$C$60,"C",IF(BD3="-","-","O")) -> - | BE2: =IF(BE3<=Premissas!$C$60,"C",IF(BE3="-","-","O")) -> - | BF2: =IF(BF3<=Premissas!$C$60,"C",IF(BF3="-","-","O")) -> - | BG2: =IF(BG3<=Premissas!$C$60,"C",IF(BG3="-","-","O")) -> - | BH2: =IF(BH3<=Premissas!$C$60,"C",IF(BH3="-","-","O")) -> - | BI2: =IF(BI3<=Premissas!$C$60,"C",IF(BI3="-","-","O")) -> - | BJ2: =IF(BJ3<=Premissas!$C$60,"C",IF(BJ3="-","-","O")) -> - | BK2: =IF(BK3<=Premissas!$C$60,"C",IF(BK3="-","-","O")) -> - | BL2: =IF(BL3<=Premissas!$C$60,"C",IF(BL3="-","-","O")) -> - | BM2: =IF(BM3<=Premissas!$C$60,"C",IF(BM3="-","-","O")) -> - | BN2: =IF(BN3<=Premissas!$C$60,"C",IF(BN3="-","-","O")) -> - | BO2: =IF(BO3<=Premissas!$C$60,"C",IF(BO3="-","-","O")) -> - | BP2: =IF(BP3<=Premissas!$C$60,"C",IF(BP3="-","-","O")) -> - | BQ2: =IF(BQ3<=Premissas!$C$60,"C",IF(BQ3="-","-","O")) -> - | BR2: =IF(BR3<=Premissas!$C$60,"C",IF(BR3="-","-","O")) -> - | BS2: =IF(BS3<=Premissas!$C$60,"C",IF(BS3="-","-","O")) -> - | BT2: =IF(BT3<=Premissas!$C$60,"C",IF(BT3="-","-","O")) -> - | BU2: =IF(BU3<=Premissas!$C$60,"C",IF(BU3="-","-","O")) -> - | BV2: =IF(BV3<=Premissas!$C$60,"C",IF(BV3="-","-","O")) -> - | BW2: =IF(BW3<=Premissas!$C$60,"C",IF(BW3="-","-","O")) -> - | BX2: =IF(BX3<=Premissas!$C$60,"C",IF(BX3="-","-","O")) -> - | BY2: =IF(BY3<=Premissas!$C$60,"C",IF(BY3="-","-","O")) -> - | BZ2: =IF(BZ3<=Premissas!$C$60,"C",IF(BZ3="-","-","O")) -> - | CA2: =IF(CA3<=Premissas!$C$60,"C",IF(CA3="-","-","O")) -> - | CB2: =IF(CB3<=Premissas!$C$60,"C",IF(CB3="-","-","O")) -> - | CC2: =IF(CC3<=Premissas!$C$60,"C",IF(CC3="-","-","O")) -> - | CD2: =IF(CD3<=Premissas!$C$60,"C",IF(CD3="-","-","O")) -> - | CE2: =IF(CE3<=Premissas!$C$60,"C",IF(CE3="-","-","O")) -> - | CF2: =IF(CF3<=Premissas!$C$60,"C",IF(CF3="-","-","O")) -> - | CG2: =IF(CG3<=Premissas!$C$60,"C",IF(CG3="-","-","O")) -> - | CH2: =IF(CH3<=Premissas!$C$60,"C",IF(CH3="-","-","O")) -> - | CI2: =IF(CI3<=Premissas!$C$60,"C",IF(CI3="-","-","O")) -> - | CJ2: =IF(CJ3<=Premissas!$C$60,"C",IF(CJ3="-","-","O")) -> - | CK2: =IF(CK3<=Premissas!$C$60,"C",IF(CK3="-","-","O")) -> - | CL2: =IF(CL3<=Premissas!$C$60,"C",IF(CL3="-","-","O")) -> - | CM2: =IF(CM3<=Premissas!$C$60,"C",IF(CM3="-","-","O")) -> - | CN2: =IF(CN3<=Premissas!$C$60,"C",IF(CN3="-","-","O")) -> - | CO2: =IF(CO3<=Premissas!$C$60,"C",IF(CO3="-","-","O")) -> - | CP2: =IF(CP3<=Premissas!$C$60,"C",IF(CP3="-","-","O")) -> - | CQ2: =IF(CQ3<=Premissas!$C$60,"C",IF(CQ3="-","-","O")) -> - | CR2: =IF(CR3<=Premissas!$C$60,"C",IF(CR3="-","-","O")) -> - | CS2: =IF(CS3<=Premissas!$C$60,"C",IF(CS3="-","-","O")) -> - | CT2: =IF(CT3<=Premissas!$C$60,"C",IF(CT3="-","-","O")) -> - | CU2: =IF(CU3<=Premissas!$C$60,"C",IF(CU3="-","-","O")) -> - | CV2: =IF(CV3<=Premissas!$C$60,"C",IF(CV3="-","-","O")) -> - | CW2: =IF(CW3<=Premissas!$C$60,"C",IF(CW3="-","-","O")) -> - | CX2: =IF(CX3<=Premissas!$C$60,"C",IF(CX3="-","-","O")) -> - | CY2: =IF(CY3<=Premissas!$C$60,"C",IF(CY3="-","-","O")) -> - | CZ2: =IF(CZ3<=Premissas!$C$60,"C",IF(CZ3="-","-","O")) -> - | DA2: =IF(DA3<=Premissas!$C$60,"C",IF(DA3="-","-","O")) -> - | DB2: =IF(DB3<=Premissas!$C$60,"C",IF(DB3="-","-","O")) -> - | DC2: =IF(DC3<=Premissas!$C$60,"C",IF(DC3="-","-","O")) -> - | DD2: =IF(DD3<=Premissas!$C$60,"C",IF(DD3="-","-","O")) -> - | DE2: =IF(DE3<=Premissas!$C$60,"C",IF(DE3="-","-","O")) -> - | DF2: =IF(DF3<=Premissas!$C$60,"C",IF(DF3="-","-","O")) -> - | DG2: =IF(DG3<=Premissas!$C$60,"C",IF(DG3="-","-","O")) -> - | DH2: =IF(DH3<=Premissas!$C$60,"C",IF(DH3="-","-","O")) -> - | DI2: =IF(DI3<=Premissas!$C$60,"C",IF(DI3="-","-","O")) -> - | DJ2: =IF(DJ3<=Premissas!$C$60,"C",IF(DJ3="-","-","O")) -> - | DK2: =IF(DK3<=Premissas!$C$60,"C",IF(DK3="-","-","O")) -> - | DL2: =IF(DL3<=Premissas!$C$60,"C",IF(DL3="-","-","O")) -> - | DM2: =IF(DM3<=Premissas!$C$60,"C",IF(DM3="-","-","O")) -> - | DN2: =IF(DN3<=Premissas!$C$60,"C",IF(DN3="-","-","O")) -> - | DO2: =IF(DO3<=Premissas!$C$60,"C",IF(DO3="-","-","O")) -> - | DP2: =IF(DP3<=Premissas!$C$60,"C",IF(DP3="-","-","O")) -> - | DQ2: =IF(DQ3<=Premissas!$C$60,"C",IF(DQ3="-","-","O")) -> - | DR2: =IF(DR3<=Premissas!$C$60,"C",IF(DR3="-","-","O")) -> - | DS2: =IF(DS3<=Premissas!$C$60,"C",IF(DS3="-","-","O")) -> - | DT2: =IF(DT3<=Premissas!$C$60,"C",IF(DT3="-","-","O")) -> - | DU2: =IF(DU3<=Premissas!$C$60,"C",IF(DU3="-","-","O")) -> - | DV2: =IF(DV3<=Premissas!$C$60,"C",IF(DV3="-","-","O")) -> - | DW2: =IF(DW3<=Premissas!$C$60,"C",IF(DW3="-","-","O")) -> - | DX2: =IF(DX3<=Premissas!$C$60,"C",IF(DX3="-","-","O")) -> - | DY2: =IF(DY3<=Premissas!$C$60,"C",IF(DY3="-","-","O")) -> - | DZ2: =IF(DZ3<=Premissas!$C$60,"C",IF(DZ3="-","-","O")) -> - | EA2: =IF(EA3<=Premissas!$C$60,"C",IF(EA3="-","-","O")) -> - | EB2: =IF(EB3<=Premissas!$C$60,"C",IF(EB3="-","-","O")) -> - | EC2: =IF(EC3<=Premissas!$C$60,"C",IF(EC3="-","-","O")) -> - | ED2: =IF(ED3<=Premissas!$C$60,"C",IF(ED3="-","-","O")) -> - | EE2: =IF(EE3<=Premissas!$C$60,"C",IF(EE3="-","-","O")) -> - | EF2: =IF(EF3<=Premissas!$C$60,"C",IF(EF3="-","-","O")) -> - | EG2: =IF(EG3<=Premissas!$C$60,"C",IF(EG3="-","-","O")) -> - | EH2: =IF(EH3<=Premissas!$C$60,"C",IF(EH3="-","-","O")) -> - | EI2: =IF(EI3<=Premissas!$C$60,"C",IF(EI3="-","-","O")) -> - | EJ2: =IF(EJ3<=Premissas!$C$60,"C",IF(EJ3="-","-","O")) -> - | EK2: =IF(EK3<=Premissas!$C$60,"C",IF(EK3="-","-","O")) -> - | EL2: =IF(EL3<=Premissas!$C$60,"C",IF(EL3="-","-","O")) -> - | EM2: =IF(EM3<=Premissas!$C$60,"C",IF(EM3="-","-","O")) -> - | EN2: =IF(EN3<=Premissas!$C$60,"C",IF(EN3="-","-","O")) -> - | EO2: =IF(EO3<=Premissas!$C$60,"C",IF(EO3="-","-","O")) -> - | EP2: =IF(EP3<=Premissas!$C$60,"C",IF(EP3="-","-","O")) -> - | EQ2: =IF(EQ3<=Premissas!$C$60,"C",IF(EQ3="-","-","O")) -> - | ER2: =IF(ER3<=Premissas!$C$60,"C",IF(ER3="-","-","O")) -> - | ES2: =IF(ES3<=Premissas!$C$60,"C",IF(ES3="-","-","O")) -> - | ET2: =IF(ET3<=Premissas!$C$60,"C",IF(ET3="-","-","O")) -> - | EU2: =IF(EU3<=Premissas!$C$60,"C",IF(EU3="-","-","O")) -> - | EV2: =IF(EV3<=Premissas!$C$60,"C",IF(EV3="-","-","O")) -> - | EW2: =IF(EW3<=Premissas!$C$60,"C",IF(EW3="-","-","O")) -> - | EX2: =IF(EX3<=Premissas!$C$60,"C",IF(EX3="-","-","O")) -> - | EY2: =IF(EY3<=Premissas!$C$60,"C",IF(EY3="-","-","O")) -> - | EZ2: =IF(EZ3<=Premissas!$C$60,"C",IF(EZ3="-","-","O")) -> - | FA2: =IF(FA3<=Premissas!$C$60,"C",IF(FA3="-","-","O")) -> - | FB2: =IF(FB3<=Premissas!$C$60,"C",IF(FB3="-","-","O")) -> - | FC2: =IF(FC3<=Premissas!$C$60,"C",IF(FC3="-","-","O")) -> - | FD2: =IF(FD3<=Premissas!$C$60,"C",IF(FD3="-","-","O")) -> - | FE2: =IF(FE3<=Premissas!$C$60,"C",IF(FE3="-","-","O")) -> - | FF2: =IF(FF3<=Premissas!$C$60,"C",IF(FF3="-","-","O")) -> - | FG2: =IF(FG3<=Premissas!$C$60,"C",IF(FG3="-","-","O")) -> - | FH2: =IF(FH3<=Premissas!$C$60,"C",IF(FH3="-","-","O")) -> - | FI2: =IF(FI3<=Premissas!$C$60,"C",IF(FI3="-","-","O")) -> - | FJ2: =IF(FJ3<=Premissas!$C$60,"C",IF(FJ3="-","-","O")) -> - | FK2: =IF(FK3<=Premissas!$C$60,"C",IF(FK3="-","-","O")) -> - | FL2: =IF(FL3<=Premissas!$C$60,"C",IF(FL3="-","-","O")) -> - | FM2: =IF(FM3<=Premissas!$C$60,"C",IF(FM3="-","-","O")) -> - | FN2: =IF(FN3<=Premissas!$C$60,"C",IF(FN3="-","-","O")) -> - | FO2: =IF(FO3<=Premissas!$C$60,"C",IF(FO3="-","-","O")) -> - | FP2: =IF(FP3<=Premissas!$C$60,"C",IF(FP3="-","-","O")) -> - | FQ2: =IF(FQ3<=Premissas!$C$60,"C",IF(FQ3="-","-","O")) -> - | FR2: =IF(FR3<=Premissas!$C$60,"C",IF(FR3="-","-","O")) -> - | FS2: =IF(FS3<=Premissas!$C$60,"C",IF(FS3="-","-","O")) -> - | FT2: =IF(FT3<=Premissas!$C$60,"C",IF(FT3="-","-","O")) -> - | FU2: =IF(FU3<=Premissas!$C$60,"C",IF(FU3="-","-","O")) -> - | FV2: =IF(FV3<=Premissas!$C$60,"C",IF(FV3="-","-","O")) -> - | FW2: =IF(FW3<=Premissas!$C$60,"C",IF(FW3="-","-","O")) -> - | FX2: =IF(FX3<=Premissas!$C$60,"C",IF(FX3="-","-","O")) -> - | FY2: =IF(FY3<=Premissas!$C$60,"C",IF(FY3="-","-","O")) -> - | FZ2: =IF(FZ3<=Premissas!$C$60,"C",IF(FZ3="-","-","O")) -> - | GA2: =IF(GA3<=Premissas!$C$60,"C",IF(GA3="-","-","O")) -> - | GB2: =IF(GB3<=Premissas!$C$60,"C",IF(GB3="-","-","O")) -> - | GC2: =IF(GC3<=Premissas!$C$60,"C",IF(GC3="-","-","O")) -> - | GD2: =IF(GD3<=Premissas!$C$60,"C",IF(GD3="-","-","O")) -> - | GE2: =IF(GE3<=Premissas!$C$60,"C",IF(GE3="-","-","O")) -> - | GF2: =IF(GF3<=Premissas!$C$60,"C",IF(GF3="-","-","O")) -> - | GG2: =IF(GG3<=Premissas!$C$60,"C",IF(GG3="-","-","O")) -> - | GH2: =IF(GH3<=Premissas!$C$60,"C",IF(GH3="-","-","O")) -> - | GI2: =IF(GI3<=Premissas!$C$60,"C",IF(GI3="-","-","O")) -> - | GJ2: =IF(GJ3<=Premissas!$C$60,"C",IF(GJ3="-","-","O")) -> - | GK2: =IF(GK3<=Premissas!$C$60,"C",IF(GK3="-","-","O")) -> - | GL2: =IF(GL3<=Premissas!$C$60,"C",IF(GL3="-","-","O")) -> - | GM2: =IF(GM3<=Premissas!$C$60,"C",IF(GM3="-","-","O")) -> - | GN2: =IF(GN3<=Premissas!$C$60,"C",IF(GN3="-","-","O")) -> - | GO2: =IF(GO3<=Premissas!$C$60,"C",IF(GO3="-","-","O")) -> - | GP2: =IF(GP3<=Premissas!$C$60,"C",IF(GP3="-","-","O")) -> - | GQ2: =IF(GQ3<=Premissas!$C$60,"C",IF(GQ3="-","-","O")) -> - | GR2: =IF(GR3<=Premissas!$C$60,"C",IF(GR3="-","-","O")) -> - | GS2: =IF(GS3<=Premissas!$C$60,"C",IF(GS3="-","-","O")) -> - | GT2: =IF(GT3<=Premissas!$C$60,"C",IF(GT3="-","-","O")) -> - | GU2: =IF(GU3<=Premissas!$C$60,"C",IF(GU3="-","-","O")) -> - | GV2: =IF(GV3<=Premissas!$C$60,"C",IF(GV3="-","-","O")) -> - | GW2: =IF(GW3<=Premissas!$C$60,"C",IF(GW3="-","-","O")) -> - | GX2: =IF(GX3<=Premissas!$C$60,"C",IF(GX3="-","-","O")) -> - | GY2: =IF(GY3<=Premissas!$C$60,"C",IF(GY3="-","-","O")) -> - | GZ2: =IF(GZ3<=Premissas!$C$60,"C",IF(GZ3="-","-","O")) -> - | HA2: =IF(HA3<=Premissas!$C$60,"C",IF(HA3="-","-","O")) -> - | HB2: =IF(HB3<=Premissas!$C$60,"C",IF(HB3="-","-","O")) -> - | HC2: =IF(HC3<=Premissas!$C$60,"C",IF(HC3="-","-","O")) -> - | HD2: =IF(HD3<=Premissas!$C$60,"C",IF(HD3="-","-","O")) -> - | HE2: =IF(HE3<=Premissas!$C$60,"C",IF(HE3="-","-","O")) -> - | HF2: =IF(HF3<=Premissas!$C$60,"C",IF(HF3="-","-","O")) -> - | HG2: =IF(HG3<=Premissas!$C$60,"C",IF(HG3="-","-","O")) -> - | HH2: =IF(HH3<=Premissas!$C$60,"C",IF(HH3="-","-","O")) -> - | HI2: =IF(HI3<=Premissas!$C$60,"C",IF(HI3="-","-","O")) -> - | HJ2: =IF(HJ3<=Premissas!$C$60,"C",IF(HJ3="-","-","O")) -> - | HK2: =IF(HK3<=Premissas!$C$60,"C",IF(HK3="-","-","O")) -> - | HL2: =IF(HL3<=Premissas!$C$60,"C",IF(HL3="-","-","O")) -> - | HM2: =IF(HM3<=Premissas!$C$60,"C",IF(HM3="-","-","O")) -> - | HN2: =IF(HN3<=Premissas!$C$60,"C",IF(HN3="-","-","O")) -> - | HO2: =IF(HO3<=Premissas!$C$60,"C",IF(HO3="-","-","O")) -> - | HP2: =IF(HP3<=Premissas!$C$60,"C",IF(HP3="-","-","O")) -> - | HQ2: =IF(HQ3<=Premissas!$C$60,"C",IF(HQ3="-","-","O")) -> - | HR2: =IF(HR3<=Premissas!$C$60,"C",IF(HR3="-","-","O")) -> - | HS2: =IF(HS3<=Premissas!$C$60,"C",IF(HS3="-","-","O")) -> - | HT2: =IF(HT3<=Premissas!$C$60,"C",IF(HT3="-","-","O")) -> - | HU2: =IF(HU3<=Premissas!$C$60,"C",IF(HU3="-","-","O")) -> - | HV2: =IF(HV3<=Premissas!$C$60,"C",IF(HV3="-","-","O")) -> - | HW2: =IF(HW3<=Premissas!$C$60,"C",IF(HW3="-","-","O")) -> - | HX2: =IF(HX3<=Premissas!$C$60,"C",IF(HX3="-","-","O")) -> - | HY2: =IF(HY3<=Premissas!$C$60,"C",IF(HY3="-","-","O")) -> - | HZ2: =IF(HZ3<=Premissas!$C$60,"C",IF(HZ3="-","-","O")) -> - | IA2: =IF(IA3<=Premissas!$C$60,"C",IF(IA3="-","-","O")) -> - | IB2: =IF(IB3<=Premissas!$C$60,"C",IF(IB3="-","-","O")) -> - | IC2: =IF(IC3<=Premissas!$C$60,"C",IF(IC3="-","-","O")) -> - | ID2: =IF(ID3<=Premissas!$C$60,"C",IF(ID3="-","-","O")) -> - | IE2: =IF(IE3<=Premissas!$C$60,"C",IF(IE3="-","-","O")) -> - | IF2: =IF(IF3<=Premissas!$C$60,"C",IF(IF3="-","-","O")) -> - | IG2: =IF(IG3<=Premissas!$C$60,"C",IF(IG3="-","-","O")) -> - | IH2: =IF(IH3<=Premissas!$C$60,"C",IF(IH3="-","-","O")) -> - | II2: =IF(II3<=Premissas!$C$60,"C",IF(II3="-","-","O")) -> - | IJ2: =IF(IJ3<=Premissas!$C$60,"C",IF(IJ3="-","-","O")) -> - | IK2: =IF(IK3<=Premissas!$C$60,"C",IF(IK3="-","-","O")) -> - | IL2: =IF(IL3<=Premissas!$C$60,"C",IF(IL3="-","-","O")) -> - | IM2: =IF(IM3<=Premissas!$C$60,"C",IF(IM3="-","-","O")) -> - | IN2: =IF(IN3<=Premissas!$C$60,"C",IF(IN3="-","-","O")) -> - | IO2: =IF(IO3<=Premissas!$C$60,"C",IF(IO3="-","-","O")) -> - | IP2: =IF(IP3<=Premissas!$C$60,"C",IF(IP3="-","-","O")) -> - | IQ2: =IF(IQ3<=Premissas!$C$60,"C",IF(IQ3="-","-","O")) -> - | IR2: =IF(IR3<=Premissas!$C$60,"C",IF(IR3="-","-","O")) -> - | IS2: =IF(IS3<=Premissas!$C$60,"C",IF(IS3="-","-","O")) -> - | IT2: =IF(IT3<=Premissas!$C$60,"C",IF(IT3="-","-","O")) -> - | IU2: =IF(IU3<=Premissas!$C$60,"C",IF(IU3="-","-","O")) -> - | IV2: =IF(IV3<=Premissas!$C$60,"C",IF(IV3="-","-","O")) -> - | IW2: =IF(IW3<=Premissas!$C$60,"C",IF(IW3="-","-","O")) -> - | IX2: =IF(IX3<=Premissas!$C$60,"C",IF(IX3="-","-","O")) -> - | IY2: =IF(IY3<=Premissas!$C$60,"C",IF(IY3="-","-","O")) -> - | IZ2: =IF(IZ3<=Premissas!$C$60,"C",IF(IZ3="-","-","O")) -> - | JA2: =IF(JA3<=Premissas!$C$60,"C",IF(JA3="-","-","O")) -> - | JB2: =IF(JB3<=Premissas!$C$60,"C",IF(JB3="-","-","O")) -> - | JC2: =IF(JC3<=Premissas!$C$60,"C",IF(JC3="-","-","O")) -> - | JD2: =IF(JD3<=Premissas!$C$60,"C",IF(JD3="-","-","O")) -> - | JE2: =IF(JE3<=Premissas!$C$60,"C",IF(JE3="-","-","O")) -> - | JF2: =IF(JF3<=Premissas!$C$60,"C",IF(JF3="-","-","O")) -> - | JG2: =IF(JG3<=Premissas!$C$60,"C",IF(JG3="-","-","O")) -> - | JH2: =IF(JH3<=Premissas!$C$60,"C",IF(JH3="-","-","O")) -> - | JI2: =IF(JI3<=Premissas!$C$60,"C",IF(JI3="-","-","O")) -> - | JJ2: =IF(JJ3<=Premissas!$C$60,"C",IF(JJ3="-","-","O")) -> - | JK2: =IF(JK3<=Premissas!$C$60,"C",IF(JK3="-","-","O")) -> - | JL2: =IF(JL3<=Premissas!$C$60,"C",IF(JL3="-","-","O")) -> - | JM2: =IF(JM3<=Premissas!$C$60,"C",IF(JM3="-","-","O")) -> - | JN2: =IF(JN3<=Premissas!$C$60,"C",IF(JN3="-","-","O")) -> - | JO2: =IF(JO3<=Premissas!$C$60,"C",IF(JO3="-","-","O")) -> - | JP2: =IF(JP3<=Premissas!$C$60,"C",IF(JP3="-","-","O")) -> - | JQ2: =IF(JQ3<=Premissas!$C$60,"C",IF(JQ3="-","-","O")) -> - | JR2: =IF(JR3<=Premissas!$C$60,"C",IF(JR3="-","-","O")) -> - | JS2: =IF(JS3<=Premissas!$C$60,"C",IF(JS3="-","-","O")) -> - | JT2: =IF(JT3<=Premissas!$C$60,"C",IF(JT3="-","-","O")) -> - | JU2: =IF(JU3<=Premissas!$C$60,"C",IF(JU3="-","-","O")) -> - | JV2: =IF(JV3<=Premissas!$C$60,"C",IF(JV3="-","-","O")) -> - | JW2: =IF(JW3<=Premissas!$C$60,"C",IF(JW3="-","-","O")) -> - | JX2: =IF(JX3<=Premissas!$C$60,"C",IF(JX3="-","-","O")) -> - | JY2: =IF(JY3<=Premissas!$C$60,"C",IF(JY3="-","-","O")) -> - | JZ2: =IF(JZ3<=Premissas!$C$60,"C",IF(JZ3="-","-","O")) -> - | KA2: =IF(KA3<=Premissas!$C$60,"C",IF(KA3="-","-","O")) -> - | KB2: =IF(KB3<=Premissas!$C$60,"C",IF(KB3="-","-","O")) -> - | KC2: =IF(KC3<=Premissas!$C$60,"C",IF(KC3="-","-","O")) -> - | KD2: =IF(KD3<=Premissas!$C$60,"C",IF(KD3="-","-","O")) -> - | KE2: =IF(KE3<=Premissas!$C$60,"C",IF(KE3="-","-","O")) -> - | KF2: =IF(KF3<=Premissas!$C$60,"C",IF(KF3="-","-","O")) -> - | KG2: =IF(KG3<=Premissas!$C$60,"C",IF(KG3="-","-","O")) -> - | KH2: =IF(KH3<=Premissas!$C$60,"C",IF(KH3="-","-","O")) -> - | KI2: =IF(KI3<=Premissas!$C$60,"C",IF(KI3="-","-","O")) -> - | KJ2: =IF(KJ3<=Premissas!$C$60,"C",IF(KJ3="-","-","O")) -> - | KK2: =IF(KK3<=Premissas!$C$60,"C",IF(KK3="-","-","O")) -> - | KL2: =IF(KL3<=Premissas!$C$60,"C",IF(KL3="-","-","O")) -> - | KM2: =IF(KM3<=Premissas!$C$60,"C",IF(KM3="-","-","O")) -> - | KN2: =IF(KN3<=Premissas!$C$60,"C",IF(KN3="-","-","O")) -> - | KO2: =IF(KO3<=Premissas!$C$60,"C",IF(KO3="-","-","O")) -> - | KP2: =IF(KP3<=Premissas!$C$60,"C",IF(KP3="-","-","O")) -> - | KQ2: =IF(KQ3<=Premissas!$C$60,"C",IF(KQ3="-","-","O")) -> - | KR2: =IF(KR3<=Premissas!$C$60,"C",IF(KR3="-","-","O")) -> - | KS2: =IF(KS3<=Premissas!$C$60,"C",IF(KS3="-","-","O")) -> - | KT2: =IF(KT3<=Premissas!$C$60,"C",IF(KT3="-","-","O")) -> - | KU2: =IF(KU3<=Premissas!$C$60,"C",IF(KU3="-","-","O")) -> - | KV2: =IF(KV3<=Premissas!$C$60,"C",IF(KV3="-","-","O")) -> - | KW2: =IF(KW3<=Premissas!$C$60,"C",IF(KW3="-","-","O")) -> - | KX2: =IF(KX3<=Premissas!$C$60,"C",IF(KX3="-","-","O")) -> - | KY2: =IF(KY3<=Premissas!$C$60,"C",IF(KY3="-","-","O")) -> - | KZ2: =IF(KZ3<=Premissas!$C$60,"C",IF(KZ3="-","-","O")) -> - | LA2: =IF(LA3<=Premissas!$C$60,"C",IF(LA3="-","-","O")) -> - | LB2: =IF(LB3<=Premissas!$C$60,"C",IF(LB3="-","-","O")) -> - | LC2: =IF(LC3<=Premissas!$C$60,"C",IF(LC3="-","-","O")) -> - | LD2: =IF(LD3<=Premissas!$C$60,"C",IF(LD3="-","-","O")) -> - | LE2: =IF(LE3<=Premissas!$C$60,"C",IF(LE3="-","-","O")) -> - | LF2: =IF(LF3<=Premissas!$C$60,"C",IF(LF3="-","-","O")) -> - | LG2: =IF(LG3<=Premissas!$C$60,"C",IF(LG3="-","-","O")) -> - | LH2: =IF(LH3<=Premissas!$C$60,"C",IF(LH3="-","-","O")) -> - | LI2: =IF(LI3<=Premissas!$C$60,"C",IF(LI3="-","-","O")) -> - | LJ2: =IF(LJ3<=Premissas!$C$60,"C",IF(LJ3="-","-","O")) -> - | LK2: =IF(LK3<=Premissas!$C$60,"C",IF(LK3="-","-","O")) -> - | LL2: =IF(LL3<=Premissas!$C$60,"C",IF(LL3="-","-","O")) -> - | LM2: =IF(LM3<=Premissas!$C$60,"C",IF(LM3="-","-","O")) -> - | LN2: =IF(LN3<=Premissas!$C$60,"C",IF(LN3="-","-","O")) -> - | LO2: =IF(LO3<=Premissas!$C$60,"C",IF(LO3="-","-","O")) -> - | LP2: =IF(LP3<=Premissas!$C$60,"C",IF(LP3="-","-","O")) -> - | LQ2: =IF(LQ3<=Premissas!$C$60,"C",IF(LQ3="-","-","O")) -> - | LR2: =IF(LR3<=Premissas!$C$60,"C",IF(LR3="-","-","O")) -> - | LS2: =IF(LS3<=Premissas!$C$60,"C",IF(LS3="-","-","O")) -> - | LT2: =IF(LT3<=Premissas!$C$60,"C",IF(LT3="-","-","O")) -> - | LU2: =IF(LU3<=Premissas!$C$60,"C",IF(LU3="-","-","O")) -> - | LV2: =IF(LV3<=Premissas!$C$60,"C",IF(LV3="-","-","O")) -> - | LW2: =IF(LW3<=Premissas!$C$60,"C",IF(LW3="-","-","O")) -> - | LX2: =IF(LX3<=Premissas!$C$60,"C",IF(LX3="-","-","O")) -> - | LY2: =IF(LY3<=Premissas!$C$60,"C",IF(LY3="-","-","O")) -> - | LZ2: =IF(LZ3<=Premissas!$C$60,"C",IF(LZ3="-","-","O")) -> - | MA2: =IF(MA3<=Premissas!$C$60,"C",IF(MA3="-","-","O")) -> - | MB2: =IF(MB3<=Premissas!$C$60,"C",IF(MB3="-","-","O")) -> - | MC2: =IF(MC3<=Premissas!$C$60,"C",IF(MC3="-","-","O")) -> - | MD2: =IF(MD3<=Premissas!$C$60,"C",IF(MD3="-","-","O")) -> - | ME2: =IF(ME3<=Premissas!$C$60,"C",IF(ME3="-","-","O")) -> - | MF2: =IF(MF3<=Premissas!$C$60,"C",IF(MF3="-","-","O")) -> - | MG2: =IF(MG3<=Premissas!$C$60,"C",IF(MG3="-","-","O")) -> - | MH2: =IF(MH3<=Premissas!$C$60,"C",IF(MH3="-","-","O")) -> - | MI2: =IF(MI3<=Premissas!$C$60,"C",IF(MI3="-","-","O")) -> - | MJ2: =IF(MJ3<=Premissas!$C$60,"C",IF(MJ3="-","-","O")) -> - | MK2: =IF(MK3<=Premissas!$C$60,"C",IF(MK3="-","-","O")) -> - | ML2: =IF(ML3<=Premissas!$C$60,"C",IF(ML3="-","-","O")) -> - | MM2: =IF(MM3<=Premissas!$C$60,"C",IF(MM3="-","-","O")) -> - | MN2: =IF(MN3<=Premissas!$C$60,"C",IF(MN3="-","-","O")) -> - | MO2: =IF(MO3<=Premissas!$C$60,"C",IF(MO3="-","-","O")) -> - | MP2: =IF(MP3<=Premissas!$C$60,"C",IF(MP3="-","-","O")) -> - | MQ2: =IF(MQ3<=Premissas!$C$60,"C",IF(MQ3="-","-","O")) -> - | MR2: =IF(MR3<=Premissas!$C$60,"C",IF(MR3="-","-","O")) -> - | MS2: =IF(MS3<=Premissas!$C$60,"C",IF(MS3="-","-","O")) -> - | MT2: =IF(MT3<=Premissas!$C$60,"C",IF(MT3="-","-","O")) -> - | MU2: =IF(MU3<=Premissas!$C$60,"C",IF(MU3="-","-","O")) -> - | MV2: =IF(MV3<=Premissas!$C$60,"C",IF(MV3="-","-","O")) -> - | MW2: =IF(MW3<=Premissas!$C$60,"C",IF(MW3="-","-","O")) -> - | MX2: =IF(MX3<=Premissas!$C$60,"C",IF(MX3="-","-","O")) -> - | MY2: =IF(MY3<=Premissas!$C$60,"C",IF(MY3="-","-","O")) -> - | MZ2: =IF(MZ3<=Premissas!$C$60,"C",IF(MZ3="-","-","O")) -> - | NA2: =IF(NA3<=Premissas!$C$60,"C",IF(NA3="-","-","O")) -> - | NB2: =IF(NB3<=Premissas!$C$60,"C",IF(NB3="-","-","O")) -> - | NC2: =IF(NC3<=Premissas!$C$60,"C",IF(NC3="-","-","O")) -> - | ND2: =IF(ND3<=Premissas!$C$60,"C",IF(ND3="-","-","O")) -> - | NE2: =IF(NE3<=Premissas!$C$60,"C",IF(NE3="-","-","O")) -> - | NF2: =IF(NF3<=Premissas!$C$60,"C",IF(NF3="-","-","O")) -> - | NG2: =IF(NG3<=Premissas!$C$60,"C",IF(NG3="-","-","O")) -> - | NH2: =IF(NH3<=Premissas!$C$60,"C",IF(NH3="-","-","O")) -> - | NI2: =IF(NI3<=Premissas!$C$60,"C",IF(NI3="-","-","O")) -> - | NJ2: =IF(NJ3<=Premissas!$C$60,"C",IF(NJ3="-","-","O")) -> - | NK2: =IF(NK3<=Premissas!$C$60,"C",IF(NK3="-","-","O")) -> - | NL2: =IF(NL3<=Premissas!$C$60,"C",IF(NL3="-","-","O")) -> - | NM2: =IF(NM3<=Premissas!$C$60,"C",IF(NM3="-","-","O")) -> - | NN2: =IF(NN3<=Premissas!$C$60,"C",IF(NN3="-","-","O")) -> - | NO2: =IF(NO3<=Premissas!$C$60,"C",IF(NO3="-","-","O")) -> - | NP2: =IF(NP3<=Premissas!$C$60,"C",IF(NP3="-","-","O")) -> - | NQ2: =IF(NQ3<=Premissas!$C$60,"C",IF(NQ3="-","-","O")) -> - | NR2: =IF(NR3<=Premissas!$C$60,"C",IF(NR3="-","-","O")) -> - | NS2: =IF(NS3<=Premissas!$C$60,"C",IF(NS3="-","-","O")) -> - | NT2: =IF(NT3<=Premissas!$C$60,"C",IF(NT3="-","-","O")) -> - | NU2: =IF(NU3<=Premissas!$C$60,"C",IF(NU3="-","-","O")) -> - | NV2: =IF(NV3<=Premissas!$C$60,"C",IF(NV3="-","-","O")) -> - | NW2: =IF(NW3<=Premissas!$C$60,"C",IF(NW3="-","-","O")) -> - | NX2: =IF(NX3<=Premissas!$C$60,"C",IF(NX3="-","-","O")) -> - | NY2: =IF(NY3<=Premissas!$C$60,"C",IF(NY3="-","-","O")) -> - | NZ2: =IF(NZ3<=Premissas!$C$60,"C",IF(NZ3="-","-","O")) -> - | OA2: =IF(OA3<=Premissas!$C$60,"C",IF(OA3="-","-","O")) -> - | OB2: =IF(OB3<=Premissas!$C$60,"C",IF(OB3="-","-","O")) -> - | OC2: =IF(OC3<=Premissas!$C$60,"C",IF(OC3="-","-","O")) -> - | OD2: =IF(OD3<=Premissas!$C$60,"C",IF(OD3="-","-","O")) -> - | OE2: =IF(OE3<=Premissas!$C$60,"C",IF(OE3="-","-","O")) -> - | OF2: =IF(OF3<=Premissas!$C$60,"C",IF(OF3="-","-","O")) -> - | OG2: =IF(OG3<=Premissas!$C$60,"C",IF(OG3="-","-","O")) -> - | OH2: =IF(OH3<=Premissas!$C$60,"C",IF(OH3="-","-","O")) -> - | OI2: =IF(OI3<=Premissas!$C$60,"C",IF(OI3="-","-","O")) -> - | OJ2: =IF(OJ3<=Premissas!$C$60,"C",IF(OJ3="-","-","O")) -> - | OK2: =IF(OK3<=Premissas!$C$60,"C",IF(OK3="-","-","O")) -> - | OL2: =IF(OL3<=Premissas!$C$60,"C",IF(OL3="-","-","O")) -> - | OM2: =IF(OM3<=Premissas!$C$60,"C",IF(OM3="-","-","O")) -> - | ON2: =IF(ON3<=Premissas!$C$60,"C",IF(ON3="-","-","O")) -> - | OO2: =IF(OO3<=Premissas!$C$60,"C",IF(OO3="-","-","O")) -> - | OP2: =IF(OP3<=Premissas!$C$60,"C",IF(OP3="-","-","O")) -> - | OQ2: =IF(OQ3<=Premissas!$C$60,"C",IF(OQ3="-","-","O")) -> - | OR2: =IF(OR3<=Premissas!$C$60,"C",IF(OR3="-","-","O")) -> - | OS2: =IF(OS3<=Premissas!$C$60,"C",IF(OS3="-","-","O")) -> - | OT2: =IF(OT3<=Premissas!$C$60,"C",IF(OT3="-","-","O")) -> - | OU2: =IF(OU3<=Premissas!$C$60,"C",IF(OU3="-","-","O")) -> - | OV2: =IF(OV3<=Premissas!$C$60,"C",IF(OV3="-","-","O")) -> - | OW2: =IF(OW3<=Premissas!$C$60,"C",IF(OW3="-","-","O")) -> - | OX2: =IF(OX3<=Premissas!$C$60,"C",IF(OX3="-","-","O")) -> - | OY2: =IF(OY3<=Premissas!$C$60,"C",IF(OY3="-","-","O")) -> - | OZ2: =IF(OZ3<=Premissas!$C$60,"C",IF(OZ3="-","-","O")) -> - | PA2: =IF(PA3<=Premissas!$C$60,"C",IF(PA3="-","-","O")) -> - | PB2: =IF(PB3<=Premissas!$C$60,"C",IF(PB3="-","-","O")) -> - | PC2: =IF(PC3<=Premissas!$C$60,"C",IF(PC3="-","-","O")) -> - | PD2: =IF(PD3<=Premissas!$C$60,"C",IF(PD3="-","-","O")) -> - | PE2: =IF(PE3<=Premissas!$C$60,"C",IF(PE3="-","-","O")) -> - | PF2: =IF(PF3<=Premissas!$C$60,"C",IF(PF3="-","-","O")) -> - | PG2: =IF(PG3<=Premissas!$C$60,"C",IF(PG3="-","-","O")) -> - | PH2: =IF(PH3<=Premissas!$C$60,"C",IF(PH3="-","-","O")) -> - | PI2: =IF(PI3<=Premissas!$C$60,"C",IF(PI3="-","-","O")) -> - | PJ2: =IF(PJ3<=Premissas!$C$60,"C",IF(PJ3="-","-","O")) -> - | PK2: =IF(PK3<=Premissas!$C$60,"C",IF(PK3="-","-","O")) -> - | PL2: =IF(PL3<=Premissas!$C$60,"C",IF(PL3="-","-","O")) -> - | PM2: =IF(PM3<=Premissas!$C$60,"C",IF(PM3="-","-","O")) -> - | PN2: =IF(PN3<=Premissas!$C$60,"C",IF(PN3="-","-","O")) -> - | PO2: =IF(PO3<=Premissas!$C$60,"C",IF(PO3="-","-","O")) -> - | PP2: =IF(PP3<=Premissas!$C$60,"C",IF(PP3="-","-","O")) -> - | PQ2: =IF(PQ3<=Premissas!$C$60,"C",IF(PQ3="-","-","O")) -> - | PR2: =IF(PR3<=Premissas!$C$60,"C",IF(PR3="-","-","O")) -> - | PS2: =IF(PS3<=Premissas!$C$60,"C",IF(PS3="-","-","O")) -> - | PT2: =IF(PT3<=Premissas!$C$60,"C",IF(PT3="-","-","O")) -> - | PU2: =IF(PU3<=Premissas!$C$60,"C",IF(PU3="-","-","O")) -> - | PV2: =IF(PV3<=Premissas!$C$60,"C",IF(PV3="-","-","O")) -> - | PW2: =IF(PW3<=Premissas!$C$60,"C",IF(PW3="-","-","O")) -> - | PX2: =IF(PX3<=Premissas!$C$60,"C",IF(PX3="-","-","O")) -> - | PY2: =IF(PY3<=Premissas!$C$60,"C",IF(PY3="-","-","O")) -> - | PZ2: =IF(PZ3<=Premissas!$C$60,"C",IF(PZ3="-","-","O")) -> - | QA2: =IF(QA3<=Premissas!$C$60,"C",IF(QA3="-","-","O")) -> - | QB2: =IF(QB3<=Premissas!$C$60,"C",IF(QB3="-","-","O")) -> - | QC2: =IF(QC3<=Premissas!$C$60,"C",IF(QC3="-","-","O")) -> - | QD2: =IF(QD3<=Premissas!$C$60,"C",IF(QD3="-","-","O")) -> - | QE2: =IF(QE3<=Premissas!$C$60,"C",IF(QE3="-","-","O")) -> - | QF2: =IF(QF3<=Premissas!$C$60,"C",IF(QF3="-","-","O")) -> - | QG2: =IF(QG3<=Premissas!$C$60,"C",IF(QG3="-","-","O")) -> - | QH2: =IF(QH3<=Premissas!$C$60,"C",IF(QH3="-","-","O")) -> - | QI2: =IF(QI3<=Premissas!$C$60,"C",IF(QI3="-","-","O")) -> - | QJ2: =IF(QJ3<=Premissas!$C$60,"C",IF(QJ3="-","-","O")) -> - | QK2: =IF(QK3<=Premissas!$C$60,"C",IF(QK3="-","-","O")) -> - | QL2: =IF(QL3<=Premissas!$C$60,"C",IF(QL3="-","-","O")) -> - | QM2: =IF(QM3<=Premissas!$C$60,"C",IF(QM3="-","-","O")) -> - | QN2: =IF(QN3<=Premissas!$C$60,"C",IF(QN3="-","-","O")) -> - | QO2: =IF(QO3<=Premissas!$C$60,"C",IF(QO3="-","-","O")) -> - | QP2: =IF(QP3<=Premissas!$C$60,"C",IF(QP3="-","-","O")) -> - | QQ2: =IF(QQ3<=Premissas!$C$60,"C",IF(QQ3="-","-","O")) -> - | QR2: =IF(QR3<=Premissas!$C$60,"C",IF(QR3="-","-","O")) -> - | QS2: =IF(QS3<=Premissas!$C$60,"C",IF(QS3="-","-","O")) -> - | QT2: =IF(QT3<=Premissas!$C$60,"C",IF(QT3="-","-","O")) -> - | QU2: =IF(QU3<=Premissas!$C$60,"C",IF(QU3="-","-","O")) -> - | QV2: =IF(QV3<=Premissas!$C$60,"C",IF(QV3="-","-","O")) -> - | QW2: =IF(QW3<=Premissas!$C$60,"C",IF(QW3="-","-","O")) -> - | QX2: =IF(QX3<=Premissas!$C$60,"C",IF(QX3="-","-","O")) -> - | QY2: =IF(QY3<=Premissas!$C$60,"C",IF(QY3="-","-","O")) -> - | QZ2: =IF(QZ3<=Premissas!$C$60,"C",IF(QZ3="-","-","O")) -> - | RA2: =IF(RA3<=Premissas!$C$60,"C",IF(RA3="-","-","O")) -> - | RB2: =IF(RB3<=Premissas!$C$60,"C",IF(RB3="-","-","O")) -> - | RC2: =IF(RC3<=Premissas!$C$60,"C",IF(RC3="-","-","O")) -> - | RD2: =IF(RD3<=Premissas!$C$60,"C",IF(RD3="-","-","O")) -> - | RE2: =IF(RE3<=Premissas!$C$60,"C",IF(RE3="-","-","O")) -> - | RF2: =IF(RF3<=Premissas!$C$60,"C",IF(RF3="-","-","O")) -> - | RG2: =IF(RG3<=Premissas!$C$60,"C",IF(RG3="-","-","O")) -> - | RH2: =IF(RH3<=Premissas!$C$60,"C",IF(RH3="-","-","O")) -> - | RI2: =IF(RI3<=Premissas!$C$60,"C",IF(RI3="-","-","O")) -> - | RJ2: =IF(RJ3<=Premissas!$C$60,"C",IF(RJ3="-","-","O")) -> - | RK2: =IF(RK3<=Premissas!$C$60,"C",IF(RK3="-","-","O")) -> - | RL2: =IF(RL3<=Premissas!$C$60,"C",IF(RL3="-","-","O")) -> - | RM2: =IF(RM3<=Premissas!$C$60,"C",IF(RM3="-","-","O")) -> - | RN2: =IF(RN3<=Premissas!$C$60,"C",IF(RN3="-","-","O")) -> - | RO2: =IF(RO3<=Premissas!$C$60,"C",IF(RO3="-","-","O")) -> - | RP2: =IF(RP3<=Premissas!$C$60,"C",IF(RP3="-","-","O")) -> - | RQ2: =IF(RQ3<=Premissas!$C$60,"C",IF(RQ3="-","-","O")) -> - | RR2: =IF(RR3<=Premissas!$C$60,"C",IF(RR3="-","-","O")) -> - | RS2: =IF(RS3<=Premissas!$C$60,"C",IF(RS3="-","-","O")) -> - | RT2: =IF(RT3<=Premissas!$C$60,"C",IF(RT3="-","-","O")) -> - | RU2: =IF(RU3<=Premissas!$C$60,"C",IF(RU3="-","-","O")) -> - | RV2: =IF(RV3<=Premissas!$C$60,"C",IF(RV3="-","-","O")) -> - | RW2: =IF(RW3<=Premissas!$C$60,"C",IF(RW3="-","-","O")) -> - | RX2: =IF(RX3<=Premissas!$C$60,"C",IF(RX3="-","-","O")) -> - | RY2: =IF(RY3<=Premissas!$C$60,"C",IF(RY3="-","-","O")) -> - | RZ2: =IF(RZ3<=Premissas!$C$60,"C",IF(RZ3="-","-","O")) -> - | SA2: =IF(SA3<=Premissas!$C$60,"C",IF(SA3="-","-","O")) -> - | SB2: =IF(SB3<=Premissas!$C$60,"C",IF(SB3="-","-","O")) -> - | SC2: =IF(SC3<=Premissas!$C$60,"C",IF(SC3="-","-","O")) -> - | SD2: =IF(SD3<=Premissas!$C$60,"C",IF(SD3="-","-","O")) -> - | SE2: =IF(SE3<=Premissas!$C$60,"C",IF(SE3="-","-","O")) -> - | SF2: =IF(SF3<=Premissas!$C$60,"C",IF(SF3="-","-","O")) -> - | SG2: =IF(SG3<=Premissas!$C$60,"C",IF(SG3="-","-","O")) -> - | SH2: =IF(SH3<=Premissas!$C$60,"C",IF(SH3="-","-","O")) -> - | SI2: =IF(SI3<=Premissas!$C$60,"C",IF(SI3="-","-","O")) -> - | SJ2: =IF(SJ3<=Premissas!$C$60,"C",IF(SJ3="-","-","O")) -> - | SK2: =IF(SK3<=Premissas!$C$60,"C",IF(SK3="-","-","O")) -> - | SL2: =IF(SL3<=Premissas!$C$60,"C",IF(SL3="-","-","O")) -> - | SM2: =IF(SM3<=Premissas!$C$60,"C",IF(SM3="-","-","O")) -> - | SN2: =IF(SN3<=Premissas!$C$60,"C",IF(SN3="-","-","O")) -> - | SO2: =IF(SO3<=Premissas!$C$60,"C",IF(SO3="-","-","O")) -> - | SP2: =IF(SP3<=Premissas!$C$60,"C",IF(SP3="-","-","O")) -> - | SQ2: =IF(SQ3<=Premissas!$C$60,"C",IF(SQ3="-","-","O")) -> - | SR2: =IF(SR3<=Premissas!$C$60,"C",IF(SR3="-","-","O")) -> - | SS2: =IF(SS3<=Premissas!$C$60,"C",IF(SS3="-","-","O")) -> - | ST2: =IF(ST3<=Premissas!$C$60,"C",IF(ST3="-","-","O")) -> - | SU2: =IF(SU3<=Premissas!$C$60,"C",IF(SU3="-","-","O")) -> - | SV2: =IF(SV3<=Premissas!$C$60,"C",IF(SV3="-","-","O")) -> - | SW2: =IF(SW3<=Premissas!$C$60,"C",IF(SW3="-","-","O")) -> - | SX2: =IF(SX3<=Premissas!$C$60,"C",IF(SX3="-","-","O")) -> - | SY2: =IF(SY3<=Premissas!$C$60,"C",IF(SY3="-","-","O")) -> - | SZ2: =IF(SZ3<=Premissas!$C$60,"C",IF(SZ3="-","-","O")) -> - | TA2: =IF(TA3<=Premissas!$C$60,"C",IF(TA3="-","-","O")) -> - | TB2: =IF(TB3<=Premissas!$C$60,"C",IF(TB3="-","-","O")) -> - | TC2: =IF(TC3<=Premissas!$C$60,"C",IF(TC3="-","-","O")) -> - | TD2: =IF(TD3<=Premissas!$C$60,"C",IF(TD3="-","-","O")) -> - | TE2: =IF(TE3<=Premissas!$C$60,"C",IF(TE3="-","-","O")) -> - | TF2: =IF(TF3<=Premissas!$C$60,"C",IF(TF3="-","-","O")) -> - | TG2: =IF(TG3<=Premissas!$C$60,"C",IF(TG3="-","-","O")) -> - | TH2: =IF(TH3<=Premissas!$C$60,"C",IF(TH3="-","-","O")) -> - | TI2: =IF(TI3<=Premissas!$C$60,"C",IF(TI3="-","-","O")) -> - | TJ2: =IF(TJ3<=Premissas!$C$60,"C",IF(TJ3="-","-","O")) -> - | TK2: =IF(TK3<=Premissas!$C$60,"C",IF(TK3="-","-","O")) -> - | TL2: =IF(TL3<=Premissas!$C$60,"C",IF(TL3="-","-","O")) -> - | TM2: =IF(TM3<=Premissas!$C$60,"C",IF(TM3="-","-","O")) -> - | TN2: =IF(TN3<=Premissas!$C$60,"C",IF(TN3="-","-","O")) -> - | TO2: =IF(TO3<=Premissas!$C$60,"C",IF(TO3="-","-","O")) -> - | TP2: =IF(TP3<=Premissas!$C$60,"C",IF(TP3="-","-","O")) -> - | TQ2: =IF(TQ3<=Premissas!$C$60,"C",IF(TQ3="-","-","O")) -> - | TR2: =IF(TR3<=Premissas!$C$60,"C",IF(TR3="-","-","O")) -> - | TS2: =IF(TS3<=Premissas!$C$60,"C",IF(TS3="-","-","O")) -> - | TT2: =IF(TT3<=Premissas!$C$60,"C",IF(TT3="-","-","O")) -> - | TU2: =IF(TU3<=Premissas!$C$60,"C",IF(TU3="-","-","O")) -> - | TV2: =IF(TV3<=Premissas!$C$60,"C",IF(TV3="-","-","O")) -> - | TW2: =IF(TW3<=Premissas!$C$60,"C",IF(TW3="-","-","O")) -> - | TX2: =IF(TX3<=Premissas!$C$60,"C",IF(TX3="-","-","O")) -> - | TY2: =IF(TY3<=Premissas!$C$60,"C",IF(TY3="-","-","O")) -> - | TZ2: =IF(TZ3<=Premissas!$C$60,"C",IF(TZ3="-","-","O")) -> - | UA2: =IF(UA3<=Premissas!$C$60,"C",IF(UA3="-","-","O")) -> - | UB2: =IF(UB3<=Premissas!$C$60,"C",IF(UB3="-","-","O")) -> - | UC2: =IF(UC3<=Premissas!$C$60,"C",IF(UC3="-","-","O")) -> - | UD2: =IF(UD3<=Premissas!$C$60,"C",IF(UD3="-","-","O")) -> - | UE2: =IF(UE3<=Premissas!$C$60,"C",IF(UE3="-","-","O")) -> - | UF2: =IF(UF3<=Premissas!$C$60,"C",IF(UF3="-","-","O")) -> - | UG2: =IF(UG3<=Premissas!$C$60,"C",IF(UG3="-","-","O")) -> - | UH2: =IF(UH3<=Premissas!$C$60,"C",IF(UH3="-","-","O")) -> - | UI2: =IF(UI3<=Premissas!$C$60,"C",IF(UI3="-","-","O")) -> - | UJ2: =IF(UJ3<=Premissas!$C$60,"C",IF(UJ3="-","-","O")) -> - | UK2: =IF(UK3<=Premissas!$C$60,"C",IF(UK3="-","-","O")) -> - | UL2: =IF(UL3<=Premissas!$C$60,"C",IF(UL3="-","-","O")) -> - | UM2: =IF(UM3<=Premissas!$C$60,"C",IF(UM3="-","-","O")) -> - | UN2: =IF(UN3<=Premissas!$C$60,"C",IF(UN3="-","-","O")) -> - | UO2: =IF(UO3<=Premissas!$C$60,"C",IF(UO3="-","-","O")) -> - | UP2: =IF(UP3<=Premissas!$C$60,"C",IF(UP3="-","-","O")) -> - | UQ2: =IF(UQ3<=Premissas!$C$60,"C",IF(UQ3="-","-","O")) -> - | UR2: =IF(UR3<=Premissas!$C$60,"C",IF(UR3="-","-","O")) -> - | US2: =IF(US3<=Premissas!$C$60,"C",IF(US3="-","-","O")) -> - | UT2: =IF(UT3<=Premissas!$C$60,"C",IF(UT3="-","-","O")) -> - | UU2: =IF(UU3<=Premissas!$C$60,"C",IF(UU3="-","-","O")) -> - | UV2: =IF(UV3<=Premissas!$C$60,"C",IF(UV3="-","-","O")) -> - | UW2: =IF(UW3<=Premissas!$C$60,"C",IF(UW3="-","-","O")) -> - | UX2: =IF(UX3<=Premissas!$C$60,"C",IF(UX3="-","-","O")) -> - | UY2: =IF(UY3<=Premissas!$C$60,"C",IF(UY3="-","-","O")) -> - | UZ2: =IF(UZ3<=Premissas!$C$60,"C",IF(UZ3="-","-","O")) -> - | VA2: =IF(VA3<=Premissas!$C$60,"C",IF(VA3="-","-","O")) -> - | VB2: =IF(VB3<=Premissas!$C$60,"C",IF(VB3="-","-","O")) -> - | VC2: =IF(VC3<=Premissas!$C$60,"C",IF(VC3="-","-","O")) -> - | VD2: =IF(VD3<=Premissas!$C$60,"C",IF(VD3="-","-","O")) -> - | VE2: =IF(VE3<=Premissas!$C$60,"C",IF(VE3="-","-","O")) -> - | VF2: =IF(VF3<=Premissas!$C$60,"C",IF(VF3="-","-","O")) -> - | VG2: =IF(VG3<=Premissas!$C$60,"C",IF(VG3="-","-","O")) -> - | VH2: =IF(VH3<=Premissas!$C$60,"C",IF(VH3="-","-","O")) -> - | VI2: =IF(VI3<=Premissas!$C$60,"C",IF(VI3="-","-","O")) -> - | VJ2: =IF(VJ3<=Premissas!$C$60,"C",IF(VJ3="-","-","O")) -> - | VK2: =IF(VK3<=Premissas!$C$60,"C",IF(VK3="-","-","O")) -> - | VL2: =IF(VL3<=Premissas!$C$60,"C",IF(VL3="-","-","O")) -> - | VM2: =IF(VM3<=Premissas!$C$60,"C",IF(VM3="-","-","O")) -> - | VN2: =IF(VN3<=Premissas!$C$60,"C",IF(VN3="-","-","O")) -> - | VO2: =IF(VO3<=Premissas!$C$60,"C",IF(VO3="-","-","O")) -> - | VP2: =IF(VP3<=Premissas!$C$60,"C",IF(VP3="-","-","O")) -> - | VQ2: =IF(VQ3<=Premissas!$C$60,"C",IF(VQ3="-","-","O")) -> - | VR2: =IF(VR3<=Premissas!$C$60,"C",IF(VR3="-","-","O")) -> - | VS2: =IF(VS3<=Premissas!$C$60,"C",IF(VS3="-","-","O")) -> - | VT2: =IF(VT3<=Premissas!$C$60,"C",IF(VT3="-","-","O")) -> - | VU2: =IF(VU3<=Premissas!$C$60,"C",IF(VU3="-","-","O")) -> - | VV2: =IF(VV3<=Premissas!$C$60,"C",IF(VV3="-","-","O")) -> - | VW2: =IF(VW3<=Premissas!$C$60,"C",IF(VW3="-","-","O")) -> - | VX2: =IF(VX3<=Premissas!$C$60,"C",IF(VX3="-","-","O")) -> - | VY2: =IF(VY3<=Premissas!$C$60,"C",IF(VY3="-","-","O")) -> - | VZ2: =IF(VZ3<=Premissas!$C$60,"C",IF(VZ3="-","-","O")) -> - | WA2: =IF(WA3<=Premissas!$C$60,"C",IF(WA3="-","-","O")) -> - | WB2: =IF(WB3<=Premissas!$C$60,"C",IF(WB3="-","-","O")) -> - | WC2: =IF(WC3<=Premissas!$C$60,"C",IF(WC3="-","-","O")) -> - | WD2: =IF(WD3<=Premissas!$C$60,"C",IF(WD3="-","-","O")) -> -
